Workbook

Sheet diff abvfnd25Q (hidden)
B1: sheet upodated through data 12/12/24 | D1: 3 | E1: 4 | F1: 5 | G1: 6 | H1: 7 | I1: 8 | J1: 9 | K1: 10 | L1: 11 | M1: 12 | N1: 13 | O1: 14 | P1: 16 | Q1: 17 | R1: 15 | S1: 18 | T1: 23 - RTHI | U1: updated December 2024 | X1: c70fy25 | Y1: 25 - Q3 projnss | AF1: 24 - Q2 pre chasum | AG1: 25 - Q3 projnss | AH1: 34 | AI1: 35 | AJ1: 36 | AK1: 37 | AL1: 38 | AM1: 39 | AN1: 40 | AO1: 41 | AP1: 42 | AQ1: 43 | AR1: 44 | AS1: 45 | AT1: 46 | AU1: 47 | AV1: 48 | AW1: 49 | AX1: 50 | AY1: 51 | AZ1: 52 | BA1: 53 | BB1: 54 | BC1: 55 | BD1: 56 | BE1: 57 | BH1: 34 | BL1: 34 | BO1: 34
A4: dec04 extract | D4: 1 | E4: 2 | F4: 3 | G4: 4 | H4: 5 | I4: 6 | J4: 7 | K4: 8 | L4: 9 | M4: 10 | N4: 11 | O4: 12 | P4: 13 | Q4: 14 | R4: 15 | S4: 16 | T4: 17 | U4: 18 | V4: 19 | X4: 20 | Y4: 21 | Z4: 22 | AA4: 23 | AC4: 24 | AD4: 25 | AE4: 26 | AF4: 27 | AG4: 28 | AH4: 29 | AK4: Above NSS History | BH4: 29 | BL4: 29 | BO4: 29
D5: Teach Ins | E5: Mass Schs | F5: Sch Choice | G5: Charter | H5: HM Charter | I5: out of State | J5: Non Public | K5: Collabs | L5: Teach Ins | M5: Mass Schs | N5: Sch Choice | O5: Charter | P5: HM Charter | Q5: out of State | R5: Non Public | S5: Collabs | T5: heath ins | U5: spending | V5: nss | X5: foundation | Y5: net school | Z5: nss | AA5: to remove | AC5: as % of | AD5: Foundation | AE5: diff | AF5: Q2 | AG5: Okay | AH5: Fnd % | AT5: latest | AW5: Neg | AX5: 162
A6: LEA | B6: District | C6: OP | D6: J1111 | E6: F1124 | F6: F1125 | G6: F1126 | H6: F1127 | I6: F1129 | J6: F1130 | K6: F1131 | L6: J1154 | M6: F1167 | N6: F1168 | O6: F1169 | P6: F1170 | Q6: F1172 | R6: F1173 | S6: F1174 | T6: x = yes | U6: to remove | V6: (18/21) | W6: x | X6: budget | Y6: spending | Z6: (21 - 20) | AA6: (19 * 22) | AB6: x | AC6: Foundation | AD6: (21 - 23)/20 | AE6: (25-24) | AF6: FTE | AG6: 1 = good | AH6: Used | AJ6: x | AK6: FY24Q4 | AL6: PROJa | AM6: PROJb | AN6: PROJe/f | AO6: Q2 | AP6: Q3 | AQ6: Q4 | AR6: x | AS6: x | AT6: diff | AW6: Pos | AX6: 140
A7: 296 | B7: TISBURY | C7: 1 | D7: 16636 | E7: 0 | F7: 0 | G7: 0 | H7: 0 | I7: 0 | J7: 0 | K7: 0 | L7: 390695 | M7: 0 | N7: 43412 | O7: 78360.35137 | P7: 0 | Q7: 0 | R7: 0 | S7: 0 | T7: x18 | U7: 203238.5514 | V7: 1.517309392 | X7: 5499468.68 | Y7: 13394667.72 | Z7: 7895199.043 | AA7: 119794.5966 | AC7: 209.5552935 | AD7: 241.3846482 | AE7: 31.82935468 | AF7: 44 | AG7: 1 | AH7: 241.3846482 | AK7: 209.5552935 | AL7: 225.7229249 | AM7: 225.7229739 | AN7: 209.5552935 | AO7: 209.5552935 | AP7: 241.3846482 | AT7: 31.82935468 | BC7: FY of | BH7: Above | BL7: Above | BO7: Above
A8: 131 | B8: HINGHAM | C8: 1 | D8: 0 | E8: 79426 | F8: 0 | G8: 0 | H8: 0 | I8: 0 | J8: 1404951 | K8: 1319083 | L8: 7387163 | M8: 244 | N8: 0 | O8: 13829.06 | P8: 0 | Q8: 0 | R8: 0 | S8: 0 | T8: x18 | U8: 4294965.66 | V8: 5.326057313 | X8: 45884665.99 | Y8: 80640620.4 | Z8: 34755954.41 | AA8: 1851122.052 | AC8: 153.6500454 | AD8: 171.7120451 | AE8: 18.06199969 | AF8: 6 | AG8: 1 | AH8: 171.7120451 | AK8: 153.6500454 | AL8: 147.0955318 | AM8: 147.095666 | AN8: 153.6500454 | AO8: 153.6500454 | AP8: 171.7120451 | AT8: 18.06199969 | AV8: Δ in Fnd | AW8: Δ in Budg | BC8: District | BH8: Fnd % | BL8: Fnd % | BO8: Fnd %
A9: 292 | B9: SWANSEA | C9: 1 | D9: 0 | E9: 0 | F9: 0 | G9: 0 | H9: 0 | I9: 155904.01 | J9: 165447.72 | K9: 873056.97 | L9: 3109322.11 | M9: 0 | N9: 19970 | O9: 20484.66 | P9: 0 | Q9: 0 | R9: 0 | S9: 0 | T9: x18 | U9: 1856727.782 | V9: 5.300903275 | X9: 28125194.14 | Y9: 35026630.1 | Z9: 6901435.958 | AA9: 365838.4447 | AC9: 112.8001204 | AD9: 123.2375196 | AE9: 10.43739923 | AF9: 18 | AG9: 1 | AH9: 123.2375196 | AK9: 112.8001204 | AL9: 111.5714355 | AM9: 111.7220732 | AN9: 112.8001204 | AO9: 112.8001204 | AP9: 123.2375196 | AT9: 10.43739923 | AV9: budget over prior FY | AW9: NSS over prior FY | AX9: diff | BC9: Change | BE9: diff | BH9: Used | BL9: Used | BO9: Used
A10: 778 | B10: QUABOAG | C10: 1 | D10: 433865 | E10: 10460 | F10: 143944 | G10: 13875.4 | H10: 0 | I10: 0 | J10: 792806.82 | K10: 303209 | L10: 0 | M10: 0 | N10: 0 | O10: 0 | P10: 0 | Q10: 0 | R10: 0 | S10: 0 | T10: X | U10: 1698160.22 | V10: 9.089956551 | X10: 15692440.66 | Y10: 18681719.88 | Z10: 2989279.22 | AA10: 271724.1823 | AC10: 108.8351917 | AD10: 117.317606 | AE10: 8.482414267 | AF10: 9 | AG10: 1 | AH10: 117.317606 | AK10: 108.8351917 | AL10: 116.3248099 | AM10: 116.5479563 | AN10: 108.8351917 | AO10: 108.8351917 | AP10: 117.317606 | AT10: 8.482414267 | AV10: 3.032530739 | AW10: 4.144608136 | AX10: 1.112077397 | BE10: 110.5214221 | BF10: 111.5214221 | BG10: 0 | BH10: 111.5214221 | BI10: -1.750386885 | BL10: 111.5214221 | BM10: 0 | BO10: 111.5214221 | BP10: -1.750386885 | BR10: 113.4219545 | BS10: -0.1501455187 | BT10: =IF(OR(T10="X",T10="X16",T10="X17"),SUM(D10:S10), IF(T10="x18",SUM(E10:K10,M10:S10)+D10*0.8+L10*0.8,SUM(D10:S10)-D10-L10))
A11: 670 | B11: FRONTIER | C11: 1 | D11: 155250 | E11: 38365 | F11: 95841 | G11: 29733.69 | H11: 0 | I11: 0 | J11: 574784 | K11: 37216 | L11: 0 | M11: 0 | N11: 0 | O11: 0 | P11: 0 | Q11: 0 | R11: 0 | S11: 0 | T11: X | U11: 931189.69 | V11: 7.492397409 | X11: 6897529.56 | Y11: 12428461 | Z11: 5530931.44 | AA11: 414399.3639 | AC11: 175.8131004 | AD11: 174.1791975 | AE11: -1.633902866 | AF11: 24 | AG11: 1 | AH11: 174.1791975 | AK11: 175.8131004 | AL11: 174.7161037 | AM11: 174.5850305 | AN11: 175.8131004 | AO11: 165.9383666 | AP11: 174.1791975 | AT11: 8.24083088 | BC11: fy15 | BE11: -2 | BF11: 0 | BG11: 0 | BH11: 0 | BI11: 0 | BL11: 0 | BM11: 0 | BO11: 0 | BP11: 0 | BR11: 0 | BS11: 0
A12: 155 | B12: LEXINGTON | C12: 1 | D12: 0 | E12: 821031 | F12: 0 | G12: 0 | H12: 0 | I12: 0 | J12: 3949287 | K12: 2736770 | L12: 4877683 | M12: 0 | N12: 0 | O12: 10457.51 | P12: 0 | Q12: 0 | R12: 0 | S12: 0 | T12: X | U12: 12395228.51 | V12: 7.01516369 | X12: 91458917.92 | Y12: 176691935.6 | Z12: 85233017.68 | AA12: 5979235.708 | AC12: 179.7375535 | AD12: 186.6550619 | AE12: 6.917508385 | AF12: 5 | AG12: 1 | AH12: 186.6550619 | AK12: 179.7375535 | AL12: 181.260427 | AM12: 181.260427 | AN12: 179.7375535 | AO12: 179.7375535 | AP12: 186.6550619 | AT12: 6.917508385 | AV12: -1.812764442 | AW12: 2.925913924 | AX12: 4.738678366 | BE12: 102.8549371 | BF12: 105.8549371 | BG12: 0 | BH12: 105.8549371 | BI12: -4.655132829 | BL12: 105.8549371 | BM12: 0 | BO12: 105.8549371 | BP12: -4.655132829 | BR12: 105.8549371 | BS12: 4.655132829
A13: 78 | B13: DOVER | C13: 1 | D13: 0 | E13: 75000 | F13: 0 | G13: 0 | H13: 0 | I13: 180000 | J13: 1635000 | K13: 365000 | L13: 170500 | M13: 0 | N13: 0 | O13: 0 | P13: 0 | Q13: 0 | R13: 0 | S13: 0 | T13: x18 | U13: 2289100 | V13: 16.97461379 | X13: 5959421.474 | Y13: 13485432 | Z13: 7526010.526 | AA13: 1277511.221 | AC13: 198.4966345 | AD13: 204.85077 | AE13: 6.354135578 | AF13: 0 | AG13: 1 | AH13: 204.85077 | AK13: 198.4966345 | AL13: 210.7823826 | AM13: 205.0736484 | AN13: 198.4966345 | AO13: 198.4966345 | AP13: 204.85077 | AT13: 6.354135578 | BE13: -4 | BF13: 0 | BG13: 0 | BH13: 0 | BI13: 0 | BL13: 0 | BM13: 0 | BO13: 0 | BP13: 0 | BR13: 0 | BS13: 0
A14: 10 | B14: ARLINGTON | C14: 1 | D14: 0 | E14: 0 | F14: 0 | G14: 0 | H14: 0 | I14: 0 | J14: 2649199 | K14: 1257229 | L14: 2729542.8 | M14: 14659 | N14: 0 | O14: 26384.19 | P14: 0 | Q14: 0 | R14: 0 | S14: 0 | T14: X | U14: 6677013.99 | V14: 5.716925079 | X14: 77449420.44 | Y14: 116793799.1 | Z14: 39344378.64 | AA14: 2249288.649 | AC14: 141.9712105 | AD14: 147.895891 | AE14: 5.924680463 | AF14: 18 | AG14: 1 | AH14: 147.895891 | AK14: 141.9712105 | AL14: 142.0255113 | AM14: 142.0255599 | AN14: 141.9712105 | AO14: 141.9712105 | AP14: 147.895891 | AT14: 5.924680463 | AV14: 5.141698293 | AW14: 5.32097654 | AX14: 0.1792782466 | BE14: 137.7066758 | BF14: 142.7066758 | BG14: 0 | BH14: 142.7066758 | BI14: 7.41871212 | BL14: 142.7066758 | BM14: 0 | BO14: 142.7066758 | BP14: 7.41871212 | BR14: 135.3212955 | BS14: -0.03333176942
A15: 871 | B15: SHAWSHEEN VALLEY | C15: 1 | D15: 1275822 | E15: 0 | F15: 0 | G15: 0 | H15: 0 | I15: 0 | J15: 0 | K15: 0 | L15: 0 | M15: 0 | N15: 0 | O15: 0 | P15: 0 | Q15: 0 | R15: 0 | S15: 0 | T15: X | U15: 1275822 | V15: 3.358570206 | X15: 25845027.64 | Y15: 37987057.64 | Z15: 12142030 | AA15: 407798.602 | AC15: 135.5593334 | AD15: 145.4022784 | AE15: 9.842945011 | AF15: 0 | AG15: 1 | AH15: 145.4022784 | AK15: 135.5593334 | AL15: 140.1786269 | AM15: 140.1786269 | AN15: 135.5593334 | AO15: 140.2849727 | AP15: 145.4022784 | AT15: 5.117305675 | BE15: -6 | BF15: 0 | BG15: 0 | BH15: 0 | BI15: 0 | BL15: 0 | BM15: 0 | BO15: 0 | BP15: 0 | BR15: 0 | BS15: 0
A16: 83 | B16: EAST BRIDGEWATER | C16: 1 | D16: 0 | E16: 0 | F16: 0 | G16: 0 | H16: 0 | I16: 0 | J16: 678756 | K16: 621477 | L16: 982773 | M16: 7297 | N16: 63659 | O16: 14754.95 | P16: 0 | Q16: 0 | R16: 0 | S16: 0 | T16: X | U16: 2368716.95 | V16: 7.651465705 | X16: 26713492.3 | Y16: 30957688.91 | Z16: 4244196.608 | AA16: 324743.248 | AC16: 109.5917041 | AD16: 114.6721863 | AE16: 5.080482225 | AF16: 17 | AG16: 1 | AH16: 114.6721863 | AK16: 109.5917041 | AL16: 116.1319919 | AM16: 116.1710949 | AN16: 109.5917041 | AO16: 109.5917041 | AP16: 114.6721863 | AT16: 5.080482225 | AV16: 6.128922272 | AW16: 4.439137714 | AX16: -1.689784558 | BE16: 142.4063164 | BF16: 149.4063164 | BG16: 0 | BH16: 149.4063164 | BI16: 2.059095064 | BL16: 149.4063164 | BM16: 0 | BO16: 149.4063164 | BP16: 2.059095064 | BR16: 147.318137 | BS16: 0.02908432635
A17: 138 | B17: HOPEDALE | C17: 1 | D17: 0 | E17: 0 | F17: 0 | G17: 0 | H17: 0 | I17: 0 | J17: 0 | K17: 157308 | L17: 60091 | M17: 0 | N17: 92063 | O17: 10231.2 | P17: 0 | Q17: 0 | R17: 0 | S17: 0 | T17: x18 | U17: 271620.4 | V17: 1.451688341 | X17: 11657637.4 | Y17: 18710655.2 | Z17: 7053017.8 | AA17: 102387.8371 | AC17: 148.6426149 | AD17: 159.6229727 | AE17: 10.98035782 | AF17: 8 | AG17: 1 | AH17: 159.6229727 | AK17: 148.6426149 | AL17: 147.863103 | AM17: 147.6803165 | AN17: 148.6426149 | AO17: 154.5709334 | AP17: 159.6229727 | AT17: 5.052039282 | AV17: -5.145571374 | AW17: 5.232233109 | AX17: 10.37780448 | BE17: 187.4128072 | BF17: 195.4128072 | BG17: 0 | BH17: 195.4128072 | BI17: -20.44150383 | BL17: 195.4128072 | BM17: 0 | BO17: 195.4128072 | BP17: -20.44150383 | BR17: 215.5499776 | BS17: 0.3043334254
A18: 242 | B18: PROVINCETOWN | C18: 1 | D18: 0 | E18: 0 | F18: 0 | G18: 0 | H18: 0 | I18: 0 | J18: 0 | K18: 2000 | L18: 518447 | M18: 0 | N18: 5867 | O18: 9464 | P18: 0 | Q18: 0 | R18: 0 | S18: 0 | T18: x18 | U18: 121020.4 | V18: 1.454222962 | X18: 1580908.48 | Y18: 8321997.6 | Z18: 6741089.12 | AA18: 98030.46587 | AC18: 368.9646459 | AD18: 520.2051376 | AE18: 151.2404917 | AF18: 1 | AG18: 1 | AH18: 520.2051376 | AK18: 368.9646459 | AL18: 425.5515717 | AM18: 404.1917892 | AN18: 368.9646459 | AO18: 515.2608537 | AP18: 520.2051376 | AT18: 4.944283908 | AV18: 0.4853897868 | AW18: 3.376360589 | AX18: 2.890970802 | BE18: 155.7662538 | BF18: 164.7662538 | BG18: 0 | BH18: 164.7662538 | BI18: -4.786285126 | BL18: 164.7662538 | BM18: 0 | BO18: 164.7662538 | BP18: -4.786285126 | BR18: 169.5853908 | BS18: -0.03285186135
A19: 774 | B19: UPISLAND | C19: 1 | D19: 423043 | E19: 0 | F19: 8757 | G19: 82266.87 | H19: 0 | I19: 0 | J19: 0 | K19: 0 | L19: 0 | M19: 0 | N19: 0 | O19: 0 | P19: 0 | Q19: 0 | R19: 0 | S19: 0 | T19: x18 | U19: 175632.47 | V19: 1.101821682 | X19: 5151589.76 | Y19: 15940190.04 | Z19: 10788600.28 | AA19: 118871.137 | AC19: 265.1092055 | AD19: 307.1152719 | AE19: 42.00606637 | AF19: 36 | AG19: 1 | AH19: 307.1152719 | AK19: 265.1092055 | AL19: 267.7203047 | AM19: 268.7778733 | AN19: 265.1092055 | AO19: 302.4182462 | AP19: 307.1152719 | AT19: 4.697025712 | AV19: 3.408254501 | AW19: 7.7549604 | AX19: 4.346705898 | BE19: 131.9712105 | BF19: 141.9712105 | BG19: 0 | BH19: 141.9712105 | BI19: -5.924680463 | BL19: 141.9712105 | BM19: 0 | BO19: 141.9712105 | BP19: -5.924680463 | BR19: 141.9712105 | BS19: 5.924680463
A20: 3 | B20: ACUSHNET | C20: 1 | D20: 0 | E20: 692309 | F20: 0 | G20: 0 | H20: 0 | I20: 0 | J20: 0 | K20: 421694 | L20: 315589 | M20: 0 | N20: 0 | O20: 2792.58 | P20: 0 | Q20: 0 | R20: 0 | S20: 0 | T20: X | U20: 1432384.58 | V20: 8.226433799 | X20: 15622821.81 | Y20: 17411974.8 | Z20: 1789152.99 | AA20: 147183.4863 | AC20: 105.8549371 | AD20: 110.51007 | AE20: 4.655132829 | AF20: 3 | AG20: 1 | AH20: 110.51007 | AK20: 105.8549371 | AL20: 116.4760622 | AM20: 116.4581127 | AN20: 105.8549371 | AO20: 105.8549371 | AP20: 110.51007 | AT20: 4.655132829 | BE20: -11 | BF20: 0 | BG20: 0 | BH20: 0 | BI20: 0 | BL20: 0 | BM20: 0 | BO20: 0 | BP20: 0 | BR20: 0 | BS20: 0
A21: 136 | B21: HOLLISTON | C21: 1 | D21: 0 | E21: 67072 | F21: 0 | G21: 0 | H21: 0 | I21: 0 | J21: 1300896 | K21: 632493 | L21: 867210.05 | M21: 18207 | N21: 36733 | O21: 15967.91 | P21: 0 | Q21: 0 | R21: 0 | S21: 0 | T21: x18 | U21: 2244810.92 | V21: 4.85289183 | X21: 33400106.24 | Y21: 46257180.23 | Z21: 12857073.99 | AA21: 623939.8932 | AC21: 132.2922875 | AD21: 136.6260335 | AE21: 4.33374594 | AF21: 13 | AG21: 1 | AH21: 136.6260335 | AK21: 132.2922875 | AL21: 131.9598176 | AM21: 131.9495978 | AN21: 132.2922875 | AO21: 132.2922875 | AP21: 136.6260335 | AT21: 4.33374594 | BE21: -12 | BF21: 0 | BG21: 0 | BH21: 0 | BI21: 0 | BL21: 0 | BM21: 0 | BO21: 0 | BP21: 0 | BR21: 0 | BS21: 0
A22: 171 | B22: MARSHFIELD | C22: 1 | D22: 0 | E22: 0 | F22: 0 | G22: 0 | H22: 0 | I22: 0 | J22: 0 | K22: 0 | L22: 1101813 | M22: 20942 | N22: 0 | O22: 52193.75 | P22: 0 | Q22: 0 | R22: 0 | S22: 0 | T22: x18 | U22: 293498.35 | V22: 0.4551474791 | X22: 49730334.69 | Y22: 64484230.6 | Z22: 14753895.91 | AA22: 67151.98531 | AC22: 125.2308529 | AD22: 129.5327671 | AE22: 4.301914163 | AF22: 35 | AG22: 1 | AH22: 129.5327671 | AK22: 125.2308529 | AL22: 127.7045957 | AM22: 127.7045948 | AN22: 125.2308529 | AO22: 125.2308529 | AP22: 129.5327671 | AT22: 4.301914163 | BE22: -13 | BF22: 0 | BG22: 0 | BH22: 0 | BI22: 0 | BL22: 0 | BM22: 0 | BO22: 0 | BP22: 0 | BR22: 0 | BS22: 0
A23: 121 | B23: HANCOCK | C23: 1 | D23: 0 | E23: 0 | F23: 0 | G23: 0 | H23: 0 | I23: 0 | J23: 457649 | K23: 0 | L23: 0 | M23: 0 | N23: 11351 | O23: 2166.99 | P23: 0 | Q23: 0 | R23: 0 | S23: 0 | T23: x18 | U23: 471166.99 | V23: 18.04232117 | X23: 1270682.74 | Y23: 2611454.4 | Z23: 1340771.66 | AA23: 241906.329 | AC23: 171.241798 | AD23: 186.4783393 | AE23: 15.23654132 | AF23: 1 | AG23: 1 | AH23: 186.4783393 | AK23: 171.241798 | AL23: 190.9644829 | AM23: 190.9644829 | AN23: 171.241798 | AO23: 182.8559592 | AP23: 186.4783393 | AT23: 3.622380047 | AV23: 2.739832531 | AW23: 4.701447563 | AX23: 1.961615033 | BE23: 108.9745182 | BF23: 122.9745182 | BG23: 0 | BH23: 122.9745182 | BI23: -1.032665202 | BL23: 122.9745182 | BM23: 0 | BO23: 122.9745182 | BP23: -1.032665202 | BR23: 124.0135458 | BS23: -0.0063624893
A24: 230 | B24: PELHAM | C24: 1 | D24: 136412 | E24: 0 | F24: 0 | G24: 0 | H24: 0 | I24: 0 | J24: 0 | K24: 0 | L24: 0 | M24: 0 | N24: 0 | O24: 2276.68 | P24: 0 | Q24: 0 | R24: 0 | S24: 0 | T24: X | U24: 138688.68 | V24: 4.787661118 | X24: 910076.45 | Y24: 2896794 | Z24: 1986717.55 | AA24: 95117.30366 | AC24: 285.3159897 | AD24: 307.8506972 | AE24: 22.53470752 | AF24: 1 | AG24: 1 | AH24: 307.8506972 | AK24: 285.3159897 | AL24: 266.1447306 | AM24: 252.1325036 | AN24: 285.3159897 | AO24: 304.3525011 | AP24: 307.8506972 | AT24: 3.49819611 | BE24: -15 | BF24: 0 | BG24: 0 | BH24: 0 | BI24: 0 | BL24: 0 | BM24: 0 | BO24: 0 | BP24: 0 | BR24: 0 | BS24: 0
A25: 317 | B25: WELLESLEY | C25: 1 | D25: 0 | E25: 0 | F25: 0 | G25: 0 | H25: 0 | I25: 478028 | J25: 2797343 | K25: 603274 | L25: 1837700 | M25: 0 | N25: 0 | O25: 1928.36 | P25: 0 | Q25: 0 | R25: 0 | S25: 0 | T25: x18 | U25: 4248113.36 | V25: 3.774838593 | X25: 53567076.59 | Y25: 112537616 | Z25: 58970539.41 | AA25: 2226042.68 | AC25: 202.6471517 | AD25: 205.9316661 | AE25: 3.284514456 | AF25: 0 | AG25: 1 | AH25: 205.9316661 | AK25: 202.6471517 | AL25: 194.7297954 | AM25: 194.7667365 | AN25: 202.6471517 | AO25: 202.6471517 | AP25: 205.9316661 | AT25: 3.284514456 | AV25: 5.045442067 | AW25: 6.343579697 | AX25: 1.29813763 | BE25: 85.08664558 | BF25: 101.0866456 | BG25: 0 | BH25: 101.0866456 | BI25: -1.203923119 | BL25: 101.0866456 | BM25: 0 | BO25: 101.0866456 | BP25: -1.203923119 | BR25: 101.6385722 | BS25: 0.6519965266
A26: 620 | B26: BERLIN BOYLSTON | C26: 1 | D26: 406426 | E26: 16328 | F26: 51143 | G26: 22627.43 | H26: 0 | I26: 0 | J26: 735788 | K26: 466964 | L26: 0 | M26: 0 | N26: 0 | O26: 0 | P26: 0 | Q26: 0 | R26: 0 | S26: 0 | T26: x18 | U26: 1374135.63 | V26: 5.937783281 | X26: 13467608.22 | Y26: 23142232.8 | Z26: 9674624.58 | AA26: 574458.2408 | AC26: 164.3256001 | AD26: 167.5707683 | AE26: 3.245168143 | AF26: 13 | AG26: 1 | AH26: 167.5707683 | AK26: 164.3256001 | AL26: 151.8334427 | AM26: 152.0093368 | AN26: 164.3256001 | AO26: 164.3256001 | AP26: 167.5707683 | AT26: 3.245168143 | AV26: 0.9152026369 | AW26: 3.909992825 | AX26: 2.994790188 | BE26: 101.3292762 | BF26: 118.3292762 | BG26: 0 | BH26: 118.3292762 | BI26: -3.411399772 | BL26: 118.3292762 | BM26: 0 | BO26: 118.3292762 | BP26: -3.411399772 | BR26: 121.6485647 | BS26: 0.09211129567
A27: 44 | B27: BROCKTON | C27: 1 | D27: 0 | E27: 0 | F27: 0 | G27: 0 | H27: 0 | I27: 0 | J27: 7247175 | K27: 1791477 | L27: 0 | M27: 61652 | N27: 150892 | O27: 2253331.43 | P27: 0 | Q27: 0 | R27: 0 | S27: 0 | T27: X17 | U27: 11504527.43 | V27: 3.660961779 | X27: 314919037.4 | Y27: 314248771.9 | Z27: 0 | AA27: 0 | AC27: 103.4876437 | AD27: 99.78716258 | AE27: -3.700481072 | AF27: 1634 | AG27: 1 | AH27: 99.78716258 | AK27: 103.4876437 | AL27: 101.7390623 | AM27: 101.7431167 | AN27: 103.4876437 | AO27: 97.51129429 | AP27: 99.78716258 | AT27: 2.275868296 | AV27: -0.2314972071 | AW27: 11.37712121 | AX27: 11.60861842 | BE27: 114.9199711 | BF27: 132.9199711 | BG27: 0 | BH27: 132.9199711 | BI27: -14.76787544 | BL27: 132.9199711 | BM27: 0 | BO27: 132.9199711 | BP27: -14.76787544 | BR27: 147.4192294 | BS27: 0.2686171296
A28: 114 | B28: GREENFIELD | C28: 1 | D28: 0 | E28: 0 | F28: 0 | G28: 0 | H28: 0 | I28: 0 | J28: 319947 | K28: 0 | L28: 1444799 | M28: 11553 | N28: 1359868 | O28: 150282.65 | P28: 0 | Q28: 0 | R28: 0 | S28: 0 | T28: X | U28: 3286449.65 | V28: 9.442933469 | X28: 27960950.6 | Y28: 34803270.2 | Z28: 6842319.6 | AA28: 646115.6876 | AC28: 120.1742246 | AD28: 122.1602048 | AE28: 1.985980203 | AF28: 113 | AG28: 1 | AH28: 122.1602048 | AK28: 120.1742246 | AL28: 116.3101691 | AM28: 116.3107909 | AN28: 120.1742246 | AO28: 120.1742246 | AP28: 122.1602048 | AT28: 1.985980203 | BC28: fy12 | BE28: -19 | BF28: 0 | BG28: 0 | BH28: 0 | BI28: 0 | BL28: 0 | BM28: 0 | BO28: 0 | BP28: 0 | BR28: 0 | BS28: 0
A29: 876 | B29: SOUTHERN WORCESTER | C29: 1 | D29: 528600 | E29: 0 | F29: 0 | G29: 0 | H29: 0 | I29: 0 | J29: 0 | K29: 0 | L29: 0 | M29: 0 | N29: 0 | O29: 0 | P29: 0 | Q29: 0 | R29: 0 | S29: 0 | T29: X | U29: 528600 | V29: 2.017642347 | X29: 25679391.35 | Y29: 26198895 | Z29: 519503.6503 | AA29: 10481.72564 | AC29: 100.0614782 | AD29: 101.9822196 | AE29: 1.920741429 | AF29: 0 | AG29: 1 | AH29: 101.9822196 | AK29: 100.0614782 | AL29: 100.1063366 | AM29: 100.1063366 | AN29: 100.0614782 | AO29: 100.1322915 | AP29: 101.9822196 | AT29: 1.849928117 | AV29: 5.130246102 | AW29: 8.782097848 | AX29: 3.651851746 | BE29: 96.50517333 | BF29: 116.5051733 | BG29: 0 | BH29: 116.5051733 | BI29: -3.839618693 | BL29: 116.5051733 | BM29: 0 | BO29: 116.5051733 | BP29: -3.839618693 | BR29: 120.0651887 | BS29: 0.27960336
A30: 685 | B30: HAWLEMONT | C30: 1 | D30: 119503.44 | E30: 10000 | F30: 91049.23 | G30: 0 | H30: 0 | I30: 0 | J30: 0 | K30: 0 | L30: 0 | M30: 0 | N30: 0 | O30: 0 | P30: 0 | Q30: 0 | R30: 0 | S30: 0 | T30: X | U30: 220552.67 | V30: 10.36513591 | X30: 1168904.86 | Y30: 2127831.916 | Z30: 958927.0565 | AA30: 99394.09264 | AC30: 151.1344215 | AD30: 173.5331842 | AE30: 22.39876267 | AF30: 1 | AG30: 1 | AH30: 173.5331842 | AK30: 151.1344215 | AL30: 179.7936811 | AM30: 190.331774 | AN30: 151.1344215 | AO30: 171.7220606 | AP30: 173.5331842 | AT30: 1.811123619 | BE30: -21 | BF30: 0 | BG30: 0 | BH30: 0 | BI30: 0 | BL30: 0 | BM30: 0 | BO30: 0 | BP30: 0 | BR30: 0 | BS30: 0
A31: 107 | B31: GLOUCESTER | C31: 1 | D31: 840000 | E31: 0 | F31: 0 | G31: 0 | H31: 0 | I31: 0 | J31: 3950000 | K31: 0 | L31: 3168687 | M31: 1153 | N31: 907991 | O31: 1228.57 | P31: 0 | Q31: 0 | R31: 0 | S31: 0 | T31: X | U31: 8869059.57 | V31: 13.12611496 | X31: 49375946.82 | Y31: 67568047.32 | Z31: 18192100.5 | AA31: 2387916.026 | AC31: 130.2293912 | AD31: 132.0078611 | AE31: 1.778469929 | AF31: 1 | AG31: 1 | AH31: 132.0078611 | AK31: 130.2293912 | AL31: 129.9026822 | AM31: 129.9399502 | AN31: 130.2293912 | AO31: 130.2293912 | AP31: 132.0078611 | AT31: 1.778469929 | BE31: -22 | BF31: 0 | BG31: 0 | BH31: 0 | BI31: 0 | BL31: 0 | BM31: 0 | BO31: 0 | BP31: 0 | BR31: 0 | BS31: 0
A32: 817 | B32: ESSEX NORTH SHORE | C32: 1 | D32: 0 | E32: 0 | F32: 0 | G32: 0 | H32: 0 | I32: 0 | J32: 0 | K32: 0 | L32: 0 | M32: 0 | N32: 0 | O32: 0 | P32: 0 | Q32: 0 | R32: 0 | S32: 0 | T32: X | U32: 0 | V32: 0 | X32: 28509097.57 | Y32: 28587403 | Z32: 78305.42914 | AA32: 0 | AC32: 119.6996962 | AD32: 100.2746682 | AE32: -19.42502802 | AF32: 0 | AG32: 1 | AH32: 100.2746682 | AK32: 119.6996962 | AL32: 100.2498866 | AM32: 100.2498866 | AN32: 119.6996962 | AO32: 98.54759145 | AP32: 100.2746682 | AT32: 1.727076765 | AV32: 4.698104453 | AW32: 5.309598256 | AX32: 0.6114938028 | BE32: 134.8551798 | BF32: 157.8551798 | BG32: 0 | BH32: 157.8551798 | BI32: -1.143012834 | BL32: 157.8551798 | BM32: 0 | BO32: 157.8551798 | BP32: -1.143012834 | BR32: 157.8551798 | BS32: 1.143012834
A33: 100 | B33: FRAMINGHAM | C33: 1 | D33: 0 | E33: 526955 | F33: 0 | G33: 0 | H33: 0 | I33: 400238 | J33: 7973813 | K33: 5569386 | L33: 8758995 | M33: 149913 | N33: 0 | O33: 0 | P33: 0 | Q33: 0 | R33: 0 | S33: 0 | T33: X | U33: 23379300 | V33: 10.93720579 | X33: 164084535.7 | Y33: 213759350 | Z33: 49674814.35 | AA33: 5433036.67 | AC33: 125.245701 | AD33: 126.9627954 | AE33: 1.717094466 | AF33: 281 | AG33: 1 | AH33: 126.9627954 | AK33: 125.245701 | AL33: 132.4869165 | AM33: 133.0291405 | AN33: 125.245701 | AO33: 125.245701 | AP33: 126.9627954 | AT33: 1.717094466 | AV33: 0.6673943938 | AW33: 2.709093645 | AX33: 2.041699251 | BE33: 95.31363987 | BF33: 119.3136399 | BG33: 0 | BH33: 119.3136399 | BI33: -2.176438205 | BL33: 119.3136399 | BM33: 0 | BO33: 119.3136399 | BP33: -2.176438205 | BR33: 121.6201088 | BS33: -0.1300307448
A34: 176 | B34: MEDFORD | C34: 1 | D34: 0 | E34: 0 | F34: 0 | G34: 0 | H34: 0 | I34: 0 | J34: 2614100 | K34: 0 | L34: 0 | M34: 62335 | N34: 0 | O34: 532435.12 | P34: 0 | Q34: 0 | R34: 0 | S34: 0 | T34: X | U34: 3208870.12 | V34: 3.409171817 | X34: 73681605.55 | Y34: 94124623 | Z34: 20443017.45 | AA34: 696937.5895 | AC34: 125.1151069 | AD34: 126.7991987 | AE34: 1.684091782 | AF34: 379 | AG34: 1 | AH34: 126.7991987 | AK34: 125.1151069 | AL34: 142.0903047 | AM34: 134.2663151 | AN34: 125.1151069 | AO34: 125.1151069 | AP34: 126.7991987 | AT34: 1.684091782 | AV34: 1.44277805 | AW34: 4.704992266 | AX34: 3.262214216 | BE34: 113.4183626 | BF34: 138.4183626 | BG34: 0 | BH34: 138.4183626 | BI34: -4.081299059 | BL34: 138.4183626 | BM34: 0 | BO34: 138.4183626 | BP34: -4.081299059 | BR34: 142.5162126 | BS34: -0.01655090172
A35: 212 | B35: NORTH ATTLEBOROUGH | C35: 1 | D35: 0 | E35: 0 | F35: 0 | G35: 0 | H35: 0 | I35: 0 | J35: 1125992 | K35: 0 | L35: 4712553 | M35: 16239 | N35: 31381 | O35: 109348.75 | P35: 0 | Q35: 0 | R35: 0 | S35: 0 | T35: X | U35: 5995513.75 | V35: 9.446050626 | X35: 52550990.75 | Y35: 63471116 | Z35: 10920125.25 | AA35: 1031520.559 | AC35: 117.1543398 | AD35: 118.8171613 | AE35: 1.662821495 | AF35: 89 | AG35: 1 | AH35: 118.8171613 | AK35: 117.1543398 | AL35: 125.5140366 | AM35: 123.8114179 | AN35: 117.1543398 | AO35: 117.1543398 | AP35: 118.8171613 | AT35: 1.662821495 | AV35: 3.673986619 | AW35: 8.885599547 | AX35: 5.211612928 | BE35: 106.1647799 | BF35: 132.1647799 | BG35: 0 | BH35: 132.1647799 | BI35: -6.367943331 | BL35: 132.1647799 | BM35: 0 | BO35: 132.1647799 | BP35: -6.367943331 | BR35: 138.6151339 | BS35: -0.08241075327
A36: 50 | B36: CANTON | C36: 1 | D36: 0 | E36: 0 | F36: 0 | G36: 0 | H36: 0 | I36: 0 | J36: 2045222.17 | K36: 3418896 | L36: 1849160 | M36: 0 | N36: 0 | O36: 22009.26 | P36: 0 | Q36: 0 | R36: 0 | S36: 0 | T36: X | U36: 7335287.43 | V36: 10.93679428 | X36: 44999693.3 | Y36: 67069812.61 | Z36: 22070119.31 | AA36: 2413763.546 | AC36: 142.1590565 | AD36: 143.6810883 | AE36: 1.522031759 | AF36: 17 | AG36: 1 | AH36: 143.6810883 | AK36: 142.1590565 | AL36: 145.6821992 | AM36: 145.6093362 | AN36: 142.1590565 | AO36: 142.1590565 | AP36: 143.6810883 | AT36: 1.522031759 | AV36: -0.386331338 | AW36: -5.528134554 | AX36: -5.141803216 | BC36: fy12 | BE36: 86.83944082 | BF36: 113.8394408 | BG36: 0 | BH36: 113.8394408 | BI36: 5.678575821 | BL36: 113.8394408 | BM36: 0 | BO36: 113.8394408 | BP36: 5.678575821 | BR36: 108.6183234 | BS36: -0.4574584462
A37: 229 | B37: PEABODY | C37: 1 | D37: 0 | E37: 80819 | F37: 0 | G37: 0 | H37: 0 | I37: 0 | J37: 5127546 | K37: 2819374 | L37: 1700000 | M37: 18276 | N37: 73611 | O37: 202337.24 | P37: 0 | Q37: 0 | R37: 0 | S37: 0 | T37: x18 | U37: 8661963.24 | V37: 8.192106341 | X37: 95329652.76 | Y37: 105735483.4 | Z37: 10405830.64 | AA37: 852456.7117 | AC37: 108.6112492 | AD37: 110.0214085 | AE37: 1.410159286 | AF37: 133 | AG37: 1 | AH37: 110.0214085 | AK37: 108.6112492 | AL37: 107.5363344 | AM37: 107.5308334 | AN37: 108.6112492 | AO37: 108.6112492 | AP37: 110.0214085 | AT37: 1.410159286 | BC37: fy20 | BE37: -28 | BF37: 0 | BG37: 0 | BH37: 0 | BI37: 0 | BL37: 0 | BM37: 0 | BO37: 0 | BP37: 0 | BR37: 0 | BS37: 0
A38: 288 | B38: SUDBURY | C38: 1 | D38: 0 | E38: 0 | F38: 0 | G38: 0 | H38: 0 | I38: 0 | J38: 1314007 | K38: 0 | L38: 1013105 | M38: 0 | N38: 0 | O38: 7279.51 | P38: 0 | Q38: 0 | R38: 0 | S38: 0 | T38: x18 | U38: 1523907.51 | V38: 2.860642495 | X38: 29591077.41 | Y38: 53271512 | Z38: 23680434.59 | AA38: 677412.5749 | AC38: 176.4160243 | AD38: 177.736345 | AE38: 1.320320671 | AF38: 3 | AG38: 1 | AH38: 177.736345 | AK38: 176.4160243 | AL38: 173.4788652 | AM38: 173.4258214 | AN38: 176.4160243 | AO38: 176.4160243 | AP38: 177.736345 | AT38: 1.320320671 | BE38: -29 | BF38: 0 | BG38: 0 | BH38: 0 | BI38: 0 | BL38: 0 | BM38: 0 | BO38: 0 | BP38: 0 | BR38: 0 | BS38: 0
A39: 208 | B39: NORFOLK | C39: 1 | D39: 0 | E39: 0 | F39: 0 | G39: 0 | H39: 0 | I39: 0 | J39: 112563 | K39: 18645 | L39: 272055 | M39: 0 | N39: 0 | O39: 19535.88 | P39: 0 | Q39: 0 | R39: 0 | S39: 0 | T39: X | U39: 422798.88 | V39: 2.283140425 | X39: 12579945.42 | Y39: 18518303.8 | Z39: 5938358.377 | AA39: 135581.0607 | AC39: 144.1397487 | AD39: 146.1272058 | AE39: 1.987457139 | AF39: 13 | AG39: 1 | AH39: 146.1272058 | AK39: 144.1397487 | AL39: 143.9795076 | AM39: 143.9807615 | AN39: 144.1397487 | AO39: 144.8961448 | AP39: 146.1272058 | AT39: 1.23106102 | AV39: 1.469728596 | AW39: 9.509390774 | AX39: 8.039662177 | BE39: 90.32888226 | BF39: 120.3288823 | BG39: 0 | BH39: 120.3288823 | BI39: -8.613696031 | BL39: 120.3288823 | BM39: 0 | BO39: 120.3288823 | BP39: -8.613696031 | BR39: 129.0269536 | BS39: -0.08437528969
A40: 330 | B40: WESTON | C40: 1 | D40: 0 | E40: 629495 | F40: 0 | G40: 0 | H40: 0 | I40: 0 | J40: 1334348 | K40: 487258 | L40: 2797422 | M40: 0 | N40: 0 | O40: 0 | P40: 0 | Q40: 0 | R40: 0 | S40: 0 | T40: x18 | U40: 3010585.4 | V40: 5.130929943 | X40: 26381907.9 | Y40: 58675238.86 | Z40: 32293330.96 | AA40: 1656948.188 | AC40: 214.9227132 | AD40: 216.1264867 | AE40: 1.203773532 | AF40: 0 | AG40: 1 | AH40: 216.1264867 | AK40: 214.9227132 | AL40: 227.2475895 | AM40: 227.2861255 | AN40: 214.9227132 | AO40: 214.9227132 | AP40: 216.1264867 | AT40: 1.203773532 | AV40: 2.581360774 | AW40: 4.21862725 | AX40: 1.637266476 | BE40: 113.8845911 | BF40: 144.8845911 | BG40: 0 | BH40: 144.8845911 | BI40: 2.713373797 | BL40: 144.8845911 | BM40: 0 | BO40: 144.8845911 | BP40: 2.713373797 | BR40: 144.8845911 | BS40: -2.713373797
A41: 23 | B41: BEDFORD | C41: 1 | D41: 0 | E41: 0 | F41: 0 | G41: 0 | H41: 0 | I41: 0 | J41: 1936520 | K41: 1115647 | L41: 1040774 | M41: 0 | N41: 0 | O41: 0 | P41: 0 | Q41: 0 | R41: 0 | S41: 0 | T41: X | U41: 4092941 | V41: 7.184779661 | X41: 34828204.55 | Y41: 56966827 | Z41: 22138622.45 | AA41: 1590611.243 | AC41: 157.8551798 | AD41: 158.9981926 | AE41: 1.143012834 | AF41: 0 | AG41: 1 | AH41: 158.9981926 | AK41: 157.8551798 | AL41: 158.1382476 | AM41: 156.7388579 | AN41: 157.8551798 | AO41: 157.8551798 | AP41: 158.9981926 | AT41: 1.143012834 | BE41: -32 | BF41: 0 | BG41: 0 | BH41: 0 | BI41: 0 | BL41: 0 | BM41: 0 | BO41: 0 | BP41: 0 | BR41: 0 | BS41: 0
A42: 285 | B42: STOUGHTON | C42: 1 | D42: 0 | E42: 0 | F42: 0 | G42: 0 | H42: 0 | I42: 0 | J42: 3218370 | K42: 943775 | L42: 2195340 | M42: 7900 | N42: 0 | O42: 148788.22 | P42: 0 | Q42: 0 | R42: 0 | S42: 0 | T42: x18 | U42: 4757901.22 | V42: 6.481855061 | X42: 60534150.37 | Y42: 73403388 | Z42: 12869237.63 | AA42: 834165.3305 | AC42: 118.9049697 | AD42: 119.881459 | AE42: 0.9764892969 | AF42: 119 | AG42: 1 | AH42: 119.881459 | AK42: 118.9049697 | AL42: 119.0317324 | AM42: 118.8208151 | AN42: 118.9049697 | AO42: 118.9049697 | AP42: 119.881459 | AT42: 0.9764892969 | BE42: -33 | BF42: 0 | BG42: 0 | BH42: 0 | BI42: 0 | BL42: 0 | BM42: 0 | BO42: 0 | BP42: 0 | BR42: 0 | BS42: 0
A43: 312 | B43: WARWICK | C43: 1 | D43: 0 | E43: 0 | F43: 0 | G43: 0 | H43: 0 | I43: 0 | J43: 0 | K43: 0 | L43: 0 | M43: 0 | N43: 0 | O43: 3442.95 | P43: 0 | Q43: 0 | R43: 0 | S43: 0 | T43: 0 | U43: 3442.95 | V43: 0.2956218143 | X43: 700343.84 | Y43: 1164646.8 | Z43: 464302.96 | AA43: 1372.580834 | AC43: 130.92272 | AD43: 166.1004428 | AE43: 35.17772277 | AF43: 2 | AG43: 1 | AH43: 166.1004428 | AK43: 130.92272 | AL43: 0 | AM43: 0 | AN43: 130.92272 | AO43: 165.1380688 | AP43: 166.1004428 | AT43: 0.9623740124 | BE43: -34 | BF43: 0 | BG43: 0 | BH43: 0 | BI43: 0 | BL43: 0 | BM43: 0 | BO43: 0 | BP43: 0 | BR43: 0 | BS43: 0
A44: 127 | B44: HATFIELD | C44: 1 | D44: 0 | E44: 275000 | F44: 0 | G44: 0 | H44: 0 | I44: 0 | J44: 0 | K44: 12000 | L44: 188496 | M44: 699 | N44: 152710 | O44: 28929.39 | P44: 0 | Q44: 0 | R44: 0 | S44: 0 | T44: x18 | U44: 507037.59 | V44: 5.884417509 | X44: 4167872.81 | Y44: 8616614.8 | Z44: 4448741.99 | AA44: 261782.5526 | AC44: 197.5314038 | AD44: 200.4579465 | AE44: 2.926542726 | AF44: 15 | AG44: 1 | AH44: 200.4579465 | AK44: 197.5314038 | AL44: 152.2784613 | AM44: 152.279533 | AN44: 197.5314038 | AO44: 199.6807415 | AP44: 200.4579465 | AT44: 0.7772050233 | AV44: 4.584790941 | AW44: 4.938825129 | AX44: 0.3540341877 | BE44: 102.8639369 | BF44: 137.8639369 | BG44: 0 | BH44: 137.8639369 | BI44: -0.6028363276 | BL44: 137.8639369 | BM44: 0 | BO44: 137.8639369 | BP44: -0.6028363276 | BR44: 138.5821716 | BS44: -0.1153983403
A45: 234 | B45: PETERSHAM | C45: 1 | D45: 0 | E45: 0 | F45: 0 | G45: 0 | H45: 0 | I45: 0 | J45: 0 | K45: 60625 | L45: 19589 | M45: 0 | N45: 0 | O45: 0 | P45: 0 | Q45: 0 | R45: 0 | S45: 0 | T45: x18 | U45: 64542.8 | V45: 2.646519764 | X45: 1204091.58 | Y45: 2438780.2 | Z45: 1234688.62 | AA45: 32676.27836 | AC45: 193.1119447 | AD45: 199.8273189 | AE45: 6.715374201 | AF45: 0 | AG45: 1 | AH45: 199.8273189 | AK45: 193.1119447 | AL45: 228.4354429 | AM45: 228.4354641 | AN45: 193.1119447 | AO45: 199.0734428 | AP45: 199.8273189 | AT45: 0.753876094 | AV45: 5.47327822 | AW45: 4.62047508 | AX45: -0.8528031408 | BE45: 111.890311 | BF45: 147.890311 | BG45: 0 | BH45: 147.890311 | BI45: 1.147366011 | BL45: 147.890311 | BM45: 0 | BO45: 147.890311 | BP45: 1.147366011 | BR45: 146.32877 | BS45: 0.4141749707
A46: 79 | B46: DRACUT | C46: 1 | D46: 0 | E46: 0 | F46: 0 | G46: 0 | H46: 0 | I46: 0 | J46: 275553 | K46: 365268 | L46: 2604753 | M46: 7176 | N46: 172498 | O46: 231999.04 | P46: 0 | Q46: 0 | R46: 0 | S46: 0 | T46: X | U46: 3657247.04 | V46: 6.580835125 | X46: 54583406.89 | Y46: 55574208.6 | Z46: 990801.71 | AA46: 65203.02695 | AC46: 101.0265007 | AD46: 101.695751 | AE46: 0.6692503445 | AF46: 255 | AG46: 1 | AH46: 101.695751 | AK46: 101.0265007 | AL46: 100.9583659 | AM46: 101.5011456 | AN46: 101.0265007 | AO46: 101.0000979 | AP46: 101.695751 | AT46: 0.6956531525 | BC46: fy15 | BE46: -37 | BF46: 0 | BG46: 0 | BH46: 0 | BI46: 0 | BL46: 0 | BM46: 0 | BO46: 0 | BP46: 0 | BR46: 0 | BS46: 0
A47: 16 | B47: ATTLEBORO | C47: 1 | D47: 0 | E47: 0 | F47: 0 | G47: 0 | H47: 0 | I47: 0 | J47: 1840000 | K47: 1236400 | L47: 772159.77 | M47: 25181 | N47: 0 | O47: 232210.16 | P47: 0 | Q47: 0 | R47: 0 | S47: 0 | T47: X | U47: 4105950.93 | V47: 3.931524699 | X47: 102004503.3 | Y47: 104436605.2 | Z47: 2432101.91 | AA47: 95618.6873 | AC47: 101.0866456 | AD47: 102.2905687 | AE47: 1.203923119 | AF47: 209 | AG47: 1 | AH47: 102.2905687 | AK47: 101.0866456 | AL47: 102.4672666 | AM47: 102.1523008 | AN47: 101.0866456 | AO47: 101.6385722 | AP47: 102.2905687 | AT47: 0.6519965266 | AV47: 5.818115827 | AW47: 8.865014153 | AX47: 3.046898326 | BE47: 131.0555923 | BF47: 169.0555923 | BG47: 0 | BH47: 169.0555923 | BI47: -4.321345628 | BL47: 169.0555923 | BM47: 0 | BO47: 169.0555923 | BP47: -4.321345628 | BR47: 173.3771377 | BS47: -0.0001997443115
A48: 780 | B48: WHITMAN HANSON | C48: 1 | D48: 1827440 | E48: 151003 | F48: 41004 | G48: 94713.01 | H48: 0 | I48: 0 | J48: 0 | K48: 1577000 | L48: 0 | M48: 0 | N48: 0 | O48: 0 | P48: 0 | Q48: 0 | R48: 0 | S48: 0 | T48: X | U48: 3691160.01 | V48: 6.302367071 | X48: 48997412.14 | Y48: 58567836 | Z48: 9570423.86 | AA48: 603163.2419 | AC48: 117.6559356 | AD48: 118.3014984 | AE48: 0.6455628348 | AF48: 76 | AG48: 1 | AH48: 118.3014984 | AK48: 117.6559356 | AL48: 127.964674 | AM48: 126.5824892 | AN48: 117.6559356 | AO48: 117.6559356 | AP48: 118.3014984 | AT48: 0.6455628348 | BC48: fy20 | BE48: -39 | BF48: 0 | BG48: 0 | BH48: 0 | BI48: 0 | BL48: 0 | BM48: 0 | BO48: 0 | BP48: 0 | BR48: 0 | BS48: 0
A49: 717 | B49: MOHAWK TRAIL | C49: 1 | D49: 1328861.66 | E49: 2278 | F49: 165898 | G49: 42125.79 | H49: 0 | I49: 0 | J49: 652509 | K49: 0 | L49: 0 | M49: 0 | N49: 0 | O49: 0 | P49: 0 | Q49: 0 | R49: 0 | S49: 0 | T49: x18 | U49: 1128583.122 | V49: 5.277596282 | X49: 11760100.91 | Y49: 21384415.59 | Z49: 9624314.678 | AA49: 507932.4736 | AC49: 147.7089861 | AD49: 177.5195917 | AE49: 29.81060556 | AF49: 23 | AG49: 1 | AH49: 177.5195917 | AK49: 147.7089861 | AL49: 163.3827289 | AM49: 162.5523818 | AN49: 147.7089861 | AO49: 176.8828508 | AP49: 177.5195917 | AT49: 0.6367408991 | AV49: 1.422541248 | AW49: 6.081013171 | AX49: 4.658471923 | BE49: 86.44075404 | BF49: 126.440754 | BG49: 0 | BH49: 126.440754 | BI49: -6.075874023 | BL49: 126.440754 | BM49: 0 | BO49: 126.440754 | BP49: -6.075874023 | BR49: 132.5724104 | BS49: -0.05578237577
A50: 605 | B50: AMHERST PELHAM | C50: 1 | D50: 1895617 | E50: 100000 | F50: 38000 | G50: 149316.51 | H50: 0 | I50: 0 | J50: 280615 | K50: 246090 | L50: 0 | M50: 0 | N50: 0 | O50: 0 | P50: 0 | Q50: 0 | R50: 0 | S50: 0 | T50: X | U50: 2709638.51 | V50: 7.953467213 | X50: 17938493.4 | Y50: 34068645 | Z50: 16130151.6 | AA50: 1282906.319 | AC50: 163.6223144 | AD50: 182.7675154 | AE50: 19.14520094 | AF50: 81 | AG50: 1 | AH50: 182.7675154 | AK50: 163.6223144 | AL50: 172.3947967 | AM50: 169.0876933 | AN50: 163.6223144 | AO50: 182.2058501 | AP50: 182.7675154 | AT50: 0.5616652179 | AV50: 4.201072441 | AW50: 11.70317347 | AX50: 7.502101029 | BE50: 141.1086883 | BF50: 182.1086883 | BG50: 0 | BH50: 182.1086883 | BI50: -11.08198635 | BL50: 182.1086883 | BM50: 0 | BO50: 182.1086883 | BP50: -11.08198635 | BR50: 193.4003505 | BS50: -0.2096758227
A51: 323 | B51: WEST BRIDGEWATER | C51: 1 | D51: 0 | E51: 265000 | F51: 0 | G51: 0 | H51: 0 | I51: 0 | J51: 963000 | K51: 398500 | L51: 540682 | M51: 0 | N51: 7730 | O51: 2848.51 | P51: 0 | Q51: 0 | R51: 0 | S51: 0 | T51: X | U51: 2177760.51 | V51: 10.35382704 | X51: 15992142.17 | Y51: 21033387 | Z51: 5041244.83 | AA51: 521961.7702 | AC51: 124.0851219 | AD51: 128.2593977 | AE51: 4.174275855 | AF51: 8 | AG51: 1 | AH51: 128.2593977 | AK51: 124.0851219 | AL51: 130.1565448 | AM51: 130.0987816 | AN51: 124.0851219 | AO51: 127.7358648 | AP51: 128.2593977 | AT51: 0.5235329632 | BE51: -42 | BF51: 0 | BG51: 0 | BH51: 0 | BI51: 0 | BL51: 0 | BM51: 0 | BO51: 0 | BP51: 0 | BR51: 0 | BS51: 0
A52: 226 | B52: OXFORD | C52: 1 | D52: 0 | E52: 0 | F52: 0 | G52: 0 | H52: 0 | I52: 206363 | J52: 400058 | K52: 119759 | L52: 466744.2456 | M52: 6781 | N52: 39906 | O52: 22764.7 | P52: 0 | Q52: 0 | R52: 0 | S52: 0 | T52: X | U52: 1262375.946 | V52: 4.917612894 | X52: 23877644.36 | Y52: 25670502.6 | Z52: 1792858.236 | AA52: 88165.82777 | AC52: 109.5030331 | AD52: 107.1392822 | AE52: -2.363750947 | AF52: 28 | AG52: 1 | AH52: 107.1392822 | AK52: 109.5030331 | AL52: 109.4593928 | AM52: 109.2722317 | AN52: 109.5030331 | AO52: 106.620427 | AP52: 107.1392822 | AT52: 0.5188551717 | AV52: 4.686570937 | AW52: 9.120826333 | AX52: 4.434255396 | BE52: 86.09457932 | BF52: 129.0945793 | BG52: 0 | BH52: 129.0945793 | BI52: -3.775951551 | BL52: 129.0945793 | BM52: 0 | BO52: 129.0945793 | BP52: -3.775951551 | BR52: 132.7931122 | BS52: 0.07741867967
A53: 289 | B53: SUNDERLAND | C53: 1 | D53: 0 | E53: 48000 | F53: 0 | G53: 0 | H53: 0 | I53: 0 | J53: 0 | K53: 0 | L53: 53396.8 | M53: 0 | N53: 1835 | O53: 0 | P53: 0 | Q53: 0 | R53: 0 | S53: 0 | T53: x18 | U53: 60514.36 | V53: 1.360729708 | X53: 2077119.52 | Y53: 4447199.15 | Z53: 2370079.63 | AA53: 32250.37762 | AC53: 211.0021282 | AD53: 212.5515037 | AE53: 1.54937547 | AF53: 0 | AG53: 1 | AH53: 212.5515037 | AK53: 211.0021282 | AL53: 158.2172869 | AM53: 175.1821472 | AN53: 211.0021282 | AO53: 212.0531292 | AP53: 212.5515037 | AT53: 0.4983744076 | AV53: 6.518652192 | AW53: 0.06475057471 | AX53: -6.453901617 | BE53: 59.48764366 | BF53: 103.4876437 | BG53: 0 | BH53: 103.4876437 | BI53: 3.700481072 | BL53: 103.4876437 | BM53: 0 | BO53: 103.4876437 | BP53: 3.700481072 | BR53: 97.51129429 | BS53: 2.275868296
A54: 700 | B54: MARTHAS VINEYARD | C54: 1 | D54: 920319 | E54: 0 | F54: 0 | G54: 67358.83 | H54: 0 | I54: 0 | J54: 1066611 | K54: 0 | L54: 0 | M54: 0 | N54: 0 | O54: 0 | P54: 0 | Q54: 0 | R54: 0 | S54: 0 | T54: x18 | U54: 1318033.63 | V54: 5.224026419 | X54: 14025834.07 | Y54: 25230225.2 | Z54: 11204391.13 | AA54: 585320.3527 | AC54: 158.0004661 | AD54: 175.7107971 | AE54: 17.71033099 | AF54: 30 | AG54: 1 | AH54: 175.7107971 | AK54: 158.0004661 | AL54: 186.4823415 | AM54: 191.7015891 | AN54: 158.0004661 | AO54: 175.231208 | AP54: 175.7107971 | AT54: 0.4795891363 | AV54: -0.2615399789 | AW54: 10.06191567 | AX54: 10.32345565 | BE54: 78.48075717 | BF54: 123.4807572 | BG54: 0 | BH54: 123.4807572 | BI54: -10.89496839 | BL54: 123.4807572 | BM54: 0 | BO54: 123.4807572 | BP54: -10.89496839 | BR54: 135.1923809 | BS54: -0.8166552936
A55: 51 | B55: CARLISLE | C55: 1 | D55: 0 | E55: 0 | F55: 0 | G55: 0 | H55: 0 | I55: 0 | J55: 136048 | K55: 0 | L55: 472266 | M55: 0 | N55: 0 | O55: 0 | P55: 0 | Q55: 0 | R55: 0 | S55: 0 | T55: X | U55: 608314 | V55: 4.309252864 | X55: 6853478.081 | Y55: 14116461 | Z55: 7262982.919 | AA55: 312980.2995 | AC55: 200.9686931 | AD55: 201.4084022 | AE55: 0.4397091304 | AF55: 0 | AG55: 1 | AH55: 201.4084022 | AK55: 200.9686931 | AL55: 198.8438386 | AM55: 198.8438386 | AN55: 200.9686931 | AO55: 200.9686931 | AP55: 201.4084022 | AT55: 0.4397091304 | AV55: 2.907457866 | AW55: 5.61598959 | AX55: 2.708531723 | BE55: 146.2626758 | BF55: 192.2626758 | BG55: 0 | BH55: 192.2626758 | BI55: -4.605374284 | BL55: 192.2626758 | BM55: 0 | BO55: 192.2626758 | BP55: -4.605374284 | BR55: 196.8840436 | BS55: -0.0159935076
A56: 765 | B56: SOUTHERN BERKSHIRE | C56: 1 | D56: 882810 | E56: 0 | F56: 91748 | G56: 0 | H56: 0 | I56: 0 | J56: 0 | K56: 0 | L56: 0 | M56: 0 | N56: 0 | O56: 0 | P56: 0 | Q56: 0 | R56: 0 | S56: 0 | T56: X | U56: 974558 | V56: 5.828961822 | X56: 9110625.48 | Y56: 16719238 | Z56: 7608612.52 | AA56: 443503.119 | AC56: 168.867886 | AD56: 178.6456365 | AE56: 9.777750526 | AF56: 0 | AG56: 1 | AH56: 178.6456365 | AK56: 168.867886 | AL56: 173.8836143 | AM56: 173.986042 | AN56: 168.867886 | AO56: 178.2202678 | AP56: 178.6456365 | AT56: 0.42536869 | BE56: -47 | BF56: 0 | BG56: 0 | BH56: 0 | BI56: 0 | BL56: 0 | BM56: 0 | BO56: 0 | BP56: 0 | BR56: 0 | BS56: 0
A57: 36 | B57: BOURNE | C57: 1 | D57: 0 | E57: 27975 | F57: 0 | G57: 0 | H57: 0 | I57: 0 | J57: 319438 | K57: 95480 | L57: 1615377 | M57: 0 | N57: 281486 | O57: 167796.93 | P57: 0 | Q57: 0 | R57: 0 | S57: 0 | T57: x18 | U57: 1215251.33 | V57: 3.396910507 | X57: 24109451.63 | Y57: 35775194.18 | Z57: 11665742.55 | AA57: 396274.8344 | AC57: 147.890311 | AD57: 146.742945 | AE57: -1.147366011 | AF57: 110 | AG57: 1 | AH57: 146.742945 | AK57: 147.890311 | AL57: 147.5088726 | AM57: 147.3277139 | AN57: 147.890311 | AO57: 146.32877 | AP57: 146.742945 | AT57: 0.4141749707 | AV57: 6.354525577 | AW57: 4.260772397 | AX57: -2.093753179 | BE57: 133.667968 | BF57: 181.667968 | BG57: 0 | BH57: 181.667968 | BI57: 3.02924726 | BL57: 181.667968 | BM57: 0 | BO57: 181.667968 | BP57: 3.02924726 | BR57: 178.5931549 | BS57: 0.04556584669
A58: 343 | B58: WINCHENDON | C58: 1 | D58: 0 | E58: 0 | F58: 0 | G58: 0 | H58: 0 | I58: 0 | J58: 842147.5 | K58: 842147.5 | L58: 440031.45 | M58: 18589 | N58: 163484 | O58: 10558.24 | P58: 0 | Q58: 0 | R58: 0 | S58: 0 | T58: x18 | U58: 1964932.53 | V58: 9.318320711 | X58: 20484346.35 | Y58: 21086766.5 | Z58: 602420.15 | AA58: 56135.4416 | AC58: 101.1598559 | AD58: 102.6668398 | AE58: 1.506983959 | AF58: 12 | AG58: 1 | AH58: 102.6668398 | AK58: 101.1598559 | AL58: 101.8076177 | AM58: 101.6157396 | AN58: 101.1598559 | AO58: 102.2670775 | AP58: 102.6668398 | AT58: 0.3997622999 | AV58: 5.527235802 | AW58: 9.996014677 | AX58: 4.468778875 | BE58: 176.2108124 | BF58: 225.2108124 | BG58: 0 | BH58: 225.2108124 | BI58: -10.10721518 | BL58: 225.2108124 | BM58: 0 | BO58: 225.2108124 | BP58: -10.10721518 | BR58: 235.2539943 | BS58: 0.0640332648
A59: 169 | B59: MARION | C59: 1 | D59: 0 | E59: 0 | F59: 0 | G59: 0 | H59: 0 | I59: 0 | J59: 206456 | K59: 188209 | L59: 133262 | M59: 0 | N59: 0 | O59: 0 | P59: 0 | Q59: 0 | R59: 0 | S59: 0 | T59: x18 | U59: 421317.4 | V59: 5.218315106 | X59: 5105842 | Y59: 8073820.6 | Z59: 2967978.6 | AA59: 154878.4756 | AC59: 148.847196 | AD59: 155.0957144 | AE59: 6.248518371 | AF59: 0 | AG59: 1 | AH59: 155.0957144 | AK59: 148.847196 | AL59: 151.3414488 | AM59: 151.3414408 | AN59: 148.847196 | AO59: 154.7169648 | AP59: 155.0957144 | AT59: 0.3787495571 | AV59: 3.805198166 | AW59: 5.87781171 | AX59: 2.072613544 | BE59: 92.15905653 | BF59: 142.1590565 | BG59: 0 | BH59: 142.1590565 | BI59: -1.522031759 | BL59: 142.1590565 | BM59: 0 | BO59: 142.1590565 | BP59: -1.522031759 | BR59: 142.1590565 | BS59: 1.522031759
A60: 144 | B60: IPSWICH | C60: 1 | D60: 500000 | E60: 33158 | F60: 0 | G60: 0 | H60: 0 | I60: 68302 | J60: 723375 | K60: 824437 | L60: 0 | M60: 0 | N60: 2269 | O60: 0 | P60: 0 | Q60: 0 | R60: 0 | S60: 0 | T60: x18 | U60: 1751541 | V60: 4.56474239 | X60: 21036885.2 | Y60: 38371081 | Z60: 17334195.8 | AA60: 791261.3835 | AC60: 173.2200236 | AD60: 178.6377558 | AE60: 5.417732226 | AF60: 0 | AG60: 1 | AH60: 178.6377558 | AK60: 173.2200236 | AL60: 168.4236832 | AM60: 168.4236832 | AN60: 173.2200236 | AO60: 178.31309 | AP60: 178.6377558 | AT60: 0.3246657575 | AV60: 3.215883757 | AW60: 3.475235254 | AX60: 0.2593514976 | BE60: 149.9686931 | BF60: 200.9686931 | BG60: 0 | BH60: 200.9686931 | BI60: -0.4397091304 | BL60: 200.9686931 | BM60: 0 | BO60: 200.9686931 | BP60: -0.4397091304 | BR60: 200.9686931 | BS60: 0.4397091304
A61: 763 | B61: SOMERSET BERKLEY | C61: 1 | D61: 320258 | E61: 0 | F61: 29192 | G61: 6932.8 | H61: 0 | I61: 74880 | J61: 519653 | K61: 694054 | L61: 0 | M61: 0 | N61: 0 | O61: 0 | P61: 0 | Q61: 0 | R61: 0 | S61: 0 | T61: X | U61: 1644969.8 | V61: 9.057757341 | X61: 14145681.89 | Y61: 18160895 | Z61: 4015213.11 | AA61: 363688.2602 | AC61: 122.0173704 | AD61: 125.8137068 | AE61: 3.796336414 | AF61: 4 | AG61: 1 | AH61: 125.8137068 | AK61: 122.0173704 | AL61: 123.8329087 | AM61: 123.6566489 | AN61: 122.0173704 | AO61: 125.4980569 | AP61: 125.8137068 | AT61: 0.3156499566 | AV61: -1.525370794 | AW61: 8.761513142 | AX61: 10.28688394 | BE61: 84.3698991 | BF61: 136.3698991 | BG61: 0 | BH61: 136.3698991 | BI61: -12.32250147 | BL61: 136.3698991 | BM61: 0 | BO61: 136.3698991 | BP61: -12.32250147 | BR61: 148.4723807 | BS61: 0.2200198181
A62: 773 | B62: TRITON | C62: 1 | D62: 1868728 | E62: 4709 | F62: 221373 | G62: 63611.52 | H62: 0 | I62: 0 | J62: 1208199 | K62: 0 | L62: 0 | M62: 0 | N62: 0 | O62: 0 | P62: 0 | Q62: 0 | R62: 0 | S62: 0 | T62: X | U62: 3366620.52 | V62: 6.899076204 | X62: 30126360.85 | Y62: 48798135 | Z62: 18671774.15 | AA62: 1288179.928 | AC62: 150.3489089 | AD62: 157.7022705 | AE62: 7.353361571 | AF62: 43 | AG62: 1 | AH62: 157.7022705 | AK62: 150.3489089 | AL62: 152.8048166 | AM62: 152.6233725 | AN62: 150.3489089 | AO62: 157.3949087 | AP62: 157.7022705 | AT62: 0.3073618135 | BE62: -53 | BF62: 0 | BG62: 0 | BH62: 0 | BI62: 0 | BL62: 0 | BM62: 0 | BO62: 0 | BP62: 0 | BR62: 0 | BS62: 0
A63: 8 | B63: AMHERST | C63: 1 | D63: 1716473 | E63: 0 | F63: 0 | G63: 0 | H63: 0 | I63: 0 | J63: 25000 | K63: 0 | L63: 0 | M63: 0 | N63: 111640 | O63: 118039.11 | P63: 0 | Q63: 0 | R63: 0 | S63: 0 | T63: X | U63: 1971152.11 | V63: 6.531356558 | X63: 13476149.79 | Y63: 30179827 | Z63: 16703677.21 | AA63: 1090976.717 | AC63: 195.4128072 | AD63: 215.854311 | AE63: 20.44150383 | AF63: 72 | AG63: 1 | AH63: 215.854311 | AK63: 195.4128072 | AL63: 203.4559027 | AM63: 200.7758181 | AN63: 195.4128072 | AO63: 215.5499776 | AP63: 215.854311 | AT63: 0.3043334254 | BE63: -54 | BF63: 0 | BG63: 0 | BH63: 0 | BI63: 0 | BL63: 0 | BM63: 0 | BO63: 0 | BP63: 0 | BR63: 0 | BS63: 0
A64: 223 | B64: ORANGE | C64: 1 | D64: 0 | E64: 61634 | F64: 0 | G64: 0 | H64: 0 | I64: 0 | J64: 53044 | K64: 508944 | L64: 493465 | M64: 0 | N64: 69496 | O64: 1694.42 | P64: 0 | Q64: 0 | R64: 0 | S64: 0 | T64: X | U64: 1188277.42 | V64: 11.77536171 | X64: 9418168.63 | Y64: 10091218 | Z64: 673049.37 | AA64: 79253.99777 | AC64: 100.0145486 | AD64: 106.3047859 | AE64: 6.290237336 | AF64: 3 | AG64: 1 | AH64: 106.3047859 | AK64: 100.0145486 | AL64: 102.1915331 | AM64: 102.1779543 | AN64: 100.0145486 | AO64: 106.017528 | AP64: 106.3047859 | AT64: 0.2872579949 | BC64: fy13 | BE64: -55 | BF64: 0 | BG64: 0 | BH64: 0 | BI64: 0 | BL64: 0 | BM64: 0 | BO64: 0 | BP64: 0 | BR64: 0 | BS64: 0
A65: 142 | B65: HULL | C65: 1 | D65: 0 | E65: 0 | F65: 0 | G65: 0 | H65: 0 | I65: 0 | J65: 0 | K65: 1022298 | L65: 355221 | M65: 753 | N65: 0 | O65: 30936.64 | P65: 0 | Q65: 0 | R65: 0 | S65: 0 | T65: X | U65: 1409208.64 | V65: 6.508336901 | X65: 10813118.21 | Y65: 21652361.6 | Z65: 10839243.39 | AA65: 705454.4772 | AC65: 188.6386748 | AD65: 193.7175449 | AE65: 5.078870058 | AF65: 17 | AG65: 1 | AH65: 193.7175449 | AK65: 188.6386748 | AL65: 184.3505836 | AM65: 184.7272413 | AN65: 188.6386748 | AO65: 193.4321854 | AP65: 193.7175449 | AT65: 0.2853594492 | AV65: 4.819122216 | AW65: 4.953894539 | AX65: 0.1347723229 | BE65: 73.35074064 | BF65: 129.3507406 | BG65: 0 | BH65: 129.3507406 | BI65: -0.3038743402 | BL65: 129.3507406 | BM65: 0 | BO65: 129.3507406 | BP65: -0.3038743402 | BR65: 129.7185507 | BS65: -0.06393571678
A66: 20 | B66: BARNSTABLE | C66: 1 | D66: 0 | E66: 2649203 | F66: 0 | G66: 0 | H66: 0 | I66: 0 | J66: 0 | K66: 0 | L66: 4330762.51 | M66: 31477 | N66: 314953 | O66: 521867.08 | P66: 0 | Q66: 0 | R66: 0 | S66: 0 | T66: x18 | U66: 4383652.582 | V66: 4.069161255 | X66: 88879328.45 | Y66: 107728652.4 | Z66: 18849323.91 | AA66: 767009.3852 | AC66: 116.5051733 | AD66: 120.344792 | AE66: 3.839618693 | AF66: 371 | AG66: 1 | AH66: 120.344792 | AK66: 116.5051733 | AL66: 123.0195343 | AM66: 123.0692061 | AN66: 116.5051733 | AO66: 120.0651887 | AP66: 120.344792 | AT66: 0.27960336 | AV66: 5.805536345 | AW66: 6.426312068 | AX66: 0.6207757238 | BE66: 44.74052402 | BF66: 101.740524 | BG66: 0 | BH66: 101.740524 | BI66: -0.5513492209 | BL66: 101.740524 | BM66: 0 | BO66: 101.740524 | BP66: -0.5513492209 | BR66: 102.2654369 | BS66: 0.02643633879
A67: 94 | B67: FAIRHAVEN | C67: 1 | D67: 0 | E67: 0 | F67: 0 | G67: 0 | H67: 0 | I67: 0 | J67: 657483 | K67: 806536 | L67: 658119.32 | M67: 0 | N67: 0 | O67: 2939.44 | P67: 0 | Q67: 0 | R67: 0 | S67: 0 | T67: X | U67: 2125077.76 | V67: 8.042622812 | X67: 23598054.43 | Y67: 26422695.8 | Z67: 2824641.37 | AA67: 227175.2512 | AC67: 102.0939578 | AD67: 111.0071198 | AE67: 8.913162001 | AF67: 4 | AG67: 1 | AH67: 111.0071198 | AK67: 102.0939578 | AL67: 103.661504 | AM67: 103.6617533 | AN67: 102.0939578 | AO67: 110.7276537 | AP67: 111.0071198 | AT67: 0.2794660955 | BE67: -58 | BF67: 0 | BG67: 0 | BH67: 0 | BI67: 0 | BL67: 0 | BM67: 0 | BO67: 0 | BP67: 0 | BR67: 0 | BS67: 0
A68: 18 | B68: AVON | C68: 1 | D68: 0 | E68: 0 | F68: 0 | G68: 0 | H68: 0 | I68: 0 | J68: 153372 | K68: 159170 | L68: 481596 | M68: 0 | N68: 7989 | O68: 17634.89 | P68: 0 | Q68: 0 | R68: 0 | S68: 0 | T68: X | U68: 819761.89 | V68: 5.721622077 | X68: 9514711.52 | Y68: 14327438.6 | Z68: 4812727.08 | AA68: 275366.0551 | AC68: 132.9199711 | AD68: 147.6878465 | AE68: 14.76787544 | AF68: 12 | AG68: 1 | AH68: 147.6878465 | AK68: 132.9199711 | AL68: 148.4104106 | AM68: 148.4122447 | AN68: 132.9199711 | AO68: 147.4192294 | AP68: 147.6878465 | AT68: 0.2686171296 | BE68: -59 | BF68: 0 | BG68: 0 | BH68: 0 | BI68: 0 | BL68: 0 | BM68: 0 | BO68: 0 | BP68: 0 | BR68: 0 | BS68: 0
A69: 151 | B69: LEICESTER | C69: 1 | D69: 0 | E69: 0 | F69: 0 | G69: 0 | H69: 0 | I69: 0 | J69: 329170 | K69: 783149 | L69: 423011 | M69: 0 | N69: 86976 | O69: 35001.05 | P69: 0 | Q69: 0 | R69: 0 | S69: 0 | T69: X | U69: 1657307.05 | V69: 6.873275333 | X69: 21380842.22 | Y69: 24112333.2 | Z69: 2731490.98 | AA69: 187742.8957 | AC69: 115.5050427 | AD69: 111.8973241 | AE69: -3.60771862 | AF69: 28 | AG69: 1 | AH69: 111.8973241 | AK69: 115.5050427 | AL69: 107.7788614 | AM69: 107.8853041 | AN69: 115.5050427 | AO69: 111.6289998 | AP69: 111.8973241 | AT69: 0.2683242459 | BE69: -60 | BF69: 0 | BG69: 0 | BH69: 0 | BI69: 0 | BL69: 0 | BM69: 0 | BO69: 0 | BP69: 0 | BR69: 0 | BS69: 0
A70: 750 | B70: PIONEER | C70: 1 | D70: 1020000 | E70: 28000 | F70: 145430 | G70: 37196.6 | H70: 0 | I70: 0 | J70: 197000 | K70: 70500 | L70: 0 | M70: 0 | N70: 0 | O70: 0 | P70: 0 | Q70: 0 | R70: 0 | S70: 0 | T70: X | U70: 1498126.6 | V70: 11.42692019 | X70: 7649537.53 | Y70: 13110502 | Z70: 5460964.47 | AA70: 624020.0516 | AC70: 157.2410928 | AD70: 163.2318542 | AE70: 5.990761363 | AF70: 22 | AG70: 1 | AH70: 163.2318542 | AK70: 157.2410928 | AL70: 160.3392533 | AM70: 160.934494 | AN70: 157.2410928 | AO70: 162.971143 | AP70: 163.2318542 | AT70: 0.2607112134 | AV70: 5.269142317 | AW70: 11.33705356 | AX70: 6.067911247 | BE70: 41.84759768 | BF70: 102.8475977 | BG70: 0 | BH70: 102.8475977 | BI70: -5.523029745 | BL70: 102.8475977 | BM70: 0 | BO70: 102.8475977 | BP70: -5.523029745 | BR70: 108.5675543 | BS70: -0.196926867
A71: 86 | B71: EASTHAMPTON | C71: 1 | D71: 0 | E71: 103685 | F71: 0 | G71: 0 | H71: 0 | I71: 0 | J71: 879732.76 | K71: 56757 | L71: 800000 | M71: 10300 | N71: 331391 | O71: 127306.2 | P71: 0 | Q71: 0 | R71: 0 | S71: 0 | T71: x18 | U71: 1669171.96 | V71: 6.184805118 | X71: 23097746.73 | Y71: 26988270.9 | Z71: 3890524.17 | AA71: 240621.338 | AC71: 110.1852804 | AD71: 115.8019866 | AE71: 5.616706143 | AF71: 119 | AG71: 1 | AH71: 115.8019866 | AK71: 110.1852804 | AL71: 110.1786549 | AM71: 110.1788035 | AN71: 110.1852804 | AO71: 115.5457149 | AP71: 115.8019866 | AT71: 0.2562716765 | BE71: -62 | BF71: 0 | BG71: 0 | BH71: 0 | BI71: 0 | BL71: 0 | BM71: 0 | BO71: 0 | BP71: 0 | BR71: 0 | BS71: 0
A72: 159 | B72: LONGMEADOW | C72: 1 | D72: 0 | E72: 0 | F72: 0 | G72: 0 | H72: 0 | I72: 445623 | J72: 783795 | K72: 702892 | L72: 1138800 | M72: 0 | N72: 7200 | O72: 17249.96 | P72: 0 | Q72: 0 | R72: 0 | S72: 0 | T72: X | U72: 3095559.96 | V72: 6.284717182 | X72: 34218165.74 | Y72: 49255358.2 | Z72: 15037192.46 | AA72: 945045.0183 | AC72: 141.6284191 | AD72: 141.1832345 | AE72: -0.4451846162 | AF72: 11 | AG72: 1 | AH72: 141.1832345 | AK72: 141.6284191 | AL72: 142.2836625 | AM72: 142.2836623 | AN72: 141.6284191 | AO72: 140.9348199 | AP72: 141.1832345 | AT72: 0.2484146404 | AV72: 20.64184841 | AW72: 0.7952626708 | AX72: -19.84658574 | BE72: 72.45673688 | BF72: 135.4567369 | BG72: 0 | BH72: 135.4567369 | BI72: 20.6654031 | BL72: 135.4567369 | BM72: 0 | BO72: 135.4567369 | BP72: 20.6654031 | BR72: 135.4567369 | BS72: -20.6654031
A73: 214 | B73: NORTHBRIDGE | C73: 1 | D73: 0 | E73: 0 | F73: 0 | G73: 0 | H73: 0 | I73: 0 | J73: 435000 | K73: 763165 | L73: 881585.76 | M73: 1938 | N73: 284249 | O73: 2112.95 | P73: 0 | Q73: 0 | R73: 0 | S73: 0 | T73: X | U73: 2368050.71 | V73: 7.572369209 | X73: 27773856.9 | Y73: 31272256.34 | Z73: 3498399.44 | AA73: 264911.722 | AC73: 109.1806928 | AD73: 111.6421991 | AE73: 2.461506267 | AF73: 2 | AG73: 1 | AH73: 111.6421991 | AK73: 109.1806928 | AL73: 116.1037786 | AM73: 116.1037803 | AN73: 109.1806928 | AO73: 111.4004212 | AP73: 111.6421991 | AT73: 0.2417778782 | AV73: 5.851493239 | AW73: 5.304939461 | AX73: -0.5465537779 | BE73: 45.98713643 | BF73: 109.9871364 | BG73: 0 | BH73: 109.9871364 | BI73: 0.3508039715 | BL73: 109.9871364 | BM73: 0 | BO73: 109.9871364 | BP73: 0.3508039715 | BR73: 109.5275692 | BS73: 0.1087632912
A74: 740 | B74: OLD ROCHESTER | C74: 1 | D74: 286000 | E74: 0 | F74: 0 | G74: 14710.92 | H74: 0 | I74: 0 | J74: 6400 | K74: 0 | L74: 0 | M74: 0 | N74: 0 | O74: 0 | P74: 0 | Q74: 0 | R74: 0 | S74: 0 | T74: X | U74: 307110.92 | V74: 1.504759029 | X74: 13306821.64 | Y74: 20409309 | Z74: 7102487.36 | AA74: 106875.3199 | AC74: 150.9932827 | AD74: 152.5716225 | AE74: 1.578339777 | AF74: 10 | AG74: 1 | AH74: 152.5716225 | AK74: 150.9932827 | AL74: 153.210847 | AM74: 152.673716 | AN74: 150.9932827 | AO74: 152.334058 | AP74: 152.5716225 | AT74: 0.2375644938 | AV74: 6.901104986 | AW74: 5.810956549 | AX74: -1.090148437 | BE74: 107.32976 | BF74: 172.32976 | BG74: 0 | BH74: 172.32976 | BI74: 1.447500005 | BL74: 172.32976 | BM74: 0 | BO74: 172.32976 | BP74: 1.447500005 | BR74: 170.8646498 | BS74: 0.01761025204
A75: 52 | B75: CARVER | C75: 1 | D75: 30000 | E75: 0 | F75: 0 | G75: 0 | H75: 0 | I75: 0 | J75: 1953485 | K75: 575221 | L75: 930883.26 | M75: 0 | N75: 4981 | O75: 102040.47 | P75: 0 | Q75: 0 | R75: 0 | S75: 0 | T75: X | U75: 3596610.73 | V75: 11.08810542 | X75: 20958681.78 | Y75: 32436657.06 | Z75: 11477975.28 | AA75: 1272690 | AC75: 136.3698991 | AD75: 148.6924006 | AE75: 12.32250147 | AF75: 71 | AG75: 1 | AH75: 148.6924006 | AK75: 136.3698991 | AL75: 139.7826031 | AM75: 139.7838095 | AN75: 136.3698991 | AO75: 148.4723807 | AP75: 148.6924006 | AT75: 0.2200198181 | BE75: -66 | BF75: 0 | BG75: 0 | BH75: 0 | BI75: 0 | BL75: 0 | BM75: 0 | BO75: 0 | BP75: 0 | BR75: 0 | BS75: 0
A76: 278 | B76: SOUTH HADLEY | C76: 1 | D76: 0 | E76: 56000 | F76: 0 | G76: 0 | H76: 0 | I76: 193000 | J76: 284512 | K76: 0 | L76: 747407.14 | M76: 6951 | N76: 192484 | O76: 165243.61 | P76: 0 | Q76: 0 | R76: 0 | S76: 0 | T76: x18 | U76: 1047672.038 | V76: 3.244409996 | X76: 26078106.46 | Y76: 32291604.3 | Z76: 6213497.842 | AA76: 201591.3451 | AC76: 116.5341223 | AD76: 123.0534625 | AE76: 6.519340202 | AF76: 143 | AG76: 1 | AH76: 123.0534625 | AK76: 116.5341223 | AL76: 122.8068737 | AM76: 118.5691357 | AN76: 116.5341223 | AO76: 122.8353856 | AP76: 123.0534625 | AT76: 0.2180769315 | AV76: 4.705269448 | AW76: 4.454859082 | AX76: -0.2504103661 | BE76: 138.988233 | BF76: 205.988233 | BG76: 0 | BH76: 205.988233 | BI76: -0.5578924536 | BL76: 205.988233 | BM76: 0 | BO76: 205.988233 | BP76: -0.5578924536 | BR76: 206.542996 | BS76: 0.00312936273
A77: 161 | B77: LUDLOW | C77: 1 | D77: 0 | E77: 33820 | F77: 0 | G77: 0 | H77: 0 | I77: 0 | J77: 410965 | K77: 445891 | L77: 519676 | M77: 847 | N77: 281861 | O77: 29366.61 | P77: 0 | Q77: 0 | R77: 0 | S77: 0 | T77: X | U77: 1722426.61 | V77: 3.756148505 | X77: 33328396.51 | Y77: 45856190.4 | Z77: 12527793.89 | AA77: 470562.5429 | AC77: 134.9097926 | AD77: 136.177052 | AE77: 1.267259409 | AF77: 21 | AG77: 1 | AH77: 136.177052 | AK77: 134.9097926 | AL77: 151.7963574 | AM77: 142.1385686 | AN77: 134.9097926 | AO77: 135.9720091 | AP77: 136.177052 | AT77: 0.2050428977 | AV77: 2.912873775 | AW77: 14.98566848 | AX77: 12.0727947 | BE77: 183.7334794 | BF77: 251.7334794 | BG77: 0 | BH77: 251.7334794 | BI77: -30.25318179 | BL77: 251.7334794 | BM77: 0 | BO77: 251.7334794 | BP77: -30.25318179 | BR77: 282.6708242 | BS77: -0.6841630378
A78: 658 | B78: DUDLEY CHARLTON | C78: 1 | D78: 666267 | E78: 58112 | F78: 27720 | G78: 12040 | H78: 0 | I78: 0 | J78: 1646000 | K78: 340000 | L78: 0 | M78: 0 | N78: 0 | O78: 0 | P78: 0 | Q78: 0 | R78: 0 | S78: 0 | T78: X | U78: 2750139 | V78: 5.039224717 | X78: 46546244.08 | Y78: 54574645 | Z78: 8028400.92 | AA78: 404569.1635 | AC78: 115.8445892 | AD78: 116.3790482 | AE78: 0.5344590312 | AF78: 9 | AG78: 1 | AH78: 116.3790482 | AK78: 115.8445892 | AL78: 116.3468853 | AM78: 116.3288072 | AN78: 115.8445892 | AO78: 116.1751312 | AP78: 116.3790482 | AT78: 0.2039169972 | BE78: -69 | BF78: 0 | BG78: 0 | BH78: 0 | BI78: 0 | BL78: 0 | BM78: 0 | BO78: 0 | BP78: 0 | BR78: 0 | BS78: 0
A79: 342 | B79: WILMINGTON | C79: 1 | D79: 0 | E79: 0 | F79: 0 | G79: 0 | H79: 0 | I79: 0 | J79: 2670819 | K79: 1712458 | L79: 607465 | M79: 0 | N79: 0 | O79: 7588.28 | P79: 0 | Q79: 0 | R79: 0 | S79: 0 | T79: X | U79: 4998330.28 | V79: 7.424891107 | X79: 36803962.05 | Y79: 67318566.8 | Z79: 30514604.75 | AA79: 2265676.174 | AC79: 172.3246763 | AD79: 176.7551291 | AE79: 4.430452712 | AF79: 5 | AG79: 1 | AH79: 176.7551291 | AK79: 172.3246763 | AL79: 173.1933593 | AM79: 173.1933595 | AN79: 172.3246763 | AO79: 176.5532166 | AP79: 176.7551291 | AT79: 0.2019124873 | BE79: -70 | BF79: 0 | BG79: 0 | BH79: 0 | BI79: 0 | BL79: 0 | BM79: 0 | BO79: 0 | BP79: 0 | BR79: 0 | BS79: 0
A80: 174 | B80: MAYNARD | C80: 1 | D80: 0 | E80: 1928578 | F80: 0 | G80: 0 | H80: 0 | I80: 0 | J80: 0 | K80: 0 | L80: 311015 | M80: 0 | N80: 106818 | O80: 105702.66 | P80: 0 | Q80: 0 | R80: 0 | S80: 0 | T80: x18 | U80: 2203301.66 | V80: 7.517845632 | X80: 17943402.25 | Y80: 29307620.4 | Z80: 11364218.15 | AA80: 854344.3779 | AC80: 159.0983473 | AD80: 158.5723578 | AE80: -0.5259894666 | AF80: 77 | AG80: 1 | AH80: 158.5723578 | AK80: 159.0983473 | AL80: 165.6343776 | AM80: 165.6352437 | AN80: 159.0983473 | AO80: 158.378532 | AP80: 158.5723578 | AT80: 0.1938258026 | AV80: 4.716730836 | AW80: 4.607341835 | AX80: -0.109389001 | BE80: 70.52560522 | BF80: 141.5256052 | BG80: 0 | BH80: 141.5256052 | BI80: -0.6531204066 | BL80: 141.5256052 | BM80: 0 | BO80: 141.5256052 | BP80: -0.6531204066 | BR80: 142.284591 | BS80: -0.1058653789
A81: 220 | B81: NORWOOD | C81: 1 | D81: 0 | E81: 75000 | F81: 0 | G81: 0 | H81: 0 | I81: 0 | J81: 4076384 | K81: 1815246 | L81: 3197511 | M81: 7523 | N81: 0 | O81: 78364.09 | P81: 0 | Q81: 0 | R81: 0 | S81: 0 | T81: X | U81: 9250028.09 | V81: 11.68618414 | X81: 56535316.26 | Y81: 79153537 | Z81: 22618220.74 | AA81: 2643206.926 | AC81: 132.965226 | AD81: 135.3319219 | AE81: 2.366695905 | AF81: 57 | AG81: 1 | AH81: 135.3319219 | AK81: 132.965226 | AL81: 138.8708103 | AM81: 138.7356589 | AN81: 132.965226 | AO81: 135.1608043 | AP81: 135.3319219 | AT81: 0.1711176894 | AV81: 1.734601102 | AW81: 3.744863845 | AX81: 2.010262744 | BE81: 53.23455874 | BF81: 125.2345587 | BG81: 0 | BH81: 125.2345587 | BI81: -2.359210135 | BL81: 125.2345587 | BM81: 0 | BO81: 125.2345587 | BP81: -2.359210135 | BR81: 127.5861346 | BS81: 0.007634242704
A82: 603 | B82: HOOSAC VALLEY | C82: 1 | D82: 1065000 | E82: 7323 | F82: 170000 | G82: 98000 | H82: 0 | I82: 0 | J82: 300000 | K82: 0 | L82: 0 | M82: 0 | N82: 0 | O82: 0 | P82: 0 | Q82: 0 | R82: 0 | S82: 0 | T82: X | U82: 1640323 | V82: 8.058484232 | X82: 18240972.63 | Y82: 20355230 | Z82: 2114257.37 | AA82: 170377.0968 | AC82: 112.9619629 | AD82: 110.6566701 | AE82: -2.305292818 | AF82: 76 | AG82: 1 | AH82: 110.6566701 | AK82: 112.9619629 | AL82: 112.2702672 | AM82: 112.1439583 | AN82: 112.9619629 | AO82: 110.4874556 | AP82: 110.6566701 | AT82: 0.169214471 | AV82: 12.73615393 | AW82: 8.194179013 | AX82: -4.541974921 | BE82: 103.1314334 | BF82: 176.1314334 | BG82: 0 | BH82: 176.1314334 | BI82: 7.152360542 | BL82: 176.1314334 | BM82: 0 | BO82: 176.1314334 | BP82: 7.152360542 | BR82: 169.7081782 | BS82: -0.729105331
A83: 210 | B83: NORTHAMPTON | C83: 1 | D83: 0 | E83: 5386 | F83: 0 | G83: 0 | H83: 0 | I83: 0 | J83: 1327181 | K83: 10581 | L83: 1827092 | M83: 18523 | N83: 258495 | O83: 207619.65 | P83: 0 | Q83: 0 | R83: 0 | S83: 0 | T83: X17 | U83: 3654877.65 | V83: 7.052564875 | X83: 35941837.47 | Y83: 51823382.2 | Z83: 15881544.73 | AA83: 1120056.245 | AC83: 131.1605212 | AD83: 141.0704892 | AE83: 9.909968043 | AF83: 172 | AG83: 1 | AH83: 141.0704892 | AK83: 131.1605212 | AL83: 132.5531302 | AM83: 132.6664751 | AN83: 131.1605212 | AO83: 140.9068447 | AP83: 141.0704892 | AT83: 0.1636445384 | AV83: 1.191595424 | AW83: 3.673456604 | AX83: 2.48186118 | BE83: 111.2055695 | BF83: 185.2055695 | BG83: 0 | BH83: 185.2055695 | BI83: -3.927586471 | BL83: 185.2055695 | BM83: 0 | BO83: 185.2055695 | BP83: -3.927586471 | BR83: 194.4898306 | BS83: -5.356674659
A84: 675 | B84: HAMILTON WENHAM | C84: 1 | D84: 1048581.4 | E84: 17457 | F84: 28569 | G84: 0 | H84: 0 | I84: 308353 | J84: 1963742 | K84: 739519 | L84: 0 | M84: 0 | N84: 0 | O84: 0 | P84: 0 | Q84: 0 | R84: 0 | S84: 0 | T84: X | U84: 4106221.4 | V84: 10.69896431 | X84: 20510939.06 | Y84: 38379615.84 | Z84: 17868676.78 | AA84: 1911763.351 | AC84: 177.0246196 | AD84: 177.7970886 | AE84: 0.7724690227 | AF84: 0 | AG84: 1 | AH84: 177.7970886 | AK84: 177.0246196 | AL84: 187.8390383 | AM84: 187.8655714 | AN84: 177.0246196 | AO84: 177.6357587 | AP84: 177.7970886 | AT84: 0.1613299269 | BE84: -75 | BF84: 0 | BG84: 0 | BH84: 0 | BI84: 0 | BL84: 0 | BM84: 0 | BO84: 0 | BP84: 0 | BR84: 0 | BS84: 0
A85: 170 | B85: MARLBOROUGH | C85: 1 | D85: 0 | E85: 0 | F85: 0 | G85: 0 | H85: 0 | I85: 0 | J85: 2026839.27 | K85: 831031.87 | L85: 2471790 | M85: 0 | N85: 0 | O85: 576562.49 | P85: 0 | Q85: 0 | R85: 0 | S85: 0 | T85: X | U85: 5906223.63 | V85: 6.052660933 | X85: 91366536.51 | Y85: 97580612.82 | Z85: 6214076.311 | AA85: 376116.9692 | AC85: 105.5317585 | AD85: 106.3896034 | AE85: 0.8578449454 | AF85: 536 | AG85: 1 | AH85: 106.3896034 | AK85: 105.5317585 | AL85: 114.9901543 | AM85: 115.0130636 | AN85: 105.5317585 | AO85: 106.2298246 | AP85: 106.3896034 | AT85: 0.1597787763 | BE85: -76 | BF85: 0 | BG85: 0 | BH85: 0 | BI85: 0 | BL85: 0 | BM85: 0 | BO85: 0 | BP85: 0 | BR85: 0 | BS85: 0
A86: 832 | B86: MONTACHUSETT | C86: 1 | D86: 1658172 | E86: 0 | F86: 31988 | G86: 0 | H86: 0 | I86: 0 | J86: 0 | K86: 0 | L86: 0 | M86: 0 | N86: 0 | O86: 0 | P86: 0 | Q86: 0 | R86: 0 | S86: 0 | T86: X | U86: 1690160 | V86: 5.606198954 | X86: 29905696.93 | Y86: 30148056 | Z86: 242359.0697 | AA86: 13587.13163 | AC86: 100.0064152 | AD86: 100.7649778 | AE86: 0.7585625782 | AF86: 0 | AG86: 1 | AH86: 100.7649778 | AK86: 100.0064152 | AL86: 100.0864057 | AM86: 99.9274662 | AN86: 100.0064152 | AO86: 100.6318806 | AP86: 100.7649778 | AT86: 0.1330972018 | AV86: -2.308061118 | AW86: 3.501447164 | AX86: 5.809508283 | BE86: 49.03704226 | BF86: 126.0370423 | BG86: 0 | BH86: 126.0370423 | BI86: -7.890187536 | BL86: 126.0370423 | BM86: 0 | BO86: 126.0370423 | BP86: -7.890187536 | BR86: 133.8937699 | BS86: 0.03345991956
A87: 95 | B87: FALL RIVER | C87: 1 | D87: 0 | E87: 0 | F87: 0 | G87: 0 | H87: 0 | I87: 2000000 | J87: 5719911 | K87: 1517077 | L87: 7372607 | M87: 79934 | N87: 222101 | O87: 2465262.24 | P87: 0 | Q87: 0 | R87: 0 | S87: 0 | T87: X | U87: 19376892.24 | V87: 7.84972496 | X87: 243053149.8 | Y87: 246848040.4 | Z87: 3794890.63 | AA87: 297888.477 | AC87: 100.9534948 | AD87: 101.4387808 | AE87: 0.4852860165 | AF87: 1757 | AG87: 1 | AH87: 101.4387808 | AK87: 100.9534948 | AL87: 100.2388 | AM87: 100.2700101 | AN87: 100.9534948 | AO87: 101.3078185 | AP87: 101.4387808 | AT87: 0.1309623153 | AV87: 0.9830459149 | AW87: 4.13509091 | AX87: 3.152044995 | BE87: 120.4966345 | BF87: 198.4966345 | BG87: 0 | BH87: 198.4966345 | BI87: -6.354135578 | BL87: 198.4966345 | BM87: 0 | BO87: 198.4966345 | BP87: -6.354135578 | BR87: 198.4966345 | BS87: 6.354135578
A88: 307 | B88: WALPOLE | C88: 1 | D88: 0 | E88: 0 | F88: 0 | G88: 0 | H88: 0 | I88: 0 | J88: 2247127 | K88: 766598 | L88: 1785928 | M88: 21864 | N88: 0 | O88: 27018.11 | P88: 0 | Q88: 0 | R88: 0 | S88: 0 | T88: X | U88: 4848535.11 | V88: 7.232616476 | X88: 47733569.97 | Y88: 67037083 | Z88: 19303513.03 | AA88: 1396149.064 | AC88: 133.6516776 | AD88: 137.5152413 | AE88: 3.863563749 | AF88: 16 | AG88: 1 | AH88: 137.5152413 | AK88: 133.6516776 | AL88: 142.1816816 | AM88: 141.8327601 | AN88: 133.6516776 | AO88: 137.3925259 | AP88: 137.5152413 | AT88: 0.1227154358 | AV88: 0.08093146838 | AW88: 0.7868687524 | AX88: 0.705937284 | BE88: 22.02650068 | BF88: 101.0265007 | BG88: 0 | BH88: 101.0265007 | BI88: -0.6692503445 | BL88: 101.0265007 | BM88: 0 | BO88: 101.0265007 | BP88: -0.6692503445 | BR88: 101.0000979 | BS88: 0.6956531525
A89: 213 | B89: NORTHBOROUGH | C89: 1 | D89: 0 | E89: 0 | F89: 0 | G89: 0 | H89: 0 | I89: 0 | J89: 422432 | K89: 191498 | L89: 593017 | M89: 0 | N89: 0 | O89: 1577.24 | P89: 0 | Q89: 0 | R89: 0 | S89: 0 | T89: X | U89: 1208524.24 | V89: 3.381275075 | X89: 20846041.26 | Y89: 35741671.8 | Z89: 14895630.54 | AA89: 503662.2427 | AC89: 170.6848462 | AD89: 169.0393352 | AE89: -1.645511006 | AF89: 0 | AG89: 1 | AH89: 169.0393352 | AK89: 170.6848462 | AL89: 171.6734955 | AM89: 171.693262 | AN89: 170.6848462 | AO89: 168.9181763 | AP89: 169.0393352 | AT89: 0.1211589253 | BE89: -80 | BF89: 0 | BG89: 0 | BH89: 0 | BI89: 0 | BL89: 0 | BM89: 0 | BO89: 0 | BP89: 0 | BR89: 0 | BS89: 0
A90: 290 | B90: SUTTON | C90: 1 | D90: 0 | E90: 153392.39 | F90: 0 | G90: 0 | H90: 0 | I90: 75000 | J90: 0 | K90: 243403.16 | L90: 456500 | M90: 19984 | N90: 69806 | O90: 0 | P90: 0 | Q90: 0 | R90: 0 | S90: 0 | T90: X | U90: 1018085.55 | V90: 4.454015105 | X90: 16892397.65 | Y90: 22857703.13 | Z90: 5965305.48 | AA90: 265695.6071 | AC90: 139.5923796 | AD90: 133.7406802 | AE90: -5.851699347 | AF90: 0 | AG90: 1 | AH90: 133.7406802 | AK90: 139.5923796 | AL90: 142.6144646 | AM90: 143.5225927 | AN90: 139.5923796 | AO90: 133.6215541 | AP90: 133.7406802 | AT90: 0.1191261615 | BE90: -81 | BF90: 0 | BG90: 0 | BH90: 0 | BI90: 0 | BL90: 0 | BM90: 0 | BO90: 0 | BP90: 0 | BR90: 0 | BS90: 0
A91: 231 | B91: PEMBROKE | C91: 1 | D91: 0 | E91: 625000 | F91: 0 | G91: 0 | H91: 0 | I91: 131656.06 | J91: 875000 | K91: 0 | L91: 943473 | M91: 3172 | N91: 0 | O91: 77417.97 | P91: 0 | Q91: 0 | R91: 0 | S91: 0 | T91: X | U91: 2655719.03 | V91: 5.860515501 | X91: 33089290.71 | Y91: 45315451 | Z91: 12226160.29 | AA91: 716516.0191 | AC91: 127.1179506 | AD91: 134.7835932 | AE91: 7.665642622 | AF91: 41 | AG91: 1 | AH91: 134.7835932 | AK91: 127.1179506 | AL91: 127.1673302 | AM91: 127.0173742 | AN91: 127.1179506 | AO91: 134.6702873 | AP91: 134.7835932 | AT91: 0.1133058569 | AV91: -0.01871042088 | AW91: 2.820516485 | AX91: 2.839226906 | BE91: 62.9011201 | BF91: 144.9011201 | BG91: 0 | BH91: 144.9011201 | BI91: -4.53373699 | BL91: 144.9011201 | BM91: 0 | BO91: 144.9011201 | BP91: -4.53373699 | BR91: 149.4515049 | BS91: -0.01664780682
A92: 211 | B92: NORTH ANDOVER | C92: 1 | D92: 0 | E92: 890322 | F92: 0 | G92: 0 | H92: 0 | I92: 0 | J92: 1890671 | K92: 468000 | L92: 2345406 | M92: 56848 | N92: 0 | O92: 8065.26 | P92: 0 | Q92: 0 | R92: 0 | S92: 0 | T92: X | U92: 5659312.26 | V92: 7.33107696 | X92: 58940201.54 | Y92: 77196192.2 | Z92: 18255990.66 | AA92: 1338360.725 | AC92: 123.8982895 | AD92: 128.7030405 | AE92: 4.804751035 | AF92: 7 | AG92: 1 | AH92: 128.7030405 | AK92: 123.8982895 | AL92: 124.6419825 | AM92: 124.6766512 | AN92: 123.8982895 | AO92: 128.5928408 | AP92: 128.7030405 | AT92: 0.1101997463 | AV92: -0.5723757448 | AW92: 4.420043291 | AX92: 4.992419035 | BE92: 26.59170409 | BF92: 109.5917041 | BG92: 0 | BH92: 109.5917041 | BI92: -5.080482225 | BL92: 109.5917041 | BM92: 0 | BO92: 109.5917041 | BP92: -5.080482225 | BR92: 109.5917041 | BS92: 5.080482225
A93: 281 | B93: SPRINGFIELD | C93: 1 | D93: 19414893.78 | E93: 111458 | F93: 1432605 | G93: 6797619.78 | H93: 0 | I93: 0 | J93: 10354373.37 | K93: 255140.63 | L93: 0 | M93: 0 | N93: 0 | O93: 0 | P93: 0 | Q93: 0 | R93: 0 | S93: 0 | T93: X | U93: 38366090.56 | V93: 6.867548458 | X93: 557622637.5 | Y93: 558657733.5 | Z93: 1035095.93 | AA93: 71085.71458 | AC93: 99.9237904 | AD93: 100.1728786 | AE93: 0.2490882024 | AF93: 4658 | AG93: 1 | AH93: 100.1728786 | AK93: 99.9237904 | AL93: 100.0203869 | AM93: 100.0491442 | AN93: 99.9237904 | AO93: 100.0638226 | AP93: 100.1728786 | AT93: 0.1090559711 | BE93: -84 | BF93: 0 | BG93: 0 | BH93: 0 | BI93: 0 | BL93: 0 | BM93: 0 | BO93: 0 | BP93: 0 | BR93: 0 | BS93: 0
A94: 64 | B94: CLINTON | C94: 1 | D94: 0 | E94: 0 | F94: 0 | G94: 0 | H94: 0 | I94: 0 | J94: 1145297 | K94: 947946 | L94: 844234 | M94: 5309 | N94: 83749 | O94: 88262.02 | P94: 0 | Q94: 0 | R94: 0 | S94: 0 | T94: X | U94: 3114797.02 | V94: 8.185537661 | X94: 34438020.57 | Y94: 38052442.6 | Z94: 3614422.03 | AA94: 295859.8765 | AC94: 109.9871364 | AD94: 109.6363325 | AE94: -0.3508039715 | AF94: 78 | AG94: 1 | AH94: 109.6363325 | AK94: 109.9871364 | AL94: 109.542715 | AM94: 109.5427818 | AN94: 109.9871364 | AO94: 109.5275692 | AP94: 109.6363325 | AT94: 0.1087632912 | AV94: -0.08785233924 | AW94: 8.473322722 | AX94: 8.561175061 | BE94: 86.7944529 | BF94: 171.7944529 | BG94: 0 | BH94: 171.7944529 | BI94: -10.29771246 | BL94: 171.7944529 | BM94: 0 | BO94: 171.7944529 | BP94: -10.29771246 | BR94: 185.0285142 | BS94: -2.936348829
A95: 189 | B95: MILTON | C95: 1 | D95: 0 | E95: 0 | F95: 0 | G95: 0 | H95: 0 | I95: 713000 | J95: 2394544 | K95: 992617 | L95: 1769986 | M95: 10169 | N95: 0 | O95: 20090.28 | P95: 0 | Q95: 0 | R95: 0 | S95: 0 | T95: x18 | U95: 4484417.48 | V95: 5.642118194 | X95: 55677434.43 | Y95: 79481097.8 | Z95: 23803663.37 | AA95: 1343030.822 | AC95: 134.1550068 | AD95: 140.3406385 | AE95: 6.18563172 | AF95: 18 | AG95: 1 | AH95: 140.3406385 | AK95: 134.1550068 | AL95: 134.5014623 | AM95: 134.5187682 | AN95: 134.1550068 | AO95: 140.2325643 | AP95: 140.3406385 | AT95: 0.1080742445 | AV95: 2.388097437 | AW95: 7.96307839 | AX95: 5.574980953 | BE95: 24.18528041 | BF95: 110.1852804 | BG95: 0 | BH95: 110.1852804 | BI95: -5.616706143 | BL95: 110.1852804 | BM95: 0 | BO95: 110.1852804 | BP95: -5.616706143 | BR95: 115.5457149 | BS95: 0.2562716765
A96: 810 | B96: BRISTOL PLYMOUTH | C96: 1 | D96: 516677 | E96: 0 | F96: 0 | G96: 0 | H96: 0 | I96: 0 | J96: 0 | K96: 0 | L96: 0 | M96: 0 | N96: 0 | O96: 0 | P96: 0 | Q96: 0 | R96: 0 | S96: 0 | T96: X | U96: 516677 | V96: 1.843508984 | X96: 27594090.62 | Y96: 28026823 | Z96: 432732.3797 | AA96: 7977.460298 | AC96: 100.6419786 | AD96: 101.5392967 | AE96: 0.8973181224 | AF96: 0 | AG96: 1 | AH96: 101.5392967 | AK96: 100.6419786 | AL96: 100.470143 | AM96: 100.470143 | AN96: 100.6419786 | AO96: 101.4325532 | AP96: 101.5392967 | AT96: 0.1067435174 | AV96: 1.578493788 | AW96: 0.03183692402 | AX96: -1.546656864 | BE96: 46.24526739 | BF96: 133.2452674 | BG96: 0 | BH96: 133.2452674 | BI96: 1.875720012 | BL96: 133.2452674 | BM96: 0 | BO96: 133.2452674 | BP96: 1.875720012 | BR96: 137.882953 | BS96: -6.513405588
A97: 184 | B97: MIDDLETON | C97: 1 | D97: 331456 | E97: 0 | F97: 0 | G97: 0 | H97: 0 | I97: 47250 | J97: 78293 | K97: 80418 | L97: 0 | M97: 0 | N97: 0 | O97: 1587.74 | P97: 0 | Q97: 0 | R97: 0 | S97: 0 | T97: X | U97: 539004.74 | V97: 3.44497172 | X97: 8701795.6 | Y97: 15646129.6 | Z97: 6944334 | AA97: 239230.3424 | AC97: 173.3972429 | AD97: 177.0542537 | AE97: 3.657010813 | AF97: 1 | AG97: 1 | AH97: 177.0542537 | AK97: 173.3972429 | AL97: 182.0674497 | AM97: 182.0674913 | AN97: 173.3972429 | AO97: 176.955413 | AP97: 177.0542537 | AT97: 0.09884068398 | AV97: 2.585166781 | AW97: 5.37139819 | AX97: 2.786231409 | BE97: 44.28108589 | BF97: 132.2810859 | BG97: 0 | BH97: 132.2810859 | BI97: 4.258509412 | BL97: 132.2810859 | BM97: 0 | BO97: 132.2810859 | BP97: 4.258509412 | BR97: 132.2810859 | BS97: -4.258509412
A98: 336 | B98: WEYMOUTH | C98: 1 | D98: 0 | E98: 0 | F98: 0 | G98: 0 | H98: 0 | I98: 0 | J98: 2502646 | K98: 2577752 | L98: 3400000 | M98: 43583 | N98: 0 | O98: 342066.9 | P98: 0 | Q98: 0 | R98: 0 | S98: 0 | T98: X16 | U98: 8866047.9 | V98: 7.667796005 | X98: 92545801.94 | Y98: 115627070.6 | Z98: 23081268.66 | AA98: 1769824.596 | AC98: 113.3872976 | AD98: 123.0279965 | AE98: 9.640698946 | AF98: 290 | AG98: 1 | AH98: 123.0279965 | AK98: 113.3872976 | AL98: 113.57281 | AM98: 113.3950564 | AN98: 113.3872976 | AO98: 122.9292939 | AP98: 123.0279965 | AT98: 0.09870265106 | AV98: 0.8118823492 | AW98: 7.871320379 | AX98: 7.05943803 | BE98: 109.5624239 | BF98: 198.5624239 | BG98: 0 | BH98: 198.5624239 | BI98: -13.8756965 | BL98: 198.5624239 | BM98: 0 | BO98: 198.5624239 | BP98: -13.8756965 | BR98: 212.8906761 | BS98: -0.4525556614
A99: 730 | B99: NORTHBORO SOUTHBORO | C99: 1 | D99: 920000 | E99: 0 | F99: 0 | G99: 5590.48 | H99: 0 | I99: 0 | J99: 502465 | K99: 132204 | L99: 0 | M99: 0 | N99: 0 | O99: 0 | P99: 0 | Q99: 0 | R99: 0 | S99: 0 | T99: X | U99: 1560259.48 | V99: 6.020697723 | X99: 16786924.07 | Y99: 25914928 | Z99: 9128003.93 | AA99: 549569.5248 | AC99: 147.1057316 | AD99: 151.1018836 | AE99: 3.996152025 | AF99: 5 | AG99: 1 | AH99: 151.1018836 | AK99: 147.1057316 | AL99: 144.6785642 | AM99: 145.176509 | AN99: 147.1057316 | AO99: 151.0057658 | AP99: 151.1018836 | AT99: 0.09611784455 | BE99: -90 | BF99: 0 | BG99: 0 | BH99: 0 | BI99: 0 | BL99: 0 | BM99: 0 | BO99: 0 | BP99: 0 | BR99: 0 | BS99: 0
A100: 17 | B100: AUBURN | C100: 1 | D100: 0 | E100: 0 | F100: 0 | G100: 0 | H100: 0 | I100: 0 | J100: 161560 | K100: 255705 | L100: 2414573.02 | M100: 291 | N100: 11205 | O100: 4465.86 | P100: 0 | Q100: 0 | R100: 0 | S100: 0 | T100: X | U100: 2847799.88 | V100: 7.107078857 | X100: 32470504.22 | Y100: 40069906.88 | Z100: 7599402.66 | AA100: 540095.5397 | AC100: 118.3292762 | AD100: 121.740676 | AE100: 3.411399772 | AF100: 6 | AG100: 1 | AH100: 121.740676 | AK100: 118.3292762 | AL100: 122.3475575 | AM100: 122.1982188 | AN100: 118.3292762 | AO100: 121.6485647 | AP100: 121.740676 | AT100: 0.09211129567 | AV100: 3.172993412 | AW100: 1.326877791 | AX100: -1.846115621 | BE100: 122.2082214 | BF100: 213.2082214 | BG100: 0 | BH100: 213.2082214 | BI100: 0.3342529677 | BL100: 213.2082214 | BM100: 0 | BO100: 213.2082214 | BP100: 0.3342529677 | BR100: 213.4765586 | BS100: -0.602590228
A101: 43 | B101: BRIMFIELD | C101: 1 | D101: 0 | E101: 164000 | F101: 0 | G101: 0 | H101: 0 | I101: 0 | J101: 168822 | K101: 183090 | L101: 37279 | M101: 0 | N101: 0 | O101: 6019.3 | P101: 0 | Q101: 0 | R101: 0 | S101: 0 | T101: x18 | U101: 529387.1 | V101: 10.53224256 | X101: 3675840.46 | Y101: 5026347.4 | Z101: 1350506.94 | AA101: 142238.6667 | AC101: 129.0945793 | AD101: 132.8705309 | AE101: 3.775951551 | AF101: 4 | AG101: 1 | AH101: 132.8705309 | AK101: 129.0945793 | AL101: 140.8766284 | AM101: 140.8776742 | AN101: 129.0945793 | AO101: 132.7931122 | AP101: 132.8705309 | AT101: 0.07741867967 | BE101: -92 | BF101: 0 | BG101: 0 | BH101: 0 | BI101: 0 | BL101: 0 | BM101: 0 | BO101: 0 | BP101: 0 | BR101: 0 | BS101: 0
A102: 770 | B102: TANTASQUA | C102: 1 | D102: 503242 | E102: 0 | F102: 37705 | G102: 10934.91 | H102: 0 | I102: 0 | J102: 0 | K102: 0 | L102: 0 | M102: 0 | N102: 0 | O102: 0 | P102: 0 | Q102: 0 | R102: 0 | S102: 0 | T102: x18 | U102: 149288.31 | V102: 0.5464748539 | X102: 23965742.4 | Y102: 27318422.6 | Z102: 3352680.2 | AA102: 18321.55423 | AC102: 115.2209258 | AD102: 113.9130205 | AE102: -1.3079053 | AF102: 8 | AG102: 1 | AH102: 113.9130205 | AK102: 115.2209258 | AL102: 115.0593947 | AM102: 115.0927116 | AN102: 115.2209258 | AO102: 113.8361853 | AP102: 113.9130205 | AT102: 0.07683521371 | AV102: 6.006045166 | AW102: 7.127739483 | AX102: 1.121694317 | BE102: 6.982889988 | BF102: 99.98288999 | BG102: 0 | BH102: 99.98288999 | BI102: -1.000732539 | BL102: 99.98288999 | BM102: 0 | BO102: 99.98288999 | BP102: -1.000732539 | BR102: 101.1092152 | BS102: -0.1255926904
A103: 251 | B103: ROCKLAND | C103: 1 | D103: 0 | E103: 0 | F103: 0 | G103: 0 | H103: 0 | I103: 0 | J103: 655786 | K103: 120463 | L103: 1866577 | M103: 0 | N103: 4559 | O103: 137625.11 | P103: 0 | Q103: 0 | R103: 0 | S103: 0 | T103: X | U103: 2785010.11 | V103: 6.855104553 | X103: 35665890.65 | Y103: 40626807.2 | Z103: 4960916.546 | AA103: 340076.016 | AC103: 114.003583 | AD103: 112.9559095 | AE103: -1.047673432 | AF103: 103 | AG103: 1 | AH103: 112.9559095 | AK103: 114.003583 | AL103: 118.7427368 | AM103: 118.7429176 | AN103: 114.003583 | AO103: 112.8836288 | AP103: 112.9559095 | AT103: 0.07228070714 | AV103: -0.7170762678 | AW103: 8.70558444 | AX103: 9.422660708 | BE103: 8.093957788 | BF103: 102.0939578 | BG103: 0 | BH103: 102.0939578 | BI103: -8.913162001 | BL103: 102.0939578 | BM103: 0 | BO103: 102.0939578 | BP103: -8.913162001 | BR103: 110.7276537 | BS103: 0.2794660955
A104: 775 | B104: WACHUSETT | C104: 1 | D104: 3523413 | E104: 75781 | F104: 0 | G104: 0 | H104: 0 | I104: 0 | J104: 2720626 | K104: 1117411 | L104: 0 | M104: 0 | N104: 0 | O104: 0 | P104: 0 | Q104: 0 | R104: 0 | S104: 0 | T104: X | U104: 7437231 | V104: 6.724676176 | X104: 86493263.78 | Y104: 110596121 | Z104: 24102857.22 | AA104: 1620839.097 | AC104: 111.1455861 | AD104: 125.9927966 | AE104: 14.84721049 | AF104: 46 | AG104: 1 | AH104: 125.9927966 | AK104: 111.1455861 | AL104: 128.1766469 | AM104: 128.1766469 | AN104: 111.1455861 | AO104: 125.9222094 | AP104: 125.9927966 | AT104: 0.07058715701 | AV104: 7.286953842 | AW104: 7.841330462 | AX104: 0.5543766198 | BE104: 5.953494825 | BF104: 100.9534948 | BG104: 0 | BH104: 100.9534948 | BI104: -0.4852860165 | BL104: 100.9534948 | BM104: 0 | BO104: 100.9534948 | BP104: -0.4852860165 | BR104: 101.3078185 | BS104: 0.1309623153
A105: 300 | B105: TRURO | C105: 1 | D105: 0 | E105: 142500 | F105: 0 | G105: 0 | H105: 0 | I105: 0 | J105: 226200 | K105: 65150 | L105: 104230 | M105: 0 | N105: 107673 | O105: 2198.35 | P105: 0 | Q105: 0 | R105: 0 | S105: 0 | T105: X | U105: 647951.35 | V105: 9.164975263 | X105: 2291577.26 | Y105: 7069864.69 | Z105: 4778287.43 | AA105: 437928.861 | AC105: 283.3513682 | AD105: 289.4048542 | AE105: 6.053486038 | AF105: 1 | AG105: 1 | AH105: 289.4048542 | AK105: 283.3513682 | AL105: 280.8238421 | AM105: 280.7442644 | AN105: 283.3513682 | AO105: 289.3352958 | AP105: 289.4048542 | AT105: 0.06955848646 | AV105: 0.8669074999 | AW105: 5.014995542 | AX105: 4.148088042 | BE105: 58.4079515 | BF105: 154.4079515 | BG105: 0 | BH105: 154.4079515 | BI105: -7.182816701 | BL105: 154.4079515 | BM105: 0 | BO105: 154.4079515 | BP105: -7.182816701 | BR105: 161.9242437 | BS105: -0.3334754761
A106: 712 | B106: MONOMOY | C106: 1 | D106: 1206394.49 | E106: 0 | F106: 84696 | G106: 70638.68 | H106: 0 | I106: 0 | J106: 447869 | K106: 545115 | L106: 0 | M106: 0 | N106: 0 | O106: 0 | P106: 0 | Q106: 0 | R106: 0 | S106: 0 | T106: X | U106: 2354713.17 | V106: 5.607786259 | X106: 24010799.07 | Y106: 41990066.33 | Z106: 17979267.26 | AA106: 1008238.879 | AC106: 165.4856953 | AD106: 170.6808146 | AE106: 5.195119308 | AF106: 48 | AG106: 1 | AH106: 170.6808146 | AK106: 165.4856953 | AL106: 174.9786482 | AM106: 172.654764 | AN106: 165.4856953 | AO106: 170.6125199 | AP106: 170.6808146 | AT106: 0.06829474209 | AV106: 4.544354868 | AW106: 6.105409075 | AX106: 1.561054207 | BE106: 2.269359849 | BF106: 99.26935985 | BG106: 0 | BH106: 99.26935985 | BI106: -1.404031766 | BL106: 99.26935985 | BM106: 0 | BO106: 99.26935985 | BP106: -1.404031766 | BR106: 100.7615419 | BS106: -0.0881502381
A107: 49 | B107: CAMBRIDGE | C107: 1 | D107: 0 | E107: 0 | F107: 0 | G107: 0 | H107: 0 | I107: 0 | J107: 6715537 | K107: 0 | L107: 5695740.01 | M107: 117467 | N107: 0 | O107: 1502767.28 | P107: 0 | Q107: 0 | R107: 0 | S107: 0 | T107: X | U107: 14031511.29 | V107: 4.868981053 | X107: 118963463.1 | Y107: 288181677.8 | Z107: 169218214.6 | AA107: 8239202.809 | AC107: 225.2108124 | AD107: 235.3180276 | AE107: 10.10721518 | AF107: 483 | AG107: 1 | AH107: 235.3180276 | AK107: 225.2108124 | AL107: 226.3324835 | AM107: 226.333819 | AN107: 225.2108124 | AO107: 235.2539943 | AP107: 235.3180276 | AT107: 0.0640332648 | AV107: -5.757563223 | AW107: 1.435746001 | AX107: 7.193309224 | BE107: 73.3396897 | BF107: 171.3396897 | BG107: 0 | BH107: 171.3396897 | BI107: -13.04888145 | BL107: 171.3396897 | BM107: 0 | BO107: 171.3396897 | BP107: -13.04888145 | BR107: 185.4280642 | BS107: -1.039493026
A108: 321 | B108: WESTBOROUGH | C108: 1 | D108: 0 | E108: 0 | F108: 0 | G108: 0 | H108: 0 | I108: 0 | J108: 1599140 | K108: 123930 | L108: 1836834.6 | M108: 0 | N108: 0 | O108: 12653.2 | P108: 0 | Q108: 0 | R108: 0 | S108: 0 | T108: X | U108: 3572557.8 | V108: 4.603571366 | X108: 49809693.65 | Y108: 77604049.46 | Z108: 27794355.81 | AA108: 1279533.006 | AC108: 151.4444391 | AD108: 153.2322543 | AE108: 1.787815245 | AF108: 10 | AG108: 1 | AH108: 153.2322543 | AK108: 151.4444391 | AL108: 150.6884488 | AM108: 150.5803029 | AN108: 151.4444391 | AO108: 153.1690846 | AP108: 153.2322543 | AT108: 0.0631697504 | AV108: 4.701299465 | AW108: 3.818191943 | AX108: -0.8831075219 | BE108: 46.292739 | BF108: 145.292739 | BG108: 0 | BH108: 145.292739 | BI108: 1.023560334 | BL108: 145.292739 | BM108: 0 | BO108: 145.292739 | BP108: 1.023560334 | BR108: 144.354768 | BS108: -0.08558936335
A109: 698 | B109: MANCHESTER ESSEX | C109: 1 | D109: 1979975 | E109: 37652 | F109: 24776 | G109: 0 | H109: 0 | I109: 0 | J109: 621117 | K109: 439710 | L109: 0 | M109: 0 | N109: 0 | O109: 0 | P109: 0 | Q109: 0 | R109: 0 | S109: 0 | T109: X | U109: 3103230 | V109: 10.58308836 | X109: 14742042.94 | Y109: 29322537 | Z109: 14580494.06 | AA109: 1543066.569 | AC109: 179.2445387 | AD109: 188.4370473 | AE109: 9.192508611 | AF109: 0 | AG109: 1 | AH109: 188.4370473 | AK109: 179.2445387 | AL109: 179.0709761 | AM109: 179.0709774 | AN109: 179.2445387 | AO109: 188.3769169 | AP109: 188.4370473 | AT109: 0.06013036061 | AV109: 2.969897114 | AW109: 5.120201864 | AX109: 2.15030475 | BE109: 25.24570096 | BF109: 125.245701 | BG109: 0 | BH109: 125.245701 | BI109: -1.717094466 | BL109: 125.245701 | BM109: 0 | BO109: 125.245701 | BP109: -1.717094466 | BR109: 125.245701 | BS109: 1.717094466
A110: 322 | B110: WEST BOYLSTON | C110: 1 | D110: 0 | E110: 0 | F110: 0 | G110: 0 | H110: 0 | I110: 0 | J110: 309549.6 | K110: 168309.4 | L110: 735474.1 | M110: 0 | N110: 38520 | O110: 5473.09 | P110: 0 | Q110: 0 | R110: 0 | S110: 0 | T110: x18 | U110: 668946.91 | V110: 4.006750604 | X110: 11804797.72 | Y110: 16695496.58 | Z110: 4890698.86 | AA110: 195958.1061 | AC110: 147.0236195 | AD110: 139.7697687 | AE110: -7.253850765 | AF110: 3 | AG110: 1 | AH110: 139.7697687 | AK110: 147.0236195 | AL110: 148.2558862 | AM110: 148.1510635 | AN110: 147.0236195 | AO110: 139.7139211 | AP110: 139.7697687 | AT110: 0.05584763727 | AV110: 2.004715594 | AW110: -0.7307004896 | AX110: -2.735416084 | BE110: 37.89241899 | BF110: 138.892419 | BG110: 0 | BH110: 138.892419 | BI110: 2.328396915 | BL110: 138.892419 | BM110: 0 | BO110: 138.892419 | BP110: 2.328396915 | BR110: 136.8462006 | BS110: -0.2821785537
A111: 815 | B111: CAPE COD | C111: 1 | D111: 1005107 | E111: 2840 | F111: 0 | G111: 0 | H111: 0 | I111: 0 | J111: 0 | K111: 0 | L111: 0 | M111: 0 | N111: 0 | O111: 0 | P111: 0 | Q111: 0 | R111: 0 | S111: 0 | T111: X | U111: 1007947 | V111: 6.2730721 | X111: 14535867.46 | Y111: 16067837 | Z111: 1531969.54 | AA111: 96101.55379 | AC111: 105.7472646 | AD111: 109.8781032 | AE111: 4.130838553 | AF111: 0 | AG111: 1 | AH111: 109.8781032 | AK111: 105.7472646 | AL111: 109.3432789 | AM111: 109.3432789 | AN111: 105.7472646 | AO111: 109.8223634 | AP111: 109.8781032 | AT111: 0.05573976973 | BC111: fy12 | BE111: -102 | BF111: 0 | BG111: 0 | BH111: 0 | BI111: 0 | BL111: 0 | BM111: 0 | BO111: 0 | BP111: 0 | BR111: 0 | BS111: 0
A112: 347 | B112: WOBURN | C112: 1 | D112: 0 | E112: 5803646 | F112: 0 | G112: 0 | H112: 0 | I112: 0 | J112: 0 | K112: 0 | L112: 2800000 | M112: 22824 | N112: 0 | O112: 96037.97 | P112: 0 | Q112: 0 | R112: 0 | S112: 0 | T112: X | U112: 8722507.97 | V112: 8.170800028 | X112: 70723977.38 | Y112: 106752190 | Z112: 36028212.62 | AA112: 2943793.207 | AC112: 142.2503008 | AD112: 146.7796363 | AE112: 4.529335503 | AF112: 54 | AG112: 1 | AH112: 146.7796363 | AK112: 142.2503008 | AL112: 144.681388 | AM112: 144.6959519 | AN112: 142.2503008 | AO112: 146.7240098 | AP112: 146.7796363 | AT112: 0.05562654458 | AV112: 7.485441033 | AW112: 5.066654269 | AX112: -2.418786765 | BE112: -3.784214859 | BF112: 99.21578514 | BG112: 0 | BH112: 99.21578514 | BI112: 2.232691475 | BL112: 99.21578514 | BM112: 0 | BO112: 99.21578514 | BP112: 2.232691475 | BR112: 97.22606934 | BS112: -0.242975679
A113: 326 | B113: WESTFORD | C113: 1 | D113: 0 | E113: 0 | F113: 0 | G113: 0 | H113: 0 | I113: 0 | J113: 2588490 | K113: 621070 | L113: 2199760 | M113: 18533 | N113: 20655 | O113: 15570.59 | P113: 0 | Q113: 0 | R113: 0 | S113: 0 | T113: X | U113: 5464078.59 | V113: 6.976734796 | X113: 56506301.35 | Y113: 78318565.2 | Z113: 21812263.85 | AA113: 1521783.802 | AC113: 132.1406654 | AD113: 135.9083493 | AE113: 3.767683834 | AF113: 11 | AG113: 1 | AH113: 135.9083493 | AK113: 132.1406654 | AL113: 140.9317892 | AM113: 140.9492997 | AN113: 132.1406654 | AO113: 135.8530237 | AP113: 135.9083493 | AT113: 0.05532557324 | BE113: -104 | BF113: 0 | BG113: 0 | BH113: 0 | BI113: 0 | BL113: 0 | BM113: 0 | BO113: 0 | BP113: 0 | BR113: 0 | BS113: 0
A114: 635 | B114: CENTRAL BERKSHIRE | C114: 1 | D114: 1842786 | E114: 0 | F114: 162113 | G114: 25567.92 | H114: 0 | I114: 0 | J114: 1375000 | K114: 0 | L114: 0 | M114: 0 | N114: 0 | O114: 0 | P114: 0 | Q114: 0 | R114: 0 | S114: 0 | T114: X | U114: 3405466.92 | V114: 11.7269243 | X114: 22485789.99 | Y114: 29039728 | Z114: 6553938.01 | AA114: 768575.3492 | AC114: 127.2207222 | AD114: 125.7289722 | AE114: -1.491750005 | AF114: 19 | AG114: 1 | AH114: 125.7289722 | AK114: 127.2207222 | AL114: 132.0946544 | AM114: 131.6976514 | AN114: 127.2207222 | AO114: 125.6788647 | AP114: 125.7289722 | AT114: 0.05010748045 | AV114: 0.5739003031 | AW114: -5.227825796 | AX114: -5.801726099 | BE114: 43.20651069 | BF114: 148.2065107 | BG114: 0 | BH114: 148.2065107 | BI114: 8.180180693 | BL114: 148.2065107 | BM114: 0 | BO114: 148.2065107 | BP114: 8.180180693 | BR114: 140.0119208 | BS114: 0.01440921276
A115: 274 | B115: SOMERVILLE | C115: 1 | D115: 0 | E115: 400000 | F115: 0 | G115: 0 | H115: 0 | I115: 0 | J115: 5282758 | K115: 1400000 | L115: 3472826.77 | M115: 32198 | N115: 0 | O115: 627903.71 | P115: 0 | Q115: 0 | R115: 0 | S115: 0 | T115: X | U115: 11215686.48 | V115: 8.094502933 | X115: 92273702.11 | Y115: 138559298.5 | Z115: 46285596.37 | AA115: 3746588.956 | AC115: 144.2990824 | AD115: 146.1009003 | AE115: 1.801817942 | AF115: 300 | AG115: 1 | AH115: 146.1009003 | AK115: 144.2990824 | AL115: 147.0230051 | AM115: 147.047644 | AN115: 144.2990824 | AO115: 146.0523894 | AP115: 146.1009003 | AT115: 0.04851093732 | BE115: -106 | BF115: 0 | BG115: 0 | BH115: 0 | BI115: 0 | BL115: 0 | BM115: 0 | BO115: 0 | BP115: 0 | BR115: 0 | BS115: 0
A116: 48 | B116: BURLINGTON | C116: 1 | D116: 0 | E116: 0 | F116: 0 | G116: 0 | H116: 0 | I116: 0 | J116: 3347834 | K116: 3036655 | L116: 2887667 | M116: 0 | N116: 106539 | O116: 6205.57 | P116: 0 | Q116: 0 | R116: 0 | S116: 0 | T116: X | U116: 9384900.57 | V116: 10.20383019 | X116: 49033422.45 | Y116: 91974292 | Z116: 42940869.55 | AA116: 4381613.409 | AC116: 181.667968 | AD116: 178.6387207 | AE116: -3.02924726 | AF116: 2 | AG116: 1 | AH116: 178.6387207 | AK116: 181.667968 | AL116: 181.0715804 | AM116: 180.9244924 | AN116: 181.667968 | AO116: 178.5931549 | AP116: 178.6387207 | AT116: 0.04556584669 | AV116: 4.954472288 | AW116: 7.219816269 | AX116: 2.265343982 | BE116: 23.22939117 | BF116: 130.2293912 | BG116: 0 | BH116: 130.2293912 | BI116: -1.778469929 | BL116: 130.2293912 | BM116: 0 | BO116: 130.2293912 | BP116: -1.778469929 | BR116: 130.2293912 | BS116: 1.778469929
A117: 335 | B117: WESTWOOD | C117: 1 | D117: 0 | E117: 0 | F117: 0 | G117: 0 | H117: 0 | I117: 0 | J117: 1139020 | K117: 67921 | L117: 1882096 | M117: 0 | N117: 0 | O117: 0 | P117: 0 | Q117: 0 | R117: 0 | S117: 0 | T117: X | U117: 3089037 | V117: 4.62843258 | X117: 36920748.45 | Y117: 66740455.8 | Z117: 29819707.35 | AA117: 1380185.05 | AC117: 174.2264219 | AD117: 177.0285639 | AE117: 2.80214194 | AF117: 0 | AG117: 1 | AH117: 177.0285639 | AK117: 174.2264219 | AL117: 175.2819613 | AM117: 175.3460242 | AN117: 174.2264219 | AO117: 176.9842196 | AP117: 177.0285639 | AT117: 0.04434424038 | BE117: -108 | BF117: 0 | BG117: 0 | BH117: 0 | BI117: 0 | BL117: 0 | BM117: 0 | BO117: 0 | BP117: 0 | BR117: 0 | BS117: 0
A118: 276 | B118: SOUTHBOROUGH | C118: 1 | D118: 0 | E118: 0 | F118: 0 | G118: 0 | H118: 0 | I118: 0 | J118: 542826 | K118: 158917 | L118: 763953 | M118: 19838 | N118: 0 | O118: 3067.4 | P118: 0 | Q118: 0 | R118: 0 | S118: 0 | T118: X | U118: 1488601.4 | V118: 5.079085703 | X118: 14839839.36 | Y118: 29308452.09 | Z118: 14468612.73 | AA118: 734873.2408 | AC118: 191.8002844 | AD118: 192.5464162 | AE118: 0.7461317674 | AF118: 1 | AG118: 1 | AH118: 192.5464162 | AK118: 191.8002844 | AL118: 195.9904372 | AM118: 195.990435 | AN118: 191.8002844 | AO118: 192.5046977 | AP118: 192.5464162 | AT118: 0.04171844118 | BE118: -109 | BF118: 0 | BG118: 0 | BH118: 0 | BI118: 0 | BL118: 0 | BM118: 0 | BO118: 0 | BP118: 0 | BR118: 0 | BS118: 0
A119: 825 | B119: GREATER NEW BEDFORD | C119: 1 | D119: 1439110 | E119: 0 | F119: 0 | G119: 0 | H119: 0 | I119: 0 | J119: 0 | K119: 0 | L119: 0 | M119: 0 | N119: 0 | O119: 0 | P119: 0 | Q119: 0 | R119: 0 | S119: 0 | T119: X | U119: 1439110 | V119: 2.916384862 | X119: 49088629.35 | Y119: 49345682 | Z119: 257052.65 | AA119: 7496.644572 | AC119: 100.8958635 | AD119: 100.5083784 | AE119: -0.3874850969 | AF119: 0 | AG119: 1 | AH119: 100.5083784 | AK119: 100.8958635 | AL119: 101.346771 | AM119: 101.3467706 | AN119: 100.8958635 | AO119: 100.4671964 | AP119: 100.5083784 | AT119: 0.04118207612 | AV119: 0.6771220359 | AW119: 0.5264917241 | AX119: -0.1506303118 | BE119: 22.37554684 | BF119: 132.3755468 | BG119: 0 | BH119: 132.3755468 | BI119: 0.2121054125 | BL119: 132.3755468 | BM119: 0 | BO119: 132.3755468 | BP119: 0.2121054125 | BR119: 132.1451938 | BS119: 0.01824763248
A120: 178 | B120: MELROSE | C120: 1 | D120: 0 | E120: 0 | F120: 0 | G120: 0 | H120: 0 | I120: 0 | J120: 1350000 | K120: 1019142.85 | L120: 2599473 | M120: 2353 | N120: 0 | O120: 299772.41 | P120: 0 | Q120: 0 | R120: 0 | S120: 0 | T120: X | U120: 5270741.26 | V120: 8.905048375 | X120: 53488054.66 | Y120: 59188238.38 | Z120: 5700183.721 | AA120: 507604.1178 | AC120: 108.1130677 | AD120: 109.7079238 | AE120: 1.594856117 | AF120: 255 | AG120: 1 | AH120: 109.7079238 | AK120: 108.1130677 | AL120: 121.497421 | AM120: 110.923033 | AN120: 108.1130677 | AO120: 109.668708 | AP120: 109.7079238 | AT120: 0.0392157817 | AV120: 0.7271207257 | AW120: 14.70868665 | AX120: 13.98156593 | BE120: 9.416998848 | BF120: 120.4169988 | BG120: 0 | BH120: 120.4169988 | BI120: -13.52110217 | BL120: 120.4169988 | BM120: 0 | BO120: 120.4169988 | BP120: -13.52110217 | BR120: 134.5015798 | BS120: -0.5634787312
A121: 246 | B121: READING | C121: 1 | D121: 0 | E121: 0 | F121: 0 | G121: 0 | H121: 0 | I121: 192675 | J121: 2438246 | K121: 890456 | L121: 2543519 | M121: 0 | N121: 2850 | O121: 8918.49 | P121: 0 | Q121: 0 | R121: 0 | S121: 0 | T121: X | U121: 6076664.49 | V121: 9.080883931 | X121: 47040957.59 | Y121: 66917103.4 | Z121: 19876145.81 | AA121: 1804929.731 | AC121: 136.3851634 | AD121: 138.4159188 | AE121: 2.030755408 | AF121: 3 | AG121: 1 | AH121: 138.4159188 | AK121: 136.3851634 | AL121: 138.7343819 | AM121: 138.774114 | AN121: 136.3851634 | AO121: 138.3767068 | AP121: 138.4159188 | AT121: 0.03921203811 | BC121: fy13 | BE121: -112 | BF121: 0 | BG121: 0 | BH121: 0 | BI121: 0 | BL121: 0 | BM121: 0 | BO121: 0 | BP121: 0 | BR121: 0 | BS121: 0
A122: 745 | B122: PENTUCKET | C122: 1 | D122: 1835502 | E122: 0 | F122: 220048 | G122: 49489.37 | H122: 0 | I122: 0 | J122: 824929 | K122: 1344048 | L122: 0 | M122: 0 | N122: 0 | O122: 0 | P122: 0 | Q122: 0 | R122: 0 | S122: 0 | T122: x18 | U122: 2805614.77 | V122: 6.64005247 | X122: 28773485.36 | Y122: 42252900.6 | Z122: 13479415.24 | AA122: 895040.2446 | AC122: 142.7706877 | AD122: 143.7360119 | AE122: 0.9653242116 | AF122: 37 | AG122: 1 | AH122: 143.7360119 | AK122: 142.7706877 | AL122: 143.5428656 | AM122: 143.5735359 | AN122: 142.7706877 | AO122: 143.7010389 | AP122: 143.7360119 | AT122: 0.03497300183 | BE122: -113 | BF122: 0 | BG122: 0 | BH122: 0 | BI122: 0 | BL122: 0 | BM122: 0 | BO122: 0 | BP122: 0 | BR122: 0 | BS122: 0
A123: 77 | B123: DOUGLAS | C123: 1 | D123: 0 | E123: 47716 | F123: 0 | G123: 0 | H123: 0 | I123: 0 | J123: 172729 | K123: 80924 | L123: 171039 | M123: 5133 | N123: 44503 | O123: 0 | P123: 0 | Q123: 0 | R123: 0 | S123: 0 | T123: X | U123: 522044 | V123: 2.718502585 | X123: 14237865.39 | Y123: 19203365.96 | Z123: 4965500.57 | AA123: 134987.2613 | AC123: 126.0370423 | AD123: 133.9272298 | AE123: 7.890187536 | AF123: 0 | AG123: 1 | AH123: 133.9272298 | AK123: 126.0370423 | AL123: 134.0628559 | AM123: 134.1346046 | AN123: 126.0370423 | AO123: 133.8937699 | AP123: 133.9272298 | AT123: 0.03345991956 | AV123: 2.442488495 | AW123: 4.002022829 | AX123: 1.559534333 | BE123: 6.17422458 | BF123: 120.1742246 | BG123: 0 | BH123: 120.1742246 | BI123: -1.985980203 | BL123: 120.1742246 | BM123: 0 | BO123: 120.1742246 | BP123: -1.985980203 | BR123: 120.1742246 | BS123: 1.985980203
A124: 175 | B124: MEDFIELD | C124: 1 | D124: 0 | E124: 346366 | F124: 0 | G124: 0 | H124: 0 | I124: 0 | J124: 844007 | K124: 15000 | L124: 682459 | M124: 0 | N124: 0 | O124: 0 | P124: 0 | Q124: 0 | R124: 0 | S124: 0 | T124: X | U124: 1887832 | V124: 3.934087992 | X124: 29971700.25 | Y124: 47986522 | Z124: 18014821.75 | AA124: 708718.9392 | AC124: 153.7527274 | AD124: 157.7414783 | AE124: 3.988750905 | AF124: 0 | AG124: 1 | AH124: 157.7414783 | AK124: 153.7527274 | AL124: 155.849303 | AM124: 155.5964381 | AN124: 153.7527274 | AO124: 157.7095779 | AP124: 157.7414783 | AT124: 0.03190042063 | BE124: -115 | BF124: 0 | BG124: 0 | BH124: 0 | BI124: 0 | BL124: 0 | BM124: 0 | BO124: 0 | BP124: 0 | BR124: 0 | BS124: 0
A125: 197 | B125: NANTUCKET | C125: 1 | D125: 0 | E125: 850000 | F125: 0 | G125: 0 | H125: 0 | I125: 0 | J125: 0 | K125: 0 | L125: 1804472 | M125: 0 | N125: 0 | O125: 1697.01 | P125: 0 | Q125: 0 | R125: 0 | S125: 0 | T125: x18 | U125: 1212591.41 | V125: 2.415995302 | X125: 25535123.51 | Y125: 50190139.4 | Z125: 24655015.89 | AA125: 595664.0256 | AC125: 183.4873003 | AD125: 194.2206207 | AE125: 10.73332038 | AF125: 1 | AG125: 1 | AH125: 194.2206207 | AK125: 183.4873003 | AL125: 190.0433396 | AM125: 190.0338487 | AN125: 183.4873003 | AO125: 194.1892496 | AP125: 194.2206207 | AT125: 0.03137107424 | BE125: -116 | BF125: 0 | BG125: 0 | BH125: 0 | BI125: 0 | BL125: 0 | BM125: 0 | BO125: 0 | BP125: 0 | BR125: 0 | BS125: 0
A126: 600 | B126: ACTON BOXBOROUGH | C126: 1 | D126: 1508409 | E126: 124638 | F126: 15916 | G126: 54047.98 | H126: 0 | I126: 0 | J126: 2468160 | K126: 2258485 | L126: 0 | M126: 0 | N126: 0 | O126: 0 | P126: 0 | Q126: 0 | R126: 0 | S126: 0 | T126: X | U126: 6429655.98 | V126: 6.299892495 | X126: 65611192.99 | Y126: 102059773 | Z126: 36448580.01 | AA126: 2296221.356 | AC126: 143.0553926 | AD126: 152.0526409 | AE126: 8.997248261 | AF126: 40 | AG126: 1 | AH126: 152.0526409 | AK126: 143.0553926 | AL126: 143.7392174 | AM126: 143.7269738 | AN126: 143.0553926 | AO126: 152.0219262 | AP126: 152.0526409 | AT126: 0.03071463394 | AV126: -1.057099621 | AW126: 4.334579 | AX126: 5.391678621 | BE126: 34.57732927 | BF126: 151.5773293 | BG126: 0 | BH126: 151.5773293 | BI126: -8.37804378 | BL126: 151.5773293 | BM126: 0 | BO126: 151.5773293 | BP126: -8.37804378 | BR126: 160.8759863 | BS126: -0.9206132373
A127: 7 | B127: AMESBURY | C127: 1 | D127: 409153 | E127: 76913 | F127: 0 | G127: 0 | H127: 0 | I127: 360774 | J127: 734629 | K127: 819807 | L127: 1946475 | M127: 0 | N127: 124651 | O127: 139258.21 | P127: 0 | Q127: 0 | R127: 0 | S127: 0 | T127: X | U127: 4611660.21 | V127: 11.34579313 | X127: 26495878.26 | Y127: 40646433.05 | Z127: 14150554.79 | AA127: 1605492.674 | AC127: 149.4063164 | AD127: 147.3472213 | AE127: -2.059095064 | AF127: 99 | AG127: 1 | AH127: 147.3472213 | AK127: 149.4063164 | AL127: 150.4986065 | AM127: 150.498835 | AN127: 149.4063164 | AO127: 147.318137 | AP127: 147.3472213 | AT127: 0.02908432635 | AV127: -4.302139015 | AW127: -12.57132028 | AX127: -8.26918127 | BE127: -5.493889374 | BF127: 112.5061106 | BG127: 0 | BH127: 112.5061106 | BI127: 6.414268805 | BL127: 112.5061106 | BM127: 0 | BO127: 112.5061106 | BP127: 6.414268805 | BR127: 112.5061106 | BS127: -6.414268805
A128: 168 | B128: MARBLEHEAD | C128: 1 | D128: 0 | E128: 0 | F128: 0 | G128: 0 | H128: 0 | I128: 0 | J128: 1631631 | K128: 713250 | L128: 2364326 | M128: 0 | N128: 0 | O128: 129177.02 | P128: 0 | Q128: 0 | R128: 0 | S128: 0 | T128: X | U128: 4838384.02 | V128: 8.407144937 | X128: 32926181.66 | Y128: 57550857.71 | Z128: 24624676.05 | AA128: 2070232.206 | AC128: 165.5578854 | AD128: 168.5000286 | AE128: 2.942143138 | AF128: 63 | AG128: 1 | AH128: 168.5000286 | AK128: 165.5578854 | AL128: 173.3693375 | AM128: 172.9825677 | AN128: 165.5578854 | AO128: 168.472237 | AP128: 168.5000286 | AT128: 0.02779158249 | BE128: -119 | BF128: 0 | BG128: 0 | BH128: 0 | BI128: 0 | BL128: 0 | BM128: 0 | BO128: 0 | BP128: 0 | BR128: 0 | BS128: 0
A129: 57 | B129: CHELSEA | C129: 1 | D129: 1966000 | E129: 500000 | F129: 0 | G129: 0 | H129: 0 | I129: 0 | J129: 4740000 | K129: 6713659 | L129: 0 | M129: 35335 | N129: 0 | O129: 1392906.62 | P129: 0 | Q129: 0 | R129: 0 | S129: 0 | T129: X | U129: 15347900.62 | V129: 10.18615249 | X129: 146924932.9 | Y129: 150674169 | Z129: 3749236.13 | AA129: 381902.9095 | AC129: 101.740524 | AD129: 102.2918732 | AE129: 0.5513492209 | AF129: 901 | AG129: 1 | AH129: 102.2918732 | AK129: 101.740524 | AL129: 102.8954557 | AM129: 102.1675229 | AN129: 101.740524 | AO129: 102.2654369 | AP129: 102.2918732 | AT129: 0.02643633879 | BE129: -120 | BF129: 0 | BG129: 0 | BH129: 0 | BI129: 0 | BL129: 0 | BM129: 0 | BO129: 0 | BP129: 0 | BR129: 0 | BS129: 0
A130: 872 | B130: SOUTHEASTERN | C130: 1 | D130: 1879378 | E130: 0 | F130: 0 | G130: 0 | H130: 0 | I130: 0 | J130: 0 | K130: 0 | L130: 0 | M130: 0 | N130: 0 | O130: 0 | P130: 0 | Q130: 0 | R130: 0 | S130: 0 | T130: X | U130: 1879378 | V130: 5.052931244 | X130: 36650377 | Y130: 37193817 | Z130: 543440 | AA130: 27459.64955 | AC130: 100.1588894 | AD130: 101.4078446 | AE130: 1.248955208 | AF130: 0 | AG130: 1 | AH130: 101.4078446 | AK130: 100.1588894 | AL130: 97.98155643 | AM130: 97.98155643 | AN130: 100.1588894 | AO130: 101.3819186 | AP130: 101.4078446 | AT130: 0.02592594293 | AV130: 4.454436815 | AW130: 14.06879104 | AX130: 9.614354222 | BE130: 50.24179795 | BF130: 171.241798 | BG130: 0 | BH130: 171.241798 | BI130: -15.23654132 | BL130: 171.241798 | BM130: 0 | BO130: 171.241798 | BP130: -15.23654132 | BR130: 182.8559592 | BS130: 3.622380047
A131: 344 | B131: WINCHESTER | C131: 1 | D131: 0 | E131: 0 | F131: 0 | G131: 0 | H131: 0 | I131: 300000 | J131: 1599662.43 | K131: 800000 | L131: 1586433 | M131: 20105 | N131: 0 | O131: 0 | P131: 0 | Q131: 0 | R131: 0 | S131: 0 | T131: x18 | U131: 3037054.03 | V131: 3.734319359 | X131: 55351171.17 | Y131: 81328181.6 | Z131: 25977010.43 | AA131: 970064.5296 | AC131: 137.9803612 | AD131: 145.1787114 | AE131: 7.198350253 | AF131: 1 | AG131: 1 | AH131: 145.1787114 | AK131: 137.9803612 | AL131: 144.6221927 | AM131: 144.6008775 | AN131: 137.9803612 | AO131: 145.1543154 | AP131: 145.1787114 | AT131: 0.0243960634 | AV131: 3.446035914 | AW131: -2.98453097 | AX131: -6.430566884 | BE131: 12.39008399 | BF131: 134.390084 | BG131: 0 | BH131: 134.390084 | BI131: 8.281883803 | BL131: 134.390084 | BM131: 0 | BO131: 134.390084 | BP131: 8.281883803 | BR131: 126.275155 | BS131: -0.1669547835
A132: 152 | B132: LENOX | C132: 1 | D132: 0 | E132: 92780 | F132: 0 | G132: 0 | H132: 0 | I132: 0 | J132: 687472 | K132: 0 | L132: 849050 | M132: 0 | N132: 101488 | O132: 0 | P132: 0 | Q132: 0 | R132: 0 | S132: 0 | T132: X | U132: 1730790 | V132: 9.890009861 | X132: 6823610.07 | Y132: 17500387 | Z132: 10676776.93 | AA132: 1055934.291 | AC132: 257.2757958 | AD132: 240.993441 | AE132: -16.28235475 | AF132: 0 | AG132: 1 | AH132: 240.993441 | AK132: 257.2757958 | AL132: 249.7704494 | AM132: 246.774717 | AN132: 257.2757958 | AO132: 240.9700972 | AP132: 240.993441 | AT132: 0.02334376499 | BE132: -123 | BF132: 0 | BG132: 0 | BH132: 0 | BI132: 0 | BL132: 0 | BM132: 0 | BO132: 0 | BP132: 0 | BR132: 0 | BS132: 0
A133: 110 | B133: GRAFTON | C133: 1 | D133: 0 | E133: 0 | F133: 0 | G133: 0 | H133: 0 | I133: 0 | J133: 1015852 | K133: 501741 | L133: 722598 | M133: 25298 | N133: 26819 | O133: 17737.3 | P133: 0 | Q133: 0 | R133: 0 | S133: 0 | T133: x18 | U133: 1731966.9 | V133: 3.500634019 | X133: 37107723.81 | Y133: 49475806.12 | Z133: 12368082.31 | AA133: 432961.2968 | AC133: 132.3755468 | AD133: 132.1634414 | AE133: -0.2121054125 | AF133: 11 | AG133: 1 | AH133: 132.1634414 | AK133: 132.3755468 | AL133: 131.1543753 | AM133: 131.285388 | AN133: 132.3755468 | AO133: 132.1451938 | AP133: 132.1634414 | AT133: 0.01824763248 | BE133: -124 | BF133: 0 | BG133: 0 | BH133: 0 | BI133: 0 | BL133: 0 | BM133: 0 | BO133: 0 | BP133: 0 | BR133: 0 | BS133: 0
A134: 186 | B134: MILLBURY | C134: 1 | D134: 0 | E134: 0 | F134: 0 | G134: 0 | H134: 0 | I134: 0 | J134: 1002230 | K134: 120600 | L134: 1055234 | M134: 64675 | N134: 55206 | O134: 20066.27 | P134: 0 | Q134: 0 | R134: 0 | S134: 0 | T134: X | U134: 2318011.27 | V134: 7.359302815 | X134: 23341579.9 | Y134: 31497702 | Z134: 8156122.1 | AA134: 600233.7233 | AC134: 131.2466665 | AD134: 132.3709381 | AE134: 1.124271536 | AF134: 10 | AG134: 1 | AH134: 132.3709381 | AK134: 131.2466665 | AL134: 136.0531772 | AM134: 136.0534288 | AN134: 131.2466665 | AO134: 132.3528606 | AP134: 132.3709381 | AT134: 0.01807747669 | AV134: 3.805426168 | AW134: 16.92807805 | AX134: 13.12265188 | BE134: 22.18547186 | BF134: 147.1854719 | BG134: 0 | BH134: 147.1854719 | BI134: -21.22109819 | BL134: 147.1854719 | BM134: 0 | BO134: 147.1854719 | BP134: -21.22109819 | BR134: 168.4823741 | BS134: -0.07580409268
A135: 65 | B135: COHASSET | C135: 1 | D135: 0 | E135: 142031 | F135: 0 | G135: 0 | H135: 0 | I135: 0 | J135: 391353 | K135: 393032 | L135: 944616 | M135: 0 | N135: 0 | O135: 11950.61 | P135: 0 | Q135: 0 | R135: 0 | S135: 0 | T135: x18 | U135: 1127289.81 | V135: 3.640932763 | X135: 17839057.45 | Y135: 30961566.26 | Z135: 13122508.81 | AA135: 477781.7226 | AC135: 172.32976 | AD135: 170.88226 | AE135: -1.447500005 | AF135: 9 | AG135: 1 | AH135: 170.88226 | AK135: 172.32976 | AL135: 173.6307258 | AM135: 173.6307236 | AN135: 172.32976 | AO135: 170.8646498 | AP135: 170.88226 | AT135: 0.01761025204 | BC135: fy13 | BE135: -126 | BF135: 0 | BG135: 0 | BH135: 0 | BI135: 0 | BL135: 0 | BM135: 0 | BO135: 0 | BP135: 0 | BR135: 0 | BS135: 0
A136: 105 | B136: GEORGETOWN | C136: 1 | D136: 0 | E136: 0 | F136: 0 | G136: 0 | H136: 0 | I136: 0 | J136: 606317 | K136: 419170 | L136: 645876 | M136: 0 | N136: 63995 | O136: 1208.9 | P136: 0 | Q136: 0 | R136: 0 | S136: 0 | T136: X | U136: 1736566.9 | V136: 8.014622262 | X136: 15097839.61 | Y136: 21667482.8 | Z136: 6569643.19 | AA136: 526532.0856 | AC136: 148.2065107 | AD136: 140.02633 | AE136: -8.180180693 | AF136: 2 | AG136: 1 | AH136: 140.02633 | AK136: 148.2065107 | AL136: 141.1383717 | AM136: 141.3484226 | AN136: 148.2065107 | AO136: 140.0119208 | AP136: 140.02633 | AT136: 0.01440921276 | AV136: -1.132211628 | AW136: 0.4436785241 | AX136: 1.575890152 | BE136: 70.53140377 | BF136: 197.5314038 | BG136: 0 | BH136: 197.5314038 | BI136: -2.926542726 | BL136: 197.5314038 | BM136: 0 | BO136: 197.5314038 | BP136: -2.926542726 | BR136: 199.6807415 | BS136: 0.7772050233
A137: 650 | B137: DIGHTON REHOBOTH | C137: 1 | D137: 1074103 | E137: 0 | F137: 67235 | G137: 5455.8 | H137: 0 | I137: 296449 | J137: 646225 | K137: 1513406 | L137: 0 | M137: 0 | N137: 0 | O137: 0 | P137: 0 | Q137: 0 | R137: 0 | S137: 0 | T137: X | U137: 3602873.8 | V137: 7.748668771 | X137: 34651952.3 | Y137: 46496681 | Z137: 11844728.7 | AA137: 917808.7937 | AC137: 131.2608771 | AD137: 131.5333457 | AE137: 0.272468624 | AF137: 1 | AG137: 1 | AH137: 131.5333457 | AK137: 131.2608771 | AL137: 134.928028 | AM137: 134.9156756 | AN137: 131.2608771 | AO137: 131.5234059 | AP137: 131.5333457 | AT137: 0.009939821925 | AV137: 6.314368057 | AW137: 8.472186854 | AX137: 2.157818797 | BE137: -24.39284632 | BF137: 103.6071537 | BG137: 0 | BH137: 103.6071537 | BI137: -2.040031884 | BL137: 103.6071537 | BM137: 0 | BO137: 103.6071537 | BP137: -2.040031884 | BR137: 105.7850797 | BS137: -0.1378941866
A138: 266 | B138: SHARON | C138: 1 | D138: 0 | E138: 0 | F138: 0 | G138: 0 | H138: 0 | I138: 0 | J138: 1823580 | K138: 698758 | L138: 1031876 | M138: 0 | N138: 0 | O138: 14189.84 | P138: 0 | Q138: 0 | R138: 0 | S138: 0 | T138: x18 | U138: 2742903.04 | V138: 3.921603818 | X138: 45602230.37 | Y138: 69943399.88 | Z138: 24341169.51 | AA138: 954564.2327 | AC138: 150.1286321 | AD138: 151.2839067 | AE138: 1.155274559 | AF138: 8 | AG138: 1 | AH138: 151.2839067 | AK138: 150.1286321 | AL138: 147.9553748 | AM138: 148.0305863 | AN138: 150.1286321 | AO138: 151.2749367 | AP138: 151.2839067 | AT138: 0.008970002304 | BE138: -129 | BF138: 0 | BG138: 0 | BH138: 0 | BI138: 0 | BL138: 0 | BM138: 0 | BO138: 0 | BP138: 0 | BR138: 0 | BS138: 0
A139: 72 | B139: DARTMOUTH | C139: 1 | D139: 0 | E139: 257775 | F139: 0 | G139: 0 | H139: 0 | I139: 460879.56 | J139: 1117200 | K139: 477750 | L139: 1090919.11 | M139: 0 | N139: 35218 | O139: 4811.59 | P139: 0 | Q139: 0 | R139: 0 | S139: 0 | T139: X | U139: 3444553.26 | V139: 5.960623114 | X139: 44678547.48 | Y139: 57788476.04 | Z139: 13109928.56 | AA139: 781433.432 | AC139: 125.2345587 | AD139: 127.5937689 | AE139: 2.359210135 | AF139: 8 | AG139: 1 | AH139: 127.5937689 | AK139: 125.2345587 | AL139: 124.4755114 | AM139: 124.4755516 | AN139: 125.2345587 | AO139: 127.5861346 | AP139: 127.5937689 | AT139: 0.007634242704 | BE139: -130 | BF139: 0 | BG139: 0 | BH139: 0 | BI139: 0 | BL139: 0 | BM139: 0 | BO139: 0 | BP139: 0 | BR139: 0 | BS139: 0
A140: 325 | B140: WESTFIELD | C140: 1 | D140: 0 | E140: 0 | F140: 0 | G140: 0 | H140: 0 | I140: 1325863 | J140: 3819749 | K140: 0 | L140: 4087933 | M140: 0 | N140: 237238 | O140: 84049.63 | P140: 0 | Q140: 0 | R140: 0 | S140: 0 | T140: X | U140: 9554832.63 | V140: 11.47284104 | X140: 77785675.98 | Y140: 83282184.4 | Z140: 5496508.42 | AA140: 630605.6737 | AC140: 107.3435514 | AD140: 106.2555254 | AE140: -1.088026003 | AF140: 78 | AG140: 1 | AH140: 106.2555254 | AK140: 107.3435514 | AL140: 109.6978378 | AM140: 109.7468189 | AN140: 107.3435514 | AO140: 106.2481094 | AP140: 106.2555254 | AT140: 0.007416017502 | AV140: -2.492695593 | AW140: 10.1564381 | AX140: 12.64913369 | BE140: 22.65004539 | BF140: 153.6500454 | BG140: 0 | BH140: 153.6500454 | BI140: -18.06199969 | BL140: 153.6500454 | BM140: 0 | BO140: 153.6500454 | BP140: -18.06199969 | BR140: 153.6500454 | BS140: 18.06199969
A141: 308 | B141: WALTHAM | C141: 1 | D141: 0 | E141: 130753 | F141: 0 | G141: 0 | H141: 0 | I141: 0 | J141: 3201328 | K141: 1132901 | L141: 8935000 | M141: 46364 | N141: 0 | O141: 17761.8 | P141: 0 | Q141: 0 | R141: 0 | S141: 0 | T141: X | U141: 13464107.8 | V141: 9.115848082 | X141: 103566216.3 | Y141: 147700002 | Z141: 44133785.69 | AA141: 4023168.856 | AC141: 126.8136302 | AD141: 138.7294412 | AE141: 11.915811 | AF141: 11 | AG141: 1 | AH141: 138.7294412 | AK141: 126.8136302 | AL141: 141.2450126 | AM141: 141.2548446 | AN141: 126.8136302 | AO141: 138.7233548 | AP141: 138.7294412 | AT141: 0.006086401968 | BE141: -132 | BF141: 0 | BG141: 0 | BH141: 0 | BI141: 0 | BL141: 0 | BM141: 0 | BO141: 0 | BP141: 0 | BR141: 0 | BS141: 0
A142: 287 | B142: STURBRIDGE | C142: 1 | D142: 0 | E142: 532250 | F142: 0 | G142: 0 | H142: 0 | I142: 0 | J142: 1111487 | K142: 257697 | L142: 229977 | M142: 0 | N142: 0 | O142: 32154.5 | P142: 0 | Q142: 0 | R142: 0 | S142: 0 | T142: x18 | U142: 1979583.9 | V142: 12.68489526 | X142: 11550189.47 | Y142: 15605835.6 | Z142: 4055646.13 | AA142: 514454.4636 | AC142: 135.4529003 | AD142: 130.6591652 | AE142: -4.793735183 | AF142: 23 | AG142: 1 | AH142: 130.6591652 | AK142: 135.4529003 | AL142: 138.8311398 | AM142: 138.8311429 | AN142: 135.4529003 | AO142: 130.6552926 | AP142: 130.6591652 | AT142: 0.003872596851 | AV142: 3.828912621 | AW142: 0.8180823522 | AX142: -3.010830269 | BE142: -28.68857744 | BF142: 104.3114226 | BG142: 0 | BH142: 104.3114226 | BI142: 2.626829175 | BL142: 104.3114226 | BM142: 0 | BO142: 104.3114226 | BP142: 2.626829175 | BR142: 101.8799721 | BS142: -0.1953787361
A143: 271 | B143: SHREWSBURY | C143: 1 | D143: 0 | E143: 0 | F143: 0 | G143: 0 | H143: 0 | I143: 0 | J143: 2825902 | K143: 0 | L143: 1963146 | M143: 29869 | N143: 15872 | O143: 29590.19 | P143: 0 | Q143: 0 | R143: 0 | S143: 0 | T143: X | U143: 4864379.19 | V143: 4.736728063 | X143: 77754351.17 | Y143: 102694922 | Z143: 24940570.83 | AA143: 1181367.018 | AC143: 129.7637315 | AD143: 130.5567514 | AE143: 0.7930199476 | AF143: 24 | AG143: 1 | AH143: 130.5567514 | AK143: 129.7637315 | AL143: 128.6665273 | AM143: 128.7349425 | AN143: 129.7637315 | AO143: 130.5531878 | AP143: 130.5567514 | AT143: 0.003563662172 | BE143: -134 | BF143: 0 | BG143: 0 | BH143: 0 | BI143: 0 | BL143: 0 | BM143: 0 | BO143: 0 | BP143: 0 | BR143: 0 | BS143: 0
A144: 67 | B144: CONCORD | C144: 1 | D144: 0 | E144: 0 | F144: 0 | G144: 0 | H144: 0 | I144: 0 | J144: 111766 | K144: 0 | L144: 0 | M144: 0 | N144: 0 | O144: 3566.92 | P144: 0 | Q144: 0 | R144: 0 | S144: 0 | T144: x18 | U144: 115332.92 | V144: 0.2308321278 | X144: 24161392.54 | Y144: 49963980.8 | Z144: 25802588.26 | AA144: 59560.6635 | AC144: 205.988233 | AD144: 206.5461254 | AE144: 0.5578924536 | AF144: 4 | AG144: 1 | AH144: 206.5461254 | AK144: 205.988233 | AL144: 203.2635868 | AM144: 203.2635861 | AN144: 205.988233 | AO144: 206.542996 | AP144: 206.5461254 | AT144: 0.00312936273 | AV144: -6.19800337 | AW144: 11.5692596 | AX144: 17.76726297 | BE144: -7.091442405 | BF144: 127.9085576 | BG144: 0 | BH144: 127.9085576 | BI144: -20.38686099 | BL144: 127.9085576 | BM144: 0 | BO144: 127.9085576 | BP144: -20.38686099 | BR144: 150.4612809 | BS144: -2.165862313
A145: 261 | B145: SANDWICH | C145: 1 | D145: 0 | E145: 0 | F145: 0 | G145: 0 | H145: 0 | I145: 0 | J145: 1188152 | K145: 811848 | L145: 465553 | M145: 2276 | N145: 40155 | O145: 276966.69 | P145: 0 | Q145: 0 | R145: 0 | S145: 0 | T145: X | U145: 2784950.69 | V145: 5.017321632 | X145: 29473433.75 | Y145: 55506720.4 | Z145: 26033286.65 | AA145: 1306173.723 | AC145: 176.5037647 | AD145: 183.8962746 | AE145: 7.392509908 | AF145: 165 | AG145: 1 | AH145: 183.8962746 | AK145: 176.5037647 | AL145: 170.0170555 | AM145: 170.0491314 | AN145: 176.5037647 | AO145: 183.8936096 | AP145: 183.8962746 | AT145: 0.002665033029 | AV145: 1.741949767 | AW145: 5.184125919 | AX145: 3.442176152 | BE145: -3.707712454 | BF145: 132.2922875 | BG145: 0 | BH145: 132.2922875 | BI145: -4.33374594 | BL145: 132.2922875 | BM145: 0 | BO145: 132.2922875 | BP145: -4.33374594 | BR145: 132.2922875 | BS145: 4.33374594
A146: 805 | B146: BLACKSTONE VALLEY | C146: 1 | D146: 1349819 | E146: 0 | F146: 0 | G146: 0 | H146: 0 | I146: 0 | J146: 0 | K146: 0 | L146: 0 | M146: 0 | N146: 0 | O146: 0 | P146: 0 | Q146: 0 | R146: 0 | S146: 0 | T146: X | U146: 1349819 | V146: 4.969866787 | X146: 24426954.56 | Y146: 27160064 | Z146: 2733109.44 | AA146: 135831.8983 | AC146: 111.4258319 | AD146: 110.632834 | AE146: -0.7929978068 | AF146: 0 | AG146: 1 | AH146: 110.632834 | AK146: 111.4258319 | AL146: 110.0380483 | AM146: 110.0380483 | AN146: 111.4258319 | AO146: 110.632443 | AP146: 110.632834 | AT146: 0.0003910853184 | AV146: 4.535818124 | AW146: 5.760216585 | AX146: 1.224398461 | BE146: -36.39919005 | BF146: 100.6008099 | BG146: 0 | BH146: 100.6008099 | BI146: -1.037307038 | BL146: 100.6008099 | BM146: 0 | BO146: 100.6008099 | BP146: -1.037307038 | BR146: 101.6984564 | BS146: -0.06033939712
A147: 2 | B147: ACTON | C147: 0 | D147: 0 | E147: 0 | F147: 0 | G147: 0 | H147: 0 | I147: 0 | J147: 0 | K147: 0 | L147: 0 | M147: 0 | N147: 0 | O147: 0 | P147: 0 | Q147: 0 | R147: 0 | S147: 0 | T147: 0 | U147: 0 | V147: 0 | X147: 0 | Y147: 0 | Z147: 0 | AA147: 0 | AC147: 0 | AD147: 0 | AE147: 0 | AF147: 0 | AG147: Non-op | AH147: 0 | AK147: 0 | AL147: 0 | AM147: 0 | AN147: 0 | AO147: 0 | AP147: 0 | AT147: 0 | AV147: 1.46339299 | AW147: 8.45515282 | AX147: 6.99175983 | BE147: 10.64261487 | BF147: 148.6426149 | BG147: 0 | BH147: 148.6426149 | BI147: -10.98035782 | BL147: 148.6426149 | BM147: 0 | BO147: 148.6426149 | BP147: -10.98035782 | BR147: 154.5709334 | BS147: 5.052039282
A148: 4 | B148: ADAMS | C148: 0 | D148: 0 | E148: 0 | F148: 0 | G148: 0 | H148: 0 | I148: 0 | J148: 0 | K148: 0 | L148: 0 | M148: 0 | N148: 0 | O148: 0 | P148: 0 | Q148: 0 | R148: 0 | S148: 0 | T148: 0 | U148: 0 | V148: 0 | X148: 0 | Y148: 0 | Z148: 0 | AA148: 0 | AC148: 0 | AD148: 0 | AE148: 0 | AF148: 0 | AG148: Non-op | AH148: 0 | AK148: 0 | AL148: 0 | AM148: 0 | AN148: 0 | AO148: 0 | AP148: 0 | AT148: 0 | AV148: 3.529282773 | AW148: 3.901013645 | AX148: 0.3717308724 | BE148: -7.832929383 | BF148: 131.1670706 | BG148: 0 | BH148: 131.1670706 | BI148: -0.3361592619 | BL148: 131.1670706 | BM148: 0 | BO148: 131.1670706 | BP148: -0.3361592619 | BR148: 131.5354394 | BS148: -0.03220955061
A149: 6 | B149: ALFORD | C149: 0 | D149: 0 | E149: 0 | F149: 0 | G149: 0 | H149: 0 | I149: 0 | J149: 0 | K149: 0 | L149: 0 | M149: 0 | N149: 0 | O149: 0 | P149: 0 | Q149: 0 | R149: 0 | S149: 0 | T149: 0 | U149: 0 | V149: 0 | X149: 0 | Y149: 0 | Z149: 0 | AA149: 0 | AC149: 0 | AD149: 0 | AE149: 0 | AF149: 0 | AG149: Non-op | AH149: 0 | AK149: 0 | AL149: 0 | AM149: 0 | AN149: 0 | AO149: 0 | AP149: 0 | AT149: 0 | BE149: -140 | BF149: 0 | BG149: 0 | BH149: 0 | BI149: 0 | BL149: 0 | BM149: 0 | BO149: 0 | BP149: 0 | BR149: 0 | BS149: 0
A150: 11 | B150: ASHBURNHAM | C150: 0 | D150: 0 | E150: 0 | F150: 0 | G150: 0 | H150: 0 | I150: 0 | J150: 0 | K150: 0 | L150: 0 | M150: 0 | N150: 0 | O150: 0 | P150: 0 | Q150: 0 | R150: 0 | S150: 0 | T150: 0 | U150: 0 | V150: 0 | X150: 0 | Y150: 0 | Z150: 0 | AA150: 0 | AC150: 0 | AD150: 0 | AE150: 0 | AF150: 0 | AG150: Non-op | AH150: 0 | AK150: 0 | AL150: 0 | AM150: 0 | AN150: 0 | AO150: 0 | AP150: 0 | AT150: 0 | AV150: 3.445382348 | AW150: 1.975972434 | AX150: -1.469409914 | BE150: 14.08654617 | BF150: 155.0865462 | BG150: 0 | BH150: 155.0865462 | BI150: 2.161983466 | BL150: 155.0865462 | BM150: 0 | BO150: 155.0865462 | BP150: 2.161983466 | BR150: 155.0865462 | BS150: -2.161983466
A151: 12 | B151: ASHBY | C151: 0 | D151: 0 | E151: 0 | F151: 0 | G151: 0 | H151: 0 | I151: 0 | J151: 0 | K151: 0 | L151: 0 | M151: 0 | N151: 0 | O151: 0 | P151: 0 | Q151: 0 | R151: 0 | S151: 0 | T151: 0 | U151: 0 | V151: 0 | X151: 0 | Y151: 0 | Z151: 0 | AA151: 0 | AC151: 0 | AD151: 0 | AE151: 0 | AF151: 0 | AG151: Non-op | AH151: 0 | AK151: 0 | AL151: 0 | AM151: 0 | AN151: 0 | AO151: 0 | AP151: 0 | AT151: 0 | AV151: -1.580245181 | AW151: 1.790014168 | AX151: 3.370259349 | BE151: 46.6386748 | BF151: 188.6386748 | BG151: 0 | BH151: 188.6386748 | BI151: -5.078870058 | BL151: 188.6386748 | BM151: 0 | BO151: 188.6386748 | BP151: -5.078870058 | BR151: 193.4321854 | BS151: 0.2853594492
A152: 13 | B152: ASHFIELD | C152: 0 | D152: 0 | E152: 0 | F152: 0 | G152: 0 | H152: 0 | I152: 0 | J152: 0 | K152: 0 | L152: 0 | M152: 300000 | N152: 0 | O152: 0 | P152: 0 | Q152: 0 | R152: 0 | S152: 0 | T152: 0 | U152: 300000 | V152: 0 | X152: 216797.25 | Y152: 252309 | Z152: 35511.75 | AA152: 0 | AC152: 0 | AD152: 0 | AE152: 0 | AF152: 0 | AG152: Non-op | AH152: 0 | AK152: 0 | AL152: 0 | AM152: 0 | AN152: 0 | AO152: 0 | AP152: 0 | AT152: 0 | BE152: -143 | BF152: 0 | BG152: 0 | BH152: 0 | BI152: 0 | BL152: 0 | BM152: 0 | BO152: 0 | BP152: 0 | BR152: 0 | BS152: 0
A153: 15 | B153: ATHOL | C153: 0 | D153: 0 | E153: 0 | F153: 0 | G153: 0 | H153: 0 | I153: 0 | J153: 0 | K153: 0 | L153: 0 | M153: 0 | N153: 0 | O153: 0 | P153: 0 | Q153: 0 | R153: 0 | S153: 0 | T153: 0 | U153: 0 | V153: 0 | X153: 0 | Y153: 0 | Z153: 0 | AA153: 0 | AC153: 0 | AD153: 0 | AE153: 0 | AF153: 0 | AG153: Non-op | AH153: 0 | AK153: 0 | AL153: 0 | AM153: 0 | AN153: 0 | AO153: 0 | AP153: 0 | AT153: 0 | AV153: 2.284476213 | AW153: 5.507681262 | AX153: 3.22320505 | BE153: 29.22002357 | BF153: 173.2200236 | BG153: 0 | BH153: 173.2200236 | BI153: -5.417732226 | BL153: 173.2200236 | BM153: 0 | BO153: 173.2200236 | BP153: -5.417732226 | BR153: 178.31309 | BS153: 0.3246657575
A154: 19 | B154: AYER | C154: 0 | D154: 0 | E154: 0 | F154: 0 | G154: 0 | H154: 0 | I154: 0 | J154: 0 | K154: 0 | L154: 0 | M154: 0 | N154: 0 | O154: 0 | P154: 0 | Q154: 0 | R154: 0 | S154: 0 | T154: 0 | U154: 0 | V154: 0 | X154: 0 | Y154: 0 | Z154: 0 | AA154: 0 | AC154: 0 | AD154: 0 | AE154: 0 | AF154: 0 | AG154: Non-op | AH154: 0 | AK154: 0 | AL154: 0 | AM154: 0 | AN154: 0 | AO154: 0 | AP154: 0 | AT154: 0 | AV154: 3.443598303 | AW154: 2.744594794 | AX154: -0.6990035091 | BE154: -30.58683335 | BF154: 114.4131667 | BG154: 0 | BH154: 114.4131667 | BI154: 0 | BL154: 114.4131667 | BM154: 0 | BO154: 114.4131667 | BP154: 0 | BR154: 114.4131667 | BS154: 0
A155: 21 | B155: BARRE | C155: 0 | D155: 0 | E155: 0 | F155: 0 | G155: 0 | H155: 0 | I155: 0 | J155: 0 | K155: 0 | L155: 0 | M155: 0 | N155: 0 | O155: 0 | P155: 0 | Q155: 0 | R155: 0 | S155: 0 | T155: 0 | U155: 0 | V155: 0 | X155: 0 | Y155: 0 | Z155: 0 | AA155: 0 | AC155: 0 | AD155: 0 | AE155: 0 | AF155: 0 | AG155: Non-op | AH155: 0 | AK155: 0 | AL155: 0 | AM155: 0 | AN155: 0 | AO155: 0 | AP155: 0 | AT155: 0 | BC155: fy12 | BE155: -146 | BF155: 0 | BG155: 0 | BH155: 0 | BI155: 0 | BL155: 0 | BM155: 0 | BO155: 0 | BP155: 0 | BR155: 0 | BS155: 0
A156: 22 | B156: BECKET | C156: 0 | D156: 0 | E156: 0 | F156: 0 | G156: 0 | H156: 0 | I156: 0 | J156: 0 | K156: 0 | L156: 0 | M156: 0 | N156: 0 | O156: 0 | P156: 0 | Q156: 0 | R156: 0 | S156: 0 | T156: 0 | U156: 0 | V156: 0 | X156: 250517.91 | Y156: 275631 | Z156: 25113.09 | AA156: 0 | AC156: 0 | AD156: 0 | AE156: 0 | AF156: 0 | AG156: Non-op | AH156: 0 | AK156: 0 | AL156: 0 | AM156: 0 | AN156: 0 | AO156: 0 | AP156: 0 | AT156: 0 | BE156: -147 | BF156: 0 | BG156: 0 | BH156: 0 | BI156: 0 | BL156: 0 | BM156: 0 | BO156: 0 | BP156: 0 | BR156: 0 | BS156: 0
A157: 28 | B157: BERLIN | C157: 0 | D157: 0 | E157: 0 | F157: 0 | G157: 0 | H157: 0 | I157: 0 | J157: 0 | K157: 0 | L157: 0 | M157: 0 | N157: 0 | O157: 0 | P157: 0 | Q157: 0 | R157: 0 | S157: 0 | T157: x18 | U157: 0 | V157: 0 | X157: 0 | Y157: 0 | Z157: 0 | AA157: 0 | AC157: 0 | AD157: 0 | AE157: 0 | AF157: 0 | AG157: Non-op | AH157: 0 | AK157: 0 | AL157: 0 | AM157: 0 | AN157: 0 | AO157: 0 | AP157: 0 | AT157: 0 | BC157: fy19 | BE157: -148 | BF157: 0 | BG157: 0 | BH157: 0 | BI157: 0 | BL157: 0 | BM157: 0 | BO157: 0 | BP157: 0 | BR157: 0 | BS157: 0
A158: 29 | B158: BERNARDSTON | C158: 0 | D158: 0 | E158: 0 | F158: 0 | G158: 0 | H158: 0 | I158: 0 | J158: 0 | K158: 0 | L158: 0 | M158: 0 | N158: 0 | O158: 0 | P158: 0 | Q158: 0 | R158: 0 | S158: 0 | T158: 0 | U158: 0 | V158: 0 | X158: 0 | Y158: 0 | Z158: 0 | AA158: 0 | AC158: 0 | AD158: 0 | AE158: 0 | AF158: 0 | AG158: Non-op | AH158: 0 | AK158: 0 | AL158: 0 | AM158: 0 | AN158: 0 | AO158: 0 | AP158: 0 | AT158: 0 | AV158: 7.710965027 | AW158: 6.3762135 | AX158: -1.334751527 | BE158: -47.06511388 | BF158: 101.9348861 | BG158: 0 | BH158: 101.9348861 | BI158: 1.215350647 | BL158: 101.9348861 | BM158: 0 | BO158: 101.9348861 | BP158: 1.215350647 | BR158: 101.9348861 | BS158: -1.215350647
A159: 32 | B159: BLACKSTONE | C159: 0 | D159: 0 | E159: 0 | F159: 0 | G159: 0 | H159: 0 | I159: 0 | J159: 0 | K159: 0 | L159: 0 | M159: 0 | N159: 0 | O159: 0 | P159: 0 | Q159: 0 | R159: 0 | S159: 0 | T159: 0 | U159: 0 | V159: 0 | X159: 317959.23 | Y159: 397650 | Z159: 79690.77 | AA159: 0 | AC159: 0 | AD159: 0 | AE159: 0 | AF159: 0 | AG159: Non-op | AH159: 0 | AK159: 0 | AL159: 0 | AM159: 0 | AN159: 0 | AO159: 0 | AP159: 0 | AT159: 0 | AV159: -1.983298827 | AW159: 1.316646186 | AX159: 3.299945013 | BE159: 3.162760346 | BF159: 153.1627603 | BG159: 0 | BH159: 153.1627603 | BI159: -5.684544383 | BL159: 153.1627603 | BM159: 0 | BO159: 153.1627603 | BP159: -5.684544383 | BR159: 158.9623744 | BS159: -0.1150696475
A160: 33 | B160: BLANDFORD | C160: 0 | D160: 0 | E160: 0 | F160: 0 | G160: 0 | H160: 0 | I160: 0 | J160: 0 | K160: 0 | L160: 0 | M160: 0 | N160: 0 | O160: 0 | P160: 0 | Q160: 0 | R160: 0 | S160: 0 | T160: 0 | U160: 0 | V160: 0 | X160: 250517.91 | Y160: 305626 | Z160: 55108.09 | AA160: 0 | AC160: 0 | AD160: 0 | AE160: 0 | AF160: 0 | AG160: Non-op | AH160: 0 | AK160: 0 | AL160: 0 | AM160: 0 | AN160: 0 | AO160: 0 | AP160: 0 | AT160: 0 | AV160: 2.994495952 | AW160: -0.5572699851 | AX160: -3.551765937 | BE160: -35.49495733 | BF160: 115.5050427 | BG160: 0 | BH160: 115.5050427 | BI160: 3.60771862 | BL160: 115.5050427 | BM160: 0 | BO160: 115.5050427 | BP160: 3.60771862 | BR160: 111.6289998 | BS160: 0.2683242459
A161: 34 | B161: BOLTON | C161: 0 | D161: 0 | E161: 0 | F161: 0 | G161: 0 | H161: 0 | I161: 0 | J161: 0 | K161: 0 | L161: 0 | M161: 0 | N161: 0 | O161: 0 | P161: 0 | Q161: 0 | R161: 0 | S161: 0 | T161: 0 | U161: 0 | V161: 0 | X161: 0 | Y161: 0 | Z161: 0 | AA161: 0 | AC161: 0 | AD161: 0 | AE161: 0 | AF161: 0 | AG161: Non-op | AH161: 0 | AK161: 0 | AL161: 0 | AM161: 0 | AN161: 0 | AO161: 0 | AP161: 0 | AT161: 0 | AV161: 1.574807018 | AW161: -2.49573094 | AX161: -4.070537957 | BE161: 105.2757958 | BF161: 257.2757958 | BG161: 0 | BH161: 257.2757958 | BI161: 16.28235475 | BL161: 257.2757958 | BM161: 0 | BO161: 257.2757958 | BP161: 16.28235475 | BR161: 240.9700972 | BS161: 0.02334376499
A162: 37 | B162: BOXBOROUGH | C162: 0 | D162: 0 | E162: 0 | F162: 0 | G162: 0 | H162: 0 | I162: 0 | J162: 0 | K162: 0 | L162: 0 | M162: 0 | N162: 0 | O162: 0 | P162: 0 | Q162: 0 | R162: 0 | S162: 0 | T162: 0 | U162: 0 | V162: 0 | X162: 90908.90505 | Y162: 197649 | Z162: 106740.0949 | AA162: 0 | AC162: 0 | AD162: 0 | AE162: 0 | AF162: 0 | AG162: Non-op | AH162: 0 | AK162: 0 | AL162: 0 | AM162: 0 | AN162: 0 | AO162: 0 | AP162: 0 | AT162: 0 | AV162: 4.152412229 | AW162: 4.222422428 | AX162: 0.07001019949 | BE162: -52.87054624 | BF162: 100.1294538 | BG162: 0 | BH162: 100.1294538 | BI162: -0.06026421663 | BL162: 100.1294538 | BM162: 0 | BO162: 100.1294538 | BP162: -0.06026421663 | BR162: 100.3480735 | BS162: -0.1583555166
A163: 39 | B163: BOYLSTON | C163: 0 | D163: 0 | E163: 0 | F163: 0 | G163: 0 | H163: 0 | I163: 0 | J163: 0 | K163: 0 | L163: 0 | M163: 0 | N163: 0 | O163: 0 | P163: 0 | Q163: 0 | R163: 0 | S163: 0 | T163: x18 | U163: 0 | V163: 0 | X163: 267378.24 | Y163: 334059 | Z163: 66680.76 | AA163: 0 | AC163: 0 | AD163: 0 | AE163: 0 | AF163: 0 | AG163: Non-op | AH163: 0 | AK163: 0 | AL163: 0 | AM163: 0 | AN163: 0 | AO163: 0 | AP163: 0 | AT163: 0 | AV163: 12.10898673 | AW163: 5.104560863 | AX163: -7.004425867 | BE163: 82.54797359 | BF163: 236.5479736 | BG163: 0 | BH163: 236.5479736 | BI163: 14.48409067 | BL163: 236.5479736 | BM163: 0 | BO163: 236.5479736 | BP163: 14.48409067 | BR163: 222.568455 | BS163: -0.5045720912
A164: 42 | B164: BRIDGEWATER | C164: 0 | D164: 0 | E164: 0 | F164: 0 | G164: 0 | H164: 0 | I164: 0 | J164: 0 | K164: 0 | L164: 0 | M164: 0 | N164: 0 | O164: 0 | P164: 0 | Q164: 0 | R164: 0 | S164: 0 | T164: 0 | U164: 0 | V164: 0 | X164: 334819.56 | Y164: 2674382 | Z164: 2339562.44 | AA164: 0 | AC164: 0 | AD164: 0 | AE164: 0 | AF164: 0 | AG164: Non-op | AH164: 0 | AK164: 0 | AL164: 0 | AM164: 0 | AN164: 0 | AO164: 0 | AP164: 0 | AT164: 0 | AV164: 0.8958039621 | AW164: 5.598222113 | AX164: 4.702418151 | BE164: 24.73755355 | BF164: 179.7375535 | BG164: 0 | BH164: 179.7375535 | BI164: -6.917508385 | BL164: 179.7375535 | BM164: 0 | BO164: 179.7375535 | BP164: -6.917508385 | BR164: 179.7375535 | BS164: 6.917508385
A165: 47 | B165: BUCKLAND | C165: 0 | D165: 0 | E165: 0 | F165: 0 | G165: 0 | H165: 0 | I165: 0 | J165: 0 | K165: 0 | L165: 0 | M165: 0 | N165: 0 | O165: 0 | P165: 0 | Q165: 0 | R165: 0 | S165: 0 | T165: 0 | U165: 0 | V165: 0 | X165: 16860.33 | Y165: 40806 | Z165: 23945.67 | AA165: 0 | AC165: 0 | AD165: 0 | AE165: 0 | AF165: 0 | AG165: Non-op | AH165: 0 | AK165: 0 | AL165: 0 | AM165: 0 | AN165: 0 | AO165: 0 | AP165: 0 | AT165: 0 | BE165: -156 | BF165: 0 | BG165: 0 | BH165: 0 | BI165: 0 | BL165: 0 | BM165: 0 | BO165: 0 | BP165: 0 | BR165: 0 | BS165: 0
A166: 53 | B166: CHARLEMONT | C166: 0 | D166: 0 | E166: 0 | F166: 0 | G166: 0 | H166: 0 | I166: 0 | J166: 0 | K166: 0 | L166: 0 | M166: 0 | N166: 0 | O166: 0 | P166: 0 | Q166: 0 | R166: 0 | S166: 0 | T166: 0 | U166: 0 | V166: 0 | X166: 216797.25 | Y166: 224548 | Z166: 7750.75 | AA166: 0 | AC166: 0 | AD166: 0 | AE166: 0 | AF166: 0 | AG166: Non-op | AH166: 0 | AK166: 0 | AL166: 0 | AM166: 0 | AN166: 0 | AO166: 0 | AP166: 0 | AT166: 0 | AV166: 2.176120861 | AW166: 3.73523892 | AX166: 1.559118059 | BE166: 38.73781736 | BF166: 195.7378174 | BG166: 0 | BH166: 195.7378174 | BI166: -2.439533676 | BL166: 195.7378174 | BM166: 0 | BO166: 195.7378174 | BP166: -2.439533676 | BR166: 198.558048 | BS166: -0.3806969479
A167: 54 | B167: CHARLTON | C167: 0 | D167: 0 | E167: 0 | F167: 0 | G167: 0 | H167: 0 | I167: 0 | J167: 0 | K167: 0 | L167: 0 | M167: 0 | N167: 0 | O167: 0 | P167: 0 | Q167: 0 | R167: 0 | S167: 0 | T167: 0 | U167: 0 | V167: 0 | X167: 0 | Y167: 0 | Z167: 0 | AA167: 0 | AC167: 0 | AD167: 0 | AE167: 0 | AF167: 0 | AG167: Non-op | AH167: 0 | AK167: 0 | AL167: 0 | AM167: 0 | AN167: 0 | AO167: 0 | AP167: 0 | AT167: 0 | AV167: 0.6414107821 | AW167: 2.89048212 | AX167: 2.249071338 | BE167: -11.66091343 | BF167: 146.3390866 | BG167: 0 | BH167: 146.3390866 | BI167: -3.206206866 | BL167: 146.3390866 | BM167: 0 | BO167: 146.3390866 | BP167: -3.206206866 | BR167: 149.8031261 | BS167: -0.2578326978
A168: 55 | B168: CHATHAM | C168: 0 | D168: 0 | E168: 0 | F168: 0 | G168: 0 | H168: 0 | I168: 0 | J168: 0 | K168: 0 | L168: 171720 | M168: 0 | N168: 0 | O168: 0 | P168: 0 | Q168: 0 | R168: 0 | S168: 0 | T168: 0 | U168: 0 | V168: 0 | X168: 0 | Y168: 0 | Z168: 0 | AA168: 0 | AC168: 0 | AD168: 0 | AE168: 0 | AF168: 0 | AG168: Non-op | AH168: 0 | AK168: 0 | AL168: 0 | AM168: 0 | AN168: 0 | AO168: 0 | AP168: 0 | AT168: 0 | AV168: 3.089428457 | AW168: 2.563700384 | AX168: -0.5257280728 | BE168: -17.37158087 | BF168: 141.6284191 | BG168: 0 | BH168: 141.6284191 | BI168: 0.4451846162 | BL168: 141.6284191 | BM168: 0 | BO168: 141.6284191 | BP168: 0.4451846162 | BR168: 140.9348199 | BS168: 0.2484146404
A169: 58 | B169: CHESHIRE | C169: 0 | D169: 0 | E169: 0 | F169: 0 | G169: 0 | H169: 0 | I169: 0 | J169: 0 | K169: 0 | L169: 0 | M169: 0 | N169: 0 | O169: 0 | P169: 0 | Q169: 0 | R169: 0 | S169: 0 | T169: 0 | U169: 0 | V169: 0 | X169: 16860.33 | Y169: 580889 | Z169: 564028.67 | AA169: 0 | AC169: 0 | AD169: 0 | AE169: 0 | AF169: 0 | AG169: Non-op | AH169: 0 | AK169: 0 | AL169: 0 | AM169: 0 | AN169: 0 | AO169: 0 | AP169: 0 | AT169: 0 | AV169: 6.665343778 | AW169: 6.879145366 | AX169: 0.2138015883 | BE169: -58.4393118 | BF169: 101.5606882 | BG169: 0 | BH169: 101.5606882 | BI169: -0.1938819395 | BL169: 101.5606882 | BM169: 0 | BO169: 101.5606882 | BP169: -0.1938819395 | BR169: 102.0393317 | BS169: -0.2847615276
A170: 59 | B170: CHESTER | C170: 0 | D170: 0 | E170: 0 | F170: 0 | G170: 0 | H170: 0 | I170: 0 | J170: 0 | K170: 0 | L170: 0 | M170: 0 | N170: 0 | O170: 0 | P170: 0 | Q170: 0 | R170: 0 | S170: 0 | T170: 0 | U170: 0 | V170: 0 | X170: 118022.31 | Y170: 170880 | Z170: 52857.69 | AA170: 0 | AC170: 0 | AD170: 0 | AE170: 0 | AF170: 0 | AG170: Non-op | AH170: 0 | AK170: 0 | AL170: 0 | AM170: 0 | AN170: 0 | AO170: 0 | AP170: 0 | AT170: 0 | AV170: 2.147262513 | AW170: 2.955221678 | AX170: 0.8079591646 | BE170: -26.09020738 | BF170: 134.9097926 | BG170: 0 | BH170: 134.9097926 | BI170: -1.267259409 | BL170: 134.9097926 | BM170: 0 | BO170: 134.9097926 | BP170: -1.267259409 | BR170: 135.9720091 | BS170: 0.2050428977
A171: 60 | B171: CHESTERFIELD | C171: 0 | D171: 0 | E171: 0 | F171: 0 | G171: 0 | H171: 0 | I171: 0 | J171: 0 | K171: 0 | L171: 0 | M171: 0 | N171: 0 | O171: 0 | P171: 0 | Q171: 0 | R171: 0 | S171: 0 | T171: 0 | U171: 0 | V171: 0 | X171: 267378.24 | Y171: 407992 | Z171: 140613.76 | AA171: 0 | AC171: 0 | AD171: 0 | AE171: 0 | AF171: 0 | AG171: Non-op | AH171: 0 | AK171: 0 | AL171: 0 | AM171: 0 | AN171: 0 | AO171: 0 | AP171: 0 | AT171: 0 | AV171: 4.325113725 | AW171: -3.577180566 | AX171: -7.902294291 | BE171: -41.91146384 | BF171: 120.0885362 | BG171: 0 | BH171: 120.0885362 | BI171: 8.514204975 | BL171: 120.0885362 | BM171: 0 | BO171: 120.0885362 | BP171: 8.514204975 | BR171: 111.93077 | BS171: -0.3564388148
A172: 62 | B172: CHILMARK | C172: 0 | D172: 0 | E172: 0 | F172: 0 | G172: 0 | H172: 0 | I172: 0 | J172: 0 | K172: 0 | L172: 0 | M172: 0 | N172: 0 | O172: 0 | P172: 0 | Q172: 0 | R172: 0 | S172: 0 | T172: 0 | U172: 0 | V172: 0 | X172: 0 | Y172: 0 | Z172: 0 | AA172: 0 | AC172: 0 | AD172: 0 | AE172: 0 | AF172: 0 | AG172: Non-op | AH172: 0 | AK172: 0 | AL172: 0 | AM172: 0 | AN172: 0 | AO172: 0 | AP172: 0 | AT172: 0 | AV172: 6.675067703 | AW172: 7.285702089 | AX172: 0.6106343864 | BE172: -63.64919009 | BF172: 99.35080991 | BG172: 0 | BH172: 99.35080991 | BI172: -0.5687085291 | BL172: 99.35080991 | BM172: 0 | BO172: 99.35080991 | BP172: -0.5687085291 | BR172: 99.97168461 | BS172: -0.05216616508
A173: 66 | B173: COLRAIN | C173: 0 | D173: 0 | E173: 0 | F173: 0 | G173: 0 | H173: 0 | I173: 0 | J173: 0 | K173: 0 | L173: 0 | M173: 0 | N173: 0 | O173: 0 | P173: 0 | Q173: 0 | R173: 0 | S173: 0 | T173: 0 | U173: 0 | V173: 0 | X173: 0 | Y173: 216300 | Z173: 216300 | AA173: 0 | AC173: 0 | AD173: 0 | AE173: 0 | AF173: 0 | AG173: Non-op | AH173: 0 | AK173: 0 | AL173: 0 | AM173: 0 | AN173: 0 | AO173: 0 | AP173: 0 | AT173: 0 | AV173: 1.903906234 | AW173: 3.482872495 | AX173: 1.578966261 | BE173: -22.4787208 | BF173: 141.5212792 | BG173: 0 | BH173: 141.5212792 | BI173: -2.44987967 | BL173: 141.5212792 | BM173: 0 | BO173: 141.5212792 | BP173: -2.44987967 | BR173: 143.9999784 | BS173: -0.02881954249
A174: 69 | B174: CUMMINGTON | C174: 0 | D174: 0 | E174: 0 | F174: 0 | G174: 0 | H174: 0 | I174: 0 | J174: 0 | K174: 0 | L174: 0 | M174: 0 | N174: 0 | O174: 0 | P174: 0 | Q174: 0 | R174: 0 | S174: 0 | T174: 0 | U174: 0 | V174: 0 | X174: 84301.65 | Y174: 129360.12 | Z174: 45058.47 | AA174: 0 | AC174: 0 | AD174: 0 | AE174: 0 | AF174: 0 | AG174: Non-op | AH174: 0 | AK174: 0 | AL174: 0 | AM174: 0 | AN174: 0 | AO174: 0 | AP174: 0 | AT174: 0 | AV174: 3.325287429 | AW174: 2.877268313 | AX174: -0.4480191165 | BE174: -65.08057581 | BF174: 99.91942419 | BG174: 0 | BH174: 99.91942419 | BI174: 0.4332512714 | BL174: 99.91942419 | BM174: 0 | BO174: 99.91942419 | BP174: 0.4332512714 | BR174: 99.59119245 | BS174: -0.1050195312
A175: 70 | B175: DALTON | C175: 0 | D175: 0 | E175: 0 | F175: 0 | G175: 0 | H175: 0 | I175: 0 | J175: 0 | K175: 0 | L175: 0 | M175: 0 | N175: 0 | O175: 0 | P175: 0 | Q175: 0 | R175: 0 | S175: 0 | T175: 0 | U175: 0 | V175: 0 | X175: 267378.24 | Y175: 415894 | Z175: 148515.76 | AA175: 0 | AC175: 0 | AD175: 0 | AE175: 0 | AF175: 0 | AG175: Non-op | AH175: 0 | AK175: 0 | AL175: 0 | AM175: 0 | AN175: 0 | AO175: 0 | AP175: 0 | AT175: 0 | BE175: -166 | BF175: 0 | BG175: 0 | BH175: 0 | BI175: 0 | BL175: 0 | BM175: 0 | BO175: 0 | BP175: 0 | BR175: 0 | BS175: 0
A176: 75 | B176: DENNIS | C176: 0 | D176: 0 | E176: 0 | F176: 0 | G176: 0 | H176: 0 | I176: 0 | J176: 0 | K176: 0 | L176: 0 | M176: 0 | N176: 0 | O176: 0 | P176: 0 | Q176: 0 | R176: 0 | S176: 0 | T176: 0 | U176: 0 | V176: 0 | X176: 0 | Y176: 0 | Z176: 0 | AA176: 0 | AC176: 0 | AD176: 0 | AE176: 0 | AF176: 0 | AG176: Non-op | AH176: 0 | AK176: 0 | AL176: 0 | AM176: 0 | AN176: 0 | AO176: 0 | AP176: 0 | AT176: 0 | AV176: 0.005323929562 | AW176: 3.587004859 | AX176: 3.581680929 | BE176: -20.69578685 | BF176: 146.3042132 | BG176: 0 | BH176: 146.3042132 | BI176: -5.075249604 | BL176: 146.3042132 | BM176: 0 | BO176: 146.3042132 | BP176: -5.075249604 | BR176: 151.4975654 | BS176: -0.1181026435
A177: 76 | B177: DIGHTON | C177: 0 | D177: 0 | E177: 0 | F177: 0 | G177: 0 | H177: 0 | I177: 0 | J177: 0 | K177: 0 | L177: 0 | M177: 0 | N177: 0 | O177: 0 | P177: 0 | Q177: 0 | R177: 0 | S177: 0 | T177: 0 | U177: 0 | V177: 0 | X177: 16860.33 | Y177: 34003 | Z177: 17142.67 | AA177: 0 | AC177: 0 | AD177: 0 | AE177: 0 | AF177: 0 | AG177: Non-op | AH177: 0 | AK177: 0 | AL177: 0 | AM177: 0 | AN177: 0 | AO177: 0 | AP177: 0 | AT177: 0 | AV177: 0.7473344079 | AW177: 2.564933997 | AX177: 1.817599589 | BE177: -2.442114567 | BF177: 165.5578854 | BG177: 0 | BH177: 165.5578854 | BI177: -2.942143138 | BL177: 165.5578854 | BM177: 0 | BO177: 165.5578854 | BP177: -2.942143138 | BR177: 168.472237 | BS177: 0.02779158249
A178: 80 | B178: DUDLEY | C178: 0 | D178: 0 | E178: 0 | F178: 0 | G178: 0 | H178: 0 | I178: 0 | J178: 0 | K178: 0 | L178: 0 | M178: 0 | N178: 0 | O178: 0 | P178: 0 | Q178: 0 | R178: 0 | S178: 0 | T178: 0 | U178: 0 | V178: 0 | X178: 0 | Y178: 0 | Z178: 0 | AA178: 0 | AC178: 0 | AD178: 0 | AE178: 0 | AF178: 0 | AG178: Non-op | AH178: 0 | AK178: 0 | AL178: 0 | AM178: 0 | AN178: 0 | AO178: 0 | AP178: 0 | AT178: 0 | AV178: 0.7423663602 | AW178: 5.165455353 | AX178: 4.423088993 | BE178: -20.152804 | BF178: 148.847196 | BG178: 0 | BH178: 148.847196 | BI178: -6.248518371 | BL178: 148.847196 | BM178: 0 | BO178: 148.847196 | BP178: -6.248518371 | BR178: 154.7169648 | BS178: 0.3787495571
A179: 81 | B179: DUNSTABLE | C179: 0 | D179: 0 | E179: 0 | F179: 0 | G179: 0 | H179: 0 | I179: 0 | J179: 0 | K179: 0 | L179: 0 | M179: 0 | N179: 0 | O179: 0 | P179: 0 | Q179: 0 | R179: 0 | S179: 0 | T179: 0 | U179: 0 | V179: 0 | X179: 0 | Y179: 0 | Z179: 0 | AA179: 0 | AC179: 0 | AD179: 0 | AE179: 0 | AF179: 0 | AG179: Non-op | AH179: 0 | AK179: 0 | AL179: 0 | AM179: 0 | AN179: 0 | AO179: 0 | AP179: 0 | AT179: 0 | AV179: 4.752088328 | AW179: 5.707764896 | AX179: 0.9556765673 | BE179: -64.46824153 | BF179: 105.5317585 | BG179: 0 | BH179: 105.5317585 | BI179: -0.8578449454 | BL179: 105.5317585 | BM179: 0 | BO179: 105.5317585 | BP179: -0.8578449454 | BR179: 106.2298246 | BS179: 0.1597787763
A180: 84 | B180: EAST BROOKFIELD | C180: 0 | D180: 0 | E180: 0 | F180: 0 | G180: 0 | H180: 0 | I180: 0 | J180: 0 | K180: 0 | L180: 0 | M180: 0 | N180: 0 | O180: 0 | P180: 0 | Q180: 0 | R180: 0 | S180: 0 | T180: 0 | U180: 0 | V180: 0 | X180: 267378.24 | Y180: 328536 | Z180: 61157.76 | AA180: 0 | AC180: 0 | AD180: 0 | AE180: 0 | AF180: 0 | AG180: Non-op | AH180: 0 | AK180: 0 | AL180: 0 | AM180: 0 | AN180: 0 | AO180: 0 | AP180: 0 | AT180: 0 | AV180: -0.4403594928 | AW180: 2.932518677 | AX180: 3.37287817 | BE180: -45.76914706 | BF180: 125.2308529 | BG180: 0 | BH180: 125.2308529 | BI180: -4.301914163 | BL180: 125.2308529 | BM180: 0 | BO180: 125.2308529 | BP180: -4.301914163 | BR180: 125.2308529 | BS180: 4.301914163
A181: 90 | B181: EGREMONT | C181: 0 | D181: 0 | E181: 0 | F181: 0 | G181: 0 | H181: 0 | I181: 0 | J181: 0 | K181: 0 | L181: 0 | M181: 0 | N181: 0 | O181: 0 | P181: 0 | Q181: 0 | R181: 0 | S181: 0 | T181: 0 | U181: 0 | V181: 0 | X181: 0 | Y181: 0 | Z181: 0 | AA181: 0 | AC181: 0 | AD181: 0 | AE181: 0 | AF181: 0 | AG181: Non-op | AH181: 0 | AK181: 0 | AL181: 0 | AM181: 0 | AN181: 0 | AO181: 0 | AP181: 0 | AT181: 0 | AV181: 3.749410216 | AW181: 2.960297349 | AX181: -0.7891128669 | BE181: -6.568087749 | BF181: 165.4319123 | BG181: 0 | BH181: 165.4319123 | BI181: 0.8824722753 | BL181: 165.4319123 | BM181: 0 | BO181: 165.4319123 | BP181: 0.8824722753 | BR181: 164.5513816 | BS181: -0.001941597778
A182: 92 | B182: ESSEX | C182: 0 | D182: 0 | E182: 0 | F182: 0 | G182: 0 | H182: 0 | I182: 0 | J182: 0 | K182: 0 | L182: 0 | M182: 0 | N182: 0 | O182: 0 | P182: 0 | Q182: 0 | R182: 0 | S182: 0 | T182: 0 | U182: 0 | V182: 0 | X182: 0 | Y182: 0 | Z182: 0 | AA182: 0 | AC182: 0 | AD182: 0 | AE182: 0 | AF182: 0 | AG182: Non-op | AH182: 0 | AK182: 0 | AL182: 0 | AM182: 0 | AN182: 0 | AO182: 0 | AP182: 0 | AT182: 0 | AV182: -4.21298197 | AW182: 3.762896651 | AX182: 7.975878621 | BE182: 5.838927169 | BF182: 178.8389272 | BG182: 0 | BH182: 178.8389272 | BI182: -14.78782316 | BL182: 178.8389272 | BM182: 0 | BO182: 178.8389272 | BP182: -14.78782316 | BR182: 193.6267503 | BS182: 0
A183: 102 | B183: FREETOWN | C183: 0 | D183: 0 | E183: 0 | F183: 0 | G183: 0 | H183: 0 | I183: 0 | J183: 0 | K183: 0 | L183: 88294.36 | M183: 0 | N183: 0 | O183: 0 | P183: 0 | Q183: 0 | R183: 0 | S183: 0 | T183: 0 | U183: 0 | V183: 0 | X183: 16860.33 | Y183: 989334 | Z183: 972473.67 | AA183: 0 | AC183: 0 | AD183: 0 | AE183: 0 | AF183: 0 | AG183: Non-op | AH183: 0 | AK183: 0 | AL183: 0 | AM183: 0 | AN183: 0 | AO183: 0 | AP183: 0 | AT183: 0 | AV183: 0.9822245073 | AW183: 0.5373764587 | AX183: -0.4448480486 | BE183: -14.9016527 | BF183: 159.0983473 | BG183: 0 | BH183: 159.0983473 | BI183: 0.5259894666 | BL183: 159.0983473 | BM183: 0 | BO183: 159.0983473 | BP183: 0.5259894666 | BR183: 158.378532 | BS183: 0.1938258026
A184: 104 | B184: AQUINNAH | C184: 0 | D184: 0 | E184: 0 | F184: 0 | G184: 0 | H184: 0 | I184: 0 | J184: 0 | K184: 0 | L184: 0 | M184: 0 | N184: 0 | O184: 0 | P184: 0 | Q184: 0 | R184: 0 | S184: 0 | T184: 0 | U184: 0 | V184: 0 | X184: 0 | Y184: 0 | Z184: 0 | AA184: 0 | AC184: 0 | AD184: 0 | AE184: 0 | AF184: 0 | AG184: Non-op | AH184: 0 | AK184: 0 | AL184: 0 | AM184: 0 | AN184: 0 | AO184: 0 | AP184: 0 | AT184: 0 | AV184: 0.6535603796 | AW184: 3.60014735 | AX184: 2.946586971 | BE184: -21.24727257 | BF184: 153.7527274 | BG184: 0 | BH184: 153.7527274 | BI184: -3.988750905 | BL184: 153.7527274 | BM184: 0 | BO184: 153.7527274 | BP184: -3.988750905 | BR184: 157.7095779 | BS184: 0.03190042063
A185: 106 | B185: GILL | C185: 0 | D185: 0 | E185: 0 | F185: 0 | G185: 0 | H185: 0 | I185: 0 | J185: 0 | K185: 0 | L185: 0 | M185: 0 | N185: 0 | O185: 0 | P185: 0 | Q185: 0 | R185: 0 | S185: 0 | T185: 0 | U185: 0 | V185: 0 | X185: 0 | Y185: 234377 | Z185: 234377 | AA185: 0 | AC185: 0 | AD185: 0 | AE185: 0 | AF185: 0 | AG185: Non-op | AH185: 0 | AK185: 0 | AL185: 0 | AM185: 0 | AN185: 0 | AO185: 0 | AP185: 0 | AT185: 0 | AV185: 2.494631594 | AW185: 3.229584909 | AX185: 0.7349533153 | BE185: -50.8848931 | BF185: 125.1151069 | BG185: 0 | BH185: 125.1151069 | BI185: -1.684091782 | BL185: 125.1151069 | BM185: 0 | BO185: 125.1151069 | BP185: -1.684091782 | BR185: 125.1151069 | BS185: 1.684091782
A186: 108 | B186: GOSHEN | C186: 0 | D186: 0 | E186: 0 | F186: 0 | G186: 0 | H186: 0 | I186: 0 | J186: 0 | K186: 0 | L186: 0 | M186: 0 | N186: 0 | O186: 0 | P186: 0 | Q186: 0 | R186: 0 | S186: 0 | T186: 0 | U186: 0 | V186: 0 | X186: 151742.97 | Y186: 239421 | Z186: 87678.03 | AA186: 0 | AC186: 0 | AD186: 0 | AE186: 0 | AF186: 0 | AG186: Non-op | AH186: 0 | AK186: 0 | AL186: 0 | AM186: 0 | AN186: 0 | AO186: 0 | AP186: 0 | AT186: 0 | AV186: 5.174643486 | AW186: 0.6755761642 | AX186: -4.499067322 | BE186: -39.03007326 | BF186: 137.9699267 | BG186: 0 | BH186: 137.9699267 | BI186: 5.340252265 | BL186: 137.9699267 | BM186: 0 | BO186: 137.9699267 | BP186: 5.340252265 | BR186: 132.8030021 | BS186: -0.173327621
A187: 109 | B187: GOSNOLD | C187: 0 | D187: 0 | E187: 0 | F187: 0 | G187: 0 | H187: 0 | I187: 0 | J187: 0 | K187: 0 | L187: 0 | M187: 0 | N187: 0 | O187: 0 | P187: 0 | Q187: 0 | R187: 0 | S187: 0 | T187: 0 | U187: 0 | V187: 0 | X187: 0 | Y187: 0 | Z187: 0 | AA187: 0 | AC187: 0 | AD187: 0 | AE187: 0 | AF187: 0 | AG187: 0 | AH187: 0 | AK187: 0 | AL187: 0 | AM187: 0 | AN187: 0 | AO187: 0 | AP187: 0 | AT187: 0 | AV187: 4.203466066 | AW187: 6.26907314 | AX187: 2.065607073 | BE187: -69.88693229 | BF187: 108.1130677 | BG187: 0 | BH187: 108.1130677 | BI187: -1.594856117 | BL187: 108.1130677 | BM187: 0 | BO187: 108.1130677 | BP187: -1.594856117 | BR187: 109.668708 | BS187: 0.0392157817
A188: 112 | B188: GRANVILLE | C188: 0 | D188: 0 | E188: 0 | F188: 0 | G188: 0 | H188: 0 | I188: 0 | J188: 0 | K188: 0 | L188: 0 | M188: 0 | N188: 0 | O188: 0 | P188: 0 | Q188: 0 | R188: 0 | S188: 0 | T188: 0 | U188: 0 | V188: 0 | X188: 0 | Y188: 0 | Z188: 0 | AA188: 0 | AC188: 0 | AD188: 0 | AE188: 0 | AF188: 0 | AG188: Non-op | AH188: 0 | AK188: 0 | AL188: 0 | AM188: 0 | AN188: 0 | AO188: 0 | AP188: 0 | AT188: 0 | BE188: -179 | BF188: 0 | BG188: 0 | BH188: 0 | BI188: 0 | BL188: 0 | BM188: 0 | BO188: 0 | BP188: 0 | BR188: 0 | BS188: 0
A189: 113 | B189: GREAT BARRINGTON | C189: 0 | D189: 0 | E189: 0 | F189: 0 | G189: 0 | H189: 0 | I189: 0 | J189: 0 | K189: 0 | L189: 0 | M189: 0 | N189: 0 | O189: 0 | P189: 0 | Q189: 0 | R189: 0 | S189: 0 | T189: 0 | U189: 0 | V189: 0 | X189: 0 | Y189: 0 | Z189: 0 | AA189: 0 | AC189: 0 | AD189: 0 | AE189: 0 | AF189: 0 | AG189: Non-op | AH189: 0 | AK189: 0 | AL189: 0 | AM189: 0 | AN189: 0 | AO189: 0 | AP189: 0 | AT189: 0 | BE189: -180 | BF189: 0 | BG189: 0 | BH189: 0 | BI189: 0 | BL189: 0 | BM189: 0 | BO189: 0 | BP189: 0 | BR189: 0 | BS189: 0
A190: 115 | B190: GROTON | C190: 0 | D190: 0 | E190: 0 | F190: 0 | G190: 0 | H190: 0 | I190: 0 | J190: 0 | K190: 0 | L190: 0 | M190: 0 | N190: 0 | O190: 0 | P190: 0 | Q190: 0 | R190: 0 | S190: 0 | T190: 0 | U190: 0 | V190: 0 | X190: 0 | Y190: 0 | Z190: 0 | AA190: 0 | AC190: 0 | AD190: 0 | AE190: 0 | AF190: 0 | AG190: Non-op | AH190: 0 | AK190: 0 | AL190: 0 | AM190: 0 | AN190: 0 | AO190: 0 | AP190: 0 | AT190: 0 | AV190: 5.785933164 | AW190: 5.547298606 | AX190: -0.2386345578 | BE190: -80.146258 | BF190: 100.853742 | BG190: 0 | BH190: 100.853742 | BI190: 0.1884770845 | BL190: 100.853742 | BM190: 0 | BO190: 100.853742 | BP190: 0.1884770845 | BR190: 101.0636438 | BS190: -0.3983788692
A191: 116 | B191: GROVELAND | C191: 0 | D191: 0 | E191: 0 | F191: 0 | G191: 0 | H191: 0 | I191: 0 | J191: 0 | K191: 0 | L191: 0 | M191: 0 | N191: 0 | O191: 0 | P191: 0 | Q191: 0 | R191: 0 | S191: 0 | T191: 0 | U191: 0 | V191: 0 | X191: 168603.3 | Y191: 188064 | Z191: 19460.7 | AA191: 0 | AC191: 0 | AD191: 0 | AE191: 0 | AF191: 0 | AG191: Non-op | AH191: 0 | AK191: 0 | AL191: 0 | AM191: 0 | AN191: 0 | AO191: 0 | AP191: 0 | AT191: 0 | AV191: 2.079726026 | AW191: 3.897316662 | AX191: 1.817590636 | BE191: -65.42921524 | BF191: 116.5707848 | BG191: 0 | BH191: 116.5707848 | BI191: -1.772005389 | BL191: 116.5707848 | BM191: 0 | BO191: 116.5707848 | BP191: -1.772005389 | BR191: 118.6571545 | BS191: -0.3143644041
A192: 119 | B192: HAMILTON | C192: 0 | D192: 0 | E192: 0 | F192: 0 | G192: 0 | H192: 0 | I192: 0 | J192: 0 | K192: 0 | L192: 0 | M192: 0 | N192: 0 | O192: 0 | P192: 0 | Q192: 0 | R192: 0 | S192: 0 | T192: 0 | U192: 0 | V192: 0 | X192: 0 | Y192: 0 | Z192: 0 | AA192: 0 | AC192: 0 | AD192: 0 | AE192: 0 | AF192: 0 | AG192: Non-op | AH192: 0 | AK192: 0 | AL192: 0 | AM192: 0 | AN192: 0 | AO192: 0 | AP192: 0 | AT192: 0 | BE192: -183 | BF192: 0 | BG192: 0 | BH192: 0 | BI192: 0 | BL192: 0 | BM192: 0 | BO192: 0 | BP192: 0 | BR192: 0 | BS192: 0
A193: 120 | B193: HAMPDEN | C193: 0 | D193: 0 | E193: 0 | F193: 0 | G193: 0 | H193: 0 | I193: 0 | J193: 0 | K193: 0 | L193: 0 | M193: 0 | N193: 0 | O193: 0 | P193: 0 | Q193: 0 | R193: 0 | S193: 0 | T193: 0 | U193: 0 | V193: 0 | X193: 0 | Y193: 0 | Z193: 0 | AA193: 0 | AC193: 0 | AD193: 0 | AE193: 0 | AF193: 0 | AG193: Non-op | AH193: 0 | AK193: 0 | AL193: 0 | AM193: 0 | AN193: 0 | AO193: 0 | AP193: 0 | AT193: 0 | AV193: 1.861520324 | AW193: 3.686866613 | AX193: 1.825346289 | BE193: -10.60275712 | BF193: 173.3972429 | BG193: 0 | BH193: 173.3972429 | BI193: -3.657010813 | BL193: 173.3972429 | BM193: 0 | BO193: 173.3972429 | BP193: -3.657010813 | BR193: 176.955413 | BS193: 0.09884068398
A194: 123 | B194: HANSON | C194: 0 | D194: 0 | E194: 0 | F194: 0 | G194: 0 | H194: 0 | I194: 0 | J194: 0 | K194: 0 | L194: 0 | M194: 0 | N194: 0 | O194: 0 | P194: 0 | Q194: 0 | R194: 0 | S194: 0 | T194: 0 | U194: 0 | V194: 0 | X194: 101161.98 | Y194: 101711 | Z194: 549.02 | AA194: 0 | AC194: 0 | AD194: 0 | AE194: 0 | AF194: 0 | AG194: Non-op | AH194: 0 | AK194: 0 | AL194: 0 | AM194: 0 | AN194: 0 | AO194: 0 | AP194: 0 | AT194: 0 | AV194: 5.067337116 | AW194: 7.950820304 | AX194: 2.883483188 | BE194: -72.38067145 | BF194: 112.6193286 | BG194: 0 | BH194: 112.6193286 | BI194: -2.92754212 | BL194: 112.6193286 | BM194: 0 | BO194: 112.6193286 | BP194: -2.92754212 | BR194: 115.70357 | BS194: -0.1566993565
A195: 124 | B195: HARDWICK | C195: 0 | D195: 0 | E195: 0 | F195: 0 | G195: 0 | H195: 0 | I195: 0 | J195: 0 | K195: 0 | L195: 0 | M195: 0 | N195: 0 | O195: 0 | P195: 0 | Q195: 0 | R195: 0 | S195: 0 | T195: 0 | U195: 0 | V195: 0 | X195: 0 | Y195: 0 | Z195: 0 | AA195: 0 | AC195: 0 | AD195: 0 | AE195: 0 | AF195: 0 | AG195: Non-op | AH195: 0 | AK195: 0 | AL195: 0 | AM195: 0 | AN195: 0 | AO195: 0 | AP195: 0 | AT195: 0 | AV195: 4.042776295 | AW195: 4.455238129 | AX195: 0.412461834 | BE195: -54.75333345 | BF195: 131.2466665 | BG195: 0 | BH195: 131.2466665 | BI195: -1.124271536 | BL195: 131.2466665 | BM195: 0 | BO195: 131.2466665 | BP195: -1.124271536 | BR195: 132.3528606 | BS195: 0.01807747669
A196: 126 | B196: HARWICH | C196: 0 | D196: 0 | E196: 0 | F196: 0 | G196: 0 | H196: 0 | I196: 0 | J196: 0 | K196: 0 | L196: 0 | M196: 0 | N196: 0 | O196: 0 | P196: 0 | Q196: 0 | R196: 0 | S196: 0 | T196: 0 | U196: 0 | V196: 0 | X196: 0 | Y196: 0 | Z196: 0 | AA196: 0 | AC196: 0 | AD196: 0 | AE196: 0 | AF196: 0 | AG196: Non-op | AH196: 0 | AK196: 0 | AL196: 0 | AM196: 0 | AN196: 0 | AO196: 0 | AP196: 0 | AT196: 0 | AV196: 2.450780232 | AW196: 6.164743792 | AX196: 3.713963559 | BE196: -31.43119476 | BF196: 155.5688052 | BG196: 0 | BH196: 155.5688052 | BI196: -3.10685713 | BL196: 155.5688052 | BM196: 0 | BO196: 155.5688052 | BP196: -3.10685713 | BR196: 158.9528585 | BS196: -0.2771961559
A197: 129 | B197: HAWLEY | C197: 0 | D197: 0 | E197: 0 | F197: 0 | G197: 0 | H197: 0 | I197: 0 | J197: 0 | K197: 0 | L197: 0 | M197: 0 | N197: 0 | O197: 0 | P197: 0 | Q197: 0 | R197: 0 | S197: 0 | T197: 0 | U197: 0 | V197: 0 | X197: 67441.32 | Y197: 105813 | Z197: 38371.68 | AA197: 0 | AC197: 0 | AD197: 0 | AE197: 0 | AF197: 0 | AG197: Non-op | AH197: 0 | AK197: 0 | AL197: 0 | AM197: 0 | AN197: 0 | AO197: 0 | AP197: 0 | AT197: 0 | BE197: -188 | BF197: 0 | BG197: 0 | BH197: 0 | BI197: 0 | BL197: 0 | BM197: 0 | BO197: 0 | BP197: 0 | BR197: 0 | BS197: 0
A198: 130 | B198: HEATH | C198: 0 | D198: 0 | E198: 0 | F198: 0 | G198: 0 | H198: 0 | I198: 0 | J198: 0 | K198: 0 | L198: 0 | M198: 0 | N198: 0 | O198: 0 | P198: 0 | Q198: 0 | R198: 0 | S198: 0 | T198: 0 | U198: 0 | V198: 0 | X198: 0 | Y198: 79851.36 | Z198: 79851.36 | AA198: 0 | AC198: 0 | AD198: 0 | AE198: 0 | AF198: 0 | AG198: Non-op | AH198: 0 | AK198: 0 | AL198: 0 | AM198: 0 | AN198: 0 | AO198: 0 | AP198: 0 | AT198: 0 | AV198: 3.187619316 | AW198: 8.293417616 | AX198: 5.1057983 | BE198: -54.84499322 | BF198: 134.1550068 | BG198: 0 | BH198: 134.1550068 | BI198: -6.18563172 | BL198: 134.1550068 | BM198: 0 | BO198: 134.1550068 | BP198: -6.18563172 | BR198: 140.2325643 | BS198: 0.1080742445
A199: 132 | B199: HINSDALE | C199: 0 | D199: 0 | E199: 0 | F199: 0 | G199: 0 | H199: 0 | I199: 0 | J199: 0 | K199: 0 | L199: 0 | M199: 0 | N199: 0 | O199: 0 | P199: 0 | Q199: 0 | R199: 0 | S199: 0 | T199: 0 | U199: 0 | V199: 0 | X199: 168603.3 | Y199: 226952 | Z199: 58348.7 | AA199: 0 | AC199: 0 | AD199: 0 | AE199: 0 | AF199: 0 | AG199: Non-op | AH199: 0 | AK199: 0 | AL199: 0 | AM199: 0 | AN199: 0 | AO199: 0 | AP199: 0 | AT199: 0 | BE199: -190 | BF199: 0 | BG199: 0 | BH199: 0 | BI199: 0 | BL199: 0 | BM199: 0 | BO199: 0 | BP199: 0 | BR199: 0 | BS199: 0
A200: 134 | B200: HOLDEN | C200: 0 | D200: 0 | E200: 0 | F200: 0 | G200: 0 | H200: 0 | I200: 0 | J200: 0 | K200: 0 | L200: 0 | M200: 0 | N200: 0 | O200: 0 | P200: 0 | Q200: 0 | R200: 0 | S200: 0 | T200: 0 | U200: 0 | V200: 0 | X200: 33720.66 | Y200: 72351 | Z200: 38630.34 | AA200: 0 | AC200: 0 | AD200: 0 | AE200: 0 | AF200: 0 | AG200: Non-op | AH200: 0 | AK200: 0 | AL200: 0 | AM200: 0 | AN200: 0 | AO200: 0 | AP200: 0 | AT200: 0 | AV200: 3.327515032 | AW200: -0.106921066 | AX200: -3.434436098 | BE200: -62.02902968 | BF200: 128.9709703 | BG200: 0 | BH200: 128.9709703 | BI200: 3.837874949 | BL200: 128.9709703 | BM200: 0 | BO200: 128.9709703 | BP200: 3.837874949 | BR200: 128.9709703 | BS200: -3.837874949
A201: 140 | B201: HUBBARDSTON | C201: 0 | D201: 0 | E201: 0 | F201: 0 | G201: 0 | H201: 0 | I201: 0 | J201: 0 | K201: 0 | L201: 0 | M201: 0 | N201: 0 | O201: 0 | P201: 0 | Q201: 0 | R201: 0 | S201: 0 | T201: 0 | U201: 0 | V201: 0 | X201: 0 | Y201: 0 | Z201: 0 | AA201: 0 | AC201: 0 | AD201: 0 | AE201: 0 | AF201: 0 | AG201: Non-op | AH201: 0 | AK201: 0 | AL201: 0 | AM201: 0 | AN201: 0 | AO201: 0 | AP201: 0 | AT201: 0 | BE201: -192 | BF201: 0 | BG201: 0 | BH201: 0 | BI201: 0 | BL201: 0 | BM201: 0 | BO201: 0 | BP201: 0 | BR201: 0 | BS201: 0
A202: 143 | B202: HUNTINGTON | C202: 0 | D202: 0 | E202: 0 | F202: 0 | G202: 0 | H202: 0 | I202: 0 | J202: 0 | K202: 0 | L202: 0 | M202: 0 | N202: 0 | O202: 0 | P202: 0 | Q202: 0 | R202: 0 | S202: 0 | T202: 0 | U202: 0 | V202: 0 | X202: 686499.45 | Y202: 698349.64 | Z202: 11850.19 | AA202: 0 | AC202: 0 | AD202: 0 | AE202: 0 | AF202: 0 | AG202: Non-op | AH202: 0 | AK202: 0 | AL202: 0 | AM202: 0 | AN202: 0 | AO202: 0 | AP202: 0 | AT202: 0 | BE202: -193 | BF202: 0 | BG202: 0 | BH202: 0 | BI202: 0 | BL202: 0 | BM202: 0 | BO202: 0 | BP202: 0 | BR202: 0 | BS202: 0
... 249 more rows

Sheet codes (hidden)
C1: =SUM(C10:C500) -> 319 | D1: OP Districts | F1: =COUNTIF(H10:H98,"=open") -> 67 | H1: =COUNTA(H10:H98) -> 67
C2: =COUNTIF(C10:C500,"0") -> 120 | D2: NonOps
C3: =SUM(C1:C2) -> 439 | D3: Total Districts
A6: 2024-11-08 | B6: code 436 | F6: 2024-11-08 | G6: code cha
H8: Operating
A9: LEA | B9: DISTRICT | C9: op | D9: chng | F9: Lea | G9: Charter | H9: Status
A10: 1 | B10: ABINGTON | C10: 1 | F10: 409 | G10: ALMA DEL MAR | H10: Open
A11: 2 | B11: ACTON | C11: 0 | D11: fy15 | F11: 410 | G11: EXCEL ACADEMY | H11: Open
A12: 3 | B12: ACUSHNET | C12: 1 | F12: 412 | G12: ACADEMY OF THE PACIFIC RIM | H12: Open
A13: 4 | B13: ADAMS | C13: 0 | F13: 413 | G13: FOUR RIVERS | H13: Open
A14: 5 | B14: AGAWAM | C14: 1 | F14: 414 | G14: BERKSHIRE ARTS AND TECHNOLOGY | H14: Open
A15: 6 | B15: ALFORD | C15: 0 | F15: 416 | G15: BOSTON PREPARATORY | H15: Open
A16: 7 | B16: AMESBURY | C16: 1 | F16: 417 | G16: BRIDGE BOSTON | H16: Open
A17: 8 | B17: AMHERST | C17: 1 | F17: 418 | G17: CHRISTA MCAULIFFE | H17: Open
A18: 9 | B18: ANDOVER | C18: 1 | F18: 420 | G18: BENJAMIN BANNEKER | H18: Open
A19: 10 | B19: ARLINGTON | C19: 1 | F19: 428 | G19: BROOKE | H19: Open
A20: 11 | B20: ASHBURNHAM | C20: 0 | F20: 429 | G20: KIPP ACADEMY LYNN | H20: Open
A21: 12 | B21: ASHBY | C21: 0 | F21: 430 | G21: ADVANCED MATH AND SCIENCE ACADEMY | H21: Open
A22: 13 | B22: ASHFIELD | C22: 0 | F22: 432 | G22: CAPE COD LIGHTHOUSE | H22: Open
A23: 14 | B23: ASHLAND | C23: 1 | F23: 435 | G23: INNOVATION ACADEMY | H23: Open
A24: 15 | B24: ATHOL | C24: 0 | F24: 436 | G24: COMMUNITY CS OF CAMBRIDGE | H24: Open
A25: 16 | B25: ATTLEBORO | C25: 1 | F25: 438 | G25: CODMAN ACADEMY | H25: Open
A26: 17 | B26: AUBURN | C26: 1 | F26: 439 | G26: CONSERVATORY LAB | H26: Open
A27: 18 | B27: AVON | C27: 1 | F27: 440 | G27: COMMUNITY DAY | H27: Open
A28: 19 | B28: AYER | C28: 0 | D28: fy12 | F28: 441 | G28: SPRINGFIELD INTERNATIONAL | H28: Open
A29: 20 | B29: BARNSTABLE | C29: 1 | F29: 444 | G29: NEIGHBORHOOD HOUSE | H29: Open
A30: 21 | B30: BARRE | C30: 0 | F30: 445 | G30: ABBY KELLEY FOSTER | H30: Open
A31: 22 | B31: BECKET | C31: 0 | F31: 446 | G31: FOXBOROUGH REGIONAL | H31: Open
A32: 23 | B32: BEDFORD | C32: 1 | F32: 447 | G32: BENJAMIN FRANKLIN CLASSICAL | H32: Open
A33: 24 | B33: BELCHERTOWN | C33: 1 | F33: 449 | G33: BOSTON COLLEGIATE | H33: Open
A34: 25 | B34: BELLINGHAM | C34: 1 | F34: 450 | G34: HILLTOWN COOPERATIVE | H34: Open
A35: 26 | B35: BELMONT | C35: 1 | F35: 453 | G35: HOLYOKE COMMUNITY | H35: Open
A36: 27 | B36: BERKLEY | C36: 1 | D36: fy12 | F36: 454 | G36: LAWRENCE FAMILY DEVELOPMENT | H36: Open
A37: 28 | B37: BERLIN | C37: 0 | D37: fy20 | F37: 455 | G37: HILL VIEW MONTESSORI | H37: Open
A38: 29 | B38: BERNARDSTON | C38: 0 | F38: 456 | G38: LOWELL COMMUNITY | H38: Open
A39: 30 | B39: BEVERLY | C39: 1 | F39: 458 | G39: LOWELL MIDDLESEX ACADEMY | H39: Open
A40: 31 | B40: BILLERICA | C40: 1 | F40: 463 | G40: KIPP ACADEMY BOSTON | H40: Open
A41: 32 | B41: BLACKSTONE | C41: 0 | F41: 464 | G41: MARBLEHEAD COMMUNITY | H41: Open
A42: 33 | B42: BLANDFORD | C42: 0 | F42: 466 | G42: MARTHA'S VINEYARD | H42: Open
A43: 34 | B43: BOLTON | C43: 0 | F43: 469 | G43: MATCH | H43: Open
A44: 35 | B44: BOSTON | C44: 1 | F44: 470 | G44: MYSTIC VALLEY REGIONAL | H44: Open
A45: 36 | B45: BOURNE | C45: 1 | F45: 474 | G45: SIZER SCHOOL, A NORTH CENTRAL CHARTER ESSENTIAL SCHOOL | H45: Open
A46: 37 | B46: BOXBOROUGH | C46: 0 | D46: fy15 | F46: 478 | G46: FRANCIS W. PARKER CHARTER ESSENTIAL | H46: Open
A47: 38 | B47: BOXFORD | C47: 1 | F47: 479 | G47: PIONEER VALLEY PERFORMING ARTS | H47: Open
A48: 39 | B48: BOYLSTON | C48: 0 | D48: fy20 | F48: 481 | G48: BOSTON RENAISSANCE | H48: Open
A49: 40 | B49: BRAINTREE | C49: 1 | F49: 482 | G49: RIVER VALLEY | H49: Open
A50: 41 | B50: BREWSTER | C50: 1 | F50: 483 | G50: RISING TIDE | H50: Open
A51: 42 | B51: BRIDGEWATER | C51: 0 | F51: 484 | G51: ROXBURY PREPARATORY | H51: Open
A52: 43 | B52: BRIMFIELD | C52: 1 | F52: 485 | G52: SALEM ACADEMY | H52: Open
A53: 44 | B53: BROCKTON | C53: 1 | F53: 486 | G53: LEARNING FIRST | H53: Open
A54: 45 | B54: BROOKFIELD | C54: 1 | F54: 487 | G54: PROSPECT HILL ACADEMY | H54: Open
A55: 46 | B55: BROOKLINE | C55: 1 | F55: 488 | G55: SOUTH SHORE | H55: Open
A56: 47 | B56: BUCKLAND | C56: 0 | F56: 489 | G56: STURGIS | H56: Open
A57: 48 | B57: BURLINGTON | C57: 1 | F57: 491 | G57: ATLANTIS | H57: Open
A58: 49 | B58: CAMBRIDGE | C58: 1 | F58: 492 | G58: MARTIN LUTHER KING JR CS OF EXCELLENCE | H58: Open
A59: 50 | B59: CANTON | C59: 1 | F59: 493 | G59: PHOENIX ACADEMY CHELSEA | H59: Open
A60: 51 | B60: CARLISLE | C60: 1 | F60: 494 | G60: PIONEER CS OF SCIENCE | H60: Open
A61: 52 | B61: CARVER | C61: 1 | F61: 496 | G61: GLOBAL LEARNING | H61: Open
A62: 53 | B62: CHARLEMONT | C62: 0 | F62: 497 | G62: PIONEER VALLEY CHINESE IMMERSION | H62: Open
A63: 54 | B63: CHARLTON | C63: 0 | F63: 498 | G63: VERITAS PREPARATORY | H63: Open
A64: 55 | B64: CHATHAM | C64: 0 | D64: fy13 | F64: 499 | G64: HAMPDEN CS OF SCIENCE | H64: Open
A65: 56 | B65: CHELMSFORD | C65: 1 | F65: 3502 | G65: BAYSTATE ACADEMY | H65: Open
A66: 57 | B66: CHELSEA | C66: 1 | F66: 3503 | G66: COLLEGIATE CS OF LOWELL | H66: Open
A67: 58 | B67: CHESHIRE | C67: 0 | F67: 3506 | G67: PIONEER CS OF SCIENCE II | H67: Open
A68: 59 | B68: CHESTER | C68: 0 | F68: 3508 | G68: PHOENIX ACADEMY SPRINGFIELD | H68: Open
A69: 60 | B69: CHESTERFIELD | C69: 0 | F69: 3509 | G69: ARGOSY COLLEGIATE | H69: Open
A70: 61 | B70: CHICOPEE | C70: 1 | F70: 3510 | G70: SPRINGFIELD PREPARATORY | H70: Open
A71: 62 | B71: CHILMARK | C71: 0 | F71: 3513 | G71: NEW HEIGHTS CS OF BROCKTON | H71: Open
A72: 63 | B72: CLARKSBURG | C72: 1 | F72: 3514 | G72: LIBERTAS ACADEMY | H72: Open
A73: 64 | B73: CLINTON | C73: 1 | F73: 3515 | G73: OLD STURBRIDGE ACADEMY | H73: Open
A74: 65 | B74: COHASSET | C74: 1 | F74: 3517 | G74: MAP ACADEMY | H74: Open
A75: 66 | B75: COLRAIN | C75: 0 | F75: 3518 | G75: PHOENIX ACADEMY LAWRENCE | H75: Open
A76: 67 | B76: CONCORD | C76: 1 | F76: 3519 | G76: WORCESTER CULTURAL ACADEMY | H76: Open
A77: 68 | B77: CONWAY | C77: 1
A78: 69 | B78: CUMMINGTON | C78: 0
A79: 70 | B79: DALTON | C79: 0
A80: 71 | B80: DANVERS | C80: 1
A81: 72 | B81: DARTMOUTH | C81: 1
A82: 73 | B82: DEDHAM | C82: 1
A83: 74 | B83: DEERFIELD | C83: 1
A84: 75 | B84: DENNIS | C84: 0
A85: 76 | B85: DIGHTON | C85: 0 | I85: closed following merger E & W
A86: 77 | B86: DOUGLAS | C86: 1
A87: 78 | B87: DOVER | C87: 1
A88: 79 | B88: DRACUT | C88: 1
A89: 80 | B89: DUDLEY | C89: 0
A90: 81 | B90: DUNSTABLE | C90: 0
A91: 82 | B91: DUXBURY | C91: 1
A92: 83 | B92: EAST BRIDGEWATER | C92: 1
A93: 84 | B93: EAST BROOKFIELD | C93: 0
A94: 85 | B94: EASTHAM | C94: 1
A95: 86 | B95: EASTHAMPTON | C95: 1
A96: 87 | B96: EAST LONGMEADOW | C96: 1
A97: 88 | B97: EASTON | C97: 1
A98: 89 | B98: EDGARTOWN | C98: 1
A99: 90 | B99: EGREMONT | C99: 0
A100: 91 | B100: ERVING | C100: 1
A101: 92 | B101: ESSEX | C101: 0
A102: 93 | B102: EVERETT | C102: 1
A103: 94 | B103: FAIRHAVEN | C103: 1
A104: 95 | B104: FALL RIVER | C104: 1
A105: 96 | B105: FALMOUTH | C105: 1
A106: 97 | B106: FITCHBURG | C106: 1
A107: 98 | B107: FLORIDA | C107: 1
A108: 99 | B108: FOXBOROUGH | C108: 1
A109: 100 | B109: FRAMINGHAM | C109: 1
A110: 101 | B110: FRANKLIN | C110: 1
A111: 102 | B111: FREETOWN | C111: 0 | D111: fy12
A112: 103 | B112: GARDNER | C112: 1
A113: 104 | B113: AQUINNAH | C113: 0
A114: 105 | B114: GEORGETOWN | C114: 1
A115: 106 | B115: GILL | C115: 0
A116: 107 | B116: GLOUCESTER | C116: 1
A117: 108 | B117: GOSHEN | C117: 0
A118: 109 | B118: GOSNOLD | C118: 0
A119: 110 | B119: GRAFTON | C119: 1
A120: 111 | B120: GRANBY | C120: 1
A121: 112 | B121: GRANVILLE | C121: 0 | D121: fy13
A122: 113 | B122: GREAT BARRINGTON | C122: 0
A123: 114 | B123: GREENFIELD | C123: 1
A124: 115 | B124: GROTON | C124: 0
A125: 116 | B125: GROVELAND | C125: 0
A126: 117 | B126: HADLEY | C126: 1
A127: 118 | B127: HALIFAX | C127: 1
A128: 119 | B128: HAMILTON | C128: 0
A129: 120 | B129: HAMPDEN | C129: 0
A130: 121 | B130: HANCOCK | C130: 1
A131: 122 | B131: HANOVER | C131: 1
A132: 123 | B132: HANSON | C132: 0
A133: 124 | B133: HARDWICK | C133: 0
A134: 125 | B134: HARVARD | C134: 1
A135: 126 | B135: HARWICH | C135: 0 | D135: fy13
A136: 127 | B136: HATFIELD | C136: 1
A137: 128 | B137: HAVERHILL | C137: 1
A138: 129 | B138: HAWLEY | C138: 0
A139: 130 | B139: HEATH | C139: 0
A140: 131 | B140: HINGHAM | C140: 1
A141: 132 | B141: HINSDALE | C141: 0
A142: 133 | B142: HOLBROOK | C142: 1
A143: 134 | B143: HOLDEN | C143: 0
A144: 135 | B144: HOLLAND | C144: 1
A145: 136 | B145: HOLLISTON | C145: 1
A146: 137 | B146: HOLYOKE | C146: 1
A147: 138 | B147: HOPEDALE | C147: 1
A148: 139 | B148: HOPKINTON | C148: 1
A149: 140 | B149: HUBBARDSTON | C149: 0
A150: 141 | B150: HUDSON | C150: 1
A151: 142 | B151: HULL | C151: 1
A152: 143 | B152: HUNTINGTON | C152: 0
A153: 144 | B153: IPSWICH | C153: 1
A154: 145 | B154: KINGSTON | C154: 1
A155: 146 | B155: LAKEVILLE | C155: 0 | D155: fy12
A156: 147 | B156: LANCASTER | C156: 0
A157: 148 | B157: LANESBOROUGH | C157: 0 | D157: fy19
A158: 149 | B158: LAWRENCE | C158: 1
A159: 150 | B159: LEE | C159: 1
A160: 151 | B160: LEICESTER | C160: 1
A161: 152 | B161: LENOX | C161: 1
A162: 153 | B162: LEOMINSTER | C162: 1
A163: 154 | B163: LEVERETT | C163: 1
A164: 155 | B164: LEXINGTON | C164: 1
A165: 156 | B165: LEYDEN | C165: 0
A166: 157 | B166: LINCOLN | C166: 1
A167: 158 | B167: LITTLETON | C167: 1
A168: 159 | B168: LONGMEADOW | C168: 1
A169: 160 | B169: LOWELL | C169: 1
A170: 161 | B170: LUDLOW | C170: 1
A171: 162 | B171: LUNENBURG | C171: 1
A172: 163 | B172: LYNN | C172: 1
A173: 164 | B173: LYNNFIELD | C173: 1
A174: 165 | B174: MALDEN | C174: 1
A175: 166 | B175: MANCHESTER | C175: 0
A176: 167 | B176: MANSFIELD | C176: 1
A177: 168 | B177: MARBLEHEAD | C177: 1
A178: 169 | B178: MARION | C178: 1
A179: 170 | B179: MARLBOROUGH | C179: 1
A180: 171 | B180: MARSHFIELD | C180: 1
A181: 172 | B181: MASHPEE | C181: 1
A182: 173 | B182: MATTAPOISETT | C182: 1
A183: 174 | B183: MAYNARD | C183: 1
A184: 175 | B184: MEDFIELD | C184: 1
A185: 176 | B185: MEDFORD | C185: 1
A186: 177 | B186: MEDWAY | C186: 1
A187: 178 | B187: MELROSE | C187: 1
A188: 179 | B188: MENDON | C188: 0
A189: 180 | B189: MERRIMAC | C189: 0
A190: 181 | B190: METHUEN | C190: 1
A191: 182 | B191: MIDDLEBOROUGH | C191: 1
A192: 183 | B192: MIDDLEFIELD | C192: 0
A193: 184 | B193: MIDDLETON | C193: 1
A194: 185 | B194: MILFORD | C194: 1
A195: 186 | B195: MILLBURY | C195: 1
A196: 187 | B196: MILLIS | C196: 1
A197: 188 | B197: MILLVILLE | C197: 0
A198: 189 | B198: MILTON | C198: 1
A199: 190 | B199: MONROE | C199: 0
A200: 191 | B200: MONSON | C200: 1
A201: 192 | B201: MONTAGUE | C201: 0
A202: 193 | B202: MONTEREY | C202: 0
A203: 194 | B203: MONTGOMERY | C203: 0
... 245 more rows

Sheet fnd budget
S1: =VLOOKUP(orderCHA,charterinfo_a,4) -> 409
S2: =VLOOKUP(orderCHA,charterinfo_a,5) -> 201
S3: =VLOOKUP(orderCHA,charterinfo_a,6) -> 3
A5: F Y 2 6 F O U N D A T I O N B U D G E T
A6: =VLOOKUP(orderCHA,charterinfo_a,2) -> 409 - ALMA DEL MAR Charter School - ACUSHNET pupils
G7: ' - A L L P U P I L S | L7: - S P E C I A L P O P U L A T I O N I N C R E M E N T S
A8: # | B8: Line Description | C8: Items Adj by Wage Fctr = w | D8: Pre- School | E8: Kinder-garten Half | F8: Kinder-garten Fall | G8: Elem- entary | H8: Jr High/ Middle | I8: High School | J8: Voca- tional | L8: Spec Ed In (3.97% of total) | M8: Spec Ed Out | N8: English Learners PK-5 | O8: English Learners 6-8 | P8: English Learners 9-12 | Q8: Low Income | S8: TOTAL**
A9: F O U N D A T I O N E N R O L L M E N T | D9: =VLOOKUP(VLOOKUP(orderCHA,charterinfo_a,3), rate_chafnd,3) -> 0 | E9: =VLOOKUP(VLOOKUP(orderCHA,charterinfo_a,3),rate_chafnd,4) -> 0 | F9: =VLOOKUP(VLOOKUP(orderCHA,charterinfo_a,3),rate_chafnd,5) -> 0 | G9: =VLOOKUP(VLOOKUP(orderCHA,charterinfo_a,3),rate_chafnd,6) -> 0 | H9: =VLOOKUP(VLOOKUP(orderCHA,charterinfo_a,3),rate_chafnd,7) -> 1 | I9: =VLOOKUP(VLOOKUP(orderCHA,charterinfo_a,3),rate_chafnd,8) -> 0 | J9: =VLOOKUP(VLOOKUP(orderCHA,charterinfo_a,3),rate_chafnd,9) -> 0 | L9: =VLOOKUP(VLOOKUP(orderCHA,charterinfo_a,3),rate_chafnd,10) -> 0.0397 | M9: =VLOOKUP(VLOOKUP(orderCHA,charterinfo_a,3),rate_chafnd,11) -> 0 | N9: =VLOOKUP(VLOOKUP(orderCHA,charterinfo_a,3),rate_chafnd,12) -> 0 | O9: =VLOOKUP(VLOOKUP(orderCHA,charterinfo_a,3),rate_chafnd,13) -> 0 | P9: =VLOOKUP(VLOOKUP(orderCHA,charterinfo_a,3),rate_chafnd,14) -> 0 | Q9: =VLOOKUP(VLOOKUP(orderCHA,charterinfo_a,3),rate_chafnd,15) -> 0 | S9: =VLOOKUP(VLOOKUP(orderCHA,charterinfo_a,3),rate_chafnd,16) -> 1
A10: 1 | C10: w | D10: ='fnd base rates'!$C7*$D$24*D$9 -> 0 | E10: ='fnd base rates'!$C8*$D$24*E$9 -> 0 | F10: ='fnd base rates'!$C9*$D$24*F$9 -> 0 | G10: ='fnd base rates'!$C10*$D$24*G$9 -> 0 | H10: ='fnd base rates'!$C11*$D$24*H$9 -> 457.31 | I10: ='fnd base rates'!$C12*$D$24*I$9 -> 0 | J10: ='fnd base rates'!$C13*$D$24*J$9 -> 0 | L10: ='fnd base rates'!$C14*$D$24*L$9 -> 125.299949 | M10: ='fnd base rates'!$C15*$D$24*M$9 -> 0 | N10: ='fnd base rates'!$C16*$D$24*N$9 -> 0 | O10: ='fnd base rates'!$C17*$D$24*O$9 -> 0 | P10: ='fnd base rates'!$C18*$D$24*P$9 -> 0 | Q10: =VLOOKUP((VLOOKUP(VLOOKUP(orderCHA,charterinfo_a,3),rate_chafnd,18)+12),rate_basefnd,3)*$D$24*Q$9 -> 0 | S10: =SUM(D10:Q10) -> 582.609949
A11: 2 | B11: Instructional Leadership | C11: w | D11: ='fnd base rates'!$D7*$D$24*D$9 -> 0 | E11: ='fnd base rates'!$D8*$D$24*E$9 -> 0 | F11: ='fnd base rates'!$D9*$D$24*F$9 -> 0 | G11: ='fnd base rates'!$D10*$D$24*G$9 -> 0 | H11: ='fnd base rates'!$D11*$D$24*H$9 -> 825.94 | I11: ='fnd base rates'!$D12*$D$24*I$9 -> 0 | J11: ='fnd base rates'!$D13*$D$24*J$9 -> 0 | L11: ='fnd base rates'!$D14*$D$24*L$9 -> 0 | M11: ='fnd base rates'!$D15*$D$24*M$9 -> 0 | N11: ='fnd base rates'!$D16*$D$24*N$9 -> 0 | O11: ='fnd base rates'!$D17*$D$24*O$9 -> 0 | P11: ='fnd base rates'!$D18*$D$24*P$9 -> 0 | Q11: =VLOOKUP((VLOOKUP(VLOOKUP(orderCHA,charterinfo_a,3),rate_chafnd,18)+12),rate_basefnd,4)*$D$24*Q$9 -> 0 | S11: 825.94
A12: 3 | B12: Classroom and Specialist Teachers | C12: w | D12: ='fnd base rates'!$E7*$D$24*D$9 -> 0 | E12: ='fnd base rates'!$E8*$D$24*E$9 -> 0 | F12: ='fnd base rates'!$E9*$D$24*F$9 -> 0 | G12: ='fnd base rates'!$E10*$D$24*G$9 -> 0 | H12: ='fnd base rates'!$E11*$D$24*H$9 -> 3332.67 | I12: ='fnd base rates'!$E12*$D$24*I$9 -> 0 | J12: ='fnd base rates'!$E13*$D$24*J$9 -> 0 | L12: ='fnd base rates'!$E14*$D$24*L$9 -> 413.458826 | M12: ='fnd base rates'!$E15*$D$24*M$9 -> 0 | N12: ='fnd base rates'!$E16*$D$24*N$9 -> 0 | O12: ='fnd base rates'!$E17*$D$24*O$9 -> 0 | P12: ='fnd base rates'!$E18*$D$24*P$9 -> 0 | Q12: =VLOOKUP((VLOOKUP(VLOOKUP(orderCHA,charterinfo_a,3),rate_chafnd,18)+12),rate_basefnd,5)*$D$24*Q$9 -> 0 | S12: 3746.128826
A13: 4 | B13: Other Teaching Services | C13: w | D13: ='fnd base rates'!$F7*$D$24*D$9 -> 0 | E13: ='fnd base rates'!$F8*$D$24*E$9 -> 0 | F13: ='fnd base rates'!$F9*$D$24*F$9 -> 0 | G13: ='fnd base rates'!$F10*$D$24*G$9 -> 0 | H13: ='fnd base rates'!$F11*$D$24*H$9 -> 699.22 | I13: ='fnd base rates'!$F12*$D$24*I$9 -> 0 | J13: ='fnd base rates'!$F13*$D$24*J$9 -> 0 | L13: ='fnd base rates'!$F14*$D$24*L$9 -> 386.040418 | M13: ='fnd base rates'!$F15*$D$24*M$9 -> 0 | N13: ='fnd base rates'!$F16*$D$24*N$9 -> 0 | O13: ='fnd base rates'!$F17*$D$24*O$9 -> 0 | P13: ='fnd base rates'!$F18*$D$24*P$9 -> 0 | Q13: =VLOOKUP((VLOOKUP(VLOOKUP(orderCHA,charterinfo_a,3),rate_chafnd,18)+12),rate_basefnd,6)*$D$24*Q$9 -> 0 | S13: 1085.260418
A14: 5 | B14: Professional Development | C14: w | D14: ='fnd base rates'!$G7*$D$24*D$9 -> 0 | E14: ='fnd base rates'!$G8*$D$24*E$9 -> 0 | F14: ='fnd base rates'!$G9*$D$24*F$9 -> 0 | G14: ='fnd base rates'!$G10*$D$24*G$9 -> 0 | H14: ='fnd base rates'!$G11*$D$24*H$9 -> 162.46 | I14: ='fnd base rates'!$G12*$D$24*I$9 -> 0 | J14: ='fnd base rates'!$G13*$D$24*J$9 -> 0 | L14: ='fnd base rates'!$G14*$D$24*L$9 -> 19.944883 | M14: ='fnd base rates'!$G15*$D$24*M$9 -> 0 | N14: ='fnd base rates'!$G16*$D$24*N$9 -> 0 | O14: ='fnd base rates'!$G17*$D$24*O$9 -> 0 | P14: ='fnd base rates'!$G18*$D$24*P$9 -> 0 | Q14: =VLOOKUP((VLOOKUP(VLOOKUP(orderCHA,charterinfo_a,3),rate_chafnd,18)+12),rate_basefnd,7)*$D$24*Q$9 -> 0 | S14: 182.404883
A15: 6 | B15: Instructional Equipment & Tech | C15: nw | D15: ='fnd base rates'!$H7*D$9 -> 0 | E15: ='fnd base rates'!$H8*E$9 -> 0 | F15: ='fnd base rates'!$H9*F$9 -> 0 | G15: ='fnd base rates'!$H10*G$9 -> 0 | H15: ='fnd base rates'!$H11*H$9 -> 548.15 | I15: ='fnd base rates'!$H12*I$9 -> 0 | J15: ='fnd base rates'!$H13*J$9 -> 0 | L15: ='fnd base rates'!$H14*L$9 -> 17.40845 | M15: ='fnd base rates'!$H15*M$9 -> 0 | N15: ='fnd base rates'!$H16*N$9 -> 0 | O15: ='fnd base rates'!$H17*O$9 -> 0 | P15: ='fnd base rates'!$H18*P$9 -> 0 | Q15: =VLOOKUP((VLOOKUP(VLOOKUP(orderCHA,charterinfo_a,3),rate_chafnd,18)+12),rate_basefnd,8)*Q$9 -> 0 | S15: 565.55845
A16: 7 | B16: Guidance and Pschological | C16: w | D16: ='fnd base rates'!$I7*$D$24*D$9 -> 0 | E16: ='fnd base rates'!$I8*$D$24*E$9 -> 0 | F16: ='fnd base rates'!$I9*$D$24*F$9 -> 0 | G16: ='fnd base rates'!$I10*$D$24*G$9 -> 0 | H16: ='fnd base rates'!$I11*$D$24*H$9 -> 428.63 | I16: ='fnd base rates'!$I12*$D$24*I$9 -> 0 | J16: ='fnd base rates'!$I13*$D$24*J$9 -> 0 | L16: ='fnd base rates'!$I14*$D$24*L$9 -> 0 | M16: ='fnd base rates'!$I15*$D$24*M$9 -> 0 | N16: ='fnd base rates'!$I16*$D$24*N$9 -> 0 | O16: ='fnd base rates'!$I17*$D$24*O$9 -> 0 | P16: ='fnd base rates'!$I18*$D$24*P$9 -> 0 | Q16: =VLOOKUP((VLOOKUP(VLOOKUP(orderCHA,charterinfo_a,3),rate_chafnd,18)+12),rate_basefnd,9)*$D$24*Q$9 -> 0 | S16: 428.63
A17: 8 | B17: Pupil Services | C17: w | D17: ='fnd base rates'!$J7*$D$24*D$9 -> 0 | E17: ='fnd base rates'!$J8*$D$24*E$9 -> 0 | F17: ='fnd base rates'!$J9*$D$24*F$9 -> 0 | G17: ='fnd base rates'!$J10*$D$24*G$9 -> 0 | H17: ='fnd base rates'!$J11*$D$24*H$9 -> 268.61 | I17: ='fnd base rates'!$J12*$D$24*I$9 -> 0 | J17: ='fnd base rates'!$J13*$D$24*J$9 -> 0 | L17: ='fnd base rates'!$J14*$D$24*L$9 -> 0 | M17: ='fnd base rates'!$J15*$D$24*M$9 -> 0 | N17: ='fnd base rates'!$J16*$D$24*N$9 -> 0 | O17: ='fnd base rates'!$J17*$D$24*O$9 -> 0 | P17: ='fnd base rates'!$J18*$D$24*P$9 -> 0 | Q17: =VLOOKUP((VLOOKUP(VLOOKUP(orderCHA,charterinfo_a,3),rate_chafnd,18)+12),rate_basefnd,10)*$D$24*Q$9 -> 0 | S17: 268.61
A18: 9 | B18: Operations and Maintenance | C18: w | D18: ='fnd base rates'!$K7*$D$24*D$9 -> 0 | E18: ='fnd base rates'!$K8*$D$24*E$9 -> 0 | F18: ='fnd base rates'!$K9*$D$24*F$9 -> 0 | G18: ='fnd base rates'!$K10*$D$24*G$9 -> 0 | H18: ='fnd base rates'!$K11*$D$24*H$9 -> 1140.11 | I18: ='fnd base rates'!$K12*$D$24*I$9 -> 0 | J18: ='fnd base rates'!$K13*$D$24*J$9 -> 0 | L18: ='fnd base rates'!$K14*$D$24*L$9 -> 139.965923 | M18: ='fnd base rates'!$K15*$D$24*M$9 -> 0 | N18: ='fnd base rates'!$K16*$D$24*N$9 -> 0 | O18: ='fnd base rates'!$K17*$D$24*O$9 -> 0 | P18: ='fnd base rates'!$K18*$D$24*P$9 -> 0 | Q18: =VLOOKUP((VLOOKUP(VLOOKUP(orderCHA,charterinfo_a,3),rate_chafnd,18)+12),rate_basefnd,11)*$D$24*Q$9 -> 0 | S18: 1280.075923
A19: 10 | B19: Employee Benefits & Fixed Charges | C19: nw | D19: ='fnd base rates'!$L7*D$9 -> 0 | E19: ='fnd base rates'!$L8*E$9 -> 0 | F19: ='fnd base rates'!$L9*F$9 -> 0 | G19: ='fnd base rates'!$L10*G$9 -> 0 | H19: ='fnd base rates'!$L11*H$9 -> 1952.67 | I19: ='fnd base rates'!$L12*I$9 -> 0 | J19: ='fnd base rates'!$L13*J$9 -> 0 | L19: ='fnd base rates'!$L14*L$9 -> 172.820849 | M19: ='fnd base rates'!$L15*M$9 -> 0 | N19: ='fnd base rates'!$L16*N$9 -> 0 | O19: ='fnd base rates'!$L17*O$9 -> 0 | P19: ='fnd base rates'!$L18*P$9 -> 0 | Q19: =VLOOKUP((VLOOKUP(VLOOKUP(orderCHA,charterinfo_a,3),rate_chafnd,18)+12),rate_basefnd,12)*Q$9 -> 0 | S19: 2125.490849
A20: 11 | B20: Special Ed Tuition | C20: nw | D20: ='fnd base rates'!$M7*D$9 -> 0 | E20: ='fnd base rates'!$M8*E$9 -> 0 | F20: ='fnd base rates'!$M9*F$9 -> 0 | G20: ='fnd base rates'!$M10*G$9 -> 0 | H20: ='fnd base rates'!$M11*H$9 -> 0 | I20: ='fnd base rates'!$M12*I$9 -> 0 | J20: ='fnd base rates'!$M13*J$9 -> 0 | L20: ='fnd base rates'!$M14*L$9 -> 0 | M20: ='fnd base rates'!$M15*M$9 -> 0 | N20: ='fnd base rates'!$M16*N$9 -> 0 | O20: ='fnd base rates'!$M17*O$9 -> 0 | P20: ='fnd base rates'!$M18*P$9 -> 0 | Q20: =VLOOKUP((VLOOKUP(VLOOKUP(orderCHA,charterinfo_a,3),rate_chafnd,18)+12),rate_basefnd,13)*Q$9 -> 0 | S20: 0
A22: 12 | B22: Total | D22: =SUM(D10:D20) -> 0 | E22: 0 | F22: 0 | G22: 0 | H22: =SUM(H10:H20) -> 9815.77 | I22: 0 | J22: 0 | L22: 1274.939298 | M22: 0 | N22: 0 | O22: 0 | P22: 0 | Q22: 0 | S22: =SUM(S10:S20) -> 11090.7093
A24: 13 | B24: Wage Adjustment Factor | D24: =VLOOKUP(orderCHA,charterinfo_a,8) -> 1 | Q24: F O U N D A T I O N T U I T I O N R A T E | S24: =IF(S9=0,0,ROUND(S22/S9,0)) -> 11091
A25: 14 | B25: Low Income Group | D25: =VLOOKUP(orderCHA,charterinfo_a,9) -> 7
A27: C A V E A T S | L27: English Learners as a % of Total Full Rate and Budget | S27: =SUM(N22:P22)/S22 -> 0
A28: - Charter schools do not send special education pupils to other districts or private programs. | L28: Economically Disadvantaged Proportion of Full Rate and Budget | S28: =Q22/S22 -> 0
A29: - The in-district special education increment uses an "assumed" enrollment percentage of 3.97.
A30: - Total foundation enrollment includes only the All Pupils section. Special Population Increments enrollment has already been counted in All Pupils cohorts.
A31: - Pre-kindergarten and half-time kindergarten pupils count as one-half in totals for ELL, low income, and total foundation enrollment.
A32: - Each component of the foundation budget represents the enrollment on line 1 multiplied by the appropriate state-wide foundation allotment.
A33: - The wage adjustment factor is applied to the underlying base rates in all functions except instructional equipment, benefits, and special education.
A34: - October 2024 enrollment is being used to generate the FY26 rate.
A36: End of Worksheet

Sheet charterinfo
A1: source: chalocsend fr 26x - PROJa fnd enro | D1: Input fnd enro chalocsend | J1: 1
C2: standalone rate for 3519 Worcester Cultural Academy
A7: Cha Lea | B7: Order | C7: Drop Down Menu Chalocsend | D7: chalocsend | E7: Cha Lea2 | F7: Campus Lea | G7: Send Lea | H7: # of District/ Campuses | I7: Wage Adj Factor | J7: low income group | K7: Above Fnd % | L7: Found Rate | M7: Above Fnd Rate | N7: Fac Rate
A8: =IF(VALUE(MID(D8,1,1))=4,VALUE(MID(D8,1,3)),VALUE(MID(D8,1,4))) -> 409 | B8: 1 | C8: =IF(H8=1,A8 & " - " &VLOOKUP(A8,codeCHA,2)&" Charter School - "&VLOOKUP(G8,code436,2)&" pupils",IF(OR(A8=450,A8=466),A8 & " - " &VLOOKUP(A8,codeCHA,2)&" Charter School - "&VLOOKUP(F8,code436,2)&" District - "&VLOOKUP(G8,code436,2)&" pupils",A8 & " - " &VLOOKUP(A8,codeCHA,2)&" Charter School - "&VLOOKUP(F8,code436,2)&" Campus - "&VLOOKUP(G8,code436,2)&" pupils")) -> 409 - ALMA DEL MAR Charter School - ACUSHNET pupils | D8: 409201003 | E8: =A8 -> 409 | F8: =IF(VALUE(MID(D8,1,1))=4,VALUE(MID(D8,4,3)),VALUE(MID(D8,5,3))) -> 201 | G8: =IF(VALUE(MID(D8,1,1))=4,VALUE(MID(D8,7,3)),VALUE(MID(D8,8,3))) -> 3 | H8: =IF(OR(A8=410,A8=466,A8=487,A8=499),2,1) -> 1 | I8: =VLOOKUP(F8,distinfo,4) -> 1 | J8: =VLOOKUP(D8,enro_chafnd,16) -> 7 | K8: =VLOOKUP(G8,distinfo,6) -> 112.7035053 | L8: =IF(VLOOKUP(D8,rate_chafnd,40,FALSE)>0,VLOOKUP(D8,rate_chafnd,40),VLOOKUP(G8,distinfo,7)) -> 11091 | M8: =ROUND((L8*K8/100)-L8,0) -> 1409 | N8: 1188
A9: 409 | B9: 2 | C9: 409 - ALMA DEL MAR Charter School - FALL RIVER pupils | D9: 409201095 | E9: 409 | F9: 201 | G9: 95 | H9: =IF(OR(A9=410,A9=466,A9=487,A9=499),2,1) -> 1 | I9: 1 | J9: 12 | K9: 100.0656992 | L9: 22247 | M9: =ROUND((L9*K9/100)-L9,0) -> 15 | N9: 1188
A10: 409 | B10: 3 | C10: 409 - ALMA DEL MAR Charter School - NEW BEDFORD pupils | D10: 409201201 | E10: 409 | F10: 201 | G10: 201 | H10: 1 | I10: 1 | J10: 12 | K10: 100 | L10: 19935 | M10: 0 | N10: 1188
A11: 409 | B11: 4 | C11: 409 - ALMA DEL MAR Charter School - WESTPORT pupils | D11: 409201331 | E11: 409 | F11: 201 | G11: 331 | H11: 1 | I11: 1 | J11: 7 | K11: 119.080159 | L11: 14189 | M11: 2707 | N11: 1188
A12: 410 | B12: 5 | C12: 410 - EXCEL ACADEMY Charter School - BOSTON Campus - BOSTON pupils | D12: 410035035 | E12: 410 | F12: 35 | G12: 35 | H12: 2 | I12: 1.084 | J12: 11 | K12: 134.7462283 | L12: 20412 | M12: 7092 | N12: 1188
A13: 410 | B13: 6 | C13: 410 - EXCEL ACADEMY Charter School - BOSTON Campus - BROCKTON pupils | D13: 410035044 | E13: 410 | F13: 35 | G13: 44 | H13: 2 | I13: 1.084 | J13: 11 | K13: 100 | L13: 14600 | M13: 0 | N13: 1188
A14: 410 | B14: 7 | C14: 410 - EXCEL ACADEMY Charter School - BOSTON Campus - CHELSEA pupils | D14: 410035057 | E14: 410 | F14: 35 | G14: 57 | H14: 2 | I14: 1.084 | J14: 12 | K14: 104.4871979 | L14: 20984 | M14: 942 | N14: 1188
A15: 410 | B15: 8 | C15: 410 - EXCEL ACADEMY Charter School - BOSTON Campus - EVERETT pupils | D15: 410035093 | E15: 410 | F15: 35 | G15: 93 | H15: 2 | I15: 1.084 | J15: 11 | K15: 100 | L15: 22964 | M15: 0 | N15: 1188
A16: 410 | B16: 9 | C16: 410 - EXCEL ACADEMY Charter School - BOSTON Campus - LEOMINSTER pupils | D16: 410035153 | E16: 410 | F16: 35 | G16: 153 | H16: 2 | I16: 1.084 | J16: 10 | K16: 100 | L16: 21557 | M16: 0 | N16: 1188
A17: 410 | B17: 10 | C17: 410 - EXCEL ACADEMY Charter School - BOSTON Campus - LOWELL pupils | D17: 410035160 | E17: 410 | F17: 35 | G17: 160 | H17: 2 | I17: 1.084 | J17: 11 | K17: 101.4812471 | L17: 13846 | M17: 205 | N17: 1188
A18: 410 | B18: 11 | C18: 410 - EXCEL ACADEMY Charter School - BOSTON Campus - LYNN pupils | D18: 410035163 | E18: 410 | F18: 35 | G18: 163 | H18: 2 | I18: 1.084 | J18: 11 | K18: 100 | L18: 20359 | M18: 0 | N18: 1188
A19: 410 | B19: 12 | C19: 410 - EXCEL ACADEMY Charter School - BOSTON Campus - MALDEN pupils | D19: 410035165 | E19: 410 | F19: 35 | G19: 165 | H19: 2 | I19: 1.084 | J19: 10 | K19: 100 | L19: 17763 | M19: 0 | N19: 1188
A20: 410 | B20: 13 | C20: 410 - EXCEL ACADEMY Charter School - BOSTON Campus - MEDFORD pupils | D20: 410035176 | E20: 410 | F20: 35 | G20: 176 | H20: 2 | I20: 1.084 | J20: 8 | K20: 132.2906159 | L20: 21085 | M20: 6808 | N20: 1188
A21: 410 | B21: 14 | C21: 410 - EXCEL ACADEMY Charter School - BOSTON Campus - PEABODY pupils | D21: 410035229 | E21: 410 | F21: 35 | G21: 229 | H21: 2 | I21: 1.084 | J21: 9 | K21: 109.8985586 | L21: 13846 | M21: 1371 | N21: 1188
A22: 410 | B22: 15 | C22: 410 - EXCEL ACADEMY Charter School - BOSTON Campus - RANDOLPH pupils | D22: 410035244 | E22: 410 | F22: 35 | G22: 244 | H22: 2 | I22: 1.084 | J22: 10 | K22: 124.1735281 | L22: 16466 | M22: 3980 | N22: 1188
A23: 410 | B23: 16 | C23: 410 - EXCEL ACADEMY Charter School - BOSTON Campus - REVERE pupils | D23: 410035248 | E23: 410 | F23: 35 | G23: 248 | H23: 2 | I23: 1.084 | J23: 11 | K23: 103.6443865 | L23: 19514 | M23: 711 | N23: 1188
A24: 410 | B24: 17 | C24: 410 - EXCEL ACADEMY Charter School - BOSTON Campus - SAUGUS pupils | D24: 410035262 | E24: 410 | F24: 35 | G24: 262 | H24: 2 | I24: 1.084 | J24: 10 | K24: 100.9373178 | L24: 15943 | M24: 149 | N24: 1188
A25: 410 | B25: 18 | C25: 410 - EXCEL ACADEMY Charter School - BOSTON Campus - WINTHROP pupils | D25: 410035346 | E25: 410 | F25: 35 | G25: 346 | H25: 2 | I25: 1.084 | J25: 8 | K25: 115.4720422 | L25: 18158 | M25: 2809 | N25: 1188
A26: 410 | B26: 19 | C26: 410 - EXCEL ACADEMY Charter School - CHELSEA Campus - BOSTON pupils | D26: 410057035 | E26: 410 | F26: 57 | G26: 35 | H26: 2 | I26: 1.039 | J26: 11 | K26: 134.7462283 | L26: 18231 | M26: 6335 | N26: 1188
A27: 410 | B27: 20 | C27: 410 - EXCEL ACADEMY Charter School - CHELSEA Campus - CHELSEA pupils | D27: 410057057 | E27: 410 | F27: 57 | G27: 57 | H27: 2 | I27: 1.039 | J27: 12 | K27: 104.4871979 | L27: 19922 | M27: 894 | N27: 1188
A28: 410 | B28: 21 | C28: 410 - EXCEL ACADEMY Charter School - CHELSEA Campus - EVERETT pupils | D28: 410057093 | E28: 410 | F28: 57 | G28: 93 | H28: 2 | I28: 1.039 | J28: 11 | K28: 100 | L28: 15451 | M28: 0 | N28: 1188
A29: 410 | B29: 22 | C29: 410 - EXCEL ACADEMY Charter School - CHELSEA Campus - LYNN pupils | D29: 410057163 | E29: 410 | F29: 57 | G29: 163 | H29: 2 | I29: 1.039 | J29: 11 | K29: 100 | L29: 15906 | M29: 0 | N29: 1188
A30: 410 | B30: 23 | C30: 410 - EXCEL ACADEMY Charter School - CHELSEA Campus - MALDEN pupils | D30: 410057165 | E30: 410 | F30: 57 | G30: 165 | H30: 2 | I30: 1.039 | J30: 10 | K30: 100 | L30: 22748 | M30: 0 | N30: 1188
A31: 410 | B31: 24 | C31: 410 - EXCEL ACADEMY Charter School - CHELSEA Campus - REVERE pupils | D31: 410057248 | E31: 410 | F31: 57 | G31: 248 | H31: 2 | I31: 1.039 | J31: 11 | K31: 103.6443865 | L31: 18090 | M31: 659 | N31: 1188
A32: 410 | B32: 25 | C32: 410 - EXCEL ACADEMY Charter School - CHELSEA Campus - SAUGUS pupils | D32: 410057262 | E32: 410 | F32: 57 | G32: 262 | H32: 2 | I32: 1.039 | J32: 10 | K32: 100.9373178 | L32: 19503 | M32: 183 | N32: 1188
A33: 412 | B33: 26 | C33: 412 - ACADEMY OF THE PACIFIC RIM Charter School - AVON pupils | D33: 412035018 | E33: 412 | F33: 35 | G33: 18 | H33: 1 | I33: 1.084 | J33: 9 | K33: 154.370121 | L33: 11796 | M33: 6413 | N33: 1188
A34: 412 | B34: 27 | C34: 412 - ACADEMY OF THE PACIFIC RIM Charter School - BOSTON pupils | D34: 412035035 | E34: 412 | F34: 35 | G34: 35 | H34: 1 | I34: 1.084 | J34: 11 | K34: 134.7462283 | L34: 20301 | M34: 7054 | N34: 1188
A35: 412 | B35: 28 | C35: 412 - ACADEMY OF THE PACIFIC RIM Charter School - BROCKTON pupils | D35: 412035044 | E35: 412 | F35: 35 | G35: 44 | H35: 1 | I35: 1.084 | J35: 11 | K35: 100 | L35: 18138 | M35: 0 | N35: 1188
A36: 412 | B36: 29 | C36: 412 - ACADEMY OF THE PACIFIC RIM Charter School - BROOKLINE pupils | D36: 412035046 | E36: 412 | F36: 35 | G36: 46 | H36: 1 | I36: 1.084 | J36: 3 | K36: 199.5286018 | L36: 16784 | M36: 16705 | N36: 1188
A37: 412 | B37: 30 | C37: 412 - ACADEMY OF THE PACIFIC RIM Charter School - CANTON pupils | D37: 412035050 | E37: 412 | F37: 35 | G37: 50 | H37: 1 | I37: 1.084 | J37: 5 | K37: 143.6810883 | L37: 17266 | M37: 7542 | N37: 1188
A38: 412 | B38: 31 | C38: 412 - ACADEMY OF THE PACIFIC RIM Charter School - DEDHAM pupils | D38: 412035073 | E38: 412 | F38: 35 | G38: 73 | H38: 1 | I38: 1.084 | J38: 6 | K38: 171.8946178 | L38: 20121 | M38: 14466 | N38: 1188
A39: 412 | B39: 32 | C39: 412 - ACADEMY OF THE PACIFIC RIM Charter School - FALL RIVER pupils | D39: 412035095 | E39: 412 | F39: 35 | G39: 95 | H39: 1 | I39: 1.084 | J39: 12 | K39: 100.0656992 | L39: 24098 | M39: 16 | N39: 1188
A40: 412 | B40: 33 | C40: 412 - ACADEMY OF THE PACIFIC RIM Charter School - MILTON pupils | D40: 412035189 | E40: 412 | F40: 35 | G40: 189 | H40: 1 | I40: 1.084 | J40: 3 | K40: 145.5433064 | L40: 17904 | M40: 8154 | N40: 1188
A41: 412 | B41: 34 | C41: 412 - ACADEMY OF THE PACIFIC RIM Charter School - NORWOOD pupils | D41: 412035220 | E41: 412 | F41: 35 | G41: 220 | H41: 1 | I41: 1.084 | J41: 8 | K41: 135.4166195 | L41: 20059 | M41: 7104 | N41: 1188
A42: 412 | B42: 35 | C42: 412 - ACADEMY OF THE PACIFIC RIM Charter School - RANDOLPH pupils | D42: 412035244 | E42: 412 | F42: 35 | G42: 244 | H42: 1 | I42: 1.084 | J42: 10 | K42: 124.1735281 | L42: 13161 | M42: 3181 | N42: 1188
A43: 412 | B43: 36 | C43: 412 - ACADEMY OF THE PACIFIC RIM Charter School - SOMERVILLE pupils | D43: 412035274 | E43: 412 | F43: 35 | G43: 274 | H43: 1 | I43: 1.084 | J43: 9 | K43: 151.4979517 | L43: 21663 | M43: 11156 | N43: 1188
A44: 412 | B44: 37 | C44: 412 - ACADEMY OF THE PACIFIC RIM Charter School - STOUGHTON pupils | D44: 412035285 | E44: 412 | F44: 35 | G44: 285 | H44: 1 | I44: 1.084 | J44: 9 | K44: 121.8883242 | L44: 14774 | M44: 3234 | N44: 1188
A45: 412 | B45: 38 | C45: 412 - ACADEMY OF THE PACIFIC RIM Charter School - TAUNTON pupils | D45: 412035293 | E45: 412 | F45: 35 | G45: 293 | H45: 1 | I45: 1.084 | J45: 10 | K45: 101.786148 | L45: 17674 | M45: 316 | N45: 1188
A46: 413 | B46: 39 | C46: 413 - FOUR RIVERS Charter School - ERVING pupils | D46: 413114091 | E46: 413 | F46: 114 | G46: 91 | H46: 1 | I46: 1 | J46: 8 | K46: 223.9837853 | L46: 12038 | M46: 14925 | N46: 1188
A47: 413 | B47: 40 | C47: 413 - FOUR RIVERS Charter School - GREENFIELD pupils | D47: 413114114 | E47: 413 | F47: 114 | G47: 114 | H47: 1 | I47: 1 | J47: 10 | K47: 122.1602048 | L47: 14961 | M47: 3315 | N47: 1188
A48: 413 | B48: 41 | C48: 413 - FOUR RIVERS Charter School - HADLEY pupils | D48: 413114117 | E48: 413 | F48: 114 | G48: 117 | H48: 1 | I48: 1 | J48: 6 | K48: 127.5766344 | L48: 16753 | M48: 4620 | N48: 1188
A49: 413 | B49: 42 | C49: 413 - FOUR RIVERS Charter School - HATFIELD pupils | D49: 413114127 | E49: 413 | F49: 114 | G49: 127 | H49: 1 | I49: 1 | J49: 5 | K49: 202.2317856 | L49: 12989 | M49: 13279 | N49: 1188
A50: 413 | B50: 43 | C50: 413 - FOUR RIVERS Charter School - NORTHAMPTON pupils | D50: 413114210 | E50: 413 | F50: 114 | G50: 210 | H50: 1 | I50: 1 | J50: 6 | K50: 148.1756329 | L50: 12988 | M50: 6257 | N50: 1188
A51: 413 | B51: 44 | C51: 413 - FOUR RIVERS Charter School - WARWICK pupils | D51: 413114312 | E51: 413 | F51: 114 | G51: 312 | H51: 1 | I51: 1 | J51: 6 | K51: 267.8826071 | L51: 11723 | M51: 19681 | N51: 1188
A52: 413 | B52: 45 | C52: 413 - FOUR RIVERS Charter School - AMHERST PELHAM pupils | D52: 413114605 | E52: 413 | F52: 114 | G52: 605 | H52: 1 | I52: 1 | J52: 6 | K52: 175.9261896 | L52: 14243 | M52: 10814 | N52: 1188
A53: 413 | B53: 46 | C53: 413 - FOUR RIVERS Charter School - ATHOL ROYALSTON pupils | D53: 413114615 | E53: 413 | F53: 114 | G53: 615 | H53: 1 | I53: 1 | J53: 10 | K53: 103.8577931 | L53: 12989 | M53: 501 | N53: 1188
A54: 413 | B54: 47 | C54: 413 - FOUR RIVERS Charter School - FRONTIER pupils | D54: 413114670 | E54: 413 | F54: 114 | G54: 670 | H54: 1 | I54: 1 | J54: 5 | K54: 169.601943 | L54: 13715 | M54: 9546 | N54: 1188
A55: 413 | B55: 48 | C55: 413 - FOUR RIVERS Charter School - GILL MONTAGUE pupils | D55: 413114674 | E55: 413 | F55: 114 | G55: 674 | H55: 1 | I55: 1 | J55: 10 | K55: 148.4222721 | L55: 16745 | M55: 8108 | N55: 1188
A56: 413 | B56: 49 | C56: 413 - FOUR RIVERS Charter School - MOHAWK TRAIL pupils | D56: 413114717 | E56: 413 | F56: 114 | G56: 717 | H56: 1 | I56: 1 | J56: 9 | K56: 156.4988688 | L56: 16513 | M56: 9330 | N56: 1188
A57: 413 | B57: 50 | C57: 413 - FOUR RIVERS Charter School - PIONEER pupils | D57: 413114750 | E57: 413 | F57: 114 | G57: 750 | H57: 1 | I57: 1 | J57: 7 | K57: 250.1814559 | L57: 14253 | M57: 21405 | N57: 1188
A58: 413 | B58: 51 | C58: 413 - FOUR RIVERS Charter School - RALPH C MAHAR pupils | D58: 413114755 | E58: 413 | F58: 114 | G58: 755 | H58: 1 | I58: 1 | J58: 10 | K58: 141.0841162 | L58: 15101 | M58: 6204 | N58: 1188
A59: 414 | B59: 52 | C59: 414 - BERKSHIRE ARTS AND TECHNOLOGY Charter School - CLARKSBURG pupils | D59: 414603063 | E59: 414 | F59: 603 | G59: 63 | H59: 1 | I59: 1 | J59: 8 | K59: 104.3800011 | L59: 16357 | M59: 716 | N59: 1188
A60: 414 | B60: 53 | C60: 414 - BERKSHIRE ARTS AND TECHNOLOGY Charter School - FLORIDA pupils | D60: 414603098 | E60: 414 | F60: 603 | G60: 98 | H60: 1 | I60: 1 | J60: 8 | K60: 206.8081004 | L60: 14459 | M60: 15443 | N60: 1188
A61: 414 | B61: 54 | C61: 414 - BERKSHIRE ARTS AND TECHNOLOGY Charter School - HANCOCK pupils | D61: 414603121 | E61: 414 | F61: 603 | G61: 121 | H61: 1 | I61: 1 | J61: 7 | K61: 154.8984933 | L61: 17291 | M61: 9492 | N61: 1188
A62: 414 | B62: 55 | C62: 414 - BERKSHIRE ARTS AND TECHNOLOGY Charter School - LEE pupils | D62: 414603150 | E62: 414 | F62: 603 | G62: 150 | H62: 1 | I62: 1 | J62: 8 | K62: 180.0647484 | L62: 11091 | M62: 8880 | N62: 1188
A63: 414 | B63: 56 | C63: 414 - BERKSHIRE ARTS AND TECHNOLOGY Charter School - NORTH ADAMS pupils | D63: 414603209 | E63: 414 | F63: 603 | G63: 209 | H63: 1 | I63: 1 | J63: 11 | K63: 120.1822295 | L63: 18341 | M63: 3702 | N63: 1188
A64: 414 | B64: 57 | C64: 414 - BERKSHIRE ARTS AND TECHNOLOGY Charter School - PITTSFIELD pupils | D64: 414603236 | E64: 414 | F64: 603 | G64: 236 | H64: 1 | I64: 1 | J64: 11 | K64: 113.2808444 | L64: 17921 | M64: 2380 | N64: 1188
A65: 414 | B65: 58 | C65: 414 - BERKSHIRE ARTS AND TECHNOLOGY Charter School - SAVOY pupils | D65: 414603263 | E65: 414 | F65: 603 | G65: 263 | H65: 1 | I65: 1 | J65: 10 | K65: 179.6711886 | L65: 17565 | M65: 13994 | N65: 1188
A66: 414 | B66: 59 | C66: 414 - BERKSHIRE ARTS AND TECHNOLOGY Charter School - HOOSAC VALLEY pupils | D66: 414603603 | E66: 414 | F66: 603 | G66: 603 | H66: 1 | I66: 1 | J66: 10 | K66: 110.6771804 | L66: 16707 | M66: 1784 | N66: 1188
A67: 414 | B67: 60 | C67: 414 - BERKSHIRE ARTS AND TECHNOLOGY Charter School - BERKSHIRE HILLS pupils | D67: 414603618 | E67: 414 | F67: 603 | G67: 618 | H67: 1 | I67: 1 | J67: 9 | K67: 191.8148885 | L67: 18368 | M67: 16865 | N67: 1188
A68: 414 | B68: 61 | C68: 414 - BERKSHIRE ARTS AND TECHNOLOGY Charter School - CENTRAL BERKSHIRE pupils | D68: 414603635 | E68: 414 | F68: 603 | G68: 635 | H68: 1 | I68: 1 | J68: 8 | K68: 130.7227451 | L68: 14240 | M68: 4375 | N68: 1188
A69: 414 | B69: 62 | C69: 414 - BERKSHIRE ARTS AND TECHNOLOGY Charter School - MOUNT GREYLOCK pupils | D69: 414603715 | E69: 414 | F69: 603 | G69: 715 | H69: 1 | I69: 1 | J69: 5 | K69: 165.280163 | L69: 15247 | M69: 9953 | N69: 1188
A70: 416 | B70: 63 | C70: 416 - BOSTON PREPARATORY Charter School - ATTLEBORO pupils | D70: 416035016 | E70: 416 | F70: 35 | G70: 16 | H70: 1 | I70: 1.084 | J70: 8 | K70: 101.081649 | L70: 13846 | M70: 150 | N70: 1188
A71: 416 | B71: 64 | C71: 416 - BOSTON PREPARATORY Charter School - AVON pupils | D71: 416035018 | E71: 416 | F71: 35 | G71: 18 | H71: 1 | I71: 1.084 | J71: 9 | K71: 154.370121 | L71: 21663 | M71: 11778 | N71: 1188
A72: =IF(VALUE(MID(D72,1,1))=4,VALUE(MID(D72,1,3)),VALUE(MID(D72,1,4))) -> 416 | B72: 65 | C72: =IF(H72=1,A72 & " - " &VLOOKUP(A72,codeCHA,2)&" Charter School - "&VLOOKUP(G72,code436,2)&" pupils",IF(OR(A72=450,A72=466),A72 & " - " &VLOOKUP(A72,codeCHA,2)&" Charter School - "&VLOOKUP(F72,code436,2)&" District - "&VLOOKUP(G72,code436,2)&" pupils",A72 & " - " &VLOOKUP(A72,codeCHA,2)&" Charter School - "&VLOOKUP(F72,code436,2)&" Campus - "&VLOOKUP(G72,code436,2)&" pupils")) -> 416 - BOSTON PREPARATORY Charter School - BEVERLY pupils | D72: 416035030 | E72: =A72 -> 416 | F72: =IF(VALUE(MID(D72,1,1))=4,VALUE(MID(D72,4,3)),VALUE(MID(D72,5,3))) -> 35 | G72: =IF(VALUE(MID(D72,1,1))=4,VALUE(MID(D72,7,3)),VALUE(MID(D72,8,3))) -> 30 | H72: 1 | I72: =VLOOKUP(F72,distinfo,4) -> 1.084 | J72: =VLOOKUP(D72,enro_chafnd,16) -> 6 | K72: =VLOOKUP(G72,distinfo,6) -> 136.2167174 | L72: =IF(VLOOKUP(D72,rate_chafnd,40,FALSE)>0,VLOOKUP(D72,rate_chafnd,40),VLOOKUP(G72,distinfo,7)) -> 17880 | M72: =ROUND((L72*K72/100)-L72,0) -> 6476 | N72: 1188
A73: 416 | B73: 66 | C73: 416 - BOSTON PREPARATORY Charter School - BOSTON pupils | D73: 416035035 | E73: 416 | F73: 35 | G73: 35 | H73: =IF(OR(A73=410,A73=466,A73=487,A73=499),2,1) -> 1 | I73: 1.084 | J73: 11 | K73: 134.7462283 | L73: 20421 | M73: 7096 | N73: 1188
A74: 416 | B74: 67 | C74: 416 - BOSTON PREPARATORY Charter School - BROCKTON pupils | D74: 416035044 | E74: 416 | F74: 35 | G74: 44 | H74: 1 | I74: 1.084 | J74: 11 | K74: 100 | L74: 19163 | M74: 0 | N74: 1188
A75: 416 | B75: 68 | C75: 416 - BOSTON PREPARATORY Charter School - CANTON pupils | D75: 416035050 | E75: 416 | F75: 35 | G75: 50 | H75: 1 | I75: 1.084 | J75: 5 | K75: 143.6810883 | L75: 18946 | M75: 8276 | N75: 1188
A76: 416 | B76: 69 | C76: 416 - BOSTON PREPARATORY Charter School - DEDHAM pupils | D76: 416035073 | E76: 416 | F76: 35 | G76: 73 | H76: 1 | I76: 1.084 | J76: 6 | K76: 171.8946178 | L76: 11796 | M76: 8481 | N76: 1188
A77: 416 | B77: 70 | C77: 416 - BOSTON PREPARATORY Charter School - HOLBROOK pupils | D77: 416035133 | E77: 416 | F77: 35 | G77: 133 | H77: 1 | I77: 1.084 | J77: 9 | K77: 100 | L77: 25489 | M77: 0 | N77: 1188
A78: 416 | B78: 71 | C78: 416 - BOSTON PREPARATORY Charter School - QUINCY pupils | D78: 416035243 | E78: 416 | F78: 35 | G78: 243 | H78: 1 | I78: 1.084 | J78: 9 | K78: 112.9385471 | L78: 21663 | M78: 2803 | N78: 1188
A79: 416 | B79: 72 | C79: 416 - BOSTON PREPARATORY Charter School - RANDOLPH pupils | D79: 416035244 | E79: 416 | F79: 35 | G79: 244 | H79: 1 | I79: 1.084 | J79: 10 | K79: 124.1735281 | L79: 17630 | M79: 4262 | N79: 1188
A80: 416 | B80: 73 | C80: 416 - BOSTON PREPARATORY Charter School - SOMERVILLE pupils | D80: 416035274 | E80: 416 | F80: 35 | G80: 274 | H80: 1 | I80: 1.084 | J80: 9 | K80: 151.4979517 | L80: 21663 | M80: 11156 | N80: 1188
A81: 416 | B81: 74 | C81: 416 - BOSTON PREPARATORY Charter School - STOUGHTON pupils | D81: 416035285 | E81: 416 | F81: 35 | G81: 285 | H81: 1 | I81: 1.084 | J81: 9 | K81: 121.8883242 | L81: 16728 | M81: 3661 | N81: 1188
A82: 417 | B82: 75 | C82: 417 - BRIDGE BOSTON Charter School - BOSTON pupils | D82: 417035035 | E82: 417 | F82: 35 | G82: 35 | H82: 1 | I82: 1.084 | J82: 11 | K82: 134.7462283 | L82: 20571 | M82: 7148 | N82: 1188
A83: 417 | B83: 76 | C83: 417 - BRIDGE BOSTON Charter School - BRAINTREE pupils | D83: 417035040 | E83: 417 | F83: 35 | G83: 40 | H83: 1 | I83: 1.084 | J83: 6 | K83: 133.4397227 | L83: 18294 | M83: 6117 | N83: 1188
A84: 417 | B84: 77 | C84: 417 - BRIDGE BOSTON Charter School - BROCKTON pupils | D84: 417035044 | E84: 417 | F84: 35 | G84: 44 | H84: 1 | I84: 1.084 | J84: 11 | K84: 100 | L84: 11796 | M84: 0 | N84: 1188
A85: 417 | B85: 78 | C85: 417 - BRIDGE BOSTON Charter School - HOLBROOK pupils | D85: 417035133 | E85: 417 | F85: 35 | G85: 133 | H85: 1 | I85: 1.084 | J85: 9 | K85: 100 | L85: 12071 | M85: 0 | N85: 1188
A86: 417 | B86: 79 | C86: 417 - BRIDGE BOSTON Charter School - RANDOLPH pupils | D86: 417035244 | E86: 417 | F86: 35 | G86: 244 | H86: 1 | I86: 1.084 | J86: 10 | K86: 124.1735281 | L86: 22499 | M86: 5439 | N86: 1188
A87: 417 | B87: 80 | C87: 417 - BRIDGE BOSTON Charter School - STOUGHTON pupils | D87: 417035285 | E87: 417 | F87: 35 | G87: 285 | H87: 1 | I87: 1.084 | J87: 9 | K87: 121.8883242 | L87: 12002 | M87: 2627 | N87: 1188
A88: 418 | B88: 81 | C88: 418 - CHRISTA MCAULIFFE Charter School - ASHLAND pupils | D88: 418100014 | E88: 418 | F88: 100 | G88: 14 | H88: 1 | I88: 1.018 | J88: 5 | K88: 126.3332916 | L88: 11241 | M88: 2960 | N88: 1188
A89: 418 | B89: 82 | C89: 418 - CHRISTA MCAULIFFE Charter School - BROCKTON pupils | D89: 418100044 | E89: 418 | F89: 100 | G89: 44 | H89: 1 | I89: 1.018 | J89: 11 | K89: 100 | L89: 11242 | M89: 0 | N89: 1188
A90: 418 | B90: 83 | C90: 418 - CHRISTA MCAULIFFE Charter School - FRAMINGHAM pupils | D90: 418100100 | E90: 418 | F90: 100 | G90: 100 | H90: 1 | I90: 1.018 | J90: 10 | K90: 127.0735724 | L90: 16146 | M90: 4371 | N90: 1188
A91: 418 | B91: 84 | C91: 418 - CHRISTA MCAULIFFE Charter School - HOLLISTON pupils | D91: 418100136 | E91: 418 | F91: 100 | G91: 136 | H91: 1 | I91: 1.018 | J91: 3 | K91: 136.6026662 | L91: 12419 | M91: 4546 | N91: 1188
A92: 418 | B92: 85 | C92: 418 - CHRISTA MCAULIFFE Charter School - MARLBOROUGH pupils | D92: 418100170 | E92: 418 | F92: 100 | G92: 170 | H92: 1 | I92: 1.018 | J92: 10 | K92: 111.112604 | L92: 13683 | M92: 1521 | N92: 1188
A93: 418 | B93: 86 | C93: 418 - CHRISTA MCAULIFFE Charter School - NATICK pupils | D93: 418100198 | E93: 418 | F93: 100 | G93: 198 | H93: 1 | I93: 1.018 | J93: 3 | K93: 153.8670261 | L93: 12818 | M93: 6905 | N93: 1188
A94: 418 | B94: 87 | C94: 418 - CHRISTA MCAULIFFE Charter School - SOUTHBOROUGH pupils | D94: 418100276 | E94: 418 | F94: 100 | G94: 276 | H94: 1 | I94: 1.018 | J94: 2 | K94: 190.4252792 | L94: 15731 | M94: 14225 | N94: 1188
A95: 418 | B95: 88 | C95: 418 - CHRISTA MCAULIFFE Charter School - WALTHAM pupils | D95: 418100308 | E95: 418 | F95: 100 | G95: 308 | H95: 1 | I95: 1.018 | J95: 10 | K95: 138.7030444 | L95: 11242 | M95: 4351 | N95: 1188
A96: 418 | B96: 89 | C96: 418 - CHRISTA MCAULIFFE Charter School - WELLESLEY pupils | D96: 418100317 | E96: 418 | F96: 100 | G96: 317 | H96: 1 | I96: 1.018 | J96: 2 | K96: 204.6732853 | L96: 11242 | M96: 11767 | N96: 1188
A97: 418 | B97: 90 | C97: 418 - CHRISTA MCAULIFFE Charter School - WESTBOROUGH pupils | D97: 418100321 | E97: 418 | F97: 100 | G97: 321 | H97: 1 | I97: 1.018 | J97: 4 | K97: 153.2322543 | L97: 11242 | M97: 5984 | N97: 1188
A98: 418 | B98: 91 | C98: 418 - CHRISTA MCAULIFFE Charter School - KING PHILIP pupils | D98: 418100690 | E98: 418 | F98: 100 | G98: 690 | H98: 1 | I98: 1.018 | J98: 4 | K98: 139.5279134 | L98: 11240 | M98: 4443 | N98: 1188
A99: 420 | B99: 92 | C99: 420 - BENJAMIN BANNEKER Charter School - ARLINGTON pupils | D99: 420049010 | E99: 420 | F99: 49 | G99: 10 | H99: 1 | I99: 1.111 | J99: 3 | K99: 151.3903093 | L99: 15830 | M99: 8135 | N99: 1188
A100: 420 | B100: 93 | C100: 420 - BENJAMIN BANNEKER Charter School - ATTLEBORO pupils | D100: 420049016 | E100: 420 | F100: 49 | G100: 16 | H100: 1 | I100: 1.111 | J100: 8 | K100: 101.081649 | L100: 16375 | M100: 177 | N100: 1188
A101: 420 | B101: 94 | C101: 420 - BENJAMIN BANNEKER Charter School - BELMONT pupils | D101: 420049026 | E101: 420 | F101: 49 | G101: 26 | H101: 1 | I101: 1.111 | J101: 3 | K101: 139.1315665 | L101: 12451 | M101: 4872 | N101: 1188
A102: 420 | B102: 95 | C102: 420 - BENJAMIN BANNEKER Charter School - BILLERICA pupils | D102: 420049031 | E102: 420 | F102: 49 | G102: 31 | H102: 1 | I102: 1.111 | J102: 5 | K102: 138.7519159 | L102: 12451 | M102: 4825 | N102: 1188
A103: 420 | B103: 96 | C103: 420 - BENJAMIN BANNEKER Charter School - BOSTON pupils | D103: 420049035 | E103: 420 | F103: 49 | G103: 35 | H103: 1 | I103: 1.111 | J103: 11 | K103: 134.7462283 | L103: 18651 | M103: 6481 | N103: 1188
A104: 420 | B104: 97 | C104: 420 - BENJAMIN BANNEKER Charter School - BROCKTON pupils | D104: 420049044 | E104: 420 | F104: 49 | G104: 44 | H104: 1 | I104: 1.111 | J104: 11 | K104: 100 | L104: 19544 | M104: 0 | N104: 1188
A105: 420 | B105: 98 | C105: 420 - BENJAMIN BANNEKER Charter School - CAMBRIDGE pupils | D105: 420049049 | E105: 420 | F105: 49 | G105: 49 | H105: 1 | I105: 1.111 | J105: 8 | K105: 223.7778129 | L105: 18469 | M105: 22861 | N105: 1188
A106: 420 | B106: 99 | C106: 420 - BENJAMIN BANNEKER Charter School - CANTON pupils | D106: 420049050 | E106: 420 | F106: 49 | G106: 50 | H106: 1 | I106: 1.111 | J106: 5 | K106: 143.6810883 | L106: 5497 | M106: 2401 | N106: 1188
A107: 420 | B107: 100 | C107: 420 - BENJAMIN BANNEKER Charter School - CHELMSFORD pupils | D107: 420049056 | E107: 420 | F107: 49 | G107: 56 | H107: 1 | I107: 1.111 | J107: 4 | K107: 131.6945641 | L107: 5497 | M107: 1742 | N107: 1188
A108: 420 | B108: 101 | C108: 420 - BENJAMIN BANNEKER Charter School - CHELSEA pupils | D108: 420049057 | E108: 420 | F108: 49 | G108: 57 | H108: 1 | I108: 1.111 | J108: 12 | K108: 104.4871979 | L108: 15801 | M108: 709 | N108: 1188
A109: 420 | B109: 102 | C109: 420 - BENJAMIN BANNEKER Charter School - EVERETT pupils | D109: 420049093 | E109: 420 | F109: 49 | G109: 93 | H109: 1 | I109: 1.111 | J109: 11 | K109: 100 | L109: 15429 | M109: 0 | N109: 1188
A110: 420 | B110: 103 | C110: 420 - BENJAMIN BANNEKER Charter School - FITCHBURG pupils | D110: 420049097 | E110: 420 | F110: 49 | G110: 97 | H110: 1 | I110: 1.111 | J110: 11 | K110: 100.6226704 | L110: 12451 | M110: 78 | N110: 1188
A111: 420 | B111: 104 | C111: 420 - BENJAMIN BANNEKER Charter School - HAVERHILL pupils | D111: 420049128 | E111: 420 | F111: 49 | G111: 128 | H111: 1 | I111: 1.111 | J111: 10 | K111: 105.4239251 | L111: 21033 | M111: 1141 | N111: 1188
A112: 420 | B112: 105 | C112: 420 - BENJAMIN BANNEKER Charter School - LAWRENCE pupils | D112: 420049149 | E112: 420 | F112: 49 | G112: 149 | H112: 1 | I112: 1.111 | J112: 12 | K112: 101.6215543 | L112: 12419 | M112: 201 | N112: 1188
A113: 420 | B113: 106 | C113: 420 - BENJAMIN BANNEKER Charter School - LEOMINSTER pupils | D113: 420049153 | E113: 420 | F113: 49 | G113: 153 | H113: 1 | I113: 1.111 | J113: 10 | K113: 100 | L113: 12450 | M113: 0 | N113: 1188
A114: 420 | B114: 107 | C114: 420 - BENJAMIN BANNEKER Charter School - LEXINGTON pupils | D114: 420049155 | E114: 420 | F114: 49 | G114: 155 | H114: 1 | I114: 1.111 | J114: 2 | K114: 188.9209877 | L114: 14320 | M114: 12733 | N114: 1188
A115: 420 | B115: 108 | C115: 420 - BENJAMIN BANNEKER Charter School - LYNN pupils | D115: 420049163 | E115: 420 | F115: 49 | G115: 163 | H115: 1 | I115: 1.111 | J115: 11 | K115: 100 | L115: 17001 | M115: 0 | N115: 1188
A116: 420 | B116: 109 | C116: 420 - BENJAMIN BANNEKER Charter School - MALDEN pupils | D116: 420049165 | E116: 420 | F116: 49 | G116: 165 | H116: 1 | I116: 1.111 | J116: 10 | K116: 100 | L116: 15748 | M116: 0 | N116: 1188
A117: 420 | B117: 110 | C117: 420 - BENJAMIN BANNEKER Charter School - MAYNARD pupils | D117: 420049174 | E117: 420 | F117: 49 | G117: 174 | H117: 1 | I117: 1.111 | J117: 5 | K117: 159.6857784 | L117: 12449 | M117: 7430 | N117: 1188
A118: 420 | B118: 111 | C118: 420 - BENJAMIN BANNEKER Charter School - MEDFORD pupils | D118: 420049176 | E118: 420 | F118: 49 | G118: 176 | H118: 1 | I118: 1.111 | J118: 8 | K118: 132.2906159 | L118: 13419 | M118: 4333 | N118: 1188
A119: 420 | B119: 112 | C119: 420 - BENJAMIN BANNEKER Charter School - METHUEN pupils | D119: 420049181 | E119: 420 | F119: 49 | G119: 181 | H119: 1 | I119: 1.111 | J119: 10 | K119: 101.4140567 | L119: 21031 | M119: 297 | N119: 1188
A120: 420 | B120: 113 | C120: 420 - BENJAMIN BANNEKER Charter School - MIDDLETON pupils | D120: 420049184 | E120: 420 | F120: 49 | G120: 184 | H120: 1 | I120: 1.111 | J120: 3 | K120: 184.2891733 | L120: 12390 | M120: 10443 | N120: 1188
A121: 420 | B121: 114 | C121: 420 - BENJAMIN BANNEKER Charter School - NEEDHAM pupils | D121: 420049199 | E121: 420 | F121: 49 | G121: 199 | H121: 1 | I121: 1.111 | J121: 2 | K121: 190.6889386 | L121: 17303 | M121: 15692 | N121: 1188
A122: 420 | B122: 115 | C122: 420 - BENJAMIN BANNEKER Charter School - NORWOOD pupils | D122: 420049220 | E122: 420 | F122: 49 | G122: 220 | H122: 1 | I122: 1.111 | J122: 8 | K122: 135.4166195 | L122: 12390 | M122: 4388 | N122: 1188
A123: 420 | B123: 116 | C123: 420 - BENJAMIN BANNEKER Charter School - QUINCY pupils | D123: 420049243 | E123: 420 | F123: 49 | G123: 243 | H123: 1 | I123: 1.111 | J123: 9 | K123: 112.9385471 | L123: 16414 | M123: 2124 | N123: 1188
A124: 420 | B124: 117 | C124: 420 - BENJAMIN BANNEKER Charter School - REVERE pupils | D124: 420049248 | E124: 420 | F124: 49 | G124: 248 | H124: 1 | I124: 1.111 | J124: 11 | K124: 103.6443865 | L124: 14356 | M124: 523 | N124: 1188
A125: 420 | B125: 118 | C125: 420 - BENJAMIN BANNEKER Charter School - SAUGUS pupils | D125: 420049262 | E125: 420 | F125: 49 | G125: 262 | H125: 1 | I125: 1.111 | J125: 10 | K125: 100.9373178 | L125: 14080 | M125: 132 | N125: 1188
A126: 420 | B126: 119 | C126: 420 - BENJAMIN BANNEKER Charter School - SOMERVILLE pupils | D126: 420049274 | E126: 420 | F126: 49 | G126: 274 | H126: 1 | I126: 1.111 | J126: 9 | K126: 151.4979517 | L126: 18542 | M126: 9549 | N126: 1188
A127: 420 | B127: 120 | C127: 420 - BENJAMIN BANNEKER Charter School - STONEHAM pupils | D127: 420049284 | E127: 420 | F127: 49 | G127: 284 | H127: 1 | I127: 1.111 | J127: 5 | K127: 147.928712 | L127: 18040 | M127: 8646 | N127: 1188
A128: 420 | B128: 121 | C128: 420 - BENJAMIN BANNEKER Charter School - TEWKSBURY pupils | D128: 420049295 | E128: 420 | F128: 49 | G128: 295 | H128: 1 | I128: 1.111 | J128: 5 | K128: 148.7862515 | L128: 21223 | M128: 10354 | N128: 1188
A129: 420 | B129: 122 | C129: 420 - BENJAMIN BANNEKER Charter School - WILMINGTON pupils | D129: 420049342 | E129: 420 | F129: 49 | G129: 342 | H129: 1 | I129: 1.111 | J129: 3 | K129: 180.4772478 | L129: 12390 | M129: 9971 | N129: 1188
A130: 420 | B130: 123 | C130: 420 - BENJAMIN BANNEKER Charter School - WOBURN pupils | D130: 420049347 | E130: 420 | F130: 49 | G130: 347 | H130: 1 | I130: 1.111 | J130: 8 | K130: 145.5703368 | L130: 19743 | M130: 8997 | N130: 1188
A131: 420 | B131: 124 | C131: 420 - BENJAMIN BANNEKER Charter School - AYER SHIRLEY pupils | D131: 420049616 | E131: 420 | F131: 49 | G131: 616 | H131: 1 | I131: 1.111 | J131: 7 | K131: 116.7366355 | L131: 19259 | M131: 3223 | N131: 1188
A132: 420 | B132: 125 | C132: 420 - BENJAMIN BANNEKER Charter School - BRIDGEWATER RAYNHAM pupils | D132: 420049625 | E132: 420 | F132: 49 | G132: 625 | H132: 1 | I132: 1.111 | J132: 6 | K132: 107.149595 | L132: 15528 | M132: 1110 | N132: 1188
A133: 428 | B133: 126 | C133: 428 - BROOKE Charter School - ATTLEBORO pupils | D133: 428035016 | E133: 428 | F133: 35 | G133: 16 | H133: 1 | I133: 1.084 | J133: 8 | K133: 101.081649 | L133: 13161 | M133: 142 | N133: 1188
A134: 428 | B134: 127 | C134: 428 - BROOKE Charter School - AVON pupils | D134: 428035018 | E134: 428 | F134: 35 | G134: 18 | H134: 1 | I134: 1.084 | J134: 9 | K134: 154.370121 | L134: 20028 | M134: 10889 | N134: 1188
A135: 428 | B135: 128 | C135: 428 - BROOKE Charter School - BOSTON pupils | D135: 428035035 | E135: 428 | F135: 35 | G135: 35 | H135: 1 | I135: 1.084 | J135: 11 | K135: 134.7462283 | L135: 19437 | M135: 6754 | N135: 1188
A136: =IF(VALUE(MID(D136,1,1))=4,VALUE(MID(D136,1,3)),VALUE(MID(D136,1,4))) -> 428 | B136: 129 | C136: =IF(H136=1,A136 & " - " &VLOOKUP(A136,codeCHA,2)&" Charter School - "&VLOOKUP(G136,code436,2)&" pupils",IF(OR(A136=450,A136=466),A136 & " - " &VLOOKUP(A136,codeCHA,2)&" Charter School - "&VLOOKUP(F136,code436,2)&" District - "&VLOOKUP(G136,code436,2)&" pupils",A136 & " - " &VLOOKUP(A136,codeCHA,2)&" Charter School - "&VLOOKUP(F136,code436,2)&" Campus - "&VLOOKUP(G136,code436,2)&" pupils")) -> 428 - BROOKE Charter School - BROCKTON pupils | D136: 428035044 | E136: =A136 -> 428 | F136: =IF(VALUE(MID(D136,1,1))=4,VALUE(MID(D136,4,3)),VALUE(MID(D136,5,3))) -> 35 | G136: =IF(VALUE(MID(D136,1,1))=4,VALUE(MID(D136,7,3)),VALUE(MID(D136,8,3))) -> 44 | H136: 1 | I136: =VLOOKUP(F136,distinfo,4) -> 1.084 | J136: =VLOOKUP(D136,enro_chafnd,16) -> 11 | K136: =VLOOKUP(G136,distinfo,6) -> 100 | L136: =IF(VLOOKUP(D136,rate_chafnd,40,FALSE)>0,VLOOKUP(D136,rate_chafnd,40),VLOOKUP(G136,distinfo,7)) -> 16864 | M136: =ROUND((L136*K136/100)-L136,0) -> 0 | N136: 1188
A137: 428 | B137: 130 | C137: 428 - BROOKE Charter School - CHELSEA pupils | D137: 428035057 | E137: 428 | F137: 35 | G137: 57 | H137: =IF(OR(A137=410,A137=466,A137=487,A137=499),2,1) -> 1 | I137: 1.084 | J137: 12 | K137: 104.4871979 | L137: 20546 | M137: 922 | N137: 1188
A138: 428 | B138: 131 | C138: 428 - BROOKE Charter School - DEDHAM pupils | D138: 428035073 | E138: 428 | F138: 35 | G138: 73 | H138: 1 | I138: 1.084 | J138: 6 | K138: 171.8946178 | L138: 17769 | M138: 12775 | N138: 1188
A139: 428 | B139: 132 | C139: 428 - BROOKE Charter School - EVERETT pupils | D139: 428035093 | E139: 428 | F139: 35 | G139: 93 | H139: 1 | I139: 1.084 | J139: 11 | K139: 100 | L139: 22657 | M139: 0 | N139: 1188
A140: 428 | B140: 133 | C140: 428 - BROOKE Charter School - HAVERHILL pupils | D140: 428035128 | E140: 428 | F140: 35 | G140: 128 | H140: 1 | I140: 1.084 | J140: 10 | K140: 105.4239251 | L140: 12210 | M140: 662 | N140: 1188
A141: 428 | B141: 134 | C141: 428 - BROOKE Charter School - HOLBROOK pupils | D141: 428035133 | E141: 428 | F141: 35 | G141: 133 | H141: 1 | I141: 1.084 | J141: 9 | K141: 100 | L141: 21663 | M141: 0 | N141: 1188
A142: 428 | B142: 135 | C142: 428 - BROOKE Charter School - LYNN pupils | D142: 428035163 | E142: 428 | F142: 35 | G142: 163 | H142: 1 | I142: 1.084 | J142: 11 | K142: 100 | L142: 17312 | M142: 0 | N142: 1188
A143: 428 | B143: 136 | C143: 428 - BROOKE Charter School - MALDEN pupils | D143: 428035165 | E143: 428 | F143: 35 | G143: 165 | H143: 1 | I143: 1.084 | J143: 10 | K143: 100 | L143: 21114 | M143: 0 | N143: 1188
A144: 428 | B144: 137 | C144: 428 - BROOKE Charter School - NORWOOD pupils | D144: 428035220 | E144: 428 | F144: 35 | G144: 220 | H144: 1 | I144: 1.084 | J144: 8 | K144: 135.4166195 | L144: 15835 | M144: 5608 | N144: 1188
A145: 428 | B145: 138 | C145: 428 - BROOKE Charter School - QUINCY pupils | D145: 428035243 | E145: 428 | F145: 35 | G145: 243 | H145: 1 | I145: 1.084 | J145: 9 | K145: 112.9385471 | L145: 20572 | M145: 2662 | N145: 1188
A146: 428 | B146: 139 | C146: 428 - BROOKE Charter School - RANDOLPH pupils | D146: 428035244 | E146: 428 | F146: 35 | G146: 244 | H146: 1 | I146: 1.084 | J146: 10 | K146: 124.1735281 | L146: 15543 | M146: 3757 | N146: 1188
A147: 428 | B147: 140 | C147: 428 - BROOKE Charter School - REVERE pupils | D147: 428035248 | E147: 428 | F147: 35 | G147: 248 | H147: 1 | I147: 1.084 | J147: 11 | K147: 103.6443865 | L147: 18284 | M147: 666 | N147: 1188
A148: 428 | B148: 141 | C148: 428 - BROOKE Charter School - SALEM pupils | D148: 428035258 | E148: 428 | F148: 35 | G148: 258 | H148: 1 | I148: 1.084 | J148: 10 | K148: 121.7768676 | L148: 12819 | M148: 2792 | N148: 1188
A149: 428 | B149: 142 | C149: 428 - BROOKE Charter School - SAUGUS pupils | D149: 428035262 | E149: 428 | F149: 35 | G149: 262 | H149: 1 | I149: 1.084 | J149: 10 | K149: 100.9373178 | L149: 21012 | M149: 197 | N149: 1188
A150: 428 | B150: 143 | C150: 428 - BROOKE Charter School - STOUGHTON pupils | D150: 428035285 | E150: 428 | F150: 35 | G150: 285 | H150: 1 | I150: 1.084 | J150: 9 | K150: 121.8883242 | L150: 14171 | M150: 3102 | N150: 1188
A151: 428 | B151: 144 | C151: 428 - BROOKE Charter School - TAUNTON pupils | D151: 428035293 | E151: 428 | F151: 35 | G151: 293 | H151: 1 | I151: 1.084 | J151: 10 | K151: 101.786148 | L151: 15553 | M151: 278 | N151: 1188
A152: 428 | B152: 145 | C152: 428 - BROOKE Charter School - WEYMOUTH pupils | D152: 428035336 | E152: 428 | F152: 35 | G152: 336 | H152: 1 | I152: 1.084 | J152: 8 | K152: 121.8817754 | L152: 14465 | M152: 3165 | N152: 1188
A153: 428 | B153: 146 | C153: 428 - BROOKE Charter School - WINTHROP pupils | D153: 428035346 | E153: 428 | F153: 35 | G153: 346 | H153: 1 | I153: 1.084 | J153: 8 | K153: 115.4720422 | L153: 13822 | M153: 2139 | N153: 1188
A154: 429 | B154: 147 | C154: 429 - KIPP ACADEMY LYNN Charter School - AMESBURY pupils | D154: 429163007 | E154: 429 | F154: 163 | G154: 7 | H154: 1 | I154: 1 | J154: 7 | K154: 146.1348139 | L154: 19190 | M154: 8853 | N154: 1188
A155: 429 | B155: 148 | C155: 429 - KIPP ACADEMY LYNN Charter School - BEVERLY pupils | D155: 429163030 | E155: 429 | F155: 163 | G155: 30 | H155: 1 | I155: 1 | J155: 6 | K155: 136.2167174 | L155: 18652 | M155: 6755 | N155: 1188
A156: 429 | B156: 149 | C156: 429 - KIPP ACADEMY LYNN Charter School - BOSTON pupils | D156: 429163035 | E156: 429 | F156: 163 | G156: 35 | H156: 1 | I156: 1 | J156: 11 | K156: 134.7462283 | L156: 20141 | M156: 6998 | N156: 1188
A157: 429 | B157: 150 | C157: 429 - KIPP ACADEMY LYNN Charter School - CAMBRIDGE pupils | D157: 429163049 | E157: 429 | F157: 163 | G157: 49 | H157: 1 | I157: 1 | J157: 8 | K157: 223.7778129 | L157: 18199 | M157: 22526 | N157: 1188
A158: 429 | B158: 151 | C158: 429 - KIPP ACADEMY LYNN Charter School - DANVERS pupils | D158: 429163071 | E158: 429 | F158: 163 | G158: 71 | H158: 1 | I158: 1 | J158: 6 | K158: 142.2588221 | L158: 18651 | M158: 7882 | N158: 1188
A159: 429 | B159: 152 | C159: 429 - KIPP ACADEMY LYNN Charter School - HAVERHILL pupils | D159: 429163128 | E159: 429 | F159: 163 | G159: 128 | H159: 1 | I159: 1 | J159: 10 | K159: 105.4239251 | L159: 19277 | M159: 1046 | N159: 1188
A160: 429 | B160: 153 | C160: 429 - KIPP ACADEMY LYNN Charter School - LOWELL pupils | D160: 429163160 | E160: 429 | F160: 163 | G160: 160 | H160: 1 | I160: 1 | J160: 11 | K160: 101.4812471 | L160: 21667 | M160: 321 | N160: 1188
A161: 429 | B161: 154 | C161: 429 - KIPP ACADEMY LYNN Charter School - LYNN pupils | D161: 429163163 | E161: 429 | F161: 163 | G161: 163 | H161: 1 | I161: 1 | J161: 11 | K161: 100 | L161: 18677 | M161: 0 | N161: 1188
A162: 429 | B162: 155 | C162: 429 - KIPP ACADEMY LYNN Charter School - MALDEN pupils | D162: 429163165 | E162: 429 | F162: 163 | G162: 165 | H162: 1 | I162: 1 | J162: 10 | K162: 100 | L162: 19134 | M162: 0 | N162: 1188
A163: 429 | B163: 156 | C163: 429 - KIPP ACADEMY LYNN Charter School - MARBLEHEAD pupils | D163: 429163168 | E163: 429 | F163: 163 | G163: 168 | H163: 1 | I163: 1 | J163: 3 | K163: 171.7094321 | L163: 15980 | M163: 11459 | N163: 1188
A164: 429 | B164: 157 | C164: 429 - KIPP ACADEMY LYNN Charter School - PEABODY pupils | D164: 429163229 | E164: 429 | F164: 163 | G164: 229 | H164: 1 | I164: 1 | J164: 9 | K164: 109.8985586 | L164: 16633 | M164: 1646 | N164: 1188
A165: 429 | B165: 158 | C165: 429 - KIPP ACADEMY LYNN Charter School - READING pupils | D165: 429163246 | E165: 429 | F165: 163 | G165: 246 | H165: 1 | I165: 1 | J165: 3 | K165: 141.1210321 | L165: 12989 | M165: 5341 | N165: 1188
A166: 429 | B166: 159 | C166: 429 - KIPP ACADEMY LYNN Charter School - REVERE pupils | D166: 429163248 | E166: 429 | F166: 163 | G166: 248 | H166: 1 | I166: 1 | J166: 11 | K166: 103.6443865 | L166: 15931 | M166: 581 | N166: 1188
A167: 429 | B167: 160 | C167: 429 - KIPP ACADEMY LYNN Charter School - SALEM pupils | D167: 429163258 | E167: 429 | F167: 163 | G167: 258 | H167: 1 | I167: 1 | J167: 10 | K167: 121.7768676 | L167: 17038 | M167: 3710 | N167: 1188
A168: 429 | B168: 161 | C168: 429 - KIPP ACADEMY LYNN Charter School - SAUGUS pupils | D168: 429163262 | E168: 429 | F168: 163 | G168: 262 | H168: 1 | I168: 1 | J168: 10 | K168: 100.9373178 | L168: 19539 | M168: 183 | N168: 1188
A169: 429 | B169: 162 | C169: 429 - KIPP ACADEMY LYNN Charter School - SOMERVILLE pupils | D169: 429163274 | E169: 429 | F169: 163 | G169: 274 | H169: 1 | I169: 1 | J169: 9 | K169: 151.4979517 | L169: 18710 | M169: 9635 | N169: 1188
A170: 429 | B170: 163 | C170: 429 - KIPP ACADEMY LYNN Charter School - SWAMPSCOTT pupils | D170: 429163291 | E170: 429 | F170: 163 | G170: 291 | H170: 1 | I170: 1 | J170: 5 | K170: 139.7145759 | L170: 17715 | M170: 7035 | N170: 1188
A171: 429 | B171: 164 | C171: 429 - KIPP ACADEMY LYNN Charter School - WAKEFIELD pupils | D171: 429163305 | E171: 429 | F171: 163 | G171: 305 | H171: 1 | I171: 1 | J171: 4 | K171: 144.9531827 | L171: 19101 | M171: 8587 | N171: 1188
A172: 429 | B172: 165 | C172: 429 - KIPP ACADEMY LYNN Charter School - WOBURN pupils | D172: 429163347 | E172: 429 | F172: 163 | G172: 347 | H172: 1 | I172: 1 | J172: 8 | K172: 145.5703368 | L172: 11091 | M172: 5054 | N172: 1188
A173: 430 | B173: 166 | C173: 430 - ADVANCED MATH AND SCIENCE ACADEMY Charter School - BELLINGHAM pupils | D173: 430170025 | E173: 430 | F173: 170 | G173: 25 | H173: 1 | I173: 1.026 | J173: 6 | K173: 142.0107157 | L173: 13254 | M173: 5568 | N173: 1188
A174: 430 | B174: 167 | C174: 430 - ADVANCED MATH AND SCIENCE ACADEMY Charter School - CLINTON pupils | D174: 430170064 | E174: 430 | F174: 170 | G174: 64 | H174: 1 | I174: 1.026 | J174: 10 | K174: 110.6360795 | L174: 14631 | M174: 1556 | N174: 1188
A175: 430 | B175: 168 | C175: 430 - ADVANCED MATH AND SCIENCE ACADEMY Charter School - FITCHBURG pupils | D175: 430170097 | E175: 430 | F175: 170 | G175: 97 | H175: 1 | I175: 1.026 | J175: 11 | K175: 100.6226704 | L175: 22133 | M175: 138 | N175: 1188
A176: 430 | B176: 169 | C176: 430 - ADVANCED MATH AND SCIENCE ACADEMY Charter School - FRAMINGHAM pupils | D176: 430170100 | E176: 430 | F176: 170 | G176: 100 | H176: 1 | I176: 1.026 | J176: 10 | K176: 127.0735724 | L176: 13253 | M176: 3588 | N176: 1188
A177: 430 | B177: 170 | C177: 430 - ADVANCED MATH AND SCIENCE ACADEMY Charter School - FRANKLIN pupils | D177: 430170101 | E177: 430 | F177: 170 | G177: 101 | H177: 1 | I177: 1.026 | J177: 4 | K177: 134.9448319 | L177: 12280 | M177: 4291 | N177: 1188
A178: 430 | B178: 171 | C178: 430 - ADVANCED MATH AND SCIENCE ACADEMY Charter School - GRAFTON pupils | D178: 430170110 | E178: 430 | F178: 170 | G178: 110 | H178: 1 | I178: 1.026 | J178: 4 | K178: 132.9143554 | L178: 13253 | M178: 4362 | N178: 1188
A179: 430 | B179: 172 | C179: 430 - ADVANCED MATH AND SCIENCE ACADEMY Charter School - HOLLISTON pupils | D179: 430170136 | E179: 430 | F179: 170 | G179: 136 | H179: 1 | I179: 1.026 | J179: 3 | K179: 136.6026662 | L179: 13253 | M179: 4851 | N179: 1188
A180: 430 | B180: 173 | C180: 430 - ADVANCED MATH AND SCIENCE ACADEMY Charter School - HOPKINTON pupils | D180: 430170139 | E180: 430 | F180: 170 | G180: 139 | H180: 1 | I180: 1.026 | J180: 2 | K180: 131.4968333 | L180: 13253 | M180: 4174 | N180: 1188
A181: 430 | B181: 174 | C181: 430 - ADVANCED MATH AND SCIENCE ACADEMY Charter School - HUDSON pupils | D181: 430170141 | E181: 430 | F181: 170 | G181: 141 | H181: 1 | I181: 1.026 | J181: 7 | K181: 152.9245627 | L181: 13318 | M181: 7048 | N181: 1188
A182: 430 | B182: 175 | C182: 430 - ADVANCED MATH AND SCIENCE ACADEMY Charter School - LEOMINSTER pupils | D182: 430170153 | E182: 430 | F182: 170 | G182: 153 | H182: 1 | I182: 1.026 | J182: 10 | K182: 100 | L182: 18583 | M182: 0 | N182: 1188
A183: 430 | B183: 176 | C183: 430 - ADVANCED MATH AND SCIENCE ACADEMY Charter School - LUNENBURG pupils | D183: 430170162 | E183: 430 | F183: 170 | G183: 162 | H183: 1 | I183: 1.026 | J183: 5 | K183: 120.459969 | L183: 13254 | M183: 2712 | N183: 1188
A184: 430 | B184: 177 | C184: 430 - ADVANCED MATH AND SCIENCE ACADEMY Charter School - MARLBOROUGH pupils | D184: 430170170 | E184: 430 | F184: 170 | G184: 170 | H184: 1 | I184: 1.026 | J184: 10 | K184: 111.112604 | L184: 14514 | M184: 1613 | N184: 1188
A185: 430 | B185: 178 | C185: 430 - ADVANCED MATH AND SCIENCE ACADEMY Charter School - MAYNARD pupils | D185: 430170174 | E185: 430 | F185: 170 | G185: 174 | H185: 1 | I185: 1.026 | J185: 5 | K185: 159.6857784 | L185: 12435 | M185: 7422 | N185: 1188
A186: 430 | B186: 179 | C186: 430 - ADVANCED MATH AND SCIENCE ACADEMY Charter School - MILFORD pupils | D186: 430170185 | E186: 430 | F186: 170 | G186: 185 | H186: 1 | I186: 1.026 | J186: 10 | K186: 113.9690958 | L186: 19951 | M186: 2787 | N186: 1188
A187: 430 | B187: 180 | C187: 430 - ADVANCED MATH AND SCIENCE ACADEMY Charter School - MILLBURY pupils | D187: 430170186 | E187: 430 | F187: 170 | G187: 186 | H187: 1 | I187: 1.026 | J187: 7 | K187: 137.2094046 | L187: 13254 | M187: 4932 | N187: 1188
A188: 430 | B188: 181 | C188: 430 - ADVANCED MATH AND SCIENCE ACADEMY Charter School - NATICK pupils | D188: 430170198 | E188: 430 | F188: 170 | G188: 198 | H188: 1 | I188: 1.026 | J188: 3 | K188: 153.8670261 | L188: 13253 | M188: 7139 | N188: 1188
A189: 430 | B189: 182 | C189: 430 - ADVANCED MATH AND SCIENCE ACADEMY Charter School - NORTHBOROUGH pupils | D189: 430170213 | E189: 430 | F189: 170 | G189: 213 | H189: 1 | I189: 1.026 | J189: 4 | K189: 171.1956087 | L189: 16288 | M189: 11596 | N189: 1188
A190: 430 | B190: 183 | C190: 430 - ADVANCED MATH AND SCIENCE ACADEMY Charter School - SHREWSBURY pupils | D190: 430170271 | E190: 430 | F190: 170 | G190: 271 | H190: 1 | I190: 1.026 | J190: 4 | K190: 134.652681 | L190: 13103 | M190: 4541 | N190: 1188
A191: 430 | B191: 184 | C191: 430 - ADVANCED MATH AND SCIENCE ACADEMY Charter School - WESTBOROUGH pupils | D191: 430170321 | E191: 430 | F191: 170 | G191: 321 | H191: 1 | I191: 1.026 | J191: 4 | K191: 153.2322543 | L191: 13471 | M191: 7171 | N191: 1188
A192: 430 | B192: 185 | C192: 430 - ADVANCED MATH AND SCIENCE ACADEMY Charter School - WORCESTER pupils | D192: 430170348 | E192: 430 | F192: 170 | G192: 348 | H192: 1 | I192: 1.026 | J192: 11 | K192: 100.34341 | L192: 18524 | M192: 64 | N192: 1188
A193: 430 | B193: 186 | C193: 430 - ADVANCED MATH AND SCIENCE ACADEMY Charter School - ACTON BOXBOROUGH pupils | D193: 430170600 | E193: 430 | F193: 170 | G193: 600 | H193: 1 | I193: 1.026 | J193: 3 | K193: 149.0665136 | L193: 13254 | M193: 6503 | N193: 1188
A194: 430 | B194: 187 | C194: 430 - ADVANCED MATH AND SCIENCE ACADEMY Charter School - AYER SHIRLEY pupils | D194: 430170616 | E194: 430 | F194: 170 | G194: 616 | H194: 1 | I194: 1.026 | J194: 7 | K194: 116.7366355 | L194: 12280 | M194: 2055 | N194: 1188
A195: 430 | B195: 188 | C195: 430 - ADVANCED MATH AND SCIENCE ACADEMY Charter School - BERLIN BOYLSTON pupils | D195: 430170620 | E195: 430 | F195: 170 | G195: 620 | H195: 1 | I195: 1.026 | J195: 4 | K195: 161.2277805 | L195: 15480 | M195: 9478 | N195: 1188
A196: 430 | B196: 189 | C196: 430 - ADVANCED MATH AND SCIENCE ACADEMY Charter School - GROTON DUNSTABLE pupils | D196: 430170673 | E196: 430 | F196: 170 | G196: 673 | H196: 1 | I196: 1.026 | J196: 2 | K196: 160.9984244 | L196: 13254 | M196: 8085 | N196: 1188
A197: 430 | B197: 190 | C197: 430 - ADVANCED MATH AND SCIENCE ACADEMY Charter School - KING PHILIP pupils | D197: 430170690 | E197: 430 | F197: 170 | G197: 690 | H197: 1 | I197: 1.026 | J197: 4 | K197: 139.5279134 | L197: 13253 | M197: 5239 | N197: 1188
A198: 430 | B198: 191 | C198: 430 - ADVANCED MATH AND SCIENCE ACADEMY Charter School - MENDON UPTON pupils | D198: 430170710 | E198: 430 | F198: 170 | G198: 710 | H198: 1 | I198: 1.026 | J198: 3 | K198: 150.8630157 | L198: 13254 | M198: 6741 | N198: 1188
A199: 430 | B199: 192 | C199: 430 - ADVANCED MATH AND SCIENCE ACADEMY Charter School - NASHOBA pupils | D199: 430170725 | E199: 430 | F199: 170 | G199: 725 | H199: 1 | I199: 1.026 | J199: 3 | K199: 130.1519335 | L199: 12697 | M199: 3828 | N199: 1188
A200: =IF(VALUE(MID(D200,1,1))=4,VALUE(MID(D200,1,3)),VALUE(MID(D200,1,4))) -> 430 | B200: 193 | C200: =IF(H200=1,A200 & " - " &VLOOKUP(A200,codeCHA,2)&" Charter School - "&VLOOKUP(G200,code436,2)&" pupils",IF(OR(A200=450,A200=466),A200 & " - " &VLOOKUP(A200,codeCHA,2)&" Charter School - "&VLOOKUP(F200,code436,2)&" District - "&VLOOKUP(G200,code436,2)&" pupils",A200 & " - " &VLOOKUP(A200,codeCHA,2)&" Charter School - "&VLOOKUP(F200,code436,2)&" Campus - "&VLOOKUP(G200,code436,2)&" pupils")) -> 430 - ADVANCED MATH AND SCIENCE ACADEMY Charter School - NORTHBORO SOUTHBORO pupils | D200: 430170730 | E200: =A200 -> 430 | F200: =IF(VALUE(MID(D200,1,1))=4,VALUE(MID(D200,4,3)),VALUE(MID(D200,5,3))) -> 170 | G200: =IF(VALUE(MID(D200,1,1))=4,VALUE(MID(D200,7,3)),VALUE(MID(D200,8,3))) -> 730 | H200: 1 | I200: =VLOOKUP(F200,distinfo,4) -> 1.026 | J200: =VLOOKUP(D200,enro_chafnd,16) -> 3 | K200: =VLOOKUP(G200,distinfo,6) -> 153.4844097 | L200: =IF(VLOOKUP(D200,rate_chafnd,40,FALSE)>0,VLOOKUP(D200,rate_chafnd,40),VLOOKUP(G200,distinfo,7)) -> 13253 | M200: =ROUND((L200*K200/100)-L200,0) -> 7088 | N200: 1188
A201: 430 | B201: 194 | C201: 430 - ADVANCED MATH AND SCIENCE ACADEMY Charter School - NORTH MIDDLESEX pupils | D201: 430170735 | E201: 430 | F201: 170 | G201: 735 | H201: =IF(OR(A201=410,A201=466,A201=487,A201=499),2,1) -> 1 | I201: 1.026 | J201: 6 | K201: 132.4967726 | L201: 12280 | M201: 3991 | N201: 1188
A202: 430 | B202: 195 | C202: 430 - ADVANCED MATH AND SCIENCE ACADEMY Charter School - WACHUSETT pupils | D202: 430170775 | E202: 430 | F202: 170 | G202: 775 | H202: 1 | I202: 1.026 | J202: 4 | K202: 131.3724601 | L202: 15462 | M202: 4851 | N202: 1188
A203: 432 | B203: 196 | C203: 432 - CAPE COD LIGHTHOUSE Charter School - BARNSTABLE pupils | D203: 432712020 | E203: 432 | F203: 712 | G203: 20 | H203: 1 | I203: 1 | J203: 10 | K203: 122.9093086 | L203: 13190 | M203: 3022 | N203: 1188
A204: 432 | B204: 197 | C204: 432 - CAPE COD LIGHTHOUSE Charter School - BOURNE pupils | D204: 432712036 | E204: 432 | F204: 712 | G204: 36 | H204: 1 | I204: 1 | J204: 7 | K204: 151.7799339 | L204: 11091 | M204: 5743 | N204: 1188
... 850 more rows

Sheet distinfo
D1: H:\FINANCE\SCHFIN\FY26data\c70fy26\5-Final\found26.xlsm | E1: H:\FINANCE\SCHFIN\FY26data\c70fy26\5-Final\found26.xlsm | F1: vlookup | G1: H:\FINANCE\SCHFIN\FY26data\c70fy26\5-Final\found26.xlsm | H1: derived | I1: Budget
D2: Devens = Harvard | E2: Devens = Harvard | G2: Devens = Harvard
D3: (dist435 col AD) | E3: (dist435 col BD) | G3: (dist435 col e/d)
A4: 1 | B4: 2 | C4: 3 | D4: 4 | E4: 5 | F4: 6 | G4: 7 | H4: 8 | I4: 9 | J4: 10 | K4: 11 | L4: 12 | M4: 13
A5: Lea | B5: District | C5: Op Status | D5: WAF | E5: Low Income Group | F5: Above Fnd % Used | G5: Found Base Rate | H5: Above Found Spending Rate | I5: Facilities Rate | J5: Preliminary Charter Rate | L5: diff | AX5: 1 | AZ5: 32 | BC5: 23
A6: 1 | B6: ABINGTON | C6: 1 | D6: 1.031 | E6: 7 | F6: =IF(AND(VLOOKUP(A6,rate_abvfndNEW,34)<100,C6=1),100,IF(A6=352,VLOOKUP(125,rate_abvfndNEW,34),VLOOKUP(A6,rate_abvfndNEW,34))) -> 114.2499633 | G6: 15227.74116 | H6: =IF(F6<>0,ROUND(G6*F6/100-G6,0),0) -> 2170 | I6: 1188 | J6: =IFERROR(ROUND(G6,0)+H6+I6,"") -> 18586 | AX6: 1 | AZ6: 32218371.7 | BC6: 2202 | BF6: =+AX6-A6 -> 0 | BH6: =IF(AZ6=0,0,AZ6/BC6) -> 14631.41313 | BJ6: =+BH6-G6 -> -596.3280377
A7: 2 | B7: ACTON | C7: 0 | D7: 1.053 | E7: 0 | F7: =IF(AND(VLOOKUP(A7,rate_abvfndNEW,34)<100,C7=1),100,IF(A7=352,VLOOKUP(125,rate_abvfndNEW,34),VLOOKUP(A7,rate_abvfndNEW,34))) -> 0 | G7: 0 | H7: 0 | I7: 1188 | J7: =IFERROR(ROUND(G7,0)+H7+I7,"") -> 1188 | AX7: 2 | AZ7: 0 | BC7: 0 | BF7: 0 | BH7: =IF(AZ7=0,0,AZ7/BC7) -> 0 | BJ7: 0
A8: 3 | B8: ACUSHNET | C8: 1 | D8: 1 | E8: 7 | F8: 112.7035053 | G8: 13828.15451 | H8: 1757 | I8: 1188 | J8: 16773 | AX8: 3 | AZ8: 15616988.59 | BC8: 1173 | BF8: 0 | BH8: 13313.71576 | BJ8: -514.4387463
A9: 4 | B9: ADAMS | C9: 0 | D9: 1 | E9: 0 | F9: 0 | G9: 0 | H9: 0 | I9: 1188 | J9: 1188 | AX9: 4 | AZ9: 0 | BC9: 0 | BF9: 0 | BH9: 0 | BJ9: 0
A10: 5 | B10: AGAWAM | C10: 1 | D10: 1 | E10: 8 | F10: 134.1248773 | G10: 15981.94522 | H10: 5454 | I10: 1188 | J10: 22624 | AX10: 5 | AZ10: 52963671.53 | BC10: 3486 | BF10: 0 | BH10: 15193.25058 | BJ10: -788.6946415
A11: 6 | B11: ALFORD | C11: 0 | D11: 1 | E11: 0 | F11: 0 | G11: 0 | H11: 0 | I11: 1188 | J11: 1188 | AX11: 6 | AZ11: 0 | BC11: 0 | BF11: 0 | BH11: 0 | BJ11: 0
A12: 7 | B12: AMESBURY | C12: 1 | D12: 1 | E12: 7 | F12: 146.1348139 | G12: 14647.88381 | H12: 6758 | I12: 1188 | J12: 22594 | AX12: 7 | AZ12: 26472545.38 | BC12: 1898 | BF12: 0 | BH12: 13947.60031 | BJ12: -700.2835037
A13: 8 | B13: AMHERST | C13: 1 | D13: 1 | E13: 7 | F13: 200.6045501 | G13: 14447.35504 | H13: 14535 | I13: 1188 | J13: 30170 | AX13: 8 | AZ13: 13465370.21 | BC13: 984 | BF13: 0 | BH13: 13684.31932 | BJ13: -763.0357243
A14: 9 | B14: ANDOVER | C14: 1 | D14: 1.086 | E14: 3 | F14: 167.6313759 | G14: 13891.16393 | H14: 9395 | I14: 1188 | J14: 24474 | AX14: 9 | AZ14: 72585434.36 | BC14: 5465 | BF14: 0 | BH14: 13281.87271 | BJ14: -609.2912149
A15: 10 | B15: ARLINGTON | C15: 1 | D15: 1.041 | E15: 3 | F15: 151.3903093 | G15: 13332.60521 | H15: 6852 | I15: 1188 | J15: 21373 | AX15: 10 | AZ15: 77440051.96 | BC15: 6021 | BF15: 0 | BH15: 12861.65952 | BJ15: -470.9456942
A16: 11 | B16: ASHBURNHAM | C16: 0 | D16: 1 | E16: 0 | F16: 0 | G16: 0 | H16: 0 | I16: 1188 | J16: 1188 | AX16: 11 | AZ16: 0 | BC16: 0 | BF16: 0 | BH16: 0 | BJ16: 0
A17: 12 | B17: ASHBY | C17: 0 | D17: 1 | E17: 0 | F17: 0 | G17: 0 | H17: 0 | I17: 1188 | J17: 1188 | AX17: 12 | AZ17: 0 | BC17: 0 | BF17: 0 | BH17: 0 | BJ17: 0
A18: 13 | B18: ASHFIELD | C18: 0 | D18: 1 | E18: 0 | F18: 0 | G18: 20030.485 | H18: 0 | I18: 1188 | J18: 21218 | AX18: 13 | AZ18: 216797.25 | BC18: 11 | BF18: 0 | BH18: 19708.84091 | BJ18: -321.6440909
A19: 14 | B19: ASHLAND | C19: 1 | D19: 1 | E19: 5 | F19: 126.3332916 | G19: 13820.76128 | H19: 3639 | I19: 1188 | J19: 18648 | AX19: 14 | AZ19: 37765344.57 | BC19: 2857 | BF19: 0 | BH19: 13218.53153 | BJ19: -602.2297499
A20: 15 | B20: ATHOL | C20: 0 | D20: 1 | E20: 0 | F20: 0 | G20: 0 | H20: 0 | I20: 1188 | J20: 1188 | AX20: 15 | AZ20: 0 | BC20: 0 | BF20: 0 | BH20: 0 | BJ20: 0
A21: 16 | B21: ATTLEBORO | C21: 1 | D21: 1 | E21: 8 | F21: 101.081649 | G21: 17092.30686 | H21: 185 | I21: 1188 | J21: 18465 | AX21: 16 | AZ21: 101966843.3 | BC21: 6313 | BF21: 0 | BH21: 16151.88393 | BJ21: -940.4229287
A22: 17 | B22: AUBURN | C22: 1 | D22: 1 | E22: 6 | F22: 120.9849652 | G22: 14239.35183 | H22: 2988 | I22: 1188 | J22: 18415 | AX22: 17 | AZ22: 32465114.43 | BC22: 2367 | BF22: 0 | BH22: 13715.72219 | BJ22: -523.6296324
A23: 18 | B23: AVON | C23: 1 | D23: 1 | E23: 9 | F23: 154.370121 | G23: 17601.17105 | H23: 9570 | I23: 1188 | J23: 28359 | AX23: 18 | AZ23: 9514711.52 | BC23: 572 | BF23: 0 | BH23: 16634.11105 | BJ23: -967.0600055
A24: 19 | B24: AYER | C24: 0 | D24: 1 | E24: 0 | F24: 0 | G24: 0 | H24: 0 | I24: 1188 | J24: 1188 | AX24: 19 | AZ24: 0 | BC24: 0 | BF24: 0 | BH24: 0 | BJ24: 0
A25: 20 | B25: BARNSTABLE | C25: 1 | D25: 1 | E25: 10 | F25: 122.9093086 | G25: 17453.59112 | H25: 3998 | I25: 1188 | J25: 22640 | AX25: 20 | AZ25: 88800528.96 | BC25: 5306 | BF25: 0 | BH25: 16735.87052 | BJ25: -717.7206022
A26: 21 | B26: BARRE | C26: 0 | D26: 1 | E26: 0 | F26: 0 | G26: 0 | H26: 0 | I26: 1188 | J26: 1188 | AX26: 21 | AZ26: 0 | BC26: 0 | BF26: 0 | BH26: 0 | BJ26: 0
A27: 22 | B27: BECKET | C27: 0 | D27: 1 | E27: 0 | F27: 0 | G27: 19044.51842 | H27: 0 | I27: 1188 | J27: 20233 | AX27: 22 | AZ27: 250517.91 | BC27: 13 | BF27: 0 | BH27: 19270.60846 | BJ27: 226.0900405
A28: 23 | B28: BEDFORD | C28: 1 | D28: 1.078 | E28: 3 | F28: 168.2422545 | G28: 13941.87752 | H28: 9514 | I28: 1188 | J28: 24644 | AX28: 23 | AZ28: 34823363.94 | BC28: 2579 | BF28: 0 | BH28: 13502.66147 | BJ28: -439.216045
A29: 24 | B29: BELCHERTOWN | C29: 1 | D29: 1 | E29: 5 | F29: 128.4552359 | G29: 13684.61222 | H29: 3894 | I29: 1188 | J29: 18767 | AX29: 24 | AZ29: 27898291.62 | BC29: 2106 | BF29: 0 | BH29: 13247.05205 | BJ29: -437.5601709
A30: 25 | B30: BELLINGHAM | C30: 1 | D30: 1 | E30: 6 | F30: 142.0107157 | G30: 14424.46752 | H30: 6060 | I30: 1188 | J30: 21672 | AX30: 25 | AZ30: 30061498.64 | BC30: 2175 | BF30: 0 | BH30: 13821.37869 | BJ30: -603.0888308
A31: 26 | B31: BELMONT | C31: 1 | D31: 1.043 | E31: 3 | F31: 139.1315665 | G31: 13634.97594 | H31: 5336 | I31: 1188 | J31: 20159 | AX31: 26 | AZ31: 59519672.35 | BC31: 4521 | BF31: 0 | BH31: 13165.15646 | BJ31: -469.8194799
A32: 27 | B32: BERKLEY | C32: 1 | D32: 1 | E32: 5 | F32: 124.95502 | G32: 13653.65086 | H32: 3407 | I32: 1188 | J32: 18249 | AX32: 27 | AZ32: 8885526.93 | BC32: 682 | BF32: 0 | BH32: 13028.63186 | BJ32: -625.0189972
A33: 28 | B33: BERLIN | C33: 0 | D33: 1.025 | E33: 0 | F33: 0 | G33: 0 | H33: 0 | I33: 1188 | J33: 1188 | AX33: 28 | AZ33: 0 | BC33: 0 | BF33: 0 | BH33: 0 | BJ33: 0
A34: 29 | B34: BERNARDSTON | C34: 0 | D34: 1 | E34: 0 | F34: 0 | G34: 0 | H34: 0 | I34: 1188 | J34: 1188 | AX34: 29 | AZ34: 0 | BC34: 0 | BF34: 0 | BH34: 0 | BJ34: 0
A35: 30 | B35: BEVERLY | C35: 1 | D35: 1 | E35: 6 | F35: 136.2167174 | G35: 14452.3259 | H35: 5234 | I35: 1188 | J35: 20874 | AX35: 30 | AZ35: 61923100.55 | BC35: 4466 | BF35: 0 | BH35: 13865.45019 | BJ35: -586.8757055
A36: 31 | B36: BILLERICA | C36: 1 | D36: 1 | E36: 5 | F36: 138.7519159 | G36: 13785.01533 | H36: 5342 | I36: 1188 | J36: 20315 | AX36: 31 | AZ36: 65207959.51 | BC36: 4925 | BF36: 0 | BH36: 13240.19482 | BJ36: -544.8205067
A37: 32 | B37: BLACKSTONE | C37: 0 | D37: 1 | E37: 0 | F37: 0 | G37: 20030.485 | H37: 0 | I37: 1188 | J37: 21218 | AX37: 32 | AZ37: 317959.23 | BC37: 17 | BF37: 0 | BH37: 18703.48412 | BJ37: -1327.000882
A38: 33 | B38: BLANDFORD | C38: 0 | D38: 1 | E38: 0 | F38: 0 | G38: 20273.77545 | H38: 0 | I38: 1188 | J38: 21462 | AX38: 33 | AZ38: 250517.91 | BC38: 13 | BF38: 0 | BH38: 19270.60846 | BJ38: -1003.166993
A39: 34 | B39: BOLTON | C39: 0 | D39: 1.04 | E39: 0 | F39: 0 | G39: 17898.5144 | H39: 0 | I39: 1188 | J39: 19087 | AX39: 34 | AZ39: 0 | BC39: 0 | BF39: 0 | BH39: 0 | BJ39: -17898.5144
A40: 35 | B40: BOSTON | C40: 1 | D40: 1.084 | E40: 11 | F40: 134.7462283 | G40: 21189.87445 | H40: 7363 | I40: 1188 | J40: 29741 | AX40: 35 | AZ40: 1144725045 | BC40: 57369 | BF40: 0 | BH40: 19953.72143 | BJ40: -1236.153023
A41: 36 | B41: BOURNE | C41: 1 | D41: 1 | E41: 7 | F41: 151.7799339 | G41: 14803.30617 | H41: 7665 | I41: 1188 | J41: 23656 | AX41: 36 | AZ41: 24109451.63 | BC41: 1698 | BF41: 0 | BH41: 14198.73476 | BJ41: -604.5714055
A42: 37 | B42: BOXBOROUGH | C42: 0 | D42: 1.094 | E42: 0 | F42: 0 | G42: 18633.21734 | H42: 0 | I42: 1188 | J42: 19821 | AX42: 37 | AZ42: 90908.90505 | BC42: 5 | BF42: 0 | BH42: 18181.78101 | BJ42: -451.43633
A43: 38 | B43: BOXFORD | C43: 1 | D43: 1.044 | E43: 2 | F43: 177.2315666 | G43: 12531.59814 | H43: 9678 | I43: 1188 | J43: 23398 | AX43: 38 | AZ43: 9024222.11 | BC43: 745 | BF43: 0 | BH43: 12113.04981 | BJ43: -418.5483294
A44: 39 | B44: BOYLSTON | C44: 0 | D44: 1 | E44: 0 | F44: 0 | G44: 17354.29 | H44: 0 | I44: 1188 | J44: 18542 | AX44: 39 | AZ44: 267378.24 | BC44: 14 | BF44: 0 | BH44: 19098.44571 | BJ44: 1744.155714
A45: 40 | B45: BRAINTREE | C45: 1 | D45: 1.048 | E45: 6 | F45: 133.4397227 | G45: 14790.24169 | H45: 4946 | I45: 1188 | J45: 20924 | AX45: 40 | AZ45: 73504510.39 | BC45: 5181 | BF45: 0 | BH45: 14187.32106 | BJ45: -602.9206321
A46: 41 | B46: BREWSTER | C46: 1 | D46: 1 | E46: 7 | F46: 191.2192864 | G46: 14513.31284 | H46: 13239 | I46: 1188 | J46: 28940 | AX46: 41 | AZ46: 5978097.31 | BC46: 421 | BF46: 0 | BH46: 14199.75608 | BJ46: -313.5567593
A47: 42 | B47: BRIDGEWATER | C47: 0 | D47: 1 | E47: 0 | F47: 0 | G47: 18692.3875 | H47: 0 | I47: 1188 | J47: 19880 | AX47: 42 | AZ47: 334819.56 | BC47: 18 | BF47: 0 | BH47: 18601.08667 | BJ47: -91.30083333
A48: 43 | B48: BRIMFIELD | C48: 1 | D48: 1 | E48: 6 | F48: 144.1129563 | G48: 13644.41378 | H48: 6019 | I48: 1188 | J48: 20851 | AX48: 43 | AZ48: 3670007.24 | BC48: 270 | BF48: 0 | BH48: 13592.61941 | BJ48: -51.79437745
A49: 44 | B49: BROCKTON | C49: 1 | D49: 1 | E49: 11 | F49: 100 | G49: 20038.41455 | H49: 0 | I49: 1188 | J49: 21226 | AX49: 44 | AZ49: 314644677 | BC49: 16775 | BF49: 0 | BH49: 18756.76167 | BJ49: -1281.652881
A50: 45 | B50: BROOKFIELD | C50: 1 | D50: 1 | E50: 7 | F50: 133.1868844 | G50: 14813.86145 | H50: 4916 | I50: 1188 | J50: 20918 | AX50: 45 | AZ50: 3232462.2 | BC50: 225 | BF50: 0 | BH50: 14366.49867 | BJ50: -447.3627813
A51: 46 | B51: BROOKLINE | C51: 1 | D51: 1.044 | E51: 3 | F51: 199.5286018 | G51: 13851.49875 | H51: 13786 | I51: 1188 | J51: 28825 | AX51: 46 | AZ51: 91960933.81 | BC51: 6899 | BF51: 0 | BH51: 13329.60339 | BJ51: -521.895355
A52: 47 | B52: BUCKLAND | C52: 0 | D52: 1 | E52: 0 | F52: 0 | G52: 0 | H52: 0 | I52: 1188 | J52: 1188 | AX52: 47 | AZ52: 16860.33 | BC52: 1 | BF52: 0 | BH52: 16860.33 | BJ52: 16860.33
A53: 48 | B53: BURLINGTON | C53: 1 | D53: 1.087 | E53: 4 | F53: 181.5320592 | G53: 14475.63848 | H53: 11802 | I53: 1188 | J53: 27466 | AX53: 48 | AZ53: 49023294.78 | BC53: 3523 | BF53: 0 | BH53: 13915.21282 | BJ53: -560.4256599
A54: 49 | B54: CAMBRIDGE | C54: 1 | D54: 1.111 | E54: 8 | F54: 223.7778129 | G54: 17393.3208 | H54: 21529 | I54: 1188 | J54: 40110 | AX54: 49 | AZ54: 118880084.1 | BC54: 7297 | BF54: 0 | BH54: 16291.63822 | BJ54: -1101.682578
A55: 50 | B55: CANTON | C55: 1 | D55: 1.064 | E55: 5 | F55: 143.6810883 | G55: 14346.73814 | H55: 6267 | I55: 1188 | J55: 21802 | AX55: 50 | AZ55: 44989384.12 | BC55: 3291 | BF55: 0 | BH55: 13670.42969 | BJ55: -676.3084463
A56: 51 | B56: CARLISLE | C56: 1 | D56: 1.051 | E56: 2 | F56: 201.4084022 | G56: 12565.40993 | H56: 12742 | I56: 1188 | J56: 26495 | AX56: 51 | AZ56: 6853478.081 | BC56: 571 | BF56: 0 | BH56: 12002.58858 | BJ56: -562.8213474
A57: 52 | B57: CARVER | C57: 1 | D57: 1.033 | E57: 6 | F57: 152.7867158 | G57: 14579.46869 | H57: 7696 | I57: 1188 | J57: 23463 | AX57: 52 | AZ57: 20942038.25 | BC57: 1501 | BF57: 0 | BH57: 13952.05746 | BJ57: -627.411224
A58: 53 | B58: CHARLEMONT | C58: 0 | D58: 1 | E58: 0 | F58: 0 | G58: 20030.485 | H58: 0 | I58: 1188 | J58: 21218 | AX58: 53 | AZ58: 216797.25 | BC58: 11 | BF58: 0 | BH58: 19708.84091 | BJ58: -321.6440909
A59: 54 | B59: CHARLTON | C59: 0 | D59: 1 | E59: 0 | F59: 0 | G59: 0 | H59: 0 | I59: 1188 | J59: 1188 | AX59: 54 | AZ59: 0 | BC59: 0 | BF59: 0 | BH59: 0 | BJ59: 0
A60: 55 | B60: CHATHAM | C60: 0 | D60: 1 | E60: 0 | F60: 0 | G60: 0 | H60: 0 | I60: 1188 | J60: 1188 | AX60: 55 | AZ60: 0 | BC60: 0 | BF60: 0 | BH60: 0 | BJ60: 0
A61: 56 | B61: CHELMSFORD | C61: 1 | D61: 1 | E61: 4 | F61: 131.6945641 | G61: 13370.82764 | H61: 4238 | I61: 1188 | J61: 18797 | AX61: 56 | AZ61: 66873411.15 | BC61: 5181 | BF61: 0 | BH61: 12907.43315 | BJ61: -463.3944903
A62: 57 | B62: CHELSEA | C62: 1 | D62: 1.039 | E62: 12 | F62: 104.4871979 | G62: 22168.7966 | H62: 995 | I62: 1188 | J62: 24352 | AX62: 57 | AZ62: 146607527.9 | BC62: 7095 | BF62: 0 | BH62: 20663.49936 | BJ62: -1505.297249
A63: 58 | B63: CHESHIRE | C63: 0 | D63: 1 | E63: 0 | F63: 0 | G63: 17354.29 | H63: 0 | I63: 1188 | J63: 18542 | AX63: 58 | AZ63: 16860.33 | BC63: 1 | BF63: 0 | BH63: 16860.33 | BJ63: -493.96
A64: 59 | B64: CHESTER | C64: 0 | D64: 1 | E64: 0 | F64: 0 | G64: 17354.29 | H64: 0 | I64: 1188 | J64: 18542 | AX64: 59 | AZ64: 118022.31 | BC64: 7 | BF64: 0 | BH64: 16860.33 | BJ64: -493.96
A65: 60 | B65: CHESTERFIELD | C65: 0 | D65: 1 | E65: 0 | F65: 0 | G65: 19495.246 | H65: 0 | I65: 1188 | J65: 20683 | AX65: 60 | AZ65: 267378.24 | BC65: 14 | BF65: 0 | BH65: 19098.44571 | BJ65: -396.8002857
A66: 61 | B66: CHICOPEE | C66: 1 | D66: 1 | E66: 11 | F66: 110.2216501 | G66: 18992.09067 | H66: 1941 | I66: 1188 | J66: 22121 | AX66: 61 | AZ66: 129024990.3 | BC66: 7202 | BF66: 0 | BH66: 17915.16111 | BJ66: -1076.92956
A67: 62 | B67: CHILMARK | C67: 0 | D67: 1 | E67: 0 | F67: 0 | G67: 0 | H67: 0 | I67: 1188 | J67: 1188 | AX67: 62 | AZ67: 0 | BC67: 0 | BF67: 0 | BH67: 0 | BJ67: 0
A68: 63 | B68: CLARKSBURG | C68: 1 | D68: 1 | E68: 8 | F68: 104.3800011 | G68: 14915.81552 | H68: 653 | I68: 1188 | J68: 16757 | AX68: 63 | AZ68: 2889718.21 | BC68: 204 | BF68: 0 | BH68: 14165.28534 | BJ68: -750.5301793
A69: 64 | B69: CLINTON | C69: 1 | D69: 1 | E69: 10 | F69: 110.6360795 | G69: 17171.80931 | H69: 1826 | I69: 1188 | J69: 20186 | AX69: 64 | AZ69: 34402202.62 | BC69: 2095 | BF69: 0 | BH69: 16421.0991 | BJ69: -750.7102069
A70: 65 | B70: COHASSET | C70: 1 | D70: 1.038 | E70: 2 | F70: =IF(AND(VLOOKUP(A70,rate_abvfndNEW,34)<100,C70=1),100,IF(A70=352,VLOOKUP(125,rate_abvfndNEW,34),VLOOKUP(A70,rate_abvfndNEW,34))) -> 171.238027 | G70: 12919.90066 | H70: =IF(F70<>0,ROUND(G70*F70/100-G70,0),0) -> 9204 | I70: 1188 | J70: 23312 | AX70: 65 | AZ70: 17839057.45 | BC70: 1433 | BF70: =+AX70-A70 -> 0 | BH70: 12448.74909 | BJ70: =+BH70-G70 -> -471.1515635
A71: 66 | B71: COLRAIN | C71: 0 | D71: 1 | E71: 0 | F71: 0 | G71: 0 | H71: 0 | I71: 1188 | J71: =IFERROR(ROUND(G71,0)+H71+I71,"") -> 1188 | AX71: 66 | AZ71: 0 | BC71: 0 | BF71: 0 | BH71: =IF(AZ71=0,0,AZ71/BC71) -> 0 | BJ71: 0
A72: 67 | B72: CONCORD | C72: 1 | D72: 1.058 | E72: 3 | F72: 212.8354562 | G72: 12929.15406 | H72: 14589 | I72: 1188 | J72: 28706 | AX72: 67 | AZ72: 24106981.04 | BC72: 1943 | BF72: 0 | BH72: 12407.09266 | BJ72: -522.0614036
A73: 68 | B73: CONWAY | C73: 1 | D73: 1 | E73: 5 | F73: 247.7881975 | G73: 14415.72373 | H73: 21305 | I73: 1188 | J73: 36909 | AX73: 68 | AZ73: 964363.6 | BC73: 68 | BF73: 0 | BH73: 14181.81765 | BJ73: -233.9060879
A74: 69 | B74: CUMMINGTON | C74: 0 | D74: 1 | E74: 0 | F74: 0 | G74: 17354.29 | H74: 0 | I74: 1188 | J74: 18542 | AX74: 69 | AZ74: 84301.65 | BC74: 5 | BF74: 0 | BH74: 16860.33 | BJ74: -493.96
A75: 70 | B75: DALTON | C75: 0 | D75: 1 | E75: 0 | F75: 0 | G75: 18589.45692 | H75: 0 | I75: 1188 | J75: 19777 | AX75: 70 | AZ75: 267378.24 | BC75: 14 | BF75: 0 | BH75: 19098.44571 | BJ75: 508.9887912
A76: 71 | B76: DANVERS | C76: 1 | D76: 1 | E76: 6 | F76: 142.2588221 | G76: 14028.38919 | H76: 5928 | I76: 1188 | J76: 21144 | AX76: 71 | AZ76: 44318617.54 | BC76: 3349 | BF76: 0 | BH76: 13233.38834 | BJ76: -795.0008573
A77: 72 | B77: DARTMOUTH | C77: 1 | D77: 1 | E77: 6 | F77: 131.7245177 | G77: 14172.85765 | H77: 4496 | I77: 1188 | J77: 19857 | AX77: 72 | AZ77: 44667767.9 | BC77: 3284 | BF77: 0 | BH77: 13601.63456 | BJ77: -571.2230876
A78: 73 | B78: DEDHAM | C78: 1 | D78: 1.041 | E78: 6 | F78: 171.8946178 | G78: 14811.50925 | H78: 10649 | I78: 1188 | J78: 26649 | AX78: 73 | AZ78: 39060888.15 | BC78: 2748 | BF78: 0 | BH78: 14214.297 | BJ78: -597.2122525
A79: 74 | B79: DEERFIELD | C79: 1 | D79: 1 | E79: 5 | F79: 199.4632682 | G79: 13383.20571 | H79: 13311 | I79: 1188 | J79: 27882 | AX79: 74 | AZ79: 3547455.86 | BC79: 279 | BF79: 0 | BH79: 12714.89556 | BJ79: -668.3101533
A80: 75 | B80: DENNIS | C80: 0 | D80: 1 | E80: 0 | F80: 0 | G80: 0 | H80: 0 | I80: 1188 | J80: 1188 | AX80: 75 | AZ80: 0 | BC80: 0 | BF80: 0 | BH80: 0 | BJ80: 0
A81: 76 | B81: DIGHTON | C81: 0 | D81: 1 | E81: 0 | F81: 0 | G81: 17354.29 | H81: 0 | I81: 1188 | J81: 18542 | AX81: 76 | AZ81: 16860.33 | BC81: 1 | BF81: 0 | BH81: 16860.33 | BJ81: -493.96
A82: 77 | B82: DOUGLAS | C82: 1 | D82: 1 | E82: 5 | F82: 137.4611595 | G82: 13731.45711 | H82: 5144 | I82: 1188 | J82: 20063 | AX82: 77 | AZ82: 14237865.39 | BC82: 1072 | BF82: 0 | BH82: 13281.59085 | BJ82: -449.8662597
A83: 78 | B83: DOVER | C83: 1 | D83: 1.057 | E83: 1 | F83: 203.733088 | G83: 12684.80023 | H83: 13158 | I83: 1188 | J83: 27031 | AX83: 78 | AZ83: 5959421.474 | BC83: 491 | BF83: 0 | BH83: 12137.31461 | BJ83: -547.485619
A84: 79 | B84: DRACUT | C84: 1 | D84: 1 | E84: 7 | F84: 105.6412121 | G84: 14821.46985 | H84: 836 | I84: 1188 | J84: 16845 | AX84: 79 | AZ84: 54523349.61 | BC84: 3834 | BF84: 0 | BH84: 14221.00929 | BJ84: -600.4605637
A85: 80 | B85: DUDLEY | C85: 0 | D85: 1 | E85: 0 | F85: 0 | G85: 17354.29 | H85: 0 | I85: 1188 | J85: 18542 | AX85: 80 | AZ85: 0 | BC85: 0 | BF85: 0 | BH85: 0 | BJ85: -17354.29
A86: 81 | B86: DUNSTABLE | C86: 0 | D86: 1 | E86: 0 | F86: 0 | G86: 0 | H86: 0 | I86: 1188 | J86: 1188 | AX86: 81 | AZ86: 0 | BC86: 0 | BF86: 0 | BH86: 0 | BJ86: 0
A87: 82 | B87: DUXBURY | C87: 1 | D87: 1.038 | E87: 2 | F87: 146.8755887 | G87: 13016.78071 | H87: 6102 | I87: 1188 | J87: 20307 | AX87: 82 | AZ87: 33652713.46 | BC87: 2658 | BF87: 0 | BH87: 12660.91552 | BJ87: -355.8651894
A88: 83 | B88: EAST BRIDGEWATER | C88: 1 | D88: 1 | E88: 6 | F88: 119.523006 | G88: 14151.46247 | H88: 2763 | I88: 1188 | J88: 18102 | AX88: 83 | AZ88: 26713492.3 | BC88: 1963 | BF88: 0 | BH88: 13608.50346 | BJ88: -542.9590104
A89: 84 | B89: EAST BROOKFIELD | C89: 0 | D89: 1 | E89: 0 | F89: 0 | G89: 18692.3875 | H89: 0 | I89: 1188 | J89: 19880 | AX89: 84 | AZ89: 267378.24 | BC89: 14 | BF89: 0 | BH89: 19098.44571 | BJ89: 406.0582143
A90: 85 | B90: EASTHAM | C90: 1 | D90: 1 | E90: 7 | F90: 181.7017818 | G90: 14416.0159 | H90: 11778 | I90: 1188 | J90: 27382 | AX90: 85 | AZ90: 2893667.62 | BC90: 198 | BF90: 0 | BH90: 14614.48293 | BJ90: 198.4670319
A91: 86 | B91: EASTHAMPTON | C91: 1 | D91: 1 | E91: 8 | F91: 115.4524831 | G91: 15263.03487 | H91: 2359 | I91: 1188 | J91: 18810 | AX91: 86 | AZ91: 23097746.73 | BC91: 1580 | BF91: 0 | BH91: 14618.82704 | BJ91: -644.2078247
A92: 87 | B92: EAST LONGMEADOW | C92: 1 | D92: 1 | E92: 6 | F92: 133.0085648 | G92: 14171.52957 | H92: 4678 | I92: 1188 | J92: 20038 | AX92: 87 | AZ92: 34405381.24 | BC92: 2522 | BF92: 0 | BH92: 13642.102 | BJ92: -529.4275721
A93: 88 | B93: EASTON | C93: 1 | D93: 1 | E93: 4 | F93: 129.3628588 | G93: 13522.74836 | H93: 3971 | I93: 1188 | J93: 18682 | AX93: 88 | AZ93: 44294804.81 | BC93: 3404 | BF93: 0 | BH93: 13012.57486 | BJ93: -510.1735047
A94: 89 | B94: EDGARTOWN | C94: 1 | D94: 1 | E94: 9 | F94: 247.5502817 | G94: 15958.55397 | H94: 23547 | I94: 1188 | J94: 40694 | AX94: 89 | AZ94: 6714943.73 | BC94: 434 | BF94: 0 | BH94: 15472.22058 | BJ94: -486.3333934
A95: 90 | B95: EGREMONT | C95: 0 | D95: 1 | E95: 0 | F95: 0 | G95: 0 | H95: 0 | I95: 1188 | J95: 1188 | AX95: 90 | AZ95: 0 | BC95: 0 | BF95: 0 | BH95: 0 | BJ95: 0
A96: 91 | B96: ERVING | C96: 1 | D96: 1 | E96: 8 | F96: 223.9837853 | G96: 14201.27766 | H96: 17607 | I96: 1188 | J96: 32996 | AX96: 91 | AZ96: 2756151.77 | BC96: 204 | BF96: 0 | BH96: 13510.54789 | BJ96: -690.729765
A97: 92 | B97: ESSEX | C97: 0 | D97: 1.038 | E97: 0 | F97: 0 | G97: 0 | H97: 0 | I97: 1188 | J97: 1188 | AX97: 92 | AZ97: 0 | BC97: 0 | BF97: 0 | BH97: 0 | BJ97: 0
A98: 93 | B98: EVERETT | C98: 1 | D98: 1.042 | E98: 11 | F98: 100 | G98: 21564.70653 | H98: 0 | I98: 1188 | J98: 22753 | AX98: 93 | AZ98: 161607819 | BC98: 8020 | BF98: 0 | BH98: 20150.60088 | BJ98: -1414.10565
A99: 94 | B99: FAIRHAVEN | C99: 1 | D99: 1 | E99: 8 | F99: 107.6516635 | G99: 15424.93744 | H99: 1180 | I99: 1188 | J99: 17793 | AX99: 94 | AZ99: 23585501.07 | BC99: 1595 | BF99: 0 | BH99: 14787.14801 | BJ99: -637.789434
A100: 95 | B100: FALL RIVER | C100: 1 | D100: 1 | E100: 12 | F100: 100.0656992 | G100: 20903.90005 | H100: 14 | I100: 1188 | J100: 22106 | AX100: 95 | AZ100: 242840295.5 | BC100: 12433 | BF100: 0 | BH100: 19531.9147 | BJ100: -1371.985346
A101: 96 | B101: FALMOUTH | C101: 1 | D101: 1 | E101: 8 | F101: 171.409775 | G101: 15603.78718 | H101: 11143 | I101: 1188 | J101: 27935 | AX101: 96 | AZ101: 43193356.16 | BC101: 2870 | BF101: 0 | BH101: 15049.94988 | BJ101: -553.8372964
A102: 97 | B102: FITCHBURG | C102: 1 | D102: 1 | E102: 11 | F102: 100.6226704 | G102: 19086.90638 | H102: 119 | I102: 1188 | J102: 20394 | AX102: 97 | AZ102: 101009130.4 | BC102: 5623 | BF102: 0 | BH102: 17963.56579 | BJ102: -1123.340595
A103: 98 | B103: FLORIDA | C103: 1 | D103: 1 | E103: 8 | F103: 206.8081004 | G103: 16325.33319 | H103: 17437 | I103: 1188 | J103: 34950 | AX103: 98 | AZ103: 865066.34 | BC103: 55 | BF103: 0 | BH103: 15728.47891 | BJ103: -596.8542824
A104: 99 | B104: FOXBOROUGH | C104: 1 | D104: 1.06 | E104: 5 | F104: 144.0432053 | G104: 14407.75265 | H104: 6346 | I104: 1188 | J104: 21942 | AX104: 99 | AZ104: 35589023.05 | BC104: 2573 | BF104: 0 | BH104: 13831.72291 | BJ104: -576.0297403
A105: 100 | B105: FRAMINGHAM | C105: 1 | D105: 1.018 | E105: 10 | F105: 127.0735724 | G105: 18250.95153 | H105: 4941 | I105: 1188 | J105: 24380 | AX105: 100 | AZ105: 163975458.5 | BC105: 9521 | BF105: 0 | BH105: 17222.50379 | BJ105: -1028.447748
A106: 101 | B106: FRANKLIN | C106: 1 | D106: 1.05 | E106: 4 | F106: 134.9448319 | G106: 13736.51411 | H106: 4800 | I106: 1188 | J106: 19725 | AX106: 101 | AZ106: 66575133.26 | BC106: 5058 | BF106: 0 | BH106: 13162.34347 | BJ106: -574.170639
A107: 102 | B107: FREETOWN | C107: 0 | D107: 1 | E107: 0 | F107: 0 | G107: 17354.29 | H107: 0 | I107: 1188 | J107: 18542 | AX107: 102 | AZ107: 16860.33 | BC107: 1 | BF107: 0 | BH107: 16860.33 | BJ107: -493.96
A108: 103 | B108: GARDNER | C108: 1 | D108: 1 | E108: 10 | F108: 100.3099423 | G108: 18015.36401 | H108: 56 | I108: 1188 | J108: 19259 | AX108: 103 | AZ108: 41579344.61 | BC108: 2453 | BF108: 0 | BH108: 16950.40547 | BJ108: -1064.958541
A109: 104 | B109: AQUINNAH | C109: 0 | D109: 1 | E109: 0 | F109: 0 | G109: 0 | H109: 0 | I109: 1188 | J109: 1188 | AX109: 104 | AZ109: 0 | BC109: 0 | BF109: 0 | BH109: 0 | BJ109: 0
A110: 105 | B110: GEORGETOWN | C110: 1 | D110: 1 | E110: 3 | F110: 159.2730096 | G110: 12983.36506 | H110: 7696 | I110: 1188 | J110: 21867 | AX110: 105 | AZ110: 15093327.77 | BC110: 1196 | BF110: 0 | BH110: 12619.83927 | BJ110: -363.5257836
A111: 106 | B111: GILL | C111: 0 | D111: 1 | E111: 0 | F111: 0 | G111: 0 | H111: 0 | I111: 1188 | J111: 1188 | AX111: 106 | AZ111: 0 | BC111: 0 | BF111: 0 | BH111: 0 | BJ111: 0
A112: 107 | B112: GLOUCESTER | C112: 1 | D112: 1.042 | E112: 9 | F112: 128.7843148 | G112: 16852.7897 | H112: 4851 | I112: 1188 | J112: 22892 | AX112: 107 | AZ112: 49312993.39 | BC112: 3064 | BF112: 0 | BH112: 16094.31899 | BJ112: -758.4707045
A113: 108 | B113: GOSHEN | C113: 0 | D113: 1 | E113: 0 | F113: 0 | G113: 20030.485 | H113: 0 | I113: 1188 | J113: 21218 | AX113: 108 | AZ113: 151742.97 | BC113: 9 | BF113: 0 | BH113: 16860.33 | BJ113: -3170.155
A114: 109 | B114: GOSNOLD | C114: 0 | D114: 1 | E114: 0 | F114: 0 | G114: 0 | H114: 0 | I114: 1188 | J114: 1188 | AX114: 109 | AZ114: 0 | BC114: 0 | BF114: 0 | BH114: 0 | BJ114: 0
A115: 110 | B115: GRAFTON | C115: 1 | D115: 1 | E115: 4 | F115: 132.9143554 | G115: 13329.6131 | H115: 4387 | I115: 1188 | J115: 18905 | AX115: 110 | AZ115: 37093634.1 | BC115: 2902 | BF115: 0 | BH115: 12782.09307 | BJ115: -547.5200284
A116: 111 | B116: GRANBY | C116: 1 | D116: 1 | E116: 7 | F116: 132.8011121 | G116: 14779.76793 | H116: 4848 | I116: 1188 | J116: 20816 | AX116: 111 | AZ116: 9651932.1 | BC116: 655 | BF116: 0 | BH116: 14735.7742 | BJ116: -43.99372664
A117: 112 | B117: GRANVILLE | C117: 0 | D117: 1 | E117: 0 | F117: 0 | G117: 18638.8636 | H117: 0 | I117: 1188 | J117: 19827 | AX117: 112 | AZ117: 0 | BC117: 0 | BF117: 0 | BH117: 0 | BJ117: -18638.8636
A118: 113 | B118: GREAT BARRINGTON | C118: 0 | D118: 1 | E118: 0 | F118: 0 | G118: 0 | H118: 0 | I118: 1188 | J118: 1188 | AX118: 113 | AZ118: 0 | BC118: 0 | BF118: 0 | BH118: 0 | BJ118: 0
A119: 114 | B119: GREENFIELD | C119: 1 | D119: 1 | E119: 10 | F119: 122.1602048 | G119: 16673.0989 | H119: 3695 | I119: 1188 | J119: 21556 | AX119: 114 | AZ119: 27946623.42 | BC119: 1759 | BF119: 0 | BH119: 15887.79046 | BJ119: -785.3084422
A120: 115 | B120: GROTON | C120: 0 | D120: 1 | E120: 0 | F120: 0 | G120: 0 | H120: 0 | I120: 1188 | J120: 1188 | AX120: 115 | AZ120: 0 | BC120: 0 | BF120: 0 | BH120: 0 | BJ120: 0
A121: 116 | B121: GROVELAND | C121: 0 | D121: 1 | E121: 0 | F121: 0 | G121: 17354.29 | H121: 0 | I121: 1188 | J121: 18542 | AX121: 116 | AZ121: 168603.3 | BC121: 10 | BF121: 0 | BH121: 16860.33 | BJ121: -493.96
A122: 117 | B122: HADLEY | C122: 1 | D122: 1 | E122: 6 | F122: 127.5766344 | G122: 15159.09667 | H122: 4180 | I122: 1188 | J122: 20527 | AX122: 117 | AZ122: 6210751.32 | BC122: 449 | BF122: 0 | BH122: 13832.40829 | BJ122: -1326.688382
A123: 118 | B123: HALIFAX | C123: 1 | D123: 1.026 | E123: 6 | F123: 106.0918418 | G123: 13768.2241 | H123: 839 | I123: 1188 | J123: 15795 | AX123: 118 | AZ123: 7511760.556 | BC123: 564 | BF123: 0 | BH123: 13318.72439 | BJ123: -449.4997122
A124: 119 | B124: HAMILTON | C124: 0 | D124: 1.041 | E124: 0 | F124: 0 | G124: 0 | H124: 0 | I124: 1188 | J124: 1188 | AX124: 119 | AZ124: 0 | BC124: 0 | BF124: 0 | BH124: 0 | BJ124: 0
A125: 120 | B125: HAMPDEN | C125: 0 | D125: 1 | E125: 0 | F125: 0 | G125: 0 | H125: 0 | I125: 1188 | J125: 1188 | AX125: 120 | AZ125: 0 | BC125: 0 | BF125: 0 | BH125: 0 | BJ125: 0
A126: 121 | B126: HANCOCK | C126: 1 | D126: 1 | E126: 7 | F126: 154.8984933 | G126: 14546.7093 | H126: 7986 | I126: 1188 | J126: 23721 | AX126: 121 | AZ126: 1270682.74 | BC126: 85 | BF126: 0 | BH126: 14949.20871 | BJ126: 402.4994036
A127: 122 | B127: HANOVER | C127: 1 | D127: 1.036 | E127: 3 | F127: 135.9593499 | G127: 13167.09575 | H127: 4735 | I127: 1188 | J127: 19090 | AX127: 122 | AZ127: 31856906.4 | BC127: 2497 | BF127: 0 | BH127: 12758.07225 | BJ127: -409.023501
A128: 123 | B128: HANSON | C128: 0 | D128: 1 | E128: 0 | F128: 0 | G128: 17354.29 | H128: 0 | I128: 1188 | J128: 18542 | AX128: 123 | AZ128: 101161.98 | BC128: 6 | BF128: 0 | BH128: 16860.33 | BJ128: -493.96
A129: 124 | B129: HARDWICK | C129: 0 | D129: 1 | E129: 0 | F129: 0 | G129: 0 | H129: 0 | I129: 1188 | J129: 1188 | AX129: 124 | AZ129: 0 | BC129: 0 | BF129: 0 | BH129: 0 | BJ129: 0
A130: 125 | B130: HARVARD | C130: 1 | D130: 1 | E130: 3 | F130: 155.5178433 | G130: 13025.18895 | H130: 7231 | I130: 1188 | J130: 21444 | AX130: 125 | AZ130: 10978851.09 | BC130: 881 | BF130: 0 | BH130: 12461.806 | BJ130: -563.3829471
A131: 126 | B131: HARWICH | C131: 0 | D131: 1 | E131: 0 | F131: 0 | G131: 0 | H131: 0 | I131: 1188 | J131: 1188 | AX131: 126 | AZ131: 0 | BC131: 0 | BF131: 0 | BH131: 0 | BJ131: 0
A132: 127 | B132: HATFIELD | C132: 1 | D132: 1 | E132: 5 | F132: 202.2317856 | G132: 14323.45194 | H132: 14643 | I132: 1188 | J132: 30154 | AX132: 127 | AZ132: 4163176.24 | BC132: 310 | BF132: 0 | BH132: 13429.60077 | BJ132: -893.8511683
A133: 128 | B133: HAVERHILL | C133: 1 | D133: 1 | E133: 10 | F133: 105.4239251 | G133: 17749.03671 | H133: 963 | I133: 1188 | J133: 19900 | AX133: 128 | AZ133: 140785594.1 | BC133: 8401 | BF133: 0 | BH133: 16758.19475 | BJ133: -990.8419559
A134: 129 | B134: HAWLEY | C134: 0 | D134: 1 | E134: 0 | F134: =IF(AND(VLOOKUP(A134,rate_abvfndNEW,34)<100,C134=1),100,IF(A134=352,VLOOKUP(125,rate_abvfndNEW,34),VLOOKUP(A134,rate_abvfndNEW,34))) -> 0 | G134: 17354.29 | H134: =IF(F134<>0,ROUND(G134*F134/100-G134,0),0) -> 0 | I134: 1188 | J134: 18542 | AX134: 129 | AZ134: 67441.32 | BC134: 4 | BF134: =+AX134-A134 -> 0 | BH134: 16860.33 | BJ134: =+BH134-G134 -> -493.96
A135: 130 | B135: HEATH | C135: 0 | D135: 1 | E135: 0 | F135: 0 | G135: 0 | H135: 0 | I135: 1188 | J135: =IFERROR(ROUND(G135,0)+H135+I135,"") -> 1188 | AX135: 130 | AZ135: 0 | BC135: 0 | BF135: 0 | BH135: =IF(AZ135=0,0,AZ135/BC135) -> 0 | BJ135: 0
A136: 131 | B136: HINGHAM | C136: 1 | D136: 1.052 | E136: 2 | F136: 164.4856559 | G136: 13218.30855 | H136: 8524 | I136: 1188 | J136: 22930 | AX136: 131 | AZ136: 45880135.11 | BC136: 3606 | BF136: 0 | BH136: 12723.27651 | BJ136: -495.0320371
A137: 132 | B137: HINSDALE | C137: 0 | D137: 1 | E137: 0 | F137: 0 | G137: 17354.29 | H137: 0 | I137: 1188 | J137: 18542 | AX137: 132 | AZ137: 168603.3 | BC137: 10 | BF137: 0 | BH137: 16860.33 | BJ137: -493.96
A138: 133 | B138: HOLBROOK | C138: 1 | D138: 1.041 | E138: 9 | F138: 100 | G138: 16795.98438 | H138: 0 | I138: 1188 | J138: 17984 | AX138: 133 | AZ138: 21264601.48 | BC138: 1355 | BF138: 0 | BH138: 15693.43283 | BJ138: -1102.551553
A139: 134 | B139: HOLDEN | C139: 0 | D139: 1 | E139: 0 | F139: 0 | G139: 17354.29 | H139: 0 | I139: 1188 | J139: 18542 | AX139: 134 | AZ139: 33720.66 | BC139: 2 | BF139: 0 | BH139: 16860.33 | BJ139: -493.96
A140: 135 | B140: HOLLAND | C140: 1 | D140: 1 | E140: 7 | F140: 164.1993374 | G140: 15175.06529 | H140: 9742 | I140: 1188 | J140: 26105 | AX140: 135 | AZ140: 2372741.1 | BC140: 157 | BF140: 0 | BH140: 15113.00064 | BJ140: -62.06465717
A141: 136 | B141: HOLLISTON | C141: 1 | D141: 1.012 | E141: 3 | F141: 136.6026662 | G141: 13189.19515 | H141: 4828 | I141: 1188 | J141: 19205 | AX141: 136 | AZ141: 33400106.24 | BC141: 2652 | BF141: 0 | BH141: 12594.30854 | BJ141: -594.886608
A142: 137 | B142: HOLYOKE | C142: 1 | D142: 1 | E142: 12 | F142: 102.9359084 | G142: 20799.75092 | H142: 611 | I142: 1188 | J142: 22599 | AX142: 137 | AZ142: 114196080.5 | BC142: 5850 | BF142: 0 | BH142: 19520.69752 | BJ142: -1279.053399
A143: 138 | B143: HOPEDALE | C143: 1 | D143: 1.005 | E143: 5 | F143: 153.6543934 | G143: 14159.89961 | H143: 7597 | I143: 1188 | J143: 22945 | AX143: 138 | AZ143: 11657637.4 | BC143: 865 | BF143: 0 | BH143: 13477.03746 | BJ143: -682.862153
A144: 139 | B144: HOPKINTON | C144: 1 | D144: 1.038 | E144: 2 | F144: 131.4968333 | G144: 13171.35864 | H144: 4149 | I144: 1188 | J144: 18508 | AX144: 139 | AZ144: 52659810.85 | BC144: 4165 | BF144: 0 | BH144: 12643.41197 | BJ144: -527.9466757
A145: 140 | B145: HUBBARDSTON | C145: 0 | D145: 1 | E145: 0 | F145: 0 | G145: 0 | H145: 0 | I145: 1188 | J145: 1188 | AX145: 140 | AZ145: 0 | BC145: 0 | BF145: 0 | BH145: 0 | BJ145: 0
A146: 141 | B146: HUDSON | C146: 1 | D146: 1.003 | E146: 7 | F146: 152.9245627 | G146: 15471.96182 | H146: 8188 | I146: 1188 | J146: 24848 | AX146: 141 | AZ146: 35380191.65 | BC146: 2407 | BF146: 0 | BH146: 14698.8748 | BJ146: -773.0870163
A147: 142 | B147: HULL | C147: 1 | D147: 1.029 | E147: 7 | F147: 205.8363976 | G147: 14956.88233 | H147: 15830 | I147: 1188 | J147: 31975 | AX147: 142 | AZ147: 10807124.3 | BC147: 757 | BF147: 0 | BH147: 14276.25403 | BJ147: -680.6282966
A148: 143 | B148: HUNTINGTON | C148: 0 | D148: 1 | E148: 0 | F148: 0 | G148: 19001.17923 | H148: 0 | I148: 1188 | J148: 20189 | AX148: 143 | AZ148: 686499.45 | BC148: 37 | BF148: 0 | BH148: 18554.03919 | BJ148: -447.1400416
A149: 144 | B149: IPSWICH | C149: 1 | D149: 1.053 | E149: 4 | F149: 177.8861567 | G149: 14005.47529 | H149: 10908 | I149: 1188 | J149: 26101 | AX149: 144 | AZ149: 21026999.6 | BC149: 1551 | BF149: 0 | BH149: 13557.0597 | BJ149: -448.4155893
A150: 145 | B150: KINGSTON | C150: 1 | D150: 1.034 | E150: 5 | F150: 108.4139257 | G150: 13797.86895 | H150: 1161 | I150: 1188 | J150: 16147 | AX150: 145 | AZ150: 14861289.73 | BC150: 1151 | BF150: 0 | BH150: 12911.63313 | BJ150: -886.2358231
A151: 146 | B151: LAKEVILLE | C151: 0 | D151: 1 | E151: 0 | F151: 0 | G151: 18960.007 | H151: 0 | I151: 1188 | J151: 20148 | AX151: 146 | AZ151: 267378.24 | BC151: 14 | BF151: 0 | BH151: 19098.44571 | BJ151: 138.4387143
A152: 147 | B152: LANCASTER | C152: 0 | D152: 1 | E152: 0 | F152: 0 | G152: 17354.29 | H152: 0 | I152: 1188 | J152: 18542 | AX152: 147 | AZ152: 33720.66 | BC152: 2 | BF152: 0 | BH152: 16860.33 | BJ152: -493.96
A153: 148 | B153: LANESBOROUGH | C153: 0 | D153: 1 | E153: 0 | F153: 0 | G153: 0 | H153: 0 | I153: 1188 | J153: 1188 | AX153: 148 | AZ153: 0 | BC153: 0 | BF153: 0 | BH153: 0 | BJ153: 0
A154: 149 | B154: LAWRENCE | C154: 1 | D154: 1 | E154: 12 | F154: 101.6215543 | G154: 21948.89083 | H154: 356 | I154: 1188 | J154: 23493 | AX154: 149 | AZ154: 301147638.3 | BC154: 14816 | BF154: 0 | BH154: 20325.83952 | BJ154: -1623.051311
A155: 150 | B155: LEE | C155: 1 | D155: 1 | E155: 8 | F155: 180.0647484 | G155: 16390.61317 | H155: 13123 | I155: 1188 | J155: 30702 | AX155: 150 | AZ155: 8560093.52 | BC155: 549 | BF155: 0 | BH155: 15592.15577 | BJ155: -798.4573916
A156: 151 | B156: LEICESTER | C156: 1 | D156: 1 | E156: 8 | F156: 122.9899938 | G156: 15945.11282 | H156: 3666 | I156: 1188 | J156: 20799 | AX156: 151 | AZ156: 21355735.5 | BC156: 1405 | BF156: 0 | BH156: 15199.81174 | BJ156: -745.3010798
A157: 152 | B157: LENOX | C157: 1 | D157: 1 | E157: 5 | F157: 264.0513448 | G157: 14785.80147 | H157: 24256 | I157: 1188 | J157: 40230 | AX157: 152 | AZ157: 6818728.75 | BC157: 482 | BF157: 0 | BH157: 14146.74015 | BJ157: -639.0613287
A158: 153 | B158: LEOMINSTER | C158: 1 | D158: 1 | E158: 10 | F158: 100 | G158: 18182.60176 | H158: 0 | I158: 1188 | J158: 19371 | AX158: 153 | AZ158: 103670289.4 | BC158: 6009 | BF158: 0 | BH158: 17252.5028 | BJ158: -930.09896
A159: 154 | B159: LEVERETT | C159: 1 | D159: 1 | E159: 5 | F159: 221.8413634 | G159: 13587.79323 | H159: 16556 | I159: 1188 | J159: 31332 | AX159: 154 | AZ159: 1407132.92 | BC159: 105 | BF159: 0 | BH159: 13401.2659 | BJ159: -186.5273244
A160: 155 | B160: LEXINGTON | C160: 1 | D160: 1.083 | E160: 2 | F160: 188.9209877 | G160: 13881.72493 | H160: 12344 | I160: 1188 | J160: 27414 | AX160: 155 | AZ160: 91458917.92 | BC160: 6851 | BF160: 0 | BH160: 13349.71799 | BJ160: -532.0069463
A161: 156 | B161: LEYDEN | C161: 0 | D161: 1 | E161: 0 | F161: 0 | G161: 0 | H161: 0 | I161: 1188 | J161: 1188 | AX161: 156 | AZ161: 0 | BC161: 0 | BF161: 0 | BH161: 0 | BJ161: 0
A162: 157 | B162: LINCOLN | C162: 1 | D162: 1.051 | E162: 3 | F162: 198.177351 | G162: 13550.70254 | H162: 13304 | I162: 1188 | J162: 28043 | AX162: 157 | AZ162: 7515362.228 | BC162: 585 | BF162: 0 | BH162: 12846.77304 | BJ162: -703.9295037
A163: 158 | B163: LITTLETON | C163: 1 | D163: 1 | E163: 2 | F163: 143.1783839 | G163: 12792.03373 | H163: 5523 | I163: 1188 | J163: 19503 | AX163: 158 | AZ163: 20185599.03 | BC163: 1636 | BF163: 0 | BH163: 12338.38572 | BJ163: -453.6480138
A164: 159 | B164: LONGMEADOW | C164: 1 | D164: 1 | E164: 3 | F164: 140.1317003 | G164: 13041.03676 | H164: 5234 | I164: 1188 | J164: 19463 | AX164: 159 | AZ164: 34209142.06 | BC164: 2723 | BF164: 0 | BH164: 12563.03418 | BJ164: -478.0025888
A165: 160 | B165: LOWELL | C165: 1 | D165: 1 | E165: 11 | F165: 101.4812471 | G165: 19627.33383 | H165: 291 | I165: 1188 | J165: 21106 | AX165: 160 | AZ165: 307821096.1 | BC165: 16506 | BF165: 0 | BH165: 18649.04253 | BJ165: -978.2912992
A166: 161 | B166: LUDLOW | C166: 1 | D166: 1 | E166: 8 | F166: 134.2625985 | G166: 15623.20669 | H166: 5353 | I166: 1188 | J166: 22164 | AX166: 161 | AZ166: 33315843.15 | BC166: 2221 | BF166: 0 | BH166: 15000.37963 | BJ166: -622.8270661
A167: 162 | B167: LUNENBURG | C167: 1 | D167: 1 | E167: 5 | F167: 120.459969 | G167: 13770.3966 | H167: 2817 | I167: 1188 | J167: 17775 | AX167: 162 | AZ167: 21553250.21 | BC167: 1633 | BF167: 0 | BH167: 13198.56106 | BJ167: -571.8355407
A168: 163 | B168: LYNN | C168: 1 | D168: 1 | E168: 11 | F168: 100 | G168: 20777.29574 | H168: 0 | I168: 1188 | J168: 21965 | AX168: 163 | AZ168: 351559827.6 | BC168: 18143 | BF168: 0 | BH168: 19377.16076 | BJ168: -1400.134986
A169: 164 | B169: LYNNFIELD | C169: 1 | D169: 1.039 | E169: 2 | F169: 152.2530891 | G169: 13161.70907 | H169: 6877 | I169: 1188 | J169: 21227 | AX169: 164 | AZ169: 27975039.2 | BC169: 2195 | BF169: 0 | BH169: 12744.89257 | BJ169: -416.8164939
A170: 165 | B170: MALDEN | C170: 1 | D170: 1.038 | E170: 10 | F170: 100 | G170: 18830.34407 | H170: 0 | I170: 1188 | J170: 20018 | AX170: 165 | AZ170: 121461101.7 | BC170: 6863 | BF170: 0 | BH170: 17697.96033 | BJ170: -1132.383741
A171: 166 | B171: MANCHESTER | C171: 0 | D171: 1.042 | E171: 0 | F171: 0 | G171: 0 | H171: 0 | I171: 1188 | J171: 1188 | AX171: 166 | AZ171: 0 | BC171: 0 | BF171: 0 | BH171: 0 | BJ171: 0
A172: 167 | B172: MANSFIELD | C172: 1 | D172: 1.052 | E172: 4 | F172: 155.7069905 | G172: 14005.06936 | H172: 7802 | I172: 1188 | J172: 22995 | AX172: 167 | AZ172: 46126612.6 | BC172: 3412 | BF172: 0 | BH172: 13518.93687 | BJ172: -486.1324846
A173: 168 | B173: MARBLEHEAD | C173: 1 | D173: 1 | E173: 3 | F173: 171.7094321 | G173: 13105.43631 | H173: 9398 | I173: 1188 | J173: 23691 | AX173: 168 | AZ173: 32926181.66 | BC173: 2588 | BF173: 0 | BH173: 12722.63588 | BJ173: -382.8004278
A174: 169 | B174: MARION | C174: 1 | D174: 1 | E174: 6 | F174: 154.424102 | G174: 13613.36788 | H174: 7409 | I174: 1188 | J174: 22210 | AX174: 169 | AZ174: 5105842 | BC174: 388 | BF174: 0 | BH174: 13159.3866 | BJ174: -453.9812784
A175: 170 | B175: MARLBOROUGH | C175: 1 | D175: 1.026 | E175: 10 | F175: 111.112604 | G175: 18125.22775 | H175: 2014 | I175: 1188 | J175: 21327 | AX175: 170 | AZ175: 91235300.24 | BC175: 5345 | BF175: 0 | BH175: 17069.27975 | BJ175: -1055.948004
A176: 171 | B176: MARSHFIELD | C176: 1 | D176: 1.036 | E176: 4 | F176: 129.1779229 | G176: 14162.47585 | H176: 4132 | I176: 1188 | J176: 19482 | AX176: 171 | AZ176: 49720641.06 | BC176: 3669 | BF176: 0 | BH176: 13551.55112 | BJ176: -610.924733
A177: 172 | B177: MASHPEE | C177: 1 | D177: 1 | E177: 8 | F177: 165.8531231 | G177: 15633.28411 | H177: 10295 | I177: 1188 | J177: 27116 | AX177: 172 | AZ177: 21252065.28 | BC177: 1416 | BF177: 0 | BH177: 15008.52068 | BJ177: -624.7634359
A178: 173 | B178: MATTAPOISETT | C178: 1 | D178: 1 | E178: 4 | F178: 192.1920686 | G178: 13027.80797 | H178: 12011 | I178: 1188 | J178: 26227 | AX178: 173 | AZ178: 4861034.76 | BC178: 383 | BF178: 0 | BH178: 12691.99676 | BJ178: -335.8112046
A179: 174 | B179: MAYNARD | C179: 1 | D179: 1.065 | E179: 5 | F179: 159.6857784 | G179: 14733.91209 | H179: 8794 | I179: 1188 | J179: 24716 | AX179: 174 | AZ179: 17943402.25 | BC179: 1258 | BF179: 0 | BH179: 14263.43581 | BJ179: -470.4762785
A180: 175 | B180: MEDFIELD | C180: 1 | D180: 1.042 | E180: 2 | F180: 158.2301137 | G180: 13090.71328 | H180: 7623 | I180: 1188 | J180: 21902 | AX180: 175 | AZ180: 29962723.08 | BC180: 2371 | BF180: 0 | BH180: 12637.16705 | BJ180: -453.5462276
A181: 176 | B181: MEDFORD | C181: 1 | D181: 1.05 | E181: 8 | F181: 132.2906159 | G181: 16995.01041 | H181: 5488 | I181: 1188 | J181: 23671 | AX181: 176 | AZ181: 73661905.41 | BC181: 4524 | BF181: 0 | BH181: 16282.47246 | BJ181: -712.5379554
A182: 177 | B182: MEDWAY | C182: 1 | D182: 1.036 | E182: 4 | F182: 138.0826639 | G182: 13613.12617 | H182: 5184 | I182: 1188 | J182: 19985 | AX182: 177 | AZ182: 28282405.94 | BC182: 2157 | BF182: 0 | BH182: 13111.91745 | BJ182: -501.2087183
A183: 178 | B183: MELROSE | C183: 1 | D183: 1.036 | E183: 4 | F183: 112.6559352 | G183: 13615.93176 | H183: 1723 | I183: 1188 | J183: 16527 | AX183: 178 | AZ183: 53458998.81 | BC183: 4112 | BF183: 0 | BH183: 13000.72928 | BJ183: -615.2024762
A184: 179 | B184: MENDON | C184: 0 | D184: 1 | E184: 0 | F184: 0 | G184: 17354.29 | H184: 0 | I184: 1188 | J184: 18542 | AX184: 179 | AZ184: 168603.3 | BC184: 10 | BF184: 0 | BH184: 16860.33 | BJ184: -493.96
A185: 180 | B185: MERRIMAC | C185: 0 | D185: 1 | E185: 0 | F185: 0 | G185: 17354.29 | H185: 0 | I185: 1188 | J185: 18542 | AX185: 180 | AZ185: 134882.64 | BC185: 8 | BF185: 0 | BH185: 16860.33 | BJ185: -493.96
A186: 181 | B186: METHUEN | C186: 1 | D186: 1 | E186: 10 | F186: 101.4140567 | G186: 17817.38188 | H186: 252 | I186: 1188 | J186: 19257 | AX186: 181 | AZ186: 115572663.1 | BC186: 6860 | BF186: 0 | BH186: 16847.32698 | BJ186: -970.0548972
A187: 182 | B187: MIDDLEBOROUGH | C187: 1 | D187: 1 | E187: 8 | F187: 120.3307231 | G187: 15255.32077 | H187: 3102 | I187: 1188 | J187: 19545 | AX187: 182 | AZ187: 45230728.26 | BC187: 3086 | BF187: 0 | BH187: 14656.74927 | BJ187: -598.5714959
A188: 183 | B188: MIDDLEFIELD | C188: 0 | D188: 1 | E188: 0 | F188: 0 | G188: 17354.29 | H188: 0 | I188: 1188 | J188: 18542 | AX188: 183 | AZ188: 33720.66 | BC188: 2 | BF188: 0 | BH188: 16860.33 | BJ188: -493.96
A189: 184 | B189: MIDDLETON | C189: 1 | D189: 1.046 | E189: 3 | F189: 184.2891733 | G189: 13206.24058 | H189: 11131 | I189: 1188 | J189: 25525 | AX189: 184 | AZ189: 8701795.6 | BC189: 702 | BF189: 0 | BH189: 12395.72023 | BJ189: -810.5203535
A190: 185 | B190: MILFORD | C190: 1 | D190: 1.006 | E190: 10 | F190: 113.9690958 | G190: 18027.19238 | H190: 2518 | I190: 1188 | J190: 21733 | AX190: 185 | AZ190: 79238636.23 | BC190: 4680 | BF190: 0 | BH190: 16931.33253 | BJ190: -1095.859856
A191: 186 | B191: MILLBURY | C191: 1 | D191: 1 | E191: 7 | F191: 137.2094046 | G191: 14832.93289 | H191: 5519 | I191: 1188 | J191: 21540 | AX191: 186 | AZ191: 23335746.68 | BC191: 1646 | BF191: 0 | BH191: 14177.24586 | BJ191: -655.6870303
A192: 187 | B192: MILLIS | C192: 1 | D192: 1.034 | E192: 4 | F192: 162.0124568 | G192: 13711.16018 | H192: 8503 | I192: 1188 | J192: 23402 | AX192: 187 | AZ192: 14399304.71 | BC192: 1086 | BF192: 0 | BH192: 13259.02828 | BJ192: -452.1319066
A193: 188 | B193: MILLVILLE | C193: 0 | D193: 1 | E193: 0 | F193: 0 | G193: 17354.29 | H193: 0 | I193: 1188 | J193: 18542 | AX193: 188 | AZ193: 84301.65 | BC193: 5 | BF193: 0 | BH193: 16860.33 | BJ193: -493.96
A194: 189 | B194: MILTON | C194: 1 | D194: 1.042 | E194: 3 | F194: 145.5433064 | G194: 13400.96683 | H194: 6103 | I194: 1188 | J194: 20692 | AX194: 189 | AZ194: 55668073.97 | BC194: 4303 | BF194: 0 | BH194: 12937.03787 | BJ194: -463.9289567
A195: 190 | B195: MONROE | C195: 0 | D195: 1 | E195: 0 | F195: 0 | G195: 11731.082 | H195: 0 | I195: 1188 | J195: 12919 | AX195: 190 | AZ195: 215323.1 | BC195: 19 | BF195: 0 | BH195: 11332.79474 | BJ195: -398.2872632
A196: 191 | B196: MONSON | C196: 1 | D196: 1 | E196: 8 | F196: 130.810224 | G196: 15205.76046 | H196: 4685 | I196: 1188 | J196: 21079 | AX196: 191 | AZ196: 11727051 | BC196: 811 | BF196: 0 | BH196: 14459.9889 | BJ196: -745.7715619
A197: 192 | B197: MONTAGUE | C197: 0 | D197: 1 | E197: 0 | F197: 0 | G197: 17354.29 | H197: 0 | I197: 1188 | J197: 18542 | AX197: 192 | AZ197: 16860.33 | BC197: 1 | BF197: 0 | BH197: 16860.33 | BJ197: -493.96
A198: 193 | B198: MONTEREY | C198: 0 | D198: 1 | E198: 0 | F198: =IF(AND(VLOOKUP(A198,rate_abvfndNEW,34)<100,C198=1),100,IF(A198=352,VLOOKUP(125,rate_abvfndNEW,34),VLOOKUP(A198,rate_abvfndNEW,34))) -> 0 | G198: 0 | H198: =IF(F198<>0,ROUND(G198*F198/100-G198,0),0) -> 0 | I198: 1188 | J198: 1188 | AX198: 193 | AZ198: 0 | BC198: 0 | BF198: =+AX198-A198 -> 0 | BH198: 0 | BJ198: =+BH198-G198 -> 0
A199: 194 | B199: MONTGOMERY | C199: 0 | D199: 1 | E199: 0 | F199: 0 | G199: 17354.29 | H199: 0 | I199: 1188 | J199: =IFERROR(ROUND(G199,0)+H199+I199,"") -> 18542 | AX199: 194 | AZ199: 84301.65 | BC199: 5 | BF199: 0 | BH199: =IF(AZ199=0,0,AZ199/BC199) -> 16860.33 | BJ199: -493.96
A200: 195 | B200: MOUNT WASHINGTON | C200: 0 | D200: 1 | E200: 0 | F200: 0 | G200: 10101.984 | H200: 0 | I200: 1188 | J200: 11290 | AX200: 195 | AZ200: 71641.61 | BC200: 7 | BF200: 0 | BH200: 10234.51571 | BJ200: 132.5317143
... 248 more rows

Sheet fnd enro explain (hidden)
A1: Massachusetts Department of Elementary and Secondary Education | O1: Massachusetts Department of Elementary and Secondary Education
A2: Office of District and School Finance | O2: Office of District and School Finance
A3: FY25 FOUNDATION ENROLLMENT | M3: 2024-01-24 | O3: FY24 FOUNDATION ENROLLMENT | AA3: 2023-03-28 | AC3: FY23 | AO3: 2022-08-01 | AQ3: fy21 & fy 22 | BC3: 2021-03-17 | BE3: FY20 SWM Budget | BQ3: Draft at time of run, 5/7/2019 | BS3: FY20 Governor's Budget | CE3: 2019-01-14 | CG3: Prior Year | CS3: 2018-05-01
O5: Foundation enrollment is the total headcount of pupils in grades PK - 12. Pupils are further divided into program | AC5: Foundation enrollment is the total headcount of pupils in grades PK - 12. Pupils are further divided into program | AQ5: Foundation enrollment is the total headcount of pupils in grades PK - 12. Pupils are further divided into program | BE5: Foundation enrollment is the total headcount of pupils in grades PK - 12. Pupils are further divided into program | BS5: Foundation enrollment is the total headcount of pupils in grades PK - 12. Enrollment is broken into two categories, | CG5: Foundation enrollment is the total headcount of pupils in grades PK - 12. Enrollment is broken into two categories,
A6: Foundation enrollment is the total headcount of pupils in grades PK - 12. Pupils are further divided into program | O6: groups: pre-kindergarten; half-time kindergarten; full-time kindergarten; elementary, grades 1 to 5; middle school, grades 6 | AC6: groups: pre-kindergarten; half-time kindergarten; full-time kindergarten; elementary, grades 1 to 5; middle school, grades 6 | AQ6: groups: pre-kindergarten; half-time kindergarten; full-time kindergarten; elementary, grades 1 to 5; middle school, grades 6 | BE6: groups: pre-kindergarten; half-time kindergarten; full-time kindergarten; elementary, grades 1 to 5; middle school, grades 6 | BS6: regular education pupils and traditional or Path vocational pupils. Pupils are further divided into program groups: pre- | CG6: regular education pupils or English language learners (ELL). Pupils are further divided into program groups: pre-
A7: groups: pre-kindergarten; half-time kindergarten; full-time kindergarten; elementary, grades 1 to 5; middle school, grades 6 | O7: through 8; or high school, grades 9 through 12 under the Regular Education section, but reported in bulk for | AC7: through 8; or high school, grades 9 through 12 under the Regular Education section, but reported in bulk for | AQ7: through 8; or high school, grades 9 through 12 under the Regular Education section, but reported in bulk for | BE7: through 8; or high school, grades 9 through 12 under the Regular Education section, but reported in bulk for | BS7: kindergarten; half-time kindergarten; full-time kindergarten; elementary, grades 1 to 5; middle school, grades 6 | CG7: kindergarten; half-time kindergarten; full-time kindergarten; elementary, grades 1 to 5; middle school, grades 6
A8: through 8; or high school, grades 9 through 12 under the Regular Education section, but reported in bulk for | O8: Vocational programs. Voke enrollment was first incorporated in FY23. | AC8: vocational programs. | AQ8: vocational programs. | BE8: vocational programs. | BS8: through 8; or high school, grades 9 through 12 under the Regular Education section, but reported in bulk for | CG8: through 8; or high school, grades 9 through 12.
A9: Vocational programs. Voke enrollment was first incorporated in FY23. | BS9: vocational programs. The Path enrollment categories are new in FY20. See below.
O10: Foundation enrollment considers PK and K2 to be half day programs. The PK and K2 rates are essentially half the cost | AC10: Foundation enrollment considers PK and K2 to be half day programs. The PK and K2 rates are essentially half the cost | AQ10: Foundation enrollment considers PK and K2 to be half day programs. The PK and K2 rates are essentially half the cost | BE10: Foundation enrollment considers PK and K2 to be half day programs. The PK and K2 rates are essentially half the cost | CG10: Foundation enrollment considers PK and K2 to be half day programs. The PK and K2 rates are essentially half the cost
A11: Foundation enrollment considers PK and K2 to be half day programs. The PK and K2 rates are essentially half the cost | O11: of KF. The headcount is divided by two, rounded to the nearest whole number, then folded into the total enrollment. | AC11: of KF. The headcount is divided by two, rounded to the nearest whole number, then folded into the total enrollment. | AQ11: of KF. The headcount is divided by two, rounded to the nearest whole number, then folded into the total enrollment. | BE11: of KF. The headcount is divided by two, rounded to the nearest whole number, then folded into the total enrollment. | BS11: Foundation enrollment considers PK and K2 to be half day programs. The PK and K2 rates are essentially half the cost | CG11: of KF. The headcount is divided by two, rounded to the nearest whole number, then folded into the total enrollment.
A12: of KF. The headcount is divided by two, rounded to the nearest whole number, then folded into the total enrollment. | O12: PK enrollment is not included in the special education FTE increment. | AC12: PK enrollment is not included in the special education FTE increment. | AQ12: PK enrollment is not included in the special education FTE increment. | BE12: PK enrollment is not included in the special education FTE increment. | BS12: of KF. The headcount is divided by two, rounded to the nearest whole number, then folded into the total enrollment. | CG12: PK enrollment is not included in the SPED FTE increment.
A13: PK enrollment is not included in the special education FTE increment. | BS13: PK enrollment is not included in the special education FTE increment.
O14: The halftime PK also effects Ecodis and ELL. Where full enrollment is shown under the regular ed PK column, the | AC14: The halftime PK also effects Ecodis and ELL. Where full enrollment is shown under the regular ed PK column, the | AQ14: The halftime PK also effects Ecodis and ELL. Where full enrollment is shown under the regular ed PK column, the | BE14: The halftime PK also effects Ecodis and ELL. Where full enrollment is shown under the regular ed PK column, the | CG14: FY15 marks the first year all PK enrollment was included. In prior years PK enrollment included only SPED and
A15: The halftime PK also effects low income and English learner (EL) enrollment. Where full enrollment is shown under the regular ed | O15: same enrollment is presented as halved. So, total enrollment, ELL, and Ecodis all show PK/K2 enrollment as | AC15: same enrollment is presented as halved. So, total enrollment, ELL, and Ecodis all show PK/K2 enrollment as | AQ15: same enrollment is presented as halved. So, total enrollment, ELL, and Ecodis all show PK/K2 enrollment as | BE15: same enrollment is presented as halved. So, total enrollment, ELL, and Ecodis all show PK/K2 enrollment as | BS15: The halftime PK also effects Ecodis and ELL. Where full enrollment is shown under the regular ed PK column, the | CG15: role model enrollment.
A16: PK column, the same enrollment is presented as half. So, total enrollment, EL, and low income all show PK/K2 enrollment as | O16: halved. | AC16: halved. | AQ16: halved. | BE16: halved. | BS16: same enrollment is presented as halved. So, total enrollment, ELL, and Ecodis all show PK/K2 enrollment as
A17: half. | BS17: halved. | CG17: Foundation enrollment does not use actual special education enrollment. The SPED increment FTE is
O18: Foundation enrollment does not use actual special education enrollment. The spec ed increment is | AC18: Foundation enrollment does not use actual special education enrollment. The incremental FTE is | AQ18: Foundation enrollment does not use actual special education enrollment. The incremental FTE is | BE18: Foundation enrollment does not use actual special education enrollment. The incremental FTE is | CG18: determined by formula. The formula determines SPED FTE to be 3.75% of grade K - 12 enrollment. PK enrollment
A19: Foundation enrollment does not use actual special education enrollment. The spec ed increment is | O19: determined by formula. Special education is added at 3.9% of each foundation enrollment, up from 3.83% in | AC19: determined by formula. Special education FTE is set at 3.83% of grade K - 12 regular ed. PK enrollment | AQ19: determined by formula. Special education FTE is set at 3.83% of grade K - 12 regular ed. PK enrollment | BE19: determined by formula. Special education FTE is set at 3.79% of grade K - 12 regular ed. PK enrollment | BS19: Foundation enrollment does not use actual special education enrollment. The incremental FTE is | CG19: is excluded. District foundation budgets round the SPED FTE to a whole number. Charter foundation budets
A20: determined by formula. Special education is added at 3.93% of each foundation enrollment, up from 3.9% in | O20: FY23. PK enrollmentis excluded. District foundation budgets round the increment's FTE to a whole number. | AC20: is excluded. District foundation budgets round the increment's FTE to a whole number. Charter foundation budets | AQ20: is excluded. District foundation budgets round the increment's FTE to a whole number. Charter foundation budets | BE20: is excluded. District foundation budgets round the increment's FTE to a whole number. Charter foundation budets | BS20: determined by formula. Special education FTE is set at 3.75% of grade K - 12 regular ed and Path enrollment. PK enrollment | CG20: do not round, returning enrollment to the 4th decimal point, as there are many rates based on only one (1) pupil.
A21: FY23. PK enrollment is excluded. District foundation budgets round the increment's FTE to a whole number. | O21: Charter foundation budets round to the 4th decimal point, in order to capture special education tuition in rates | AC21: round to the 4th decimal point, in order to capture special education tuition in rates with only one (1) | AQ21: round to the 4th decimal point, in order to capture special education tuition in rates with only one (1) | BE21: round to the 4th decimal point, in order to capture special education tuition in rates with only one (1) | BS21: is excluded. District foundation budgets round the increment's FTE to a whole number. Charter foundation budets
A22: Charter foundation budets round to the 4th decimal point, in order to capture special education tuition in rates | O22: with only one (1) pupil. | AC22: pupil. | AQ22: pupil. | BE22: pupil. | BS22: round to the 4th decimal point, in order to capture special education tuition in rates with only one (1) | CG22: Prior to FY17 October SIMS was the sole source for foundation enrollment. In FY16 six (6) charter schools
A23: with only one (1) pupil. | BS23: pupil. | CG23: did not use SIMS to report their their low income enrollment. For these districts, prior year low income
O24: Traditionally, Commonwealth charter schools have not reported vocational enrollment. This column was always left | AC24: Traditionally, Commonwealth charter schools have not had vocational enrollment. This column was always left | BE24: FY20 Changes | CG24: percentages were used to project their low income foundation enrollment. The October SIMS was used for the remaining
A25: Traditionally, Commonwealth charter schools have not reported vocational enrollment. This column was always left | O25: blank, set to 0. Effective with the signed budget FY23 projections, voke enrollment is included. | AC25: blank, set to 0. Effective with the signed budget FY23 projections, voke enrollment is included. | AQ25: FY22 Changes | BE25: FY20 projections incorporate a revision to the recent English Language Learner remodel. The seven (7) categories used | BS25: FY20 Changes | CG25: schools.
A26: blank, set to 0. Effective with the signed budget FY23 projections, voke enrollment is included. | AQ26: FY20 projections incorporate a revision to the recent English Language Learner remodel. The seven (7) categories used | BE26: in FY19 have been pared down to three, with vocational ELL funding removed altogether. | BS26: FY20 projections incorporate a revision to the recent English Language Learner remodel. The seven (7) categories used
AC27: FY23 Changes | AQ27: in FY19 have been pared down to three, with vocational ELL funding removed altogether. | BS27: in FY19 have been pared down to three, with vocational ELL funding removed altogether. | CG27: In FY17 DESE transistioned to the ECODIS low income model. ECODIS low income is sourced from the
O28: Historic Transitions | AC28: In the truncated 7/29/22 and the full 8/9/22 projection postings, the two rates with voke enrollment | CG28: Department of Health and Human Services. Low income status is given to pupils enrolled in one or more
O29: FY23, by the December 2022 analysis, the first vocational pupils were properly included in the | AC29: were based on faulty foundation enrollment. The voke enro was not deducted from the HS reg ed column. | AQ29: Historic Transitions | BE29: Historic Transitions | BS29: There is the addition of non-chapter 74 vocational program identified as Early College Innovation Pathways enrollment. | CG29: public assistence program, specifically SNAP, TANF, Medicaid, and DCF foster care. DESE matches those
O30: foundation base rates for Methuen and Lawrence at 3518 Phoenix Academy. | AC30: Later projections, and postings, will include the correction.
O32: FY20 projections incorporate a revision to the recent English Language Learner remodel. The seven (7) categories used | AQ32: FY20 projections incorporate a revision to the recent English Language Learner remodel. The seven (7) categories used | BE32: FY15 marks the first year all PK enrollment was included. In prior years PK enrollment included only SPED and | BS32: Three categories have been set up, but only one population identified, Path1. | CG32: direct certified with each SIMS collection, October, March, and June. Foundation Enrollment low income status is
O33: in FY19 have been pared down to three, with vocational ELL funding removed altogether. | AC33: FY22 Changes | AQ33: in FY19 have been pared down to three, with vocational ELL funding removed altogether. | BE33: role model enrollment, which was set at 2 times the PK headcount. | BS33: Path enrollment is duplicately reported in the regular education high school cohort. Foundation enrollment | CG33: given to a pupil if they counted as low income in as little as one of the last four collections, current October,
AC34: FY20 projections incorporate a revision to the recent English Language Learner remodel. The seven (7) categories used | BS34: deductions the enrollment from regular education high school enrollment.
O35: FY15 marks the first year all PK enrollment was included. In prior years PK enrollment included only SPED and | AC35: in FY19 have been pared down to three, with vocational ELL funding removed altogether. | AQ35: FY15 marks the first year all PK enrollment was included. In prior years PK enrollment included only SPED and | BE35: FY17 marks the first transition year for using EcoDis in place of SIMS low income reporting. In FY16 six (6) charter schools
O36: role model enrollment, which was set at 2 times the PK headcount. | AQ36: role model enrollment, which was set at 2 times the PK headcount. | BE36: did not use SIMS to report their their low income enrollment. For these districts, prior year low income | BS36: Historic Transitions
AC37: Historic Transitions | BE37: percentages were used to project their low income foundation enrollment. The October SIMS was used for the remaining | BS37: FY15 marks the first year all PK enrollment was included. In prior years PK enrollment included only SPED and
O38: FY17 marks the first transition year for using EcoDis in place of SIMS low income reporting. In FY16 six (6) charter schools | AC38: FY20 projections incorporate a revision to the recent English Language Learner remodel. The seven (7) categories used | AQ38: FY17 marks the first transition year for using EcoDis in place of SIMS low income reporting. In FY16 six (6) charter schools | BE38: schools. In FY18 to the present all rates are set using EcoDis. ECODIS low income is sourced from the | BS38: role model enrollment, which was set at 2 times the PK headcount.
O39: did not use SIMS to report their their low income enrollment. For these districts, prior year low income | AC39: in FY19 have been pared down to three, with vocational ELL funding removed altogether. | AQ39: did not use SIMS to report their their low income enrollment. For these districts, prior year low income | BE39: Department of Health and Human Services. Low income status is given to pupils enrolled in one or more
O40: percentages were used to project their low income foundation enrollment. The October SIMS was used for the remaining | AQ40: percentages were used to project their low income foundation enrollment. The October SIMS was used for the remaining | BE40: public assistence program, specifically SNAP, TANF, Medicaid, and DCF foster care. DESE matches those | BS40: FY17 marks the first transition year for using EcoDis in place of SIMS low income reporting. In FY16 six (6) charter schools
O41: schools. In FY18 to the present all rates are set using EcoDis. ECODIS low income is sourced from the | AC41: FY15 marks the first year all PK enrollment was included. In prior years PK enrollment included only SPED and | AQ41: schools. In FY18 to the present all rates are set using EcoDis. ECODIS low income is sourced from the | BE41: direct certified with each SIMS collection, October, March, and June. Foundation Enrollment low income status is | BS41: did not use SIMS to report their their low income enrollment. For these districts, prior year low income
O42: Department of Health and Human Services. Low income status is given to pupils enrolled in one or more | AC42: role model enrollment, which was set at 2 times the PK headcount. | AQ42: Department of Health and Human Services. Low income status is given to pupils enrolled in one or more | BE42: given to a pupil if they counted as low income in as little as one of the last four collections, current October, | BS42: percentages were used to project their low income foundation enrollment. The October SIMS was used for the remaining
O43: public assistence program, specifically SNAP, TANF, Medicaid, and DCF foster care. DESE matches those | AQ43: public assistence program, specifically SNAP, TANF, Medicaid, and DCF foster care. DESE matches those | BE43: June, March, and prior year October. | BS43: schools. In FY18 to the present all rates are set using EcoDis. ECODIS low income is sourced from the
O44: direct certified with each SIMS collection, October, March, and June. Foundation Enrollment low income status is | AC44: FY17 marks the first transition year for using EcoDis in place of SIMS low income reporting. In FY16 six (6) charter schools | AQ44: direct certified with each SIMS collection, October, March, and June. Foundation Enrollment low income status is | BS44: Department of Health and Human Services. Low income status is given to pupils enrolled in one or more
O45: given to a pupil if they counted as low income in as little as one of the last four collections, current October, | AC45: did not use SIMS to report their their low income enrollment. For these districts, prior year low income | AQ45: given to a pupil if they counted as low income in as little as one of the last four collections, current October, | BE45: FY19 marks the first year ELL is transitioned from being based on standalone rates, to the increment side of the formula. | BS45: public assistence program, specifically SNAP, TANF, Medicaid, and DCF foster care. DESE matches those
O46: June, March, and prior year October. | AC46: percentages were used to project their low income foundation enrollment. The October SIMS was used for the remaining | AQ46: June, March, and prior year October. | BE46: A different rate is presented for each regular ed & chapter 74 voke cohort. | BS46: direct certified with each SIMS collection, October, March, and June. Foundation Enrollment low income status is
AC47: schools. In FY18 to the present all rates are set using EcoDis. ECODIS low income is sourced from the | BS47: given to a pupil if they counted as low income in as little as one of the last four collections, current October,
O48: FY19 marks the first year ELL is transitioned from being based on standalone rates, to the increment side of the formula. | AC48: Department of Health and Human Services. Low income status is given to pupils enrolled in one or more | AQ48: FY19 marks the first year ELL is transitioned from being based on standalone rates, to the increment side of the formula. | BS48: June, March, and prior year October.
O49: A different rate is presented for each regular ed & chapter 74 voke cohort. | AC49: public assistence program, specifically SNAP, TANF, Medicaid, and DCF foster care. DESE matches those | AQ49: A different rate is presented for each regular ed & chapter 74 voke cohort.
AC50: direct certified with each SIMS collection, October, March, and June. Foundation Enrollment low income status is | BS50: FY19 marks the first year ELL is transitioned from being based on standalone rates, to the increment side of the formula.
AC51: given to a pupil if they counted as low income in as little as one of the last four collections, current October, | BS51: A different rate is presented for each regular ed & chapter 74 voke cohort.
AC52: June, March, and prior year October.
AC54: FY19 marks the first year ELL is transitioned from being based on standalone rates, to the increment side of the formula.
AC55: A different rate is presented for each regular ed & chapter 74 voke cohort.

Sheet fnd enro (hidden)
A1: fill in lea - chalocsend, all else formulas | I1: =SUM(D10:I1054) -> 46076 | N1: =SUM(M10:O1054) -> 6448 | P1: =SUM(P10:P1054) -> 29255 | AA1: Source: 26 - PROJa fnd enro | AI1: =SUM(AD10:AI1054) -> 46077 | AJ1: =SUM(AJ10:AJ1054) -> 1 | AN1: =SUM(AK10:AN1054) -> 6522 | AS1: =SUM(AO10:AS1054) -> 29493
K2: 0.03965
K5: 0.04965
A6: FOUNDATION ENROLLMENT | AA6: SIMS OCTOBER 1 DATA
D7: A l l P u p i l s | J7: Voke | K7: SWD | M7: EL | P7: EcoDis | Q7: Lowinc | R7: TOTAL | AD7: A l l P u p i l s | AJ7: Voke | AK7: EL | AO7: LowInc | AU7: Campus | AV7: Sending | AW7: Lowinc
A8: LEA | B8: chalocsend | C8: charter school | D8: PK | E8: K2 | F8: KF | G8: G1-5 | H8: G6-8 | I8: G9-12 | J8: Reg | K8: In | L8: Tuit | M8: PK-5 | N8: G6-8 | O8: G9-12 | P8: All | Q8: Group | R8: Enro | AA8: lea | AB8: chalocsend | AC8: charter school | AD8: PK | AE8: K2 | AF8: K | AG8: G1-5 | AH8: G6-8 | AI8: G9-12 | AJ8: Reg | AK8: PK | AL8: KF-5 | AM8: G6-8 | AN8: G9-12 | AO8: g1-8 | AP8: PK | AQ8: K2 | AR8: KF | AS8: g9-12 | AU8: LEA | AV8: LEA | AW8: Group
Q9: ROUND(ao10*0.5,0)+ROUND(ap10*0.5,0)+ROUND(SUM(an10,aq10:ar10),0)
A10: =AA10 -> 409 | B10: =AB10 -> 409201003 | C10: =AC10 -> ALMA DEL MAR | D10: =ROUND(AD10,0) -> 0 | E10: =ROUND(AE10,0) -> 0 | F10: 0 | G10: 0 | H10: 1 | I10: =ROUND(AI10,0)-J10 -> 0 | J10: 0 | K10: =ROUND($K$2*(SUM(AF10:AI10)+(AE10*0.5))+$K$5*AJ10,4) -> 0.0397 | M10: =ROUND(AL10+(AK10*0.5),0) -> 0 | N10: =ROUND(AM10,0) -> 0 | O10: =ROUND(AN10,0) -> 0 | P10: =ROUND(((AP10+AQ10)*0.5)+AO10+AR10+AS10,0) -> 0 | Q10: =AW10 -> 7 | R10: =SUM(F10:I10)+ROUND(D10*0.5,0)+ROUND(J10,0) -> 1 | AA10: 409 | AB10: 409201003 | AC10: ALMA DEL MAR | AD10: 0 | AE10: 0 | AF10: 0 | AG10: 0 | AH10: 1 | AI10: 0 | AJ10: 0 | AK10: 0 | AL10: 0 | AM10: 0 | AN10: 0 | AO10: 0 | AP10: 0 | AQ10: 0 | AR10: 0 | AS10: 0 | AU10: 201 | AV10: 3 | AW10: 7
A11: =AA11 -> 409 | B11: =AB11 -> 409201095 | C11: =AC11 -> ALMA DEL MAR | D11: =ROUND(AD11,0) -> 0 | E11: =ROUND(AE11,0) -> 0 | F11: =ROUND(AF11,0) -> 0 | G11: =ROUND(AG11,0) -> 1 | H11: =ROUND(AH11,0) -> 3 | I11: =ROUND(AI11,0)-J11 -> 0 | J11: =ROUND(AJ11,0) -> 0 | K11: =ROUND($K$2*(SUM(AF11:AI11)+(AE11*0.5))+$K$5*AJ11,4) -> 0.1586 | M11: =ROUND(AL11+(AK11*0.5),0) -> 1 | N11: =ROUND(AM11,0) -> 1 | O11: =ROUND(AN11,0) -> 0 | P11: =ROUND(((AP11+AQ11)*0.5)+AO11+AR11+AS11,0) -> 4 | Q11: =AW11 -> 12 | R11: =SUM(F11:I11)+ROUND(D11*0.5,0)+ROUND(J11,0) -> 4 | AA11: 409 | AB11: 409201095 | AC11: ALMA DEL MAR | AD11: 0 | AE11: 0 | AF11: 0 | AG11: 1 | AH11: 3 | AI11: 0 | AJ11: 0 | AK11: 0 | AL11: 1 | AM11: 1 | AN11: 0 | AO11: 4 | AP11: 0 | AQ11: 0 | AR11: 0 | AS11: 0 | AU11: 201 | AV11: 95 | AW11: 12
A12: 409 | B12: 409201201 | C12: ALMA DEL MAR | D12: 0 | E12: 0 | F12: 98 | G12: 498 | H12: 439 | I12: 0 | J12: 0 | K12: 41.0378 | M12: 224 | N12: 69 | O12: 0 | P12: 845 | Q12: 12 | R12: 1035 | AA12: 409 | AB12: 409201201 | AC12: ALMA DEL MAR | AD12: 0 | AE12: 0 | AF12: 98 | AG12: 498 | AH12: 439 | AI12: 0 | AJ12: 0 | AK12: 0 | AL12: 224 | AM12: 69 | AN12: 0 | AO12: 762 | AP12: 0 | AQ12: 0 | AR12: 83 | AS12: 0 | AU12: 201 | AV12: 201 | AW12: 12
A13: 409 | B13: 409201331 | C13: ALMA DEL MAR | D13: 0 | E13: 0 | F13: 0 | G13: 0 | H13: 2 | I13: 0 | J13: 0 | K13: 0.0793 | M13: 0 | N13: 0 | O13: 0 | P13: 1 | Q13: 7 | R13: 2 | AA13: 409 | AB13: 409201331 | AC13: ALMA DEL MAR | AD13: 0 | AE13: 0 | AF13: 0 | AG13: 0 | AH13: 2 | AI13: 0 | AJ13: 0 | AK13: 0 | AL13: 0 | AM13: 0 | AN13: 0 | AO13: 1 | AP13: 0 | AQ13: 0 | AR13: 0 | AS13: 0 | AU13: 201 | AV13: 331 | AW13: 7
A14: 410 | B14: 410035035 | C14: EXCEL ACADEMY | D14: 0 | E14: 0 | F14: 0 | G14: 95 | H14: 248 | I14: 330 | J14: 0 | K14: 26.6845 | M14: 29 | N14: 44 | O14: 38 | P14: 504 | Q14: 11 | R14: 673 | AA14: 410 | AB14: 410035035 | AC14: EXCEL ACADEMY | AD14: 0 | AE14: 0 | AF14: 0 | AG14: 95 | AH14: 248 | AI14: 330 | AJ14: 0 | AK14: 0 | AL14: 29 | AM14: 44 | AN14: 38 | AO14: 263 | AP14: 0 | AQ14: 0 | AR14: 0 | AS14: 241 | AU14: 35 | AV14: 35 | AW14: 11
A15: 410 | B15: 410035044 | C15: EXCEL ACADEMY | D15: 0 | E15: 0 | F15: 0 | G15: 1 | H15: 0 | I15: 1 | J15: 0 | K15: 0.0793 | M15: 1 | N15: 0 | O15: 0 | P15: 0 | Q15: 11 | R15: 2 | AA15: 410 | AB15: 410035044 | AC15: EXCEL ACADEMY | AD15: 0 | AE15: 0 | AF15: 0 | AG15: 1 | AH15: 0 | AI15: 1 | AJ15: 0 | AK15: 0 | AL15: 1 | AM15: 0 | AN15: 0 | AO15: 0 | AP15: 0 | AQ15: 0 | AR15: 0 | AS15: 0 | AU15: 35 | AV15: 44 | AW15: 11
A16: 410 | B16: 410035057 | C16: EXCEL ACADEMY | D16: 0 | E16: 0 | F16: 0 | G16: 13 | H16: 49 | I16: 247 | J16: 0 | K16: 12.2519 | M16: 4 | N16: 13 | O16: 23 | P16: 213 | Q16: 12 | R16: 309 | AA16: 410 | AB16: 410035057 | AC16: EXCEL ACADEMY | AD16: 0 | AE16: 0 | AF16: 0 | AG16: 13 | AH16: 49 | AI16: 247 | AJ16: 0 | AK16: 0 | AL16: 4 | AM16: 13 | AN16: 23 | AO16: 44 | AP16: 0 | AQ16: 0 | AR16: 0 | AS16: 169 | AU16: 35 | AV16: 57 | AW16: 12
A17: 410 | B17: 410035093 | C17: EXCEL ACADEMY | D17: 0 | E17: 0 | F17: 0 | G17: 0 | H17: 5 | I17: 10 | J17: 0 | K17: 0.5948 | M17: 0 | N17: 1 | O17: 1 | P17: 15 | Q17: 11 | R17: 15 | AA17: 410 | AB17: 410035093 | AC17: EXCEL ACADEMY | AD17: 0 | AE17: 0 | AF17: 0 | AG17: 0 | AH17: 5 | AI17: 10 | AJ17: 0 | AK17: 0 | AL17: 0 | AM17: 1 | AN17: 1 | AO17: 5 | AP17: 0 | AQ17: 0 | AR17: 0 | AS17: 10 | AU17: 35 | AV17: 93 | AW17: 11
A18: 410 | B18: 410035153 | C18: EXCEL ACADEMY | D18: 0 | E18: 0 | F18: 0 | G18: 0 | H18: 1 | I18: 2 | J18: 0 | K18: 0.119 | M18: 0 | N18: 0 | O18: 0 | P18: 3 | Q18: 10 | R18: 3 | AA18: 410 | AB18: 410035153 | AC18: EXCEL ACADEMY | AD18: 0 | AE18: 0 | AF18: 0 | AG18: 0 | AH18: 1 | AI18: 2 | AJ18: 0 | AK18: 0 | AL18: 0 | AM18: 0 | AN18: 0 | AO18: 1 | AP18: 0 | AQ18: 0 | AR18: 0 | AS18: 2 | AU18: 35 | AV18: 153 | AW18: 10
A19: 410 | B19: 410035160 | C19: EXCEL ACADEMY | D19: 0 | E19: 0 | F19: 0 | G19: 0 | H19: 0 | I19: 1 | J19: 0 | K19: 0.0397 | M19: 0 | N19: 0 | O19: 0 | P19: 0 | Q19: 11 | R19: 1 | AA19: 410 | AB19: 410035160 | AC19: EXCEL ACADEMY | AD19: 0 | AE19: 0 | AF19: 0 | AG19: 0 | AH19: 0 | AI19: 1 | AJ19: 0 | AK19: 0 | AL19: 0 | AM19: 0 | AN19: 0 | AO19: 0 | AP19: 0 | AQ19: 0 | AR19: 0 | AS19: 0 | AU19: 35 | AV19: 160 | AW19: 11
A20: 410 | B20: 410035163 | C20: EXCEL ACADEMY | D20: 0 | E20: 0 | F20: 0 | G20: 1 | H20: 10 | I20: 23 | J20: 0 | K20: 1.3481 | M20: 0 | N20: 2 | O20: 1 | P20: 25 | Q20: 11 | R20: 34 | AA20: 410 | AB20: 410035163 | AC20: EXCEL ACADEMY | AD20: 0 | AE20: 0 | AF20: 0 | AG20: 1 | AH20: 10 | AI20: 23 | AJ20: 0 | AK20: 0 | AL20: 0 | AM20: 2 | AN20: 1 | AO20: 9 | AP20: 0 | AQ20: 0 | AR20: 0 | AS20: 16 | AU20: 35 | AV20: 163 | AW20: 11
A21: 410 | B21: 410035165 | C21: EXCEL ACADEMY | D21: 0 | E21: 0 | F21: 0 | G21: 0 | H21: 3 | I21: 4 | J21: 0 | K21: 0.2776 | M21: 0 | N21: 0 | O21: 0 | P21: 4 | Q21: 10 | R21: 7 | AA21: 410 | AB21: 410035165 | AC21: EXCEL ACADEMY | AD21: 0 | AE21: 0 | AF21: 0 | AG21: 0 | AH21: 3 | AI21: 4 | AJ21: 0 | AK21: 0 | AL21: 0 | AM21: 0 | AN21: 0 | AO21: 2 | AP21: 0 | AQ21: 0 | AR21: 0 | AS21: 2 | AU21: 35 | AV21: 165 | AW21: 10
A22: 410 | B22: 410035176 | C22: EXCEL ACADEMY | D22: 0 | E22: 0 | F22: 0 | G22: 0 | H22: 0 | I22: 1 | J22: 0 | K22: 0.0397 | M22: 0 | N22: 0 | O22: 0 | P22: 1 | Q22: 8 | R22: 1 | AA22: 410 | AB22: 410035176 | AC22: EXCEL ACADEMY | AD22: 0 | AE22: 0 | AF22: 0 | AG22: 0 | AH22: 0 | AI22: 1 | AJ22: 0 | AK22: 0 | AL22: 0 | AM22: 0 | AN22: 0 | AO22: 0 | AP22: 0 | AQ22: 0 | AR22: 0 | AS22: 1 | AU22: 35 | AV22: 176 | AW22: 8
A23: 410 | B23: 410035229 | C23: EXCEL ACADEMY | D23: 0 | E23: 0 | F23: 0 | G23: 0 | H23: 0 | I23: 1 | J23: 0 | K23: 0.0397 | M23: 0 | N23: 0 | O23: 0 | P23: 0 | Q23: 9 | R23: 1 | AA23: 410 | AB23: 410035229 | AC23: EXCEL ACADEMY | AD23: 0 | AE23: 0 | AF23: 0 | AG23: 0 | AH23: 0 | AI23: 1 | AJ23: 0 | AK23: 0 | AL23: 0 | AM23: 0 | AN23: 0 | AO23: 0 | AP23: 0 | AQ23: 0 | AR23: 0 | AS23: 0 | AU23: 35 | AV23: 229 | AW23: 9
A24: 410 | B24: 410035244 | C24: EXCEL ACADEMY | D24: 0 | E24: 0 | F24: 0 | G24: 1 | H24: 1 | I24: 3 | J24: 0 | K24: 0.1983 | M24: 0 | N24: 0 | O24: 0 | P24: 2 | Q24: 10 | R24: 5 | AA24: 410 | AB24: 410035244 | AC24: EXCEL ACADEMY | AD24: 0 | AE24: 0 | AF24: 0 | AG24: 1 | AH24: 1 | AI24: 3 | AJ24: 0 | AK24: 0 | AL24: 0 | AM24: 0 | AN24: 0 | AO24: 1 | AP24: 0 | AQ24: 0 | AR24: 0 | AS24: 1 | AU24: 35 | AV24: 244 | AW24: 10
A25: 410 | B25: 410035248 | C25: EXCEL ACADEMY | D25: 0 | E25: 0 | F25: 0 | G25: 6 | H25: 23 | I25: 49 | J25: 0 | K25: 3.0927 | M25: 0 | N25: 3 | O25: 6 | P25: 50 | Q25: 11 | R25: 78 | AA25: 410 | AB25: 410035248 | AC25: EXCEL ACADEMY | AD25: 0 | AE25: 0 | AF25: 0 | AG25: 6 | AH25: 23 | AI25: 49 | AJ25: 0 | AK25: 0 | AL25: 0 | AM25: 3 | AN25: 6 | AO25: 16 | AP25: 0 | AQ25: 0 | AR25: 0 | AS25: 34 | AU25: 35 | AV25: 248 | AW25: 11
A26: 410 | B26: 410035262 | C26: EXCEL ACADEMY | D26: 0 | E26: 0 | F26: 0 | G26: 0 | H26: 0 | I26: 4 | J26: 0 | K26: 0.1586 | M26: 0 | N26: 0 | O26: 0 | P26: 1 | Q26: 10 | R26: 4 | AA26: 410 | AB26: 410035262 | AC26: EXCEL ACADEMY | AD26: 0 | AE26: 0 | AF26: 0 | AG26: 0 | AH26: 0 | AI26: 4 | AJ26: 0 | AK26: 0 | AL26: 0 | AM26: 0 | AN26: 0 | AO26: 0 | AP26: 0 | AQ26: 0 | AR26: 0 | AS26: 1 | AU26: 35 | AV26: 262 | AW26: 10
A27: 410 | B27: 410035346 | C27: EXCEL ACADEMY | D27: 0 | E27: 0 | F27: 0 | G27: 0 | H27: 8 | I27: 9 | J27: 0 | K27: 0.6741 | M27: 0 | N27: 3 | O27: 0 | P27: 11 | Q27: 8 | R27: 17 | AA27: 410 | AB27: 410035346 | AC27: EXCEL ACADEMY | AD27: 0 | AE27: 0 | AF27: 0 | AG27: 0 | AH27: 8 | AI27: 9 | AJ27: 0 | AK27: 0 | AL27: 0 | AM27: 3 | AN27: 0 | AO27: 7 | AP27: 0 | AQ27: 0 | AR27: 0 | AS27: 4 | AU27: 35 | AV27: 346 | AW27: 8
A28: 410 | B28: 410057035 | C28: EXCEL ACADEMY | D28: 0 | E28: 0 | F28: 0 | G28: 3 | H28: 6 | I28: 0 | J28: 0 | K28: 0.3569 | M28: 1 | N28: 1 | O28: 0 | P28: 6 | Q28: 11 | R28: 9 | AA28: 410 | AB28: 410057035 | AC28: EXCEL ACADEMY | AD28: 0 | AE28: 0 | AF28: 0 | AG28: 3 | AH28: 6 | AI28: 0 | AJ28: 0 | AK28: 0 | AL28: 1 | AM28: 1 | AN28: 0 | AO28: 6 | AP28: 0 | AQ28: 0 | AR28: 0 | AS28: 0 | AU28: 57 | AV28: 35 | AW28: 11
A29: 410 | B29: 410057057 | C29: EXCEL ACADEMY | D29: 0 | E29: 0 | F29: 0 | G29: 53 | H29: 144 | I29: 0 | J29: 0 | K29: 7.8111 | M29: 10 | N29: 29 | O29: 0 | P29: 155 | Q29: 12 | R29: 197 | AA29: 410 | AB29: 410057057 | AC29: EXCEL ACADEMY | AD29: 0 | AE29: 0 | AF29: 0 | AG29: 53 | AH29: 144 | AI29: 0 | AJ29: 0 | AK29: 0 | AL29: 10 | AM29: 29 | AN29: 0 | AO29: 155 | AP29: 0 | AQ29: 0 | AR29: 0 | AS29: 0 | AU29: 57 | AV29: 57 | AW29: 12
A30: 410 | B30: 410057093 | C30: EXCEL ACADEMY | D30: 0 | E30: 0 | F30: 0 | G30: 1 | H30: 8 | I30: 0 | J30: 0 | K30: 0.3569 | M30: 0 | N30: 0 | O30: 0 | P30: 4 | Q30: 11 | R30: 9 | AA30: 410 | AB30: 410057093 | AC30: EXCEL ACADEMY | AD30: 0 | AE30: 0 | AF30: 0 | AG30: 1 | AH30: 8 | AI30: 0 | AJ30: 0 | AK30: 0 | AL30: 0 | AM30: 0 | AN30: 0 | AO30: 4 | AP30: 0 | AQ30: 0 | AR30: 0 | AS30: 0 | AU30: 57 | AV30: 93 | AW30: 11
A31: 410 | B31: 410057163 | C31: EXCEL ACADEMY | D31: 0 | E31: 0 | F31: 0 | G31: 0 | H31: 2 | I31: 0 | J31: 0 | K31: 0.0793 | M31: 0 | N31: 0 | O31: 0 | P31: 1 | Q31: 11 | R31: 2 | AA31: 410 | AB31: 410057163 | AC31: EXCEL ACADEMY | AD31: 0 | AE31: 0 | AF31: 0 | AG31: 0 | AH31: 2 | AI31: 0 | AJ31: 0 | AK31: 0 | AL31: 0 | AM31: 0 | AN31: 0 | AO31: 1 | AP31: 0 | AQ31: 0 | AR31: 0 | AS31: 0 | AU31: 57 | AV31: 163 | AW31: 11
A32: 410 | B32: 410057165 | C32: EXCEL ACADEMY | D32: 0 | E32: 0 | F32: 0 | G32: 0 | H32: 1 | I32: 0 | J32: 0 | K32: 0.0397 | M32: 0 | N32: 1 | O32: 0 | P32: 1 | Q32: 10 | R32: 1 | AA32: 410 | AB32: 410057165 | AC32: EXCEL ACADEMY | AD32: 0 | AE32: 0 | AF32: 0 | AG32: 0 | AH32: 1 | AI32: 0 | AJ32: 0 | AK32: 0 | AL32: 0 | AM32: 1 | AN32: 0 | AO32: 1 | AP32: 0 | AQ32: 0 | AR32: 0 | AS32: 0 | AU32: 57 | AV32: 165 | AW32: 10
A33: 410 | B33: 410057248 | C33: EXCEL ACADEMY | D33: 0 | E33: 0 | F33: 0 | G33: 1 | H33: 13 | I33: 0 | J33: 0 | K33: 0.5551 | M33: 0 | N33: 1 | O33: 0 | P33: 10 | Q33: 11 | R33: 14 | AA33: 410 | AB33: 410057248 | AC33: EXCEL ACADEMY | AD33: 0 | AE33: 0 | AF33: 0 | AG33: 1 | AH33: 13 | AI33: 0 | AJ33: 0 | AK33: 0 | AL33: 0 | AM33: 1 | AN33: 0 | AO33: 10 | AP33: 0 | AQ33: 0 | AR33: 0 | AS33: 0 | AU33: 57 | AV33: 248 | AW33: 11
A34: 410 | B34: 410057262 | C34: EXCEL ACADEMY | D34: 0 | E34: 0 | F34: 0 | G34: 0 | H34: 1 | I34: 0 | J34: 0 | K34: 0.0397 | M34: 0 | N34: 0 | O34: 0 | P34: 1 | Q34: 10 | R34: 1 | AA34: 410 | AB34: 410057262 | AC34: EXCEL ACADEMY | AD34: 0 | AE34: 0 | AF34: 0 | AG34: 0 | AH34: 1 | AI34: 0 | AJ34: 0 | AK34: 0 | AL34: 0 | AM34: 0 | AN34: 0 | AO34: 1 | AP34: 0 | AQ34: 0 | AR34: 0 | AS34: 0 | AU34: 57 | AV34: 262 | AW34: 10
A35: 412 | B35: 412035018 | C35: ACADEMY OF THE PACIFIC RIM | D35: 0 | E35: 0 | F35: 0 | G35: 0 | H35: 1 | I35: 0 | J35: 0 | K35: 0.0397 | M35: 0 | N35: 0 | O35: 0 | P35: 0 | Q35: 9 | R35: 1 | AA35: 412 | AB35: 412035018 | AC35: ACADEMY OF THE PACIFIC RIM | AD35: 0 | AE35: 0 | AF35: 0 | AG35: 0 | AH35: 1 | AI35: 0 | AJ35: 0 | AK35: 0 | AL35: 0 | AM35: 0 | AN35: 0 | AO35: 0 | AP35: 0 | AQ35: 0 | AR35: 0 | AS35: 0 | AU35: 35 | AV35: 18 | AW35: 9
A36: 412 | B36: 412035035 | C36: ACADEMY OF THE PACIFIC RIM | D36: 0 | E36: 0 | F36: 0 | G36: 42 | H36: 193 | I36: 236 | J36: 0 | K36: 18.6752 | M36: 9 | N36: 29 | O36: 23 | P36: 353 | Q36: 11 | R36: 471 | AA36: 412 | AB36: 412035035 | AC36: ACADEMY OF THE PACIFIC RIM | AD36: 0 | AE36: 0 | AF36: 0 | AG36: 42 | AH36: 193 | AI36: 236 | AJ36: 0 | AK36: 0 | AL36: 9 | AM36: 29 | AN36: 23 | AO36: 189 | AP36: 0 | AQ36: 0 | AR36: 0 | AS36: 164 | AU36: 35 | AV36: 35 | AW36: 11
A37: 412 | B37: 412035044 | C37: ACADEMY OF THE PACIFIC RIM | D37: 0 | E37: 0 | F37: 0 | G37: 1 | H37: 7 | I37: 8 | J37: 0 | K37: 0.6344 | M37: 0 | N37: 3 | O37: 0 | P37: 8 | Q37: 11 | R37: 16 | AA37: 412 | AB37: 412035044 | AC37: ACADEMY OF THE PACIFIC RIM | AD37: 0 | AE37: 0 | AF37: 0 | AG37: 1 | AH37: 7 | AI37: 8 | AJ37: 0 | AK37: 0 | AL37: 0 | AM37: 3 | AN37: 0 | AO37: 5 | AP37: 0 | AQ37: 0 | AR37: 0 | AS37: 3 | AU37: 35 | AV37: 44 | AW37: 11
